Workbook

Sheet Dislcaimer
A1: Interest Rate Derivatives Explained II (Illustrations)
A5: This sheet does only serve for illustration purposes! It illustrates pricing for Swaps, CMS, CMS Floors, CMS Caps, Simple CMS Spread and Quanto Swaps | K5: The code comes with BSD License
K6: 'Copyright 2017 Dr. Joerg Kienitz
A7: This illustration and any accompanying material are being provided solely for information and general illustrative
A8: purposes. The author will not be responsible for the consequences of reliance upon any information contained in or | K8: 'Redistribution and use in source and binary forms, with or without modification,
A9: derived from the presentation or for any omission of information therefrom and hereby excludes all liability for loss | K9: 'are permitted provided that the following conditions are met:
A10: or damage (including, without limitation, direct, indirect, foreseeable, or consequential loss or damage and
A11: including loss or profit and even if advised of the possibility of such damages or if such damages were foreseeable) | K11: '1. Redistributions of source code must retain the above copyright notice,
A12: that may be incurred or su ered by any person in connection with the presentation, including (without limitation) | K12: 'this list of conditions and the following disclaimer.
A13: for the consequences of reliance upon any results derived therefrom or any error or omission whether negligent or
A14: not. No representation or warranty is made or given by the author that the presentation or any content thereof will | K14: '2. Redistributions in binary form must reproduce the above copyright notice,
A15: be error free, updated, complete or that inaccuracies, errors or defects will be corrected. | K15: 'this list of conditions and the following disclaimer in the documentation
A16: The views are solely that of the author. | K16: 'and/or other materials provided with the distribution.
A17: The presentation may not be reproduced in whole or part or delivered to any other person without prior permission
A18: of the author. It is accompanying material for the book Interest Rate Derivatives Explained II! | K18: '3. Neither the name of the copyright holder nor the names of its contributors
K19: 'may be used to endorse or promote products derived from this software without
A20: For comments, hints, bugs or suggestions, please, | K20: 'specific prior written permission.
A21: Contact:
A22: joerg.kienitz@gmx.de | K22: 'THIS SOFTWARE IS PROVIDED BY THE COPYRIGHT HOLDERS AND CONTRIBUTORS
K23: '"AS IS" AND ANY EXPRESS OR IMPLIED WARRANTIES, INCLUDING, BUT NOT LIMITED TO,
K24: 'THE IMPLIED WARRANTIES OF MERCHANTABILITY AND FITNESS FOR A PARTICULAR PURPOSE
K25: 'ARE DISCLAIMED. IN NO EVENT SHALL THE COPYRIGHT HOLDER OR CONTRIBUTORS BE LIABLE
K26: 'FOR ANY DIRECT, INDIRECT, INCIDENTAL, SPECIAL, EXEMPLARY, OR CONSEQUENTIAL DAMAGES
K27: '(INCLUDING, BUT NOT LIMITED TO, PROCUREMENT OF SUBSTITUTE GOODS OR SERVICES;
K28: 'LOSS OF USE, DATA, OR PROFITS; OR BUSINESS INTERRUPTION) HOWEVER CAUSED AND ON
K29: 'ANY THEORY OF LIABILITY, WHETHER IN CONTRACT, STRICT LIABILITY,
K30: 'OR TORT (INCLUDING NEGLIGENCE OR OTHERWISE) ARISING IN ANY WAY OUT OF THE USE OF
K31: 'THIS SOFTWARE, EVEN IF ADVISED OF THE POSSIBILITY OF SUCH DAMAGE.

Sheet Overview
L2: Example CMS Pricing | AG2: Example Swap Pricing
B5: Generic Information | E5: Overall Specification | W5: Generic Information
B7: Date | W7: Date
B8: Today | C8: =TODAY() -> 2016-11-02 | N8: Convexity Adj | O8: CMS | P8: CMS | Q8: CMS | R8: CMS | S8: CMS | T8: CMS | U8: Running | W8: Today | X8: =TODAY() -> 2016-11-02
F9: CMS | G9: CMS | H9: CMS | J9: Swap | K9: Start Date | L9: Pay Date | M9: Forward Swaps | N9: Forward Swaps | O9: Cap ATM | P9: Cap ATM | Q9: Floor ATM | R9: Floor ATM | S9: ="Cap @ "&CMSCap!K11 -> Cap @ 0,06 | T9: ="Floor @ "&CMSFloor!C8 -> Floor @ 0,045 | U9: PV | AA9: Float Leg | AN9: Fixed Leg
B10: Swap Information | F10: Fixing Date | G10: Start Date | H10: Pay Date | I10: Coverages | J10: End Date | K10: Discount Factor | L10: Discount Factor | M10: Rates | N10: Rates | O10: QT | P10: PV | Q10: QT | R10: PV | S10: Rates | T10: Rates | U10: CMS Index | W10: Swap Information | Z10: Fixing | AA10: Start | AB10: End | AC10: Coverage | AD10: DF Start nM | AE10: DF End nM | AF10: DF End OIS | AG10: Libor | AH10: m*Libor + spread | AI10: PV Libor | AJ10: PV Libor | AM10: Fixing | AN10: Start | AO10: End | AP10: Coverage | AQ10: DF End | AR10: Fix | AS10: PV Fix | AT10: Spread | AU10: PV Spread
B11: CMS Swap Period | C11: 12 | E11: 0 | F11: =today+2 -> 2016-11-04 | G11: =EOMONTH(F11,0)+1 -> 2016-12-01 | H11: =EDATE(G11,Libor_Period) -> 2017-06-01 | I11: =YEARFRAC(G11,H11,1) -> 0.498630137 | J11: =EDATE(F11,12*Swap_Tenor) -> 2026-11-04 | K11: =DF_SheetFunction(T2R(Discount_Curve),G11,"cubic") -> 0.9991628953 | L11: =DF_SheetFunction(T2R(Discount_Curve),H11,"cubic") -> 0.9928142885 | M11: =SwapRate_MultiCurve_SheetFunction(EUR_Discount,EUR_Discount_Fwd,G11,Swap_Tenor,CMS_Swap_Period,6,"cubic") -> 0.02666450601 | N11: =M11-Q11+O11 -> 0.02666971415 | O11: =CMSCapATM!HN11 -> 0.0002092397406 | P11: =CMSCapATM!HO11 -> 0.0001035835319 | Q11: =CMSFloorATM!HN11 -> 0.000204031604 | R11: =CMSFloorATM!HO11 -> 0.0001010052589 | S11: =CMSCap!HO11 -> 0 | T11: =CMSFloor!HO11 -> 0.01588322833 | U11: =SUMPRODUCT($N$11:N11,$L$11:L11) -> 0.02647807327 | W11: Swap Period | X11: 12 | Y11: 1 | Z11: =today -> 2016-11-02 | AA11: =IF(X16=1,EOMONTH(Z11+2,0)+1,Z11+2) -> 2016-11-04 | AB11: =EDATE(AA11,X13) -> 2017-05-04 | AC11: =YEARFRAC(AA11,AB11,2) -> 0.5027777778 | AD11: =DF_SheetFunction(T2R(EUR_Fwd),AA11,"cubic") -> 0.9996047224 | AE11: =DF_SheetFunction(T2R(EUR_Fwd),AB11,"cubic") -> 0.9946710621 | AF11: =DF_SheetFunction(T2R(Discount_Curve),AB11,"cubic") -> 0.9936107421 | AG11: =(AD11/AE11-1)/AC11 -> 0.009865377045 | AH11: =Mult_Libor*AG11+Spread_Libor -> 0.02346537704 | AI11: =AG11*AC11*AF11 -> 0.004928401039 | AJ11: =AH11*AC11*AF11 -> 0.01172249049 | AL11: 1 | AM11: =today -> 2016-11-02 | AN11: =IF(X16=1,EOMONTH(AM11+2,0)+1,AM11+2) -> 2016-11-04 | AO11: =EDATE(AN11,Swap_Period) -> 2017-11-04 | AP11: =YEARFRAC(AN11,AO11,1) -> 1 | AQ11: =DF_SheetFunction(T2R(Discount_Curve),AO11,"cubic") -> 0.987232039 | AR11: 0.0262 | AS11: =AR11*AP11*AQ11 -> 0.02586547942
B12: Swap Tenor | C12: 10 | E12: 1 | F12: =EDATE(F11,$C$11) -> 2017-11-04 | G12: =EOMONTH(F12,0)+1 -> 2017-12-01 | H12: 2018-06-01 | I12: 0.498630137 | J12: 2027-11-04 | K12: =DF_SheetFunction(T2R(Discount_Curve),G12,"cubic") -> 0.9862130304 | L12: =DF_SheetFunction(T2R(Discount_Curve),H12,"cubic") -> 0.9796714636 | M12: 0.02947443375 | N12: =M12-Q12+O12 -> 0.02980939416 | O12: =CMSCapATM!HN12 -> 0.003224140609 | P12: =CMSCapATM!HO12 -> 0.001574972427 | Q12: =CMSFloorATM!HN12 -> 0.002889180197 | R12: =CMSFloorATM!HO12 -> 0.001411346371 | S12: =CMSCap!HO12 -> 1.812632467e-10 | T12: =CMSFloor!HO12 -> 0.01377683871 | U12: =SUMPRODUCT($N$11:N12,$L$11:L12) -> 0.05568148608 | W12: Swap Tenor | X12: 10 | Y12: =Y11+1 -> 2 | Z12: =EDATE(Z11,Libor_Period) -> 2017-05-02 | AA12: =IF(X16=1,EOMONTH(Z12+2,0)+1,Z12+2) -> 2017-05-04 | AB12: =EDATE(AA12,Libor_Period) -> 2017-11-04 | AC12: =YEARFRAC(AA12,AB12,2) -> 0.5111111111 | AD12: =DF_SheetFunction(T2R(EUR_Fwd),AA12,"cubic") -> 0.9946710621 | AE12: =DF_SheetFunction(T2R(EUR_Fwd),AB12,"cubic") -> 0.9886610924 | AF12: =DF_SheetFunction(T2R(Discount_Curve),AB12,"cubic") -> 0.987232039 | AG12: =(AD12/AE12-1)/AC12 -> 0.01189349547 | AH12: 0.02549349547 | AI12: 0.006001282554 | AJ12: =AH12*AC12*AF12 -> 0.01286364215 | AL12: =AL11+1 -> 2 | AM12: =EDATE(AM11,Swap_Period) -> 2017-11-02 | AN12: =IF($X$16=1,EOMONTH(AM12+2,0)+1,AM12+2) -> 2017-11-04 | AO12: 2018-11-04 | AP12: =YEARFRAC(AN12,AO12,1) -> 1 | AQ12: =DF_SheetFunction(T2R(Discount_Curve),AO12,"cubic") -> 0.9730332858 | AR12: 0.0262 | AS12: 0.02549347209
E13: 2 | F13: 2018-11-04 | G13: 2018-12-01 | H13: 2019-06-01 | I13: 0.498630137 | J13: 2028-11-04 | K13: =DF_SheetFunction(T2R(Discount_Curve),G13,"cubic") -> 0.9719241295 | L13: =DF_SheetFunction(T2R(Discount_Curve),H13,"cubic") -> 0.9646081727 | M13: 0.03204969618 | N13: =M13-Q13+O13 -> 0.03268788153 | O13: =CMSCapATM!HN13 -> 0.004364295399 | P13: =CMSCapATM!HO13 -> 0.002099150608 | Q13: =CMSFloorATM!HN13 -> 0.003726110045 | R13: =CMSFloorATM!HO13 -> 0.00179219449 | S13: =CMSCap!HO13 -> 1.864584338e-07 | T13: =CMSFloor!HO13 -> 0.01142889148 | U13: =SUMPRODUCT($N$11:N13,$L$11:L13) -> 0.08721248376 | W13: Libor Period | X13: 6 | Y13: =Y12+1 -> 3 | Z13: 2017-11-02 | AA13: =IF(X17=1,EOMONTH(Z13+2,0)+1,Z13+2) -> 2017-11-04 | AB13: 2018-05-04 | AC13: =YEARFRAC(AA13,AB13,2) -> 0.5027777778 | AD13: =DF_SheetFunction(T2R(EUR_Fwd),AA13,"cubic") -> 0.9886610924 | AE13: =DF_SheetFunction(T2R(EUR_Fwd),AB13,"cubic") -> 0.9822271478 | AF13: =DF_SheetFunction(T2R(Discount_Curve),AB13,"cubic") -> 0.9807926192 | AG13: =(AD13/AE13-1)/AC13 -> 0.01302834684 | AH13: 0.02662834684 | AI13: 0.006424547948 | AJ13: =AH13*AC13*AF13 -> 0.01313098992 | AL13: =AL12+1 -> 3 | AM13: 2018-11-02 | AN13: =IF($X$16=1,EOMONTH(AM13+2,0)+1,AM13+2) -> 2018-11-04 | AO13: 2019-11-04 | AP13: =YEARFRAC(AN13,AO13,1) -> 1 | AQ13: =DF_SheetFunction(T2R(Discount_Curve),AO13,"cubic") -> 0.9576407564 | AR13: 0.0262 | AS13: 0.02509018782
E14: 3 | F14: 2019-11-04 | G14: 2019-12-01 | H14: 2020-06-01 | I14: 0.5 | J14: 2029-11-04 | K14: =DF_SheetFunction(T2R(Discount_Curve),G14,"cubic") -> 0.95629154 | L14: =DF_SheetFunction(T2R(Discount_Curve),H14,"cubic") -> 0.9461395005 | M14: 0.03415401958 | N14: 0.03513539794 | O14: =CMSCapATM!HN14 -> 0.005374057969 | P14: =CMSCapATM!HO14 -> 0.002542304261 | Q14: =CMSFloorATM!HN14 -> 0.004392679607 | R14: =CMSFloorATM!HO14 -> 0.002078043845 | S14: =CMSCap!HO14 -> 7.421221755e-06 | T14: =CMSFloor!HO14 -> 0.009286553559 | U14: =SUMPRODUCT($N$11:N14,$L$11:L14) -> 0.1204554716 | W14: Libor Spread | X14: 0.0136 | Y14: 4 | Z14: 2018-05-02 | AA14: 2018-05-04 | AB14: 2018-11-04 | AC14: 0.5111111111 | AD14: =DF_SheetFunction(T2R(EUR_Fwd),AA14,"cubic") -> 0.9822271478 | AE14: =DF_SheetFunction(T2R(EUR_Fwd),AB14,"cubic") -> 0.9745464716 | AF14: =DF_SheetFunction(T2R(Discount_Curve),AB14,"cubic") -> 0.9730332858 | AG14: 0.01541990087 | AH14: 0.02901990087 | AI14: 0.007668750371 | AJ14: 0.01443241286 | AL14: 4 | AM14: 2019-11-02 | AN14: 2019-11-04 | AO14: 2020-11-04 | AP14: 1 | AQ14: =DF_SheetFunction(T2R(Discount_Curve),AO14,"cubic") -> 0.9365492572 | AR14: 0.0262 | AS14: 0.02453759054
B15: Curve Information | E15: 4 | F15: 2020-11-04 | G15: 2020-12-01 | H15: 2021-06-01 | I15: 0.498630137 | J15: 2030-11-04 | K15: =DF_SheetFunction(T2R(Discount_Curve),G15,"cubic") -> 0.934840745 | L15: =DF_SheetFunction(T2R(Discount_Curve),H15,"cubic") -> 0.9229746191 | M15: 0.03575997916 | N15: 0.0370055463 | O15: =CMSCapATM!HN15 -> 0.00605110567 | P15: =CMSCapATM!HO15 -> 0.002784857767 | Q15: =CMSFloorATM!HN15 -> 0.004805538527 | R15: =CMSFloorATM!HO15 -> 0.002211619169 | S15: =CMSCap!HO15 -> 4.013949297e-05 | T15: =CMSFloor!HO15 -> 0.007462743015 | U15: =SUMPRODUCT($N$11:N15,$L$11:L15) -> 0.1546106516 | W15: Libor Mult | X15: 1 | Y15: 5 | Z15: 2018-11-02 | AA15: 2018-11-04 | AB15: 2019-05-04 | AC15: =YEARFRAC(AA15,AB15,2) -> 0.5027777778 | AD15: =DF_SheetFunction(T2R(EUR_Fwd),AA15,"cubic") -> 0.9745464716 | AE15: =DF_SheetFunction(T2R(EUR_Fwd),AB15,"cubic") -> 0.9661113 | AF15: =DF_SheetFunction(T2R(Discount_Curve),AB15,"cubic") -> 0.965752817 | AG15: 0.01736563566 | AH15: 0.03096563566 | AI15: 0.008432041647 | AJ15: 0.0150356448 | AL15: 5 | AM15: 2020-11-02 | AN15: 2020-11-04 | AO15: 2021-11-04 | AP15: 1 | AQ15: =DF_SheetFunction(T2R(Discount_Curve),AO15,"cubic") -> 0.9122404884 | AR15: 0.0262 | AS15: 0.0239007008 | AV15: VBA | AW15: =SwapRate_MultiCurve_SheetFunction(EUR_Discount,EUR_Discount_Fwd,X8+2,10,12,6,"cubic") -> 0.02643013302
B16: Use Curve | C16: EUR_Discount | E16: 5 | F16: 2021-11-04 | G16: 2021-12-01 | H16: 2022-06-01 | I16: 0.498630137 | J16: 2031-11-04 | K16: =DF_SheetFunction(T2R(Discount_Curve),G16,"cubic") -> 0.9103234504 | L16: =DF_SheetFunction(T2R(Discount_Curve),H16,"cubic") -> 0.8969743258 | M16: 0.03688493757 | N16: 0.03827037471 | O16: =CMSCapATM!HN16 -> 0.006399130777 | P16: =CMSCapATM!HO16 -> 0.002862065191 | Q16: =CMSFloorATM!HN16 -> 0.00501369363 | R16: =CMSFloorATM!HO16 -> 0.002242416746 | S16: =CMSCap!HO16 -> 9.270725628e-05 | T16: =CMSFloor!HO16 -> 0.006071755618 | U16: =SUMPRODUCT($N$11:N16,$L$11:L16) -> 0.1889381952 | W16: Align (only sheet) | X16: 0 | Y16: 6 | Z16: 2019-05-02 | AA16: 2019-05-04 | AB16: 2019-11-04 | AC16: 0.5111111111 | AD16: =DF_SheetFunction(T2R(EUR_Fwd),AA16,"cubic") -> 0.9661113 | AE16: =DF_SheetFunction(T2R(EUR_Fwd),AB16,"cubic") -> 0.9566257025 | AF16: =DF_SheetFunction(T2R(Discount_Curve),AB16,"cubic") -> 0.9576407564 | AG16: 0.01940025003 | AH16: 0.03300025003 | AI16: 0.009495662503 | AJ16: 0.01615232981 | AL16: 6 | AM16: 2021-11-02 | AN16: 2021-11-04 | AO16: 2022-11-04 | AP16: 1 | AQ16: =DF_SheetFunction(T2R(Discount_Curve),AO16,"cubic") -> 0.8850133279 | AR16: 0.0262 | AS16: 0.02318734919 | AV16: Sheet | AW16: =SUM(AI11:AI30)/SUM(AQ11:AQ20) -> 0.02643013302
B17: Use Forward Curve | C17: EUR_Discount_Fwd | E17: 6 | F17: 2022-11-04 | G17: 2022-12-01 | H17: 2023-06-01 | I17: 0.498630137 | J17: 2032-11-04 | K17: =DF_SheetFunction(T2R(Discount_Curve),G17,"cubic") -> 0.8829013253 | L17: =DF_SheetFunction(T2R(Discount_Curve),H17,"cubic") -> 0.8683924614 | M17: 0.03753941452 | N17: 0.0391836505 | O17: =CMSCapATM!HN17 -> 0.007010134178 | P17: =CMSCapATM!HO17 -> 0.003035434731 | Q17: =CMSFloorATM!HN17 -> 0.005365898197 | R17: =CMSFloorATM!HO17 -> 0.002323469613 | S17: =CMSCap!HO17 -> 0.0001996234478 | T17: =CMSFloor!HO17 -> 0.005270827978 | U17: =SUMPRODUCT($N$11:N17,$L$11:L17) -> 0.2229649819 | Y17: 7 | Z17: 2019-11-02 | AA17: 2019-11-04 | AB17: 2020-05-04 | AC17: 0.5055555556 | AD17: =DF_SheetFunction(T2R(EUR_Fwd),AA17,"cubic") -> 0.9566257025 | AE17: =DF_SheetFunction(T2R(EUR_Fwd),AB17,"cubic") -> 0.946254982 | AF17: =DF_SheetFunction(T2R(Discount_Curve),AB17,"cubic") -> 0.9477881918 | AG17: 0.02167863136 | AH17: 0.03527863136 | AI17: 0.01038752402 | AJ17: 0.01690409439 | AL17: 7 | AM17: 2022-11-02 | AN17: 2022-11-04 | AO17: 2023-11-04 | AP17: 1 | AQ17: =DF_SheetFunction(T2R(Discount_Curve),AO17,"cubic") -> 0.8556463301 | AR17: 0.0262 | AS17: 0.02241793385 | AW17: =AW15-AW16 -> 0
E18: 7 | F18: 2023-11-04 | G18: 2023-12-01 | H18: 2024-06-01 | I18: 0.5 | J18: 2033-11-04 | K18: =DF_SheetFunction(T2R(Discount_Curve),G18,"cubic") -> 0.8534175698 | L18: =DF_SheetFunction(T2R(Discount_Curve),H18,"cubic") -> 0.8381852061 | M18: 0.0378322117 | N18: 0.03966783022 | O18: =CMSCapATM!HN18 -> 0.007457857812 | P18: =CMSCapATM!HO18 -> 0.003125533043 | Q18: =CMSFloorATM!HN18 -> 0.005622239283 | R18: =CMSFloorATM!HO18 -> 0.002356238896 | S18: =CMSCap!HO18 -> 0.0003000265735 | T18: =CMSFloor!HO18 -> 0.004799216325 | U18: =SUMPRODUCT($N$11:N18,$L$11:L18) -> 0.2562139703 | W18: Curve Information | Y18: 8 | Z18: 2020-05-02 | AA18: 2020-05-04 | AB18: 2020-11-04 | AC18: 0.5111111111 | AD18: =DF_SheetFunction(T2R(EUR_Fwd),AA18,"cubic") -> 0.946254982 | AE18: =DF_SheetFunction(T2R(EUR_Fwd),AB18,"cubic") -> 0.9348524455 | AF18: =DF_SheetFunction(T2R(Discount_Curve),AB18,"cubic") -> 0.9365492572 | AG18: 0.02386399133 | AH18: 0.03746399133 | AI18: 0.01142323282 | AJ18: 0.01793329077 | AL18: 8 | AM18: 2023-11-02 | AN18: 2023-11-04 | AO18: 2024-11-04 | AP18: 1 | AQ18: =DF_SheetFunction(T2R(Discount_Curve),AO18,"cubic") -> 0.8250958339 | AR18: 0.0262 | AS18: 0.02161751085 | AW18: =AW19+AW21 -> 0.3564646905
E19: 8 | F19: 2024-11-04 | G19: 2024-12-01 | H19: 2025-06-01 | I19: 0.498630137 | J19: 2034-11-04 | K19: =DF_SheetFunction(T2R(Discount_Curve),G19,"cubic") -> 0.8228270888 | L19: =DF_SheetFunction(T2R(Discount_Curve),H19,"cubic") -> 0.8075578586 | M19: 0.03785005424 | N19: 0.03980552744 | O19: =CMSCapATM!HN19 -> 0.007751654496 | P19: =CMSCapATM!HO19 -> 0.003121379534 | Q19: =CMSFloorATM!HN19 -> 0.005796181288 | R19: =CMSFloorATM!HO19 -> 0.002333963886 | S19: =CMSCap!HO19 -> 0.0003813155384 | T19: =CMSFloor!HO19 -> 0.004420931387 | U19: =SUMPRODUCT($N$11:N19,$L$11:L19) -> 0.2883592368 | W19: Discount Curve | X19: EUR_Discount | Y19: 9 | Z19: 2020-11-02 | AA19: 2020-11-04 | AB19: 2021-05-04 | AC19: 0.5027777778 | AD19: =DF_SheetFunction(T2R(EUR_Fwd),AA19,"cubic") -> 0.9348524455 | AE19: =DF_SheetFunction(T2R(EUR_Fwd),AB19,"cubic") -> 0.9228327218 | AF19: =DF_SheetFunction(T2R(Discount_Curve),AB19,"cubic") -> 0.9248429919 | AG19: 0.02590570545 | AH19: 0.03950570545 | AI19: 0.01204590704 | AJ19: 0.0183697779 | AL19: 9 | AM19: 2024-11-02 | AN19: 2024-11-04 | AO19: 2025-11-04 | AP19: 1 | AQ19: =DF_SheetFunction(T2R(Discount_Curve),AO19,"cubic") -> 0.7945704978 | AR19: 0.0262 | AS19: 0.02081774704 | AV19: SwapLeg | AW19: =SUM(AS11:AS20) -> 0.2329633756
E20: 9 | F20: 2025-11-04 | G20: 2025-12-01 | H20: 2026-06-01 | I20: 0.498630137 | J20: 2035-11-04 | K20: =DF_SheetFunction(T2R(Discount_Curve),G20,"cubic") -> 0.7923378228 | L20: =DF_SheetFunction(T2R(Discount_Curve),H20,"cubic") -> 0.7773970205 | M20: 0.03767849115 | N20: 0.03968908055 | O20: =CMSCapATM!HN20 -> 0.007913994468 | P20: =CMSCapATM!HO20 -> 0.00306773003 | Q20: =CMSFloorATM!HN20 -> 0.00590340507 | R20: =CMSFloorATM!HO20 -> 0.002288358058 | S20: =CMSCap!HO20 -> 0.00045797974 | T20: =CMSFloor!HO20 -> 0.004067033652 | U20: =SUMPRODUCT($N$11:N20,$L$11:L20) -> 0.3192134098 | W20: Forward Curve | X20: EUR_Discount_Fwd | Y20: 10 | Z20: 2021-05-02 | AA20: 2021-05-04 | AB20: 2021-11-04 | AC20: 0.5111111111 | AD20: =DF_SheetFunction(T2R(EUR_Fwd),AA20,"cubic") -> 0.9228327218 | AE20: =DF_SheetFunction(T2R(EUR_Fwd),AB20,"cubic") -> 0.9098697681 | AF20: =DF_SheetFunction(T2R(Discount_Curve),AB20,"cubic") -> 0.9122404884 | AG20: 0.02787464952 | AH20: 0.04147464952 | AI20: 0.01299672955 | AJ20: 0.01933781454 | AL20: 10 | AM20: 2025-11-02 | AN20: 2025-11-04 | AO20: 2026-11-04 | AP20: 1 | AQ20: =DF_SheetFunction(T2R(Discount_Curve),AO20,"cubic") -> 0.7647100765 | AR20: 0.0262 | AS20: 0.020035404 | AV20: CMSLeg | AW20: =SUM(N11:N20) -> 0.3579243975
E21: 10 | F21: 2026-11-04 | G21: 2026-12-01 | H21: 2027-06-01 | I21: 0.498630137 | J21: 2036-11-04 | K21: =DF_SheetFunction(T2R(Discount_Curve),G21,"cubic") -> 0.7625227929 | L21: =DF_SheetFunction(T2R(Discount_Curve),H21,"cubic") -> 0.747851545 | M21: 0.03732456194 | N21: 0.03933126154 | O21: =CMSCapATM!HN21 -> 0.007961912706 | P21: =CMSCapATM!HO21 -> 0.002969007744 | Q21: =CMSFloorATM!HN21 -> 0.005955213104 | R21: =CMSFloorATM!HO21 -> 0.002220706817 | S21: =CMSCap!HO21 -> 0.0005132466072 | T21: =CMSFloor!HO21 -> 0.003766949142 | U21: =SUMPRODUCT($N$11:N21,$L$11:L21) -> 0.3486273545 | Y21: 11 | Z21: 2021-11-02 | AA21: 2021-11-04 | AB21: 2022-05-04 | AC21: 0.5027777778 | AD21: =DF_SheetFunction(T2R(EUR_Fwd),AA21,"cubic") -> 0.9098697681 | AE21: =DF_SheetFunction(T2R(EUR_Fwd),AB21,"cubic") -> 0.8964653825 | AF21: =DF_SheetFunction(T2R(Discount_Curve),AB21,"cubic") -> 0.8990734736 | AG21: 0.02973974988 | AH21: 0.04333974988 | AI21: 0.01344338295 | AJ21: 0.01959104756 | AL21: 11 | AM21: 2026-11-02 | AN21: 2026-11-04 | AO21: 2027-11-04 | AP21: 1 | AQ21: =DF_SheetFunction(T2R(Discount_Curve),AO21,"cubic") -> 0.7353982886 | AR21: 0.0016 | AS21: 0.001176637262 | AV21: SpreadLeg | AW21: =SUM(AJ11:AJ30)-SUM(AI11:AI30) -> 0.1235013149
Y22: 12 | Z22: =EDATE(Z21,Libor_Period) -> 2022-05-02 | AA22: 2022-05-04 | AB22: 2022-11-04 | AC22: =YEARFRAC(AA22,AB22,2) -> 0.5111111111 | AD22: =DF_SheetFunction(T2R(EUR_Fwd),AA22,"cubic") -> 0.8964653825 | AE22: =DF_SheetFunction(T2R(EUR_Fwd),AB22,"cubic") -> 0.8822910898 | AF22: =DF_SheetFunction(T2R(Discount_Curve),AB22,"cubic") -> 0.8850133279 | AG22: =(AD22/AE22-1)/AC22 -> 0.0314321569 | AH22: 0.0450321569 | AI22: 0.01421802642 | AJ22: 0.0203698524 | AL22: 12 | AM22: =EDATE(AM21,Swap_Period) -> 2027-11-02 | AN22: 2027-11-04 | AO22: 2028-11-04 | AP22: =YEARFRAC(AN22,AO22,1) -> 1 | AQ22: =DF_SheetFunction(T2R(Discount_Curve),AO22,"cubic") -> 0.7066568789 | AR22: 0.0016 | AS22: 0.001130651006
Y23: 13 | Z23: 2022-11-02 | AA23: 2022-11-04 | AB23: 2023-05-04 | AC23: 0.5027777778 | AD23: =DF_SheetFunction(T2R(EUR_Fwd),AA23,"cubic") -> 0.8822910898 | AE23: =DF_SheetFunction(T2R(EUR_Fwd),AB23,"cubic") -> 0.8679442859 | AF23: =DF_SheetFunction(T2R(Discount_Curve),AB23,"cubic") -> 0.870652731 | AG23: 0.03287662586 | AH23: 0.04647662586 | AI23: 0.0143915735 | AJ23: 0.0203449034 | AL23: 13 | AM23: 2028-11-02 | AN23: 2028-11-04 | AO23: 2029-11-04 | AP23: 1 | AQ23: =DF_SheetFunction(T2R(Discount_Curve),AO23,"cubic") -> 0.6788432345 | AR23: 0.0016 | AS23: 0.001086149175
Y24: 14 | Z24: 2023-05-02 | AA24: 2023-05-04 | AB24: 2023-11-04 | AC24: 0.5111111111 | AD24: =DF_SheetFunction(T2R(EUR_Fwd),AA24,"cubic") -> 0.8679442859 | AE24: =DF_SheetFunction(T2R(EUR_Fwd),AB24,"cubic") -> 0.8531326474 | AF24: =DF_SheetFunction(T2R(Discount_Curve),AB24,"cubic") -> 0.8556463301 | AG24: 0.0339680972 | AH24: 0.0475680972 | AI24: 0.01485527972 | AJ24: 0.02080297243 | AL24: 14 | AM24: 2029-11-02 | AN24: 2029-11-04 | AO24: 2030-11-04 | AP24: 1 | AQ24: =DF_SheetFunction(T2R(Discount_Curve),AO24,"cubic") -> 0.6527741772 | AR24: 0.0016 | AS24: 0.001044438683
Y25: 15 | Z25: 2023-11-02 | AA25: 2023-11-04 | AB25: 2024-05-04 | AC25: 0.5055555556 | AD25: =DF_SheetFunction(T2R(EUR_Fwd),AA25,"cubic") -> 0.8531326474 | AE25: =DF_SheetFunction(T2R(EUR_Fwd),AB25,"cubic") -> 0.8384091862 | AF25: =DF_SheetFunction(T2R(Discount_Curve),AB25,"cubic") -> 0.8405272735 | AG25: 0.03473641549 | AH25: 0.04833641549 | AI25: 0.01476065733 | AJ25: 0.02053974929 | AL25: 15 | AM25: 2030-11-02 | AN25: 2030-11-04 | AO25: 2031-11-04 | AP25: 1 | AQ25: =DF_SheetFunction(T2R(Discount_Curve),AO25,"cubic") -> 0.6282888292 | AR25: 0.0016 | AS25: 0.001005262127
Y26: 16 | Z26: 2024-05-02 | AA26: 2024-05-04 | AB26: 2024-11-04 | AC26: 0.5111111111 | AD26: =DF_SheetFunction(T2R(EUR_Fwd),AA26,"cubic") -> 0.8384091862 | AE26: =DF_SheetFunction(T2R(EUR_Fwd),AB26,"cubic") -> 0.8235043897 | AF26: =DF_SheetFunction(T2R(Discount_Curve),AB26,"cubic") -> 0.8250958339 | AG26: 0.03541153972 | AH26: 0.04901153972 | AI26: 0.01493360043 | AJ26: 0.02066893325 | AL26: 16 | AM26: 2031-11-02 | AN26: 2031-11-04 | AO26: 2032-11-04 | AP26: 1 | AQ26: =DF_SheetFunction(T2R(Discount_Curve),AO26,"cubic") -> 0.6052197501 | AR26: 0.0016 | AS26: 0.0009683516002
Y27: 17 | Z27: 2024-11-02 | AA27: 2024-11-04 | AB27: 2025-05-04 | AC27: 0.5027777778 | AD27: =DF_SheetFunction(T2R(EUR_Fwd),AA27,"cubic") -> 0.8235043897 | AE27: =DF_SheetFunction(T2R(EUR_Fwd),AB27,"cubic") -> 0.8088623212 | AF27: =DF_SheetFunction(T2R(Discount_Curve),AB27,"cubic") -> 0.8099015304 | AG27: 0.03600408307 | AH27: 0.04960408307 | AI27: 0.01466088033 | AJ27: 0.02019880701 | AL27: 17 | AM27: 2032-11-02 | AN27: 2032-11-04 | AO27: 2033-11-04 | AP27: 1 | AQ27: =DF_SheetFunction(T2R(Discount_Curve),AO27,"cubic") -> 0.5834646246 | AR27: 0.0016 | AS27: 0.0009335433994
Y28: 18 | Z28: 2025-05-02 | AA28: 2025-05-04 | AB28: 2025-11-04 | AC28: 0.5111111111 | AD28: =DF_SheetFunction(T2R(EUR_Fwd),AA28,"cubic") -> 0.8088623212 | AE28: =DF_SheetFunction(T2R(EUR_Fwd),AB28,"cubic") -> 0.7940450879 | AF28: =DF_SheetFunction(T2R(Discount_Curve),AB28,"cubic") -> 0.7945704978 | AG28: 0.03650956292 | AH28: 0.05010956292 | AI28: 0.0148270377 | AJ28: 0.02035018551 | AL28: 18 | AM28: 2033-11-02 | AN28: 2033-11-04 | AO28: 2034-11-04 | AP28: 1 | AQ28: =DF_SheetFunction(T2R(Discount_Curve),AO28,"cubic") -> 0.5627190296 | AR28: 0.0016 | AS28: 0.0009003504473
Y29: 19 | Z29: 2025-11-02 | AA29: 2025-11-04 | AB29: 2026-05-04 | AC29: 0.5027777778 | AD29: =DF_SheetFunction(T2R(EUR_Fwd),AA29,"cubic") -> 0.7940450879 | AE29: =DF_SheetFunction(T2R(EUR_Fwd),AB29,"cubic") -> 0.7795660943 | AF29: =DF_SheetFunction(T2R(Discount_Curve),AB29,"cubic") -> 0.7796845292 | AG29: 0.0369410605 | AH29: 0.0505410605 | AI29: 0.01448119327 | AJ29: 0.01981250282 | AL29: 19 | AM29: 2034-11-02 | AN29: 2034-11-04 | AO29: 2035-11-04 | AP29: 1 | AQ29: =DF_SheetFunction(T2R(Discount_Curve),AO29,"cubic") -> 0.5431127092 | AR29: 0.0016 | AS29: 0.0008689803346
Y30: 20 | Z30: 2026-05-02 | AA30: 2026-05-04 | AB30: 2026-11-04 | AC30: 0.5111111111 | AD30: =DF_SheetFunction(T2R(EUR_Fwd),AA30,"cubic") -> 0.7795660943 | AE30: =DF_SheetFunction(T2R(EUR_Fwd),AB30,"cubic") -> 0.7649279788 | AF30: =DF_SheetFunction(T2R(Discount_Curve),AB30,"cubic") -> 0.7647100765 | AG30: 0.03744116031 | AH30: 0.05104116031 | AI30: 0.01463394553 | AJ30: 0.01994953024 | AL30: 20 | AM30: 2035-11-02 | AN30: 2035-11-04 | AO30: 2036-11-04 | AP30: 1 | AQ30: =DF_SheetFunction(T2R(Discount_Curve),AO30,"cubic") -> 0.5247167231 | AR30: 0.0016 | AS30: 0.000839546757
B31: German | C31: Englisch | Y31: 21 | Z31: 2026-11-02 | AA31: 2026-11-04 | AB31: 2027-05-04 | AC31: 0.5027777778 | AD31: =DF_SheetFunction(T2R(EUR_Fwd),AA31,"cubic") -> 0.7649279788 | AE31: =DF_SheetFunction(T2R(EUR_Fwd),AB31,"cubic") -> 0.7505943752 | AF31: =DF_SheetFunction(T2R(Discount_Curve),AB31,"cubic") -> 0.750099555 | AG31: 0.03798166608 | AH31: 0.05158166608 | AI31: 0.01432415439 | AJ31: 0.01945316846 | AL31: 21 | AM31: 2036-11-02 | AN31: 2036-11-04 | AO31: 2037-11-04 | AP31: 1 | AQ31: =DF_SheetFunction(T2R(Discount_Curve),AO31,"cubic") -> 0.5072075031 | AR31: 0.0016 | AS31: 0.0008115320049
B32: BRTEILJAHRE | C32: YearFrac | Y32: 22 | Z32: 2027-05-02 | AA32: 2027-05-04 | AB32: 2027-11-04 | AC32: 0.5111111111 | AD32: =DF_SheetFunction(T2R(EUR_Fwd),AA32,"cubic") -> 0.7505943752 | AE32: =DF_SheetFunction(T2R(EUR_Fwd),AB32,"cubic") -> 0.736107762 | AF32: =DF_SheetFunction(T2R(Discount_Curve),AB32,"cubic") -> 0.7353982886 | AG32: 0.03850438103 | AH32: 0.05210438103 | AI32: 0.0144726508 | AJ32: 0.01958448602 | AL32: 22 | AM32: 2037-11-02 | AN32: 2037-11-04 | AO32: 2038-11-04 | AP32: 1 | AQ32: =DF_SheetFunction(T2R(Discount_Curve),AO32,"cubic") -> 0.4910923877 | AR32: 0.0016 | AS32: 0.0007857478204
B33: EDATUM | C33: EDATE | Y33: 23 | Z33: 2027-11-02 | AA33: 2027-11-04 | AB33: 2028-05-04 | AC33: 0.5055555556 | AD33: =DF_SheetFunction(T2R(EUR_Fwd),AA33,"cubic") -> 0.736107762 | AE33: =DF_SheetFunction(T2R(EUR_Fwd),AB33,"cubic") -> 0.7219283967 | AF33: =DF_SheetFunction(T2R(Discount_Curve),AB33,"cubic") -> 0.7210304431 | AG33: 0.03885024651 | AH33: 0.05245024651 | AI33: 0.01416172862 | AJ33: 0.01911921349 | AL33: 23 | AM33: 2038-11-02 | AN33: 2038-11-04 | AO33: 2039-11-04 | AP33: 1 | AQ33: =DF_SheetFunction(T2R(Discount_Curve),AO33,"cubic") -> 0.4761125249 | AR33: 0.0016 | AS33: 0.0007617800398
Y34: 24 | Z34: 2028-05-02 | AA34: 2028-05-04 | AB34: 2028-11-04 | AC34: 0.5111111111 | AD34: =DF_SheetFunction(T2R(EUR_Fwd),AA34,"cubic") -> 0.7219283967 | AE34: =DF_SheetFunction(T2R(EUR_Fwd),AB34,"cubic") -> 0.7079312806 | AF34: =DF_SheetFunction(T2R(Discount_Curve),AB34,"cubic") -> 0.7066568789 | AG34: 0.03868406801 | AH34: 0.05228406801 | AI34: 0.01397191874 | AJ34: 0.01888396923 | AL34: 24 | AM34: 2039-11-02 | AN34: 2039-11-04 | AO34: 2040-11-04 | AP34: 1 | AQ34: =DF_SheetFunction(T2R(Discount_Curve),AO34,"cubic") -> 0.4622069376 | AR34: 0.0016 | AS34: 0.0007395311001
Y35: 25 | Z35: 2028-11-02 | AA35: 2028-11-04 | AB35: 2029-05-04 | AC35: 0.5027777778 | AD35: =DF_SheetFunction(T2R(EUR_Fwd),AA35,"cubic") -> 0.7079312806 | AE35: =DF_SheetFunction(T2R(EUR_Fwd),AB35,"cubic") -> 0.6946226716 | AF35: =DF_SheetFunction(T2R(Discount_Curve),AB35,"cubic") -> 0.6926906888 | AG35: 0.03810725259 | AH35: 0.05170725259 | AI35: 0.01327159324 | AJ35: 0.01800805824 | AL35: 25 | AM35: 2040-11-02 | AN35: 2040-11-04 | AO35: 2041-11-04 | AP35: 1 | AQ35: =DF_SheetFunction(T2R(Discount_Curve),AO35,"cubic") -> 0.4492661537 | AR35: 0.0016 | AS35: 0.000718825846
Y36: 26 | Z36: 2029-05-02 | AA36: 2029-05-04 | AB36: 2029-11-04 | AC36: 0.5111111111 | AD36: =DF_SheetFunction(T2R(EUR_Fwd),AA36,"cubic") -> 0.6946226716 | AE36: =DF_SheetFunction(T2R(EUR_Fwd),AB36,"cubic") -> 0.6814901946 | AF36: =DF_SheetFunction(T2R(Discount_Curve),AB36,"cubic") -> 0.6788432345 | AG36: 0.03770263592 | AH36: 0.05130263592 | AI36: 0.01308146943 | AJ36: 0.01780018418 | AL36: 26 | AM36: 2041-11-02 | AN36: 2041-11-04 | AO36: 2042-11-04 | AP36: 1 | AQ36: =DF_SheetFunction(T2R(Discount_Curve),AO36,"cubic") -> 0.4372918248 | AR36: 0.0016 | AS36: 0.0006996669196
Y37: 27 | Z37: 2029-11-02 | AA37: 2029-11-04 | AB37: 2030-05-04 | AC37: 0.5027777778 | AD37: =DF_SheetFunction(T2R(EUR_Fwd),AA37,"cubic") -> 0.6814901946 | AE37: =DF_SheetFunction(T2R(EUR_Fwd),AB37,"cubic") -> 0.6688842934 | AF37: =DF_SheetFunction(T2R(Discount_Curve),AB37,"cubic") -> 0.6656972176 | AG37: 0.03748407762 | AH37: 0.05108407762 | AI37: 0.0125458371 | AJ37: 0.01709772675 | AL37: 27 | AM37: 2042-11-02 | AN37: 2042-11-04 | AO37: 2043-11-04 | AP37: 1 | AQ37: =DF_SheetFunction(T2R(Discount_Curve),AO37,"cubic") -> 0.4263788708 | AR37: 0.0016 | AS37: 0.0006822061933
Y38: 28 | Z38: 2030-05-02 | AA38: 2030-05-04 | AB38: 2030-11-04 | AC38: 0.5111111111 | AD38: =DF_SheetFunction(T2R(EUR_Fwd),AA38,"cubic") -> 0.6688842934 | AE38: =DF_SheetFunction(T2R(EUR_Fwd),AB38,"cubic") -> 0.6563768432 | AF38: =DF_SheetFunction(T2R(Discount_Curve),AB38,"cubic") -> 0.6527741772 | AG38: 0.03728208627 | AH38: 0.05088208627 | AI38: 0.0124388003 | AJ38: 0.01697630613 | AL38: 28 | AM38: 2043-11-02 | AN38: 2043-11-04 | AO38: 2044-11-04 | AP38: 1 | AQ38: =DF_SheetFunction(T2R(Discount_Curve),AO38,"cubic") -> 0.4165801393 | AR38: 0.0016 | AS38: 0.000666528223
Y39: 29 | Z39: 2030-11-02 | AA39: 2030-11-04 | AB39: 2031-05-04 | AC39: 0.5027777778 | AD39: =DF_SheetFunction(T2R(EUR_Fwd),AA39,"cubic") -> 0.6563768432 | AE39: =DF_SheetFunction(T2R(EUR_Fwd),AB39,"cubic") -> 0.6443872867 | AF39: =DF_SheetFunction(T2R(Discount_Curve),AB39,"cubic") -> 0.6404424782 | AG39: 0.03700667638 | AH39: 0.05060667638 | AI39: 0.0119161589 | AJ39: 0.01629536224 | AL39: 29 | AM39: 2044-11-02 | AN39: 2044-11-04 | AO39: 2045-11-04 | AP39: 1 | AQ39: =DF_SheetFunction(T2R(Discount_Curve),AO39,"cubic") -> 0.4075703354 | AR39: 0.0016 | AS39: 0.0006521125366
Y40: 30 | Z40: 2031-05-02 | AA40: 2031-05-04 | AB40: 2031-11-04 | AC40: 0.5111111111 | AD40: =DF_SheetFunction(T2R(EUR_Fwd),AA40,"cubic") -> 0.6443872867 | AE40: =DF_SheetFunction(T2R(EUR_Fwd),AB40,"cubic") -> 0.6325587335 | AF40: =DF_SheetFunction(T2R(Discount_Curve),AB40,"cubic") -> 0.6282888292 | AG40: 0.03658604362 | AH40: 0.05018604362 | AI40: 0.01174870795 | AJ40: 0.01611601341 | AL40: 30 | AM40: 2045-11-02 | AN40: 2045-11-04 | AO40: 2046-11-04 | AP40: 1 | AQ40: =DF_SheetFunction(T2R(Discount_Curve),AO40,"cubic") -> 0.3988912882 | AR40: 0.0016 | AS40: 0.0006382260611
Y41: 31 | Z41: 2031-11-02 | AA41: 2031-11-04 | AB41: 2032-05-04 | AC41: 0.5055555556 | AD41: =DF_SheetFunction(T2R(EUR_Fwd),AA41,"cubic") -> 0.6325587335 | AE41: =DF_SheetFunction(T2R(EUR_Fwd),AB41,"cubic") -> 0.6212261075 | AF41: =DF_SheetFunction(T2R(Discount_Curve),AB41,"cubic") -> 0.6166423087 | AG41: 0.03608377546 | AH41: 0.04968377546 | AI41: 0.01124900676 | AJ41: 0.01548876521 | AL41: 31 | AM41: 2046-11-02 | AN41: 2046-11-04 | AO41: 2047-11-04 | AP41: 1 | AQ41: =DF_SheetFunction(T2R(Discount_Curve),AO41,"cubic") -> 0.3890098635 | AR41: 0.0016 | AS41: 0.0006224157817
Y42: 32 | Z42: 2032-05-02 | AA42: 2032-05-04 | AB42: 2032-11-04 | AC42: 0.5111111111 | AD42: =DF_SheetFunction(T2R(EUR_Fwd),AA42,"cubic") -> 0.6212261075 | AE42: =DF_SheetFunction(T2R(EUR_Fwd),AB42,"cubic") -> 0.6100558386 | AF42: =DF_SheetFunction(T2R(Discount_Curve),AB42,"cubic") -> 0.6052197501 | AG42: 0.03582438276 | AH42: 0.04942438276 | AI42: 0.01108171892 | AJ42: 0.01528866865 | AL42: 32 | AM42: 2047-11-02 | AN42: 2047-11-04 | AO42: 2048-11-04 | AP42: 1 | AQ42: =DF_SheetFunction(T2R(Discount_Curve),AO42,"cubic") -> 0.3780892924 | AR42: 0.0016 | AS42: 0.0006049428679
Y43: 33 | Z43: 2032-11-02 | AA43: 2032-11-04 | AB43: 2033-05-04 | AC43: 0.5027777778 | AD43: =DF_SheetFunction(T2R(EUR_Fwd),AA43,"cubic") -> 0.6100558386 | AE43: =DF_SheetFunction(T2R(EUR_Fwd),AB43,"cubic") -> 0.5992921941 | AF43: =DF_SheetFunction(T2R(Discount_Curve),AB43,"cubic") -> 0.5942953472 | AG43: 0.0357227309 | AH43: 0.0493227309 | AI43: 0.0106738982 | AJ43: 0.01473755772 | AL43: 33 | AM43: 2048-11-02 | AN43: 2048-11-04 | AO43: 2049-11-04 | AP43: 1 | AQ43: =DF_SheetFunction(T2R(Discount_Curve),AO43,"cubic") -> 0.3668173528 | AR43: 0.0016 | AS43: 0.0005869077645
Y44: 34 | Z44: =EDATE(Z43,Libor_Period) -> 2033-05-02 | AA44: 2033-05-04 | AB44: 2033-11-04 | AC44: =YEARFRAC(AA44,AB44,2) -> 0.5111111111 | AD44: =DF_SheetFunction(T2R(EUR_Fwd),AA44,"cubic") -> 0.5992921941 | AE44: =DF_SheetFunction(T2R(EUR_Fwd),AB44,"cubic") -> 0.5886343296 | AF44: =DF_SheetFunction(T2R(Discount_Curve),AB44,"cubic") -> 0.5834646246 | AG44: =(AD44/AE44-1)/AC44 -> 0.03542495316 | AH44: 0.04902495316 | AI44: 0.01056426135 | AJ44: 0.01461998879 | AL44: 34 | AM44: =EDATE(AM43,Swap_Period) -> 2049-11-02 | AN44: 2049-11-04 | AO44: 2050-11-04 | AP44: =YEARFRAC(AN44,AO44,1) -> 1 | AQ44: =DF_SheetFunction(T2R(Discount_Curve),AO44,"cubic") -> 0.3557919718 | AR44: 0.0016 | AS44: 0.0005692671549
Y45: 35 | Z45: 2033-11-02 | AA45: 2033-11-04 | AB45: 2034-05-04 | AC45: 0.5027777778 | AD45: =DF_SheetFunction(T2R(EUR_Fwd),AA45,"cubic") -> 0.5886343296 | AE45: =DF_SheetFunction(T2R(EUR_Fwd),AB45,"cubic") -> 0.5784732582 | AF45: =DF_SheetFunction(T2R(Discount_Curve),AB45,"cubic") -> 0.5730516129 | AG45: 0.03493656027 | AH45: 0.04853656027 | AI45: 0.01006583847 | AJ45: 0.01398423806 | AL45: 35 | AM45: 2050-11-02 | AN45: 2050-11-04 | AO45: 2051-11-04 | AP45: 1 | AQ45: =DF_SheetFunction(T2R(Discount_Curve),AO45,"cubic") -> 0.3456397838 | AR45: 0.0016 | AS45: 0.000553023654
Y46: 36 | Z46: 2034-05-02 | AA46: 2034-05-04 | AB46: 2034-11-04 | AC46: 0.5111111111 | AD46: =DF_SheetFunction(T2R(EUR_Fwd),AA46,"cubic") -> 0.5784732582 | AE46: =DF_SheetFunction(T2R(EUR_Fwd),AB46,"cubic") -> 0.5684338201 | AF46: =DF_SheetFunction(T2R(Discount_Curve),AB46,"cubic") -> 0.5627190296 | AG46: 0.03455526086 | AH46: 0.04815526086 | AI46: 0.009938505905 | AJ46: 0.0138500284 | AL46: 36 | AM46: 2051-11-02 | AN46: 2051-11-04 | AO46: 2052-11-04 | AP46: 1 | AQ46: =DF_SheetFunction(T2R(Discount_Curve),AO46,"cubic") -> 0.3368083724 | AR46: 0.0016 | AS46: 0.0005388933959
Y47: 37 | Z47: 2034-11-02 | AA47: 2034-11-04 | AB47: 2035-05-04 | AC47: 0.5027777778 | AD47: =DF_SheetFunction(T2R(EUR_Fwd),AA47,"cubic") -> 0.5684338201 | AE47: =DF_SheetFunction(T2R(EUR_Fwd),AB47,"cubic") -> 0.5588066058 | AF47: =DF_SheetFunction(T2R(Discount_Curve),AB47,"cubic") -> 0.5528292498 | AG47: 0.03426597019 | AH47: 0.04786597019 | AI47: 0.00952423538 | AJ47: 0.01330435894 | AL47: 37 | AM47: 2052-11-02 | AN47: 2052-11-04 | AO47: 2053-11-04 | AP47: 1 | AQ47: =DF_SheetFunction(T2R(Discount_Curve),AO47,"cubic") -> 0.3293002653 | AR47: 0.0016 | AS47: 0.0005268804245
Y48: 38 | Z48: 2035-05-02 | AA48: 2035-05-04 | AB48: 2035-11-04 | AC48: 0.5111111111 | AD48: =DF_SheetFunction(T2R(EUR_Fwd),AA48,"cubic") -> 0.5588066058 | AE48: =DF_SheetFunction(T2R(EUR_Fwd),AB48,"cubic") -> 0.5492749924 | AF48: =DF_SheetFunction(T2R(Discount_Curve),AB48,"cubic") -> 0.5431127092 | AG48: 0.03395167984 | AH48: 0.04755167984 | AI48: 0.009424678729 | AJ48: 0.01319991552 | AL48: 38 | AM48: 2053-11-02 | AN48: 2053-11-04 | AO48: 2054-11-04 | AP48: 1 | AQ48: =DF_SheetFunction(T2R(Discount_Curve),AO48,"cubic") -> 0.3229383306 | AR48: 0.0016 | AS48: 0.000516701329
Y49: 39 | Z49: 2035-11-02 | AA49: 2035-11-04 | AB49: 2036-05-04 | AC49: 0.5055555556 | AD49: =DF_SheetFunction(T2R(EUR_Fwd),AA49,"cubic") -> 0.5492749924 | AE49: =DF_SheetFunction(T2R(EUR_Fwd),AB49,"cubic") -> 0.5401066113 | AF49: =DF_SheetFunction(T2R(Discount_Curve),AB49,"cubic") -> 0.533850232 | AG49: 0.03357718448 | AH49: 0.04717718448 | AI49: 0.009062178238 | AJ49: 0.01273269517 | AL49: 39 | AM49: 2054-11-02 | AN49: 2054-11-04 | AO49: 2055-11-04 | AP49: 1 | AQ49: =DF_SheetFunction(T2R(Discount_Curve),AO49,"cubic") -> 0.3175714811 | AR49: 0.0016 | AS49: 0.0005081143698

Sheet CMSCapATM
H2: CMS Cap ATM
B5: Replication Info | E5: CMS Leg Schedule & Forwards | M5: Cash Settled Swaption STRIKES | BM5: Cash Settled Swaptions WEIGHTS | DM5: Cash Settled Swaptions LOGNORMAL VOLATILITIES | FM5: Cash Settled Swaptions PRICES
B7: Strike Discretization | E7: General Information | HO7: =COUNT(HO11:HO170) -> 11
B8: Strike Step | C8: 0.0025 | HM8: CMS Cap Prices | HO8: CMS Cap
H9: Start | I9: Delay | J9: Forward Swaps | K9: CMS Cap | HM9: Under QTpay | HO9: PV
B10: Cash Settled Level Parameters | F10: Maturity | G10: Coverages | H10: Discount Factor | I10: Discount Factor | J10: Rates | K10: Strike | M10: Strikes | BM10: Strikes | DM10: Strikes | FM10: Strikes
B11: Frequency | C11: 1 | E11: 0 | F11: =YEARFRAC(today,Overview!F11) -> 0.005555555556 | G11: =Overview!I11 -> 0.498630137 | H11: =Overview!K11 -> 0.9991628953 | I11: =Overview!L11/Overview!K11 -> 0.9936460744 | J11: =Overview!M11 -> 0.02666450601 | K11: =J11 -> 0.02666450601 | M11: 0 | N11: =K11 -> 0.02666450601 | O11: =N11+Strike_Step_Cap_ATM -> 0.02916450601 | P11: 0.03166450601 | Q11: 0.03416450601 | R11: 0.03666450601 | S11: 0.03916450601 | T11: 0.04166450601 | U11: 0.04416450601 | V11: 0.04666450601 | W11: 0.04916450601 | X11: 0.05166450601 | Y11: 0.05416450601 | Z11: 0.05666450601 | AA11: 0.05916450601 | AB11: 0.06166450601 | AC11: 0.06416450601 | AD11: 0.06666450601 | AE11: 0.06916450601 | AF11: 0.07166450601 | AG11: 0.07416450601 | AH11: 0.07666450601 | AI11: 0.07916450601 | AJ11: 0.08166450601 | AK11: 0.08416450601 | AL11: 0.08666450601 | AM11: 0.08916450601 | AN11: 0.09166450601 | AO11: 0.09416450601 | AP11: 0.09666450601 | AQ11: 0.09916450601 | AR11: 0.101664506 | AS11: 0.104164506 | AT11: 0.106664506 | AU11: =AT11+Strike_Step_Cap_ATM -> 0.109164506 | AV11: 0.111664506 | AW11: 0.114164506 | AX11: 0.116664506 | AY11: 0.119164506 | AZ11: 0.121664506 | BA11: 0.124164506 | BB11: 0.126664506 | BC11: 0.129164506 | BD11: 0.131664506 | BE11: 0.134164506 | BF11: 0.136664506 | BG11: 0.139164506 | BH11: 0.141664506 | BI11: 0.144164506 | BJ11: 0.146664506 | BK11: 0.149164506 | BM11: 0 | BN11: =getCMSCapReplicationWeights(K11,$C$11,$C$12,$C$13,N11:BK11) -> 0.116731199 | BO11: 0.00299460594 | BP11: 0.003023845357 | BQ11: 0.003052882927 | BR11: 0.003081714981 | BS11: 0.003110337989 | BT11: 0.003138748556 | BU11: 0.003166943424 | BV11: 0.003194919472 | BW11: 0.003222673714 | BX11: 0.003250203298 | BY11: 0.003277505506 | BZ11: 0.003304577753 | CA11: 0.003331417585 | CB11: 0.00335802268 | CC11: 0.003384390844 | CD11: 0.003410520011 | CE11: 0.003436408244 | CF11: 0.003462053727 | CG11: 0.003487454771 | CH11: 0.00351260981 | CI11: 0.003537517394 | CJ11: 0.003562176197 | CK11: 0.003586585006 | CL11: 0.003610742727 | CM11: 0.003634648376 | CN11: 0.003658301083 | CO11: 0.003681700086 | CP11: 0.003704844732 | CQ11: 0.003727734474 | CR11: 0.003750368866 | CS11: 0.003772747566 | CT11: 0.003794870332 | CU11: 0.003816737017 | CV11: 0.003838347571 | CW11: 0.003859702037 | CX11: 0.003880800549 | CY11: 0.003901643329 | CZ11: 0.003922230685 | DA11: 0.003942563013 | DB11: 0.003962640787 | DC11: 0.003982464564 | DD11: 0.004002034977 | DE11: 0.004021352736 | DF11: 0.004040418623 | DG11: 0.004059233493 | DH11: 0.004077798269 | DI11: 0.004096113941 | DJ11: 0.004114181565 | DK11: 0 | DM11: 0 | DN11: =SABR_Vol_Test(alpha_EUR,beta_EUR,rho_EUR,nu_EUR,$F11,Swap_Tenor,$K11,N11) -> 0.2588841687 | DO11: =SABR_Vol_Test(alpha_EUR,beta_EUR,rho_EUR,nu_EUR,$F11,Swap_Tenor,$K11,O11) -> 0.2260131515 | DP11: =SABR_Vol_Test(alpha_EUR,beta_EUR,rho_EUR,nu_EUR,$F11,Swap_Tenor,$K11,P11) -> 0.2046192916 | DQ11: =SABR_Vol_Test(alpha_EUR,beta_EUR,rho_EUR,nu_EUR,$F11,Swap_Tenor,$K11,Q11) -> 0.1971297484 | DR11: =SABR_Vol_Test(alpha_EUR,beta_EUR,rho_EUR,nu_EUR,$F11,Swap_Tenor,$K11,R11) -> 0.1996012526 | DS11: =SABR_Vol_Test(alpha_EUR,beta_EUR,rho_EUR,nu_EUR,$F11,Swap_Tenor,$K11,S11) -> 0.2069396205 | DT11: =SABR_Vol_Test(alpha_EUR,beta_EUR,rho_EUR,nu_EUR,$F11,Swap_Tenor,$K11,T11) -> 0.2162577911 | DU11: =SABR_Vol_Test(alpha_EUR,beta_EUR,rho_EUR,nu_EUR,$F11,Swap_Tenor,$K11,U11) -> 0.2262374267 | DV11: =SABR_Vol_Test(alpha_EUR,beta_EUR,rho_EUR,nu_EUR,$F11,Swap_Tenor,$K11,V11) -> 0.2362899066 | DW11: =SABR_Vol_Test(alpha_EUR,beta_EUR,rho_EUR,nu_EUR,$F11,Swap_Tenor,$K11,W11) -> 0.246149556 | DX11: =SABR_Vol_Test(alpha_EUR,beta_EUR,rho_EUR,nu_EUR,$F11,Swap_Tenor,$K11,X11) -> 0.2556985694 | DY11: =SABR_Vol_Test(alpha_EUR,beta_EUR,rho_EUR,nu_EUR,$F11,Swap_Tenor,$K11,Y11) -> 0.2648898433 | DZ11: =SABR_Vol_Test(alpha_EUR,beta_EUR,rho_EUR,nu_EUR,$F11,Swap_Tenor,$K11,Z11) -> 0.2737111667 | EA11: =SABR_Vol_Test(alpha_EUR,beta_EUR,rho_EUR,nu_EUR,$F11,Swap_Tenor,$K11,AA11) -> 0.2821677469 | EB11: =SABR_Vol_Test(alpha_EUR,beta_EUR,rho_EUR,nu_EUR,$F11,Swap_Tenor,$K11,AB11) -> 0.2902733238 | EC11: =SABR_Vol_Test(alpha_EUR,beta_EUR,rho_EUR,nu_EUR,$F11,Swap_Tenor,$K11,AC11) -> 0.2980455139 | ED11: =SABR_Vol_Test(alpha_EUR,beta_EUR,rho_EUR,nu_EUR,$F11,Swap_Tenor,$K11,AD11) -> 0.3055033273 | EE11: =SABR_Vol_Test(alpha_EUR,beta_EUR,rho_EUR,nu_EUR,$F11,Swap_Tenor,$K11,AE11) -> 0.3126658412 | EF11: =SABR_Vol_Test(alpha_EUR,beta_EUR,rho_EUR,nu_EUR,$F11,Swap_Tenor,$K11,AF11) -> 0.3195515039 | EG11: =SABR_Vol_Test(alpha_EUR,beta_EUR,rho_EUR,nu_EUR,$F11,Swap_Tenor,$K11,AG11) -> 0.3261777901 | EH11: =SABR_Vol_Test(alpha_EUR,beta_EUR,rho_EUR,nu_EUR,$F11,Swap_Tenor,$K11,AH11) -> 0.3325610531 | EI11: =SABR_Vol_Test(alpha_EUR,beta_EUR,rho_EUR,nu_EUR,$F11,Swap_Tenor,$K11,AI11) -> 0.3387164872 | EJ11: =SABR_Vol_Test(alpha_EUR,beta_EUR,rho_EUR,nu_EUR,$F11,Swap_Tenor,$K11,AJ11) -> 0.3446581503 | EK11: =SABR_Vol_Test(alpha_EUR,beta_EUR,rho_EUR,nu_EUR,$F11,Swap_Tenor,$K11,AK11) -> 0.3503990197 | EL11: =SABR_Vol_Test(alpha_EUR,beta_EUR,rho_EUR,nu_EUR,$F11,Swap_Tenor,$K11,AL11) -> 0.355951062 | EM11: =SABR_Vol_Test(alpha_EUR,beta_EUR,rho_EUR,nu_EUR,$F11,Swap_Tenor,$K11,AM11) -> 0.3613253092 | EN11: =SABR_Vol_Test(alpha_EUR,beta_EUR,rho_EUR,nu_EUR,$F11,Swap_Tenor,$K11,AN11) -> 0.3665319352 | EO11: =SABR_Vol_Test(alpha_EUR,beta_EUR,rho_EUR,nu_EUR,$F11,Swap_Tenor,$K11,AO11) -> 0.3715803289 | EP11: =SABR_Vol_Test(alpha_EUR,beta_EUR,rho_EUR,nu_EUR,$F11,Swap_Tenor,$K11,AP11) -> 0.376479163 | EQ11: =SABR_Vol_Test(alpha_EUR,beta_EUR,rho_EUR,nu_EUR,$F11,Swap_Tenor,$K11,AQ11) -> 0.3812364575 | ER11: =SABR_Vol_Test(alpha_EUR,beta_EUR,rho_EUR,nu_EUR,$F11,Swap_Tenor,$K11,AR11) -> 0.3858596379 | ES11: =SABR_Vol_Test(alpha_EUR,beta_EUR,rho_EUR,nu_EUR,$F11,Swap_Tenor,$K11,AS11) -> 0.3903555887 | ET11: =SABR_Vol_Test(alpha_EUR,beta_EUR,rho_EUR,nu_EUR,$F11,Swap_Tenor,$K11,AT11) -> 0.3947307007 | EU11: =SABR_Vol_Test(alpha_EUR,beta_EUR,rho_EUR,nu_EUR,$F11,Swap_Tenor,$K11,AU11) -> 0.3989909146 | EV11: =SABR_Vol_Test(alpha_EUR,beta_EUR,rho_EUR,nu_EUR,$F11,Swap_Tenor,$K11,AV11) -> 0.4031417604 | EW11: =SABR_Vol_Test(alpha_EUR,beta_EUR,rho_EUR,nu_EUR,$F11,Swap_Tenor,$K11,AW11) -> 0.4071883925 | EX11: =SABR_Vol_Test(alpha_EUR,beta_EUR,rho_EUR,nu_EUR,$F11,Swap_Tenor,$K11,AX11) -> 0.4111356219 | EY11: =SABR_Vol_Test(alpha_EUR,beta_EUR,rho_EUR,nu_EUR,$F11,Swap_Tenor,$K11,AY11) -> 0.4149879444 | EZ11: =SABR_Vol_Test(alpha_EUR,beta_EUR,rho_EUR,nu_EUR,$F11,Swap_Tenor,$K11,AZ11) -> 0.418749567 | FA11: =SABR_Vol_Test(alpha_EUR,beta_EUR,rho_EUR,nu_EUR,$F11,Swap_Tenor,$K11,BA11) -> 0.4224244312 | FB11: =SABR_Vol_Test(alpha_EUR,beta_EUR,rho_EUR,nu_EUR,$F11,Swap_Tenor,$K11,BB11) -> 0.4260162344 | FC11: =SABR_Vol_Test(alpha_EUR,beta_EUR,rho_EUR,nu_EUR,$F11,Swap_Tenor,$K11,BC11) -> 0.4295284489 | FD11: =SABR_Vol_Test(alpha_EUR,beta_EUR,rho_EUR,nu_EUR,$F11,Swap_Tenor,$K11,BD11) -> 0.4329643395 | FE11: =SABR_Vol_Test(alpha_EUR,beta_EUR,rho_EUR,nu_EUR,$F11,Swap_Tenor,$K11,BE11) -> 0.4363269793 | FF11: =SABR_Vol_Test(alpha_EUR,beta_EUR,rho_EUR,nu_EUR,$F11,Swap_Tenor,$K11,BF11) -> 0.439619264 | FG11: =SABR_Vol_Test(alpha_EUR,beta_EUR,rho_EUR,nu_EUR,$F11,Swap_Tenor,$K11,BG11) -> 0.442843925 | FH11: =SABR_Vol_Test(alpha_EUR,beta_EUR,rho_EUR,nu_EUR,$F11,Swap_Tenor,$K11,BH11) -> 0.4460035417 | FI11: =SABR_Vol_Test(alpha_EUR,beta_EUR,rho_EUR,nu_EUR,$F11,Swap_Tenor,$K11,BI11) -> 0.4491005516 | FJ11: =SABR_Vol_Test(alpha_EUR,beta_EUR,rho_EUR,nu_EUR,$F11,Swap_Tenor,$K11,BJ11) -> 0.4521372613 | FK11: =SABR_Vol_Test(alpha_EUR,beta_EUR,rho_EUR,nu_EUR,$F11,Swap_Tenor,$K11,BK11) -> 0.4551158548 | FM11: 0 | FN11: =BSFormula($J11,$F11,DN11,N11,0) -> 0.0002052608444 | FO11: =BSFormula($J11,$F11,DO11,O11,0) -> 4.306032722e-12 | FP11: =BSFormula($J11,$F11,DP11,P11,0) -> 3.629053174e-34 | FQ11: =BSFormula($J11,$F11,DQ11,Q11,0) -> 9.99209646e-69 | FR11: =BSFormula($J11,$F11,DR11,R11,0) -> 1.252221499e-106 | FS11: =BSFormula($J11,$F11,DS11,S11,0) -> 4.070582561e-142 | FT11: =BSFormula($J11,$F11,DT11,T11,0) -> 9.166793601e-174 | FU11: =BSFormula($J11,$F11,DU11,U11,0) -> 9.461816882e-202 | FV11: =BSFormula($J11,$F11,DV11,V11,0) -> 1.327898339e-226 | FW11: =BSFormula($J11,$F11,DW11,W11,0) -> 7.657342419e-249 | FX11: =BSFormula($J11,$F11,DX11,X11,0) -> 6.647553952e-269 | FY11: =BSFormula($J11,$F11,DY11,Y11,0) -> 3.873952639e-287 | FZ11: =BSFormula($J11,$F11,DZ11,Z11,0) -> 7.955356808e-304 | GA11: =BSFormula($J11,$F11,EA11,AA11,0) -> 0 | GB11: =BSFormula($J11,$F11,EB11,AB11,0) -> 0 | GC11: =BSFormula($J11,$F11,EC11,AC11,0) -> 0 | GD11: =BSFormula($J11,$F11,ED11,AD11,0) -> 0 | GE11: =BSFormula($J11,$F11,EE11,AE11,0) -> 0 | GF11: =BSFormula($J11,$F11,EF11,AF11,0) -> 0 | GG11: =BSFormula($J11,$F11,EG11,AG11,0) -> 0 | GH11: =BSFormula($J11,$F11,EH11,AH11,0) -> 0 | GI11: =BSFormula($J11,$F11,EI11,AI11,0) -> 0 | GJ11: =BSFormula($J11,$F11,EJ11,AJ11,0) -> 0 | GK11: =BSFormula($J11,$F11,EK11,AK11,0) -> 0 | GL11: =BSFormula($J11,$F11,EL11,AL11,0) -> 0 | GM11: =BSFormula($J11,$F11,EM11,AM11,0) -> 0 | GN11: =BSFormula($J11,$F11,EN11,AN11,0) -> 0 | GO11: =BSFormula($J11,$F11,EO11,AO11,0) -> 0 | GP11: =BSFormula($J11,$F11,EP11,AP11,0) -> 0 | GQ11: =BSFormula($J11,$F11,EQ11,AQ11,0) -> 0 | GR11: =BSFormula($J11,$F11,ER11,AR11,0) -> 0 | GS11: =BSFormula($J11,$F11,ES11,AS11,0) -> 0 | GT11: =BSFormula($J11,$F11,ET11,AT11,0) -> 0 | GU11: =BSFormula($J11,$F11,EU11,AU11,0) -> 0 | GV11: =BSFormula($J11,$F11,EV11,AV11,0) -> 0 | GW11: =BSFormula($J11,$F11,EW11,AW11,0) -> 0 | GX11: =BSFormula($J11,$F11,EX11,AX11,0) -> 0 | GY11: =BSFormula($J11,$F11,EY11,AY11,0) -> 0 | GZ11: =BSFormula($J11,$F11,EZ11,AZ11,0) -> 0 | HA11: =BSFormula($J11,$F11,FA11,BA11,0) -> 0 | HB11: =BSFormula($J11,$F11,FB11,BB11,0) -> 0 | HC11: =BSFormula($J11,$F11,FC11,BC11,0) -> 0 | HD11: =BSFormula($J11,$F11,FD11,BD11,0) -> 0 | HE11: =BSFormula($J11,$F11,FE11,BE11,0) -> 0 | HF11: =BSFormula($J11,$F11,FF11,BF11,0) -> 0 | HG11: =BSFormula($J11,$F11,FG11,BG11,0) -> 0 | HH11: =BSFormula($J11,$F11,FH11,BH11,0) -> 0 | HI11: =BSFormula($J11,$F11,FI11,BI11,0) -> 0 | HJ11: =BSFormula($J11,$F11,FJ11,BJ11,0) -> 0 | HK11: =BSFormula($J11,$F11,FK11,BK11,0) -> 0 | HM11: 0 | HN11: =SUMPRODUCT(BN11:DK11,FN11:HK11)*levelCash(J11,$C$11,$C$12)/I11 -> 0.0002092397406 | HO11: =HN11*G11*H11*I11 -> 0.0001035835319
B12: SwapTenor | C12: =Swap_Tenor -> 10 | E12: 1 | F12: =YEARFRAC(today,Overview!F12) -> 1.005555556 | G12: =Overview!I12 -> 0.498630137 | H12: =Overview!K12 -> 0.9862130304 | I12: =Overview!L12/Overview!K12 -> 0.993366984 | J12: =Overview!M12 -> 0.02947443375 | K12: 0.02947443375 | M12: 1 | N12: =K12 -> 0.02947443375 | O12: =N12+Strike_Step_Cap_ATM -> 0.03197443375 | P12: 0.03447443375 | Q12: 0.03697443375 | R12: 0.03947443375 | S12: 0.04197443375 | T12: 0.04447443375 | U12: 0.04697443375 | V12: 0.04947443375 | W12: 0.05197443375 | X12: 0.05447443375 | Y12: 0.05697443375 | Z12: 0.05947443375 | AA12: 0.06197443375 | AB12: 0.06447443375 | AC12: 0.06697443375 | AD12: 0.06947443375 | AE12: 0.07197443375 | AF12: 0.07447443375 | AG12: 0.07697443375 | AH12: 0.07947443375 | AI12: 0.08197443375 | AJ12: 0.08447443375 | AK12: 0.08697443375 | AL12: 0.08947443375 | AM12: 0.09197443375 | AN12: 0.09447443375 | AO12: 0.09697443375 | AP12: 0.09947443375 | AQ12: 0.1019744337 | AR12: 0.1044744337 | AS12: 0.1069744337 | AT12: 0.1094744337 | AU12: =AT12+Strike_Step_Cap_ATM -> 0.1119744337 | AV12: 0.1144744337 | AW12: 0.1169744337 | AX12: 0.1194744337 | AY12: 0.1219744337 | AZ12: 0.1244744337 | BA12: 0.1269744337 | BB12: 0.1294744337 | BC12: 0.1319744337 | BD12: 0.1344744337 | BE12: 0.1369744337 | BF12: 0.1394744337 | BG12: 0.1419744337 | BH12: 0.1444744337 | BI12: 0.1469744337 | BJ12: 0.1494744337 | BK12: 0.1519744337 | BM12: 1 | BN12: =getCMSCapReplicationWeights(K12,$C$11,$C$12,$C$13,N12:BK12) -> 0.1184148043 | BO12: 0.003016508445 | BP12: 0.003045577555 | BQ12: 0.003074441525 | BR12: 0.003103096816 | BS12: 0.003131540025 | BT12: 0.003159767886 | BU12: 0.003187777268 | BV12: 0.003215565176 | BW12: 0.00324312875 | BX12: 0.003270465264 | BY12: 0.003297572124 | BZ12: 0.003324446868 | CA12: 0.003351087163 | CB12: 0.003377490809 | CC12: 0.003403655731 | CD12: 0.003429579981 | CE12: 0.003455261738 | CF12: 0.003480699304 | CG12: 0.003505891101 | CH12: 0.003530835676 | CI12: 0.003555531691 | CJ12: 0.003579977926 | CK12: 0.003604173277 | CL12: 0.003628116755 | CM12: 0.003651807479 | CN12: 0.003675244681 | CO12: 0.003698427698 | CP12: 0.003721355976 | CQ12: 0.003744029061 | CR12: 0.003766446604 | CS12: 0.003788608353 | CT12: 0.003810514156 | CU12: 0.003832163953 | CV12: 0.00385355778 | CW12: 0.003874695763 | CX12: 0.003895578117 | CY12: 0.003916205144 | CZ12: 0.003936577229 | DA12: 0.003956694843 | DB12: 0.003976558532 | DC12: 0.003996168924 | DD12: 0.004015526721 | DE12: 0.004034632698 | DF12: 0.004053487704 | DG12: 0.004072092654 | DH12: 0.004090448533 | DI12: 0.004108556387 | DJ12: 0.00412641733 | DK12: 0 | DM12: 1 | DN12: =SABR_Vol_Test(alpha_EUR,beta_EUR,rho_EUR,nu_EUR,$F12,Swap_Tenor,$K12,N12) -> 0.259116842 | DO12: 0.2427528698 | DP12: 0.231260122 | DQ12: 0.2246755924 | DR12: 0.2223370355 | DS12: 0.2231629275 | DT12: 0.2260959018 | DU12: 0.2303284842 | DV12: 0.2353151411 | DW12: 0.2407071034 | DX12: 0.2462861758 | DY12: 0.2519169011 | DZ12: 0.2575156081 | EA12: 0.2630311195 | EB12: 0.2684328102 | EC12: 0.2737031722 | ED12: 0.2788331298 | EE12: 0.2838190492 | EF12: 0.288660804 | EG12: 0.2933605098 | EH12: 0.2979216877 | EI12: 0.3023487078 | EJ12: 0.3066464163 | EK12: 0.3108198873 | EL12: 0.3148742559 | EM12: 0.3188146085 | EN12: 0.3226459119 | EO12: 0.326372968 | EP12: 0.3300003874 | EQ12: 0.3335325753 | ER12: 0.3369737254 | ES12: 0.3403278209 | ET12: 0.3435986377 | EU12: 0.3467897516 | EV12: 0.3499045458 | EW12: 0.3529462204 | EX12: 0.3559178013 | EY12: 0.3588221501 | EZ12: 0.3616619732 | FA12: 0.3644398312 | FB12: 0.3671581474 | FC12: 0.3698192162 | FD12: 0.3724252112 | FE12: 0.3749781925 | FF12: 0.3774801138 | FG12: 0.3799328291 | FH12: 0.3823380985 | FI12: 0.3846975944 | FJ12: 0.3870129066 | FK12: 0.3892855473 | FM12: 1 | FN12: =BSFormula($J12,$F12,DN12,N12,0) -> 0.003046729311 | FO12: 0.001890394478 | FP12: 0.001096230664 | FQ12: 0.0006098790085 | FR12: 0.0003372887999 | FS12: 0.0001909414039 | FT12: 0.0001124178158 | FU12: 6.917075288e-05 | FV12: 4.442568352e-05 | FW12: 2.967162272e-05 | FX12: 2.051751315e-05 | FY12: 1.462613632e-05 | FZ12: 1.070765966e-05 | GA12: 8.023792959e-06 | GB12: 6.1369815e-06 | GC12: 4.779403453e-06 | GD12: 3.782219089e-06 | GE12: 3.036093877e-06 | GF12: 2.468481196e-06 | GG12: 2.030168169e-06 | GH12: 1.687092857e-06 | GI12: 1.415244131e-06 | GJ12: 1.197410468e-06 | GK12: 1.021063981e-06 | GL12: 8.76956737e-07 | GM12: 7.581730422e-07 | GN12: 6.594790702e-07 | GO12: 5.768697645e-07 | GP12: 5.07248726e-07 | GQ12: 4.481990918e-07 | GR12: 3.978175406e-07 | GS12: 3.545926625e-07 | GT12: 3.17314887e-07 | GU12: 2.850091157e-07 | GV12: 2.568838653e-07 | GW12: 2.322925349e-07 | GX12: 2.107036646e-07 | GY12: 1.916779178e-07 | GZ12: 1.748501371e-07 | HA12: 1.599152559e-07 | HB12: 1.466171657e-07 | HC12: 1.347398629e-07 | HD12: 1.24100366e-07 | HE12: 1.145430177e-07 | HF12: 1.059348762e-07 | HG12: 9.8161968e-08 | HH12: 9.112622647e-08 | HI12: 8.474297865e-08 | HJ12: 7.893887333e-08 | HK12: 7.36501651e-08 | HM12: 1 | HN12: =SUMPRODUCT(BN12:DK12,FN12:HK12)*levelCash(J12,$C$11,$C$12)/I12 -> 0.003224140609 | HO12: 0.001574972427
E13: 2 | F13: =YEARFRAC(today,Overview!F13) -> 2.005555556 | G13: =Overview!I13 -> 0.498630137 | H13: =Overview!K13 -> 0.9719241295 | I13: =Overview!L13/Overview!K13 -> 0.9924727079 | J13: =Overview!M13 -> 0.03204969618 | K13: 0.03204969618 | M13: 2 | N13: 0.03204969618 | O13: =N13+Strike_Step_Cap_ATM -> 0.03454969618 | P13: 0.03704969618 | Q13: 0.03954969618 | R13: 0.04204969618 | S13: 0.04454969618 | T13: 0.04704969618 | U13: 0.04954969618 | V13: 0.05204969618 | W13: 0.05454969618 | X13: 0.05704969618 | Y13: 0.05954969618 | Z13: 0.06204969618 | AA13: 0.06454969618 | AB13: 0.06704969618 | AC13: 0.06954969618 | AD13: 0.07204969618 | AE13: 0.07454969618 | AF13: 0.07704969618 | AG13: 0.07954969618 | AH13: 0.08204969618 | AI13: 0.08454969618 | AJ13: 0.08704969618 | AK13: 0.08954969618 | AL13: 0.09204969618 | AM13: 0.09454969618 | AN13: 0.09704969618 | AO13: 0.09954969618 | AP13: 0.1020496962 | AQ13: 0.1045496962 | AR13: 0.1070496962 | AS13: 0.1095496962 | AT13: 0.1120496962 | AU13: =AT13+Strike_Step_Cap_ATM -> 0.1145496962 | AV13: 0.1170496962 | AW13: 0.1195496962 | AX13: 0.1220496962 | AY13: 0.1245496962 | AZ13: 0.1270496962 | BA13: 0.1295496962 | BB13: 0.1320496962 | BC13: 0.1345496962 | BD13: 0.1370496962 | BE13: 0.1395496962 | BF13: 0.1420496962 | BG13: 0.1445496962 | BH13: 0.1470496962 | BI13: 0.1495496962 | BJ13: 0.1520496962 | BK13: 0.1545496962 | BM13: 2 | BN13: =getCMSCapReplicationWeights(K13,$C$11,$C$12,$C$13,N13:BK13) -> 0.119968615 | BO13: 0.003036469685 | BP13: 0.003065380275 | BQ13: 0.00309408281 | BR13: 0.003122573868 | BS13: 0.003150850162 | BT13: 0.003178908544 | BU13: 0.003206746 | BV13: 0.003234359649 | BW13: 0.003261746746 | BX13: 0.003288904679 | BY13: 0.003315830967 | BZ13: 0.003342523259 | CA13: 0.003368979334 | CB13: 0.003395197101 | CC13: 0.003421174594 | CD13: 0.003446909971 | CE13: 0.003472401518 | CF13: 0.00349764764 | CG13: 0.003522646865 | CH13: 0.003547397837 | CI13: 0.00357189932 | CJ13: 0.003596150193 | CK13: 0.003620149449 | CL13: 0.003643896191 | CM13: 0.003667389634 | CN13: 0.0036906291 | CO13: 0.003713614017 | CP13: 0.003736343917 | CQ13: 0.003758818435 | CR13: 0.003781037302 | CS13: 0.003803000352 | CT13: 0.003824707511 | CU13: 0.003846158799 | CV13: 0.003867354329 | CW13: 0.0038882943 | CX13: 0.003908979001 | CY13: 0.003929408804 | CZ13: 0.003949584165 | DA13: 0.003969505617 | DB13: 0.003989173776 | DC13: 0.004008589331 | DD13: 0.004027753046 | DE13: 0.004046665754 | DF13: 0.004065328361 | DG13: 0.004083741839 | DH13: 0.004101907224 | DI13: 0.004119825617 | DJ13: 0.004137498179 | DK13: 0 | DM13: 2 | DN13: =SABR_Vol_Test(alpha_EUR,beta_EUR,rho_EUR,nu_EUR,$F13,Swap_Tenor,$K13,N13) -> 0.2227883985 | DO13: 0.2096138289 | DP13: 0.2005809744 | DQ13: 0.1956885661 | DR13: 0.1943384424 | DS13: 0.1956053849 | DT13: 0.198605479 | DU13: 0.2026699773 | DV13: 0.2073480247 | DW13: 0.2123510406 | DX13: 0.2174980735 | DY13: 0.2226765409 | DZ13: 0.2278168037 | EA13: 0.2328762667 | EB13: 0.2378295006 | EC13: 0.2426620653 | ED13: 0.2473666044 | EE13: 0.2519403429 | EF13: 0.2563834629 | EG13: 0.2606980386 | EH13: 0.2648873296 | EI13: 0.2689553093 | EJ13: 0.27290635 | EK13: 0.2767450101 | EL13: 0.280475893 | EM13: 0.2841035536 | EN13: 0.2876324372 | EO13: 0.291066841 | EP13: 0.2944108919 | EQ13: 0.2976685339 | ER13: 0.3008435238 | ES13: 0.3039394311 | ET13: 0.3069596419 | EU13: 0.3099073646 | EV13: 0.3127856369 | EW13: 0.3155973337 | EX13: 0.3183451754 | EY13: 0.3210317362 | EZ13: 0.3236594525 | FA13: 0.3262306306 | FB13: 0.3287474547 | FC13: 0.3312119941 | FD13: 0.3336262104 | FE13: 0.3359919638 | FF13: 0.3383110194 | FG13: 0.3405850534 | FH13: 0.3428156579 | FI13: 0.3450043464 | FJ13: 0.3471525585 | FK13: 0.3492616645 | FM13: 2 | FN13: =BSFormula($J13,$F13,DN13,N13,0) -> 0.004017404488 | FO13: 0.002803241235 | FP13: 0.001895175482 | FQ13: 0.001267656032 | FR13: 0.0008581182095 | FS13: 0.0005969717709 | FT13: 0.0004293967524 | FU13: 0.0003192982167 | FV13: 0.0002447212901 | FW13: 0.000192593517 | FX13: 0.0001550644482 | FY13: 0.0001273142156 | FZ13: 0.0001063021814 | GA13: 9.00556736e-05 | GB13: 7.725993356e-05 | GC13: 6.701642291e-05 | GD13: 5.869676246e-05 | GE13: 5.185220174e-05 | GF13: 4.615611755e-05 | GG13: 4.136663859e-05 | GH13: 3.730182318e-05 | GI13: 3.382284226e-05 | GJ13: 3.082237417e-05 | GK13: 2.821645884e-05 | GL13: 2.593868996e-05 | GM13: 2.393601357e-05 | GN13: 2.216564791e-05 | GO13: 2.059279688e-05 | GP13: 1.918893322e-05 | GQ13: 1.793049533e-05 | GR13: 1.679788827e-05 | GS13: 1.577471074e-05 | GT13: 1.484715164e-05 | GU13: 1.40035152e-05 | GV13: 1.323384434e-05 | GW13: 1.252961987e-05 | GX13: 1.188351847e-05 | GY13: 1.128921689e-05 | GZ13: 1.074123244e-05 | HA13: 1.023479234e-05 | HB13: 9.765726185e-06 | HC13: 9.330376859e-06 | HD13: 8.925526486e-06 | HE13: 8.548334513e-06 | HF13: 8.196285756e-06 | HG13: 7.867146588e-06 | HH13: 7.558927869e-06 | HI13: 7.269853441e-06 | HJ13: 6.998333266e-06 | HK13: 6.742940432e-06 | HM13: 2 | HN13: 0.004364295399 | HO13: 0.002099150608
E14: 3 | F14: =YEARFRAC(today,Overview!F14) -> 3.005555556 | G14: =Overview!I14 -> 0.5 | H14: =Overview!K14 -> 0.95629154 | I14: =Overview!L14/Overview!K14 -> 0.9893839493 | J14: =Overview!M14 -> 0.03415401958 | K14: 0.03415401958 | M14: 3 | N14: 0.03415401958 | O14: =N14+Strike_Step_Cap_ATM -> 0.03665401958 | P14: 0.03915401958 | Q14: 0.04165401958 | R14: 0.04415401958 | S14: 0.04665401958 | T14: 0.04915401958 | U14: 0.05165401958 | V14: 0.05415401958 | W14: 0.05665401958 | X14: 0.05915401958 | Y14: 0.06165401958 | Z14: 0.06415401958 | AA14: 0.06665401958 | AB14: 0.06915401958 | AC14: 0.07165401958 | AD14: 0.07415401958 | AE14: 0.07665401958 | AF14: 0.07915401958 | AG14: 0.08165401958 | AH14: 0.08415401958 | AI14: 0.08665401958 | AJ14: 0.08915401958 | AK14: 0.09165401958 | AL14: 0.09415401958 | AM14: 0.09665401958 | AN14: 0.09915401958 | AO14: 0.1016540196 | AP14: 0.1041540196 | AQ14: 0.1066540196 | AR14: 0.1091540196 | AS14: 0.1116540196 | AT14: 0.1141540196 | AU14: =AT14+Strike_Step_Cap_ATM -> 0.1166540196 | AV14: 0.1191540196 | AW14: 0.1216540196 | AX14: 0.1241540196 | AY14: 0.1266540196 | AZ14: 0.1291540196 | BA14: 0.1316540196 | BB14: 0.1341540196 | BC14: 0.1366540196 | BD14: 0.1391540196 | BE14: 0.1416540196 | BF14: 0.1441540196 | BG14: 0.1466540196 | BH14: 0.1491540196 | BI14: 0.1516540196 | BJ14: 0.1541540196 | BK14: 0.1566540196 | BM14: 3 | BN14: =getCMSCapReplicationWeights(K14,$C$11,$C$12,$C$13,N14:BK14) -> 0.1212459146 | BO14: 0.00305269984 | BP14: 0.003081479224 | BQ14: 0.003110048243 | BR14: 0.003138403569 | BS14: 0.003166542013 | BT14: 0.00319446052 | BU14: 0.003222156171 | BV14: 0.00324962618 | BW14: 0.003276867894 | BX14: 0.003303878793 | BY14: 0.003330656488 | BZ14: 0.00335719872 | CA14: 0.003383503357 | CB14: 0.003409568396 | CC14: 0.003435391959 | CD14: 0.003460972292 | CE14: 0.003486307764 | CF14: 0.003511396867 | CG14: 0.00353623821 | CH14: 0.00356083052 | CI14: 0.003585172642 | CJ14: 0.003609263534 | CK14: 0.003633102265 | CL14: 0.003656688017 | CM14: 0.003680020079 | CN14: 0.003703097847 | CO14: 0.00372592082 | CP14: 0.003748488601 | CQ14: 0.003770800894 | CR14: 0.0037928575 | CS14: 0.003814658316 | CT14: 0.003836203333 | CU14: 0.003857492635 | CV14: 0.003878526395 | CW14: 0.003899304874 | CX14: 0.003919828417 | CY14: 0.003940097454 | CZ14: 0.003960112494 | DA14: 0.003979874127 | DB14: 0.003999383017 | DC14: 0.004018639906 | DD14: 0.004037645604 | DE14: 0.004056400995 | DF14: 0.004074907027 | DG14: 0.004093164718 | DH14: 0.004111175147 | DI14: 0.004128939453 | DJ14: 0.004146458839 | DK14: 0 | DM14: 3 | DN14: 0.2045207577 | DO14: 0.1930261773 | DP14: 0.1849582484 | DQ14: 0.1803522515 | DR14: 0.1787829509 | DS14: 0.1795360356 | DT14: 0.1818866111 | DU14: 0.1852577957 | DV14: 0.1892444325 | DW14: 0.1935785035 | DX14: 0.1980872094 | DY14: 0.2026602457 | DZ14: 0.2072275532 | EA14: 0.2117449398 | EB14: 0.2161849318 | EC14: 0.2205309442 | ED14: 0.2247735381 | EE14: 0.2289079882 | EF14: 0.2329326849 | EG14: 0.2368480716 | EH14: 0.2406559314 | EI14: 0.2443589038 | EJ14: 0.247960156 | EK14: 0.2514631574 | EL14: 0.2548715262 | EM14: 0.258188924 | EN14: 0.2614189851 | EO14: 0.264565269 | EP14: 0.2676312299 | EQ14: 0.2706201973 | ER14: 0.2735353653 | ES14: 0.2763797876 | ET14: 0.2791563759 | EU14: 0.281867902 | EV14: 0.2845170006 | EW14: 0.2871061745 | EX14: 0.2896377993 | EY14: 0.2921141297 | EZ14: 0.2945373051 | FA14: 0.2969093557 | FB14: 0.2992322084 | FC14: 0.3015076926 | FD14: 0.3037375454 | FE14: 0.3059234173 | FF14: 0.3080668769 | FG14: 0.310169416 | FH14: 0.3122324536 | FI14: 0.3142573405 | FJ14: 0.3162453631 | FK14: 0.3181977474 | FM14: 3 | FN14: =BSFormula($J14,$F14,DN14,N14,0) -> 0.004805974586 | FO14: 0.003557968692 | FP14: 0.00258198509 | FQ14: 0.001866122663 | FR14: 0.001365675922 | FS14: 0.001023301589 | FT14: 0.0007884292668 | FU14: 0.0006243667302 | FV14: 0.0005068791301 | FW14: 0.0004204982089 | FX14: 0.0003553686675 | FY14: 0.0003051216419 | FZ14: 0.0002655535787 | GA14: 0.0002338246172 | GB14: 0.000207971095 | GC14: 0.0001866048858 | GD14: 0.0001687243719 | GE14: 0.0001535930809 | GF14: 0.0001406601009 | GG14: 0.0001295068159 | GH14: 0.0001198105599 | GI14: 0.0001113193616 | GJ14: 0.0001038340979 | GK14: 9.719568329e-05 | GL14: 9.127573962e-05 | GM14: 8.596970908e-05 | GN14: 8.119170657e-05 | GO14: 7.687062743e-05 | GP14: 7.294717244e-05 | GQ14: 6.937155111e-05 | GR14: 6.610169187e-05 | GS14: 6.310183508e-05 | GT14: 6.034141785e-05 | GU14: 5.779418343e-05 | GV14: 5.543746462e-05 | GW14: 5.325160356e-05 | GX14: 5.121947863e-05 | GY14: 4.932611661e-05 | GZ14: 4.75583727e-05 | HA14: 4.590466532e-05 | HB14: 4.435475501e-05 | HC14: 4.289955928e-05 | HD14: 4.153099686e-05 | HE14: 4.024185604e-05 | HF14: 3.902568303e-05 | HG14: 3.787668676e-05 | HH14: 3.678965756e-05 | HI14: 3.575989727e-05 | HJ14: 3.478315915e-05 | HK14: 3.385559588e-05 | HM14: 3 | HN14: 0.005374057969 | HO14: 0.002542304261
B15: PV | E15: 4 | F15: =YEARFRAC(today,Overview!F15) -> 4.005555556 | G15: =Overview!I15 -> 0.498630137 | H15: =Overview!K15 -> 0.934840745 | I15: =Overview!L15/Overview!K15 -> 0.9873067942 | J15: =Overview!M15 -> 0.03575997916 | K15: 0.03575997916 | M15: 4 | N15: 0.03575997916 | O15: =N15+Strike_Step_Cap_ATM -> 0.03825997916 | P15: 0.04075997916 | Q15: 0.04325997916 | R15: 0.04575997916 | S15: 0.04825997916 | T15: 0.05075997916 | U15: 0.05325997916 | V15: 0.05575997916 | W15: 0.05825997916 | X15: 0.06075997916 | Y15: 0.06325997916 | Z15: 0.06575997916 | AA15: 0.06825997916 | AB15: 0.07075997916 | AC15: 0.07325997916 | AD15: 0.07575997916 | AE15: 0.07825997916 | AF15: 0.08075997916 | AG15: 0.08325997916 | AH15: 0.08575997916 | AI15: 0.08825997916 | AJ15: 0.09075997916 | AK15: 0.09325997916 | AL15: 0.09575997916 | AM15: 0.09825997916 | AN15: 0.1007599792 | AO15: 0.1032599792 | AP15: 0.1057599792 | AQ15: 0.1082599792 | AR15: 0.1107599792 | AS15: 0.1132599792 | AT15: 0.1157599792 | AU15: =AT15+Strike_Step_Cap_ATM -> 0.1182599792 | AV15: 0.1207599792 | AW15: 0.1232599792 | AX15: 0.1257599792 | AY15: 0.1282599792 | AZ15: 0.1307599792 | BA15: 0.1332599792 | BB15: 0.1357599792 | BC15: 0.1382599792 | BD15: 0.1407599792 | BE15: 0.1432599792 | BF15: 0.1457599792 | BG15: 0.1482599792 | BH15: 0.1507599792 | BI15: 0.1532599792 | BJ15: 0.1557599792 | BK15: 0.1582599792 | BM15: 4 | BN15: =getCMSCapReplicationWeights(K15,$C$11,$C$12,$C$13,N15:BK15) -> 0.1222253125 | BO15: 0.003065036792 | BP15: 0.003093715057 | BQ15: 0.003122181237 | BR15: 0.003150432077 | BS15: 0.003178464461 | BT15: 0.003206275407 | BU15: 0.003233862065 | BV15: 0.003261221723 | BW15: 0.003288351798 | BX15: 0.00331524984 | BY15: 0.003341913529 | BZ15: 0.003368340675 | CA15: 0.003394529214 | CB15: 0.003420477211 | CC15: 0.003446182854 | CD15: 0.003471644455 | CE15: 0.003496860447 | CF15: 0.003521829386 | CG15: 0.003546549944 | CH15: 0.00357102091 | CI15: 0.00359524119 | CJ15: 0.0036192098 | CK15: 0.003642925871 | CL15: 0.00366638864 | CM15: 0.003689597453 | CN15: 0.003712551762 | CO15: 0.00373525112 | CP15: 0.003757695185 | CQ15: 0.00377988371 | CR15: 0.003801816548 | CS15: 0.003823493647 | CT15: 0.003844915045 | CU15: 0.003866080874 | CV15: 0.003886991352 | CW15: 0.003907646786 | CX15: 0.003928047565 | CY15: 0.003948194159 | CZ15: 0.003968087122 | DA15: 0.00398772708 | DB15: 0.00400711474 | DC15: 0.004026250878 | DD15: 0.004045136342 | DE15: 0.004063772051 | DF15: 0.004082158989 | DG15: 0.004100298203 | DH15: 0.004118190806 | DI15: 0.004135837968 | DJ15: 0.00415324092 | DK15: 0 | DM15: 4 | DN15: 0.186852134 | DO15: 0.1767450048 | DP15: 0.1695440217 | DQ15: 0.1652965954 | DR15: 0.1636808492 | DS15: 0.1641239274 | DT15: 0.1660199024 | DU15: 0.1688691404 | DV15: 0.1723102851 | DW15: 0.1760985194 | DX15: 0.1800728169 | DY15: 0.1841285307 | DZ15: 0.1881980101 | EA15: 0.1922377473 | EB15: 0.1962200418 | EC15: 0.2001276142 | ED15: 0.203950106 | EE15: 0.2076817819 | EF15: 0.2113200072 | EG15: 0.2148642251 | EH15: 0.2183152653 | EI15: 0.2216748702 | EJ15: 0.2249453701 | EK15: 0.2281294576 | EL15: 0.2312300316 | EM15: 0.2342500893 | EN15: 0.237192651 | EO15: 0.2400607095 | EP15: 0.2428571949 | EQ15: 0.2455849527 | ER15: 0.2482467287 | ES15: 0.2508451616 | ET15: 0.253382778 | EU15: 0.2558619922 | EV15: 0.2582851067 | EW15: 0.2606543147 | EX15: 0.2629717036 | EY15: 0.2652392589 | EZ15: 0.2674588688 | FA15: 0.2696323281 | FB15: 0.2717613437 | FC15: 0.2738475382 | FD15: 0.2758924551 | FE15: 0.2778975626 | FF15: 0.2798642579 | FG15: 0.2817938714 | FH15: 0.2836876699 | FI15: 0.2855468606 | FJ15: 0.2873725943 | FK15: 0.2891659685 | FM15: 4 | FN15: 0.005304103716 | FO15: 0.004039237841 | FP15: 0.003028933426 | FQ15: 0.002266823374 | FR15: 0.001716684788 | FS15: 0.001327973947 | FT15: 0.00105322879 | FU15: 0.0008561383149 | FV15: 0.0007116433687 | FW15: 0.0006031675074 | FX15: 0.0005198364844 | FY15: 0.0004544505929 | FZ15: 0.0004021592971 | GA15: 0.000359626849 | GB15: 0.0003245102224 | GC15: 0.0002951296523 | GD15: 0.0002702574975 | GE15: 0.0002489804397 | GF15: 0.0002306078131 | GG15: 0.0002146094596 | GH15: 0.0002005728307 | GI15: 0.0001881728625 | GJ15: 0.0001771504783 | GK15: 0.0001672970169 | GL15: 0.000158442794 | GM15: 0.0001504485912 | GN15: 0.0001431992456 | GO15: 0.000136598768 | GP15: 0.0001305665851 | GQ15: 0.0001250346204 | GR15: 0.0001199450038 | GS15: 0.0001152482608 | GT15: 0.0001109018688 | GU15: 0.0001068690975 | GV15: 0.0001031180706 | GW15: 9.962100257e-05 | GX15: 9.635357258e-05 | GY15: 9.329440912e-05 | GZ15: 9.042466263e-05 | HA15: 8.772764954e-05 | HB15: 8.518855428e-05 | HC15: 8.279417861e-05 | HD15: 8.05327298e-05 | HE15: 7.83936409e-05 | HF15: 7.636741766e-05 | HG15: 7.444550749e-05 | HH15: 7.262018706e-05 | HI15: 7.088446542e-05 | HJ15: 6.923200029e-05 | HK15: 6.76570254e-05 | HM15: 4 | HN15: 0.00605110567 | HO15: 0.002784857767
E16: 5 | F16: =YEARFRAC(today,Overview!F16) -> 5.005555556 | G16: =Overview!I16 -> 0.498630137 | H16: =Overview!K16 -> 0.9103234504 | I16: =Overview!L16/Overview!K16 -> 0.9853358445 | J16: =Overview!M16 -> 0.03688493757 | K16: 0.03688493757 | M16: 5 | N16: 0.03688493757 | O16: =N16+Strike_Step_Cap_ATM -> 0.03938493757 | P16: 0.04188493757 | Q16: 0.04438493757 | R16: 0.04688493757 | S16: 0.04938493757 | T16: 0.05188493757 | U16: 0.05438493757 | V16: 0.05688493757 | W16: 0.05938493757 | X16: 0.06188493757 | Y16: 0.06438493757 | Z16: 0.06688493757 | AA16: 0.06938493757 | AB16: 0.07188493757 | AC16: 0.07438493757 | AD16: 0.07688493757 | AE16: 0.07938493757 | AF16: 0.08188493757 | AG16: 0.08438493757 | AH16: 0.08688493757 | AI16: 0.08938493757 | AJ16: 0.09188493757 | AK16: 0.09438493757 | AL16: 0.09688493757 | AM16: 0.09938493757 | AN16: 0.1018849376 | AO16: 0.1043849376 | AP16: 0.1068849376 | AQ16: 0.1093849376 | AR16: 0.1118849376 | AS16: 0.1143849376 | AT16: 0.1168849376 | AU16: =AT16+Strike_Step_Cap_ATM -> 0.1193849376 | AV16: 0.1218849376 | AW16: 0.1243849376 | AX16: 0.1268849376 | AY16: 0.1293849376 | AZ16: 0.1318849376 | BA16: 0.1343849376 | BB16: 0.1368849376 | BC16: 0.1393849376 | BD16: 0.1418849376 | BE16: 0.1443849376 | BF16: 0.1468849376 | BG16: 0.1493849376 | BH16: 0.1518849376 | BI16: 0.1543849376 | BJ16: 0.1568849376 | BK16: 0.1593849376 | BM16: 5 | BN16: =getCMSCapReplicationWeights(K16,$C$11,$C$12,$C$13,N16:BK16) -> 0.1229137339 | BO16: 0.003073652991 | BP16: 0.003102259926 | BQ16: 0.003130653593 | BR16: 0.003158830789 | BS16: 0.003186788449 | BT16: 0.003214523639 | BU16: 0.003242033562 | BV16: 0.003269315555 | BW16: 0.003296367083 | BX16: 0.003323185747 | BY16: 0.003349769275 | BZ16: 0.003376115523 | CA16: 0.003402222478 | CB16: 0.003428088248 | CC16: 0.003453711069 | CD16: 0.003479089299 | CE16: 0.003504221416 | CF16: 0.00352910602 | CG16: 0.003553741826 | CH16: 0.003578127667 | CI16: 0.003602262491 | CJ16: 0.003626145356 | CK16: 0.003649775433 | CL16: 0.003673152 | CM16: 0.003696274442 | CN16: 0.003719142248 | CO16: 0.003741755012 | CP16: 0.003764112424 | CQ16: 0.003786214278 | CR16: 0.00380806046 | CS16: 0.003829650951 | CT16: 0.003850985825 | CU16: 0.003872065245 | CV16: 0.003892889463 | CW16: 0.003913458815 | CX16: 0.00393377372 | CY16: 0.00395383468 | CZ16: 0.003973642275 | DA16: 0.00399319716 | DB16: 0.004012500067 | DC16: 0.0040315518 | DD16: 0.004050353232 | DE16: 0.004068905304 | DF16: 0.004087209026 | DG16: 0.004105265467 | DH16: 0.004123075761 | DI16: 0.0041406411 | DJ16: 0.004157962734 | DK16: 0 | DM16: 5 | DN16: 0.1696589747 | DO16: 0.1607300278 | DP16: 0.1543128012 | DQ16: 0.1504555168 | DR16: 0.1488999073 | DS16: 0.1491700565 | DT16: 0.1507495273 | DU16: 0.1532026848 | DV16: 0.1562083182 | DW16: 0.159545313 | DX16: 0.1630662768 | DY16: 0.1666742837 | DZ16: 0.170305959 | EA16: 0.1739200521 | EB16: 0.1774899271 | EC16: 0.1809986601 | ED16: 0.184435827 | EE16: 0.187795381 | EF16: 0.1910742358 | EG16: 0.1942713101 | EH16: 0.1973868762 | EI16: 0.2004221128 | EJ16: 0.2033787948 | EK16: 0.2062590777 | EL16: 0.2090653467 | EM16: 0.2118001109 | EN16: 0.2144659299 | EO16: 0.2170653627 | EP16: 0.219600932 | EQ16: 0.222075101 | ER16: 0.2244902572 | ES16: 0.2268487036 | ET16: 0.2291526525 | EU16: 0.2314042232 | EV16: 0.2336054419 | EW16: 0.2357582426 | EX16: 0.2378644694 | EY16: 0.2399258792 | EZ16: 0.2419441451 | FA16: 0.2439208601 | FB16: 0.2458575405 | FC16: 0.2477556296 | FD16: 0.2496165018 | FE16: 0.2514414655 | FF16: 0.2532317671 | FG16: 0.2549885942 | FH16: 0.2567130788 | FI16: 0.2584063001 | FJ16: 0.2600692878 | FK16: 0.2617030245 | FM16: 5 | FN16: 0.00555214916 | FO16: 0.004280762918 | FP16: 0.00325543971 | FQ16: 0.002471892883 | FR16: 0.001897796526 | FS16: 0.001486123683 | FT16: 0.001191265553 | FU16: 0.0009773394122 | FV16: 0.0008190001177 | FW16: 0.0006991676999 | FX16: 0.0006064717588 | FY16: 0.0005332954816 | FZ16: 0.0004744584517 | GA16: 0.0004263700227 | GB16: 0.0003864913734 | GC16: 0.0003529919589 | GD16: 0.0003245272373 | GE16: 0.0003000924622 | GF16: 0.0002789247768 | GG16: 0.0002604364672 | GH16: 0.0002441686599 | GI16: 0.0002297586639 | GJ16: 0.0002169165746 | GK16: 0.0002054082669 | GL16: 0.0001950428612 | GM16: 0.0001856633702 | GN16: 0.0001771396336 | GO16: 0.0001693629246 | GP16: 0.0001622417874 | GQ16: 0.0001556987966 | GR16: 0.0001496680088 | GS16: 0.0001440929439 | GT16: 0.0001389249721 | GU16: 0.0001341220162 | GV16: 0.0001296474997 | GW16: 0.0001254694895 | GX16: 0.0001215599911 | GY16: 0.0001178943686 | GZ16: 0.0001144508617 | HA16: 0.0001112101838 | HB16: 0.0001081551843 | HC16: 0.0001052705647 | HD16: 0.0001025426382 | HE16: 9.995912541e-05 | HF16: 9.750897984e-05 | HG16: 9.518223896e-05 | HH16: 9.296989577e-05 | HI16: 9.086378817e-05 | HJ16: 8.885650322e-05 | HK16: 8.694129404e-05 | HM16: 5 | HN16: 0.006399130777 | HO16: 0.002862065191
B17: Result | E17: 6 | F17: =YEARFRAC(today,Overview!F17) -> 6.005555556 | G17: =Overview!I17 -> 0.498630137 | H17: =Overview!K17 -> 0.8829013253 | I17: =Overview!L17/Overview!K17 -> 0.9835668342 | J17: =Overview!M17 -> 0.03753941452 | K17: 0.03753941452 | M17: 6 | N17: 0.03753941452 | O17: =N17+Strike_Step_Cap_ATM -> 0.04003941452 | P17: 0.04253941452 | Q17: 0.04503941452 | R17: 0.04753941452 | S17: 0.05003941452 | T17: 0.05253941452 | U17: 0.05503941452 | V17: 0.05753941452 | W17: 0.06003941452 | X17: 0.06253941452 | Y17: 0.06503941452 | Z17: 0.06753941452 | AA17: 0.07003941452 | AB17: 0.07253941452 | AC17: 0.07503941452 | AD17: 0.07753941452 | AE17: 0.08003941452 | AF17: 0.08253941452 | AG17: 0.08503941452 | AH17: 0.08753941452 | AI17: 0.09003941452 | AJ17: 0.09253941452 | AK17: 0.09503941452 | AL17: 0.09753941452 | AM17: 0.1000394145 | AN17: 0.1025394145 | AO17: 0.1050394145 | AP17: 0.1075394145 | AQ17: 0.1100394145 | AR17: 0.1125394145 | AS17: 0.1150394145 | AT17: 0.1175394145 | AU17: =AT17+Strike_Step_Cap_ATM -> 0.1200394145 | AV17: 0.1225394145 | AW17: 0.1250394145 | AX17: 0.1275394145 | AY17: 0.1300394145 | AZ17: 0.1325394145 | BA17: 0.1350394145 | BB17: 0.1375394145 | BC17: 0.1400394145 | BD17: 0.1425394145 | BE17: 0.1450394145 | BF17: 0.1475394145 | BG17: 0.1500394145 | BH17: 0.1525394145 | BI17: 0.1550394145 | BJ17: 0.1575394145 | BK17: 0.1600394145 | BM17: 6 | BN17: =getCMSCapReplicationWeights(K17,$C$11,$C$12,$C$13,N17:BK17) -> 0.1233151366 | BO17: 0.003078655909 | BP17: 0.00310722116 | BQ17: 0.003135572463 | BR17: 0.003163706646 | BS17: 0.003191620672 | BT17: 0.003219311637 | BU17: 0.003246776774 | BV17: 0.003274013446 | BW17: 0.003301019151 | BX17: 0.003327791515 | BY17: 0.003354328294 | BZ17: 0.003380627375 | CA17: 0.003406686768 | CB17: 0.003432504612 | CC17: 0.003458079169 | CD17: 0.003483408822 | CE17: 0.003508492076 | CF17: 0.003533327556 | CG17: 0.003557914004 | CH17: 0.003582250277 | CI17: 0.003606335346 | CJ17: 0.003630168295 | CK17: 0.003653748318 | CL17: 0.003677074716 | CM17: 0.003700146897 | CN17: 0.003722964372 | CO17: 0.003745526756 | CP17: 0.003767833763 | CQ17: 0.003789885205 | CR17: 0.003811680988 | CS17: 0.003833221116 | CT17: 0.003854505681 | CU17: 0.003875534864 | CV17: 0.003896308935 | CW17: 0.00391682825 | CX17: 0.003937093244 | CY17: 0.003957104436 | CZ17: 0.003976862421 | DA17: 0.003996367874 | DB17: 0.004015621539 | DC17: 0.004034624236 | DD17: 0.004053376852 | DE17: 0.004071880344 | DF17: 0.004090135732 | DG17: 0.004108144101 | DH17: 0.004125906597 | DI17: 0.004143424423 | DJ17: 0.004160698842 | DK17: 0 | DM17: 6 | DN17: 0.1640889667 | DO17: 0.1555898966 | DP17: 0.1493523042 | DQ17: 0.1454369593 | DR17: 0.1436460402 | DS17: 0.1435806767 | DT17: 0.1447852531 | DU17: 0.1468597211 | DV17: 0.1494996528 | DW17: 0.1524902545 | DX17: 0.1556854855 | DY17: 0.1589876714 | DZ17: 0.1623319297 | EA17: 0.1656753274 | EB17: 0.1689896105 | EC17: 0.1722563852 | ED17: 0.1754639244 | EE17: 0.1786050376 | EF17: 0.1816756374 | EG17: 0.1846737648 | EH17: 0.1875989212 | EI17: 0.1904516051 | EJ17: 0.193232989 | EK17: 0.1959446925 | EL17: 0.1985886219 | EM17: 0.2011668572 | EN17: 0.2036815715 | EO17: 0.2061349747 | EP17: 0.208529273 | EQ17: 0.2108666415 | ER17: 0.2131492055 | ES17: 0.2153790277 | ET17: 0.2175581 | EU17: 0.2196883394 | EV17: 0.2217715852 | EW17: 0.2238095993 | EX17: 0.225804066 | EY17: 0.2277565944 | EZ17: 0.2296687202 | FA17: 0.2315419083 | FB17: 0.2333775558 | FC17: 0.2351769947 | FD17: 0.2369414949 | FE17: 0.2386722675 | FF17: 0.2403704674 | FG17: 0.2420371962 | FH17: 0.2436735049 | FI17: 0.2452803969 | FJ17: 0.2468588299 | FK17: 0.248409719 | FM17: 6 | FN17: 0.005981847524 | FO17: 0.004697448305 | FP17: 0.003645643091 | FQ17: 0.002825964838 | FR17: 0.002212321075 | FS17: 0.001763078408 | FT17: 0.001435403021 | FU17: 0.001193998748 | FV17: 0.001013017977 | FW17: 0.0008745547265 | FX17: 0.0007664354611 | FY17: 0.00068037193 | FZ17: 0.0006106542907 | GA17: 0.0005532835132 | GB17: 0.0005054073472 | GC17: 0.000464953912 | GD17: 0.0004303914755 | GE17: 0.0004005687545 | GF17: 0.0003746070355 | GG17: 0.0003518260824 | GH17: 0.0003316924094 | GI17: 0.0003137825918 | GJ17: 0.0002977568505 | GK17: 0.0002833397614 | GL17: 0.000270305981 | GM17: 0.0002584695516 | GN17: 0.0002476757955 | GO17: 0.0002377951043 | GP17: 0.0002287181323 | GQ17: 0.0002203520417 | GR17: 0.0002126175424 | GS17: 0.0002054465397 | GT17: 0.0001987802509 | GU17: 0.0001925676846 | GV17: 0.0001867644069 | GW17: 0.0001813315314 | GX17: 0.0001762348892 | GY17: 0.0001714443421 | GZ17: 0.0001669332112 | HA17: 0.0001626777993 | HB17: 0.0001586569896 | HC17: 0.000154851907 | HD17: 0.0001512456309 | HE17: 0.0001478229508 | HF17: 0.0001445701572 | HG17: 0.0001414748628 | HH17: 0.0001385258476 | HI17: 0.000135712926 | HJ17: 0.0001330268308 | HK17: 0.000130459113 | HM17: 6 | HN17: 0.007010134178 | HO17: 0.003035434731
B18: PVCap | C18: =SUM(OFFSET(HO11,0,0,HO7,1)) -> 0.02728601887 | E18: 7 | F18: =YEARFRAC(today,Overview!F18) -> 7.005555556 | G18: =Overview!I18 -> 0.5 | H18: =Overview!K18 -> 0.8534175698 | I18: =Overview!L18/Overview!K18 -> 0.9821513357 | J18: =Overview!M18 -> 0.0378322117 | K18: 0.0378322117 | M18: 7 | N18: 0.0378322117 | O18: =N18+Strike_Step_Cap_ATM -> 0.0403322117 | P18: 0.0428322117 | Q18: 0.0453322117 | R18: 0.0478322117 | S18: 0.0503322117 | T18: 0.0528322117 | U18: 0.0553322117 | V18: 0.0578322117 | W18: 0.0603322117 | X18: 0.0628322117 | Y18: 0.0653322117 | Z18: 0.0678322117 | AA18: 0.0703322117 | AB18: 0.0728322117 | AC18: 0.0753322117 | AD18: 0.0778322117 | AE18: 0.0803322117 | AF18: 0.0828322117 | AG18: 0.0853322117 | AH18: 0.0878322117 | AI18: 0.0903322117 | AJ18: 0.0928322117 | AK18: 0.0953322117 | AL18: 0.0978322117 | AM18: 0.1003322117 | AN18: 0.1028322117 | AO18: 0.1053322117 | AP18: 0.1078322117 | AQ18: 0.1103322117 | AR18: 0.1128322117 | AS18: 0.1153322117 | AT18: 0.1178322117 | AU18: =AT18+Strike_Step_Cap_ATM -> 0.1203322117 | AV18: 0.1228322117 | AW18: 0.1253322117 | AX18: 0.1278322117 | AY18: 0.1303322117 | AZ18: 0.1328322117 | BA18: 0.1353322117 | BB18: 0.1378322117 | BC18: 0.1403322117 | BD18: 0.1428322117 | BE18: 0.1453322117 | BF18: 0.1478322117 | BG18: 0.1503322117 | BH18: 0.1528322117 | BI18: 0.1553322117 | BJ18: 0.1578322117 | BK18: 0.1603322117 | BM18: 7 | BN18: =getCMSCapReplicationWeights(K18,$C$11,$C$12,$C$13,N18:BK18) -> 0.1234949269 | BO18: 0.003080891751 | BP18: 0.003109438309 | BQ18: 0.003137770618 | BR18: 0.003165885518 | BS18: 0.003193779985 | BT18: 0.00322145113 | BU18: 0.003248896196 | BV18: 0.003276112562 | BW18: 0.003303097736 | BX18: 0.003329849358 | BY18: 0.003356365197 | BZ18: 0.003382643152 | CA18: 0.003408681245 | CB18: 0.003434477627 | CC18: 0.003460030572 | CD18: 0.003485338476 | CE18: 0.003510399855 | CF18: 0.003535213344 | CG18: 0.003559777698 | CH18: 0.003584091785 | CI18: 0.003608154587 | CJ18: 0.003631965198 | CK18: 0.003655522822 | CL18: 0.003678826771 | CM18: 0.003701876464 | CN18: 0.003724671421 | CO18: 0.003747211267 | CP18: 0.003769495726 | CQ18: 0.003791524617 | CR18: 0.003813297859 | CS18: 0.003834815461 | CT18: 0.003856077525 | CU18: 0.003877084241 | CV18: 0.003897835888 | CW18: 0.003918332827 | CX18: 0.003938575504 | CY18: 0.003958564443 | CZ18: 0.003978300249 | DA18: 0.003997783601 | DB18: 0.004017015252 | DC18: 0.004035996028 | DD18: 0.004054726823 | DE18: 0.0040732086 | DF18: 0.004091442384 | DG18: 0.004109429267 | DH18: 0.004127170399 | DI18: 0.004144666991 | DJ18: 0.00416192031 | DK18: 0 | DM18: 7 | DN18: 0.1586682499 | DO18: 0.1505367023 | DP18: 0.144467579 | DQ18: 0.1405272405 | DR18: 0.1385604182 | DS18: 0.1382270101 | DT18: 0.139121132 | DU18: 0.1408740613 | DV18: 0.1431975532 | DW18: 0.1458839049 | DX18: 0.148789513 | DY18: 0.1518169772 | DZ18: 0.1549007678 | EA18: 0.157996968 | EB18: 0.1610762653 | EC18: 0.1641192449 | ED18: 0.1671132395 | EE18: 0.1700502097 | EF18: 0.1729253089 | EG18: 0.1757359017 | EH18: 0.1784808858 | EI18: 0.1811602206 | EJ18: 0.1837745959 | EK18: 0.1863251975 | EL18: 0.188813541 | EM18: 0.1912413529 | EN18: 0.1936104859 | EO18: 0.1959228583 | EP18: 0.1981804101 | EQ18: 0.2003850734 | ER18: 0.2025387501 | ES18: 0.2046432976 | ET18: 0.2067005187 | EU18: 0.2087121555 | EV18: 0.2106798858 | EW18: 0.2126053212 | EX18: 0.2144900069 | EY18: 0.2163354219 | EZ18: 0.2181429811 | FA18: 0.2199140364 | FB18: 0.221649879 | FC18: 0.2233517419 | FD18: 0.2250208023 | FE18: 0.2266581838 | FF18: 0.2282649593 | FG18: 0.2298421531 | FH18: 0.2313907434 | FI18: 0.2329116646 | FJ18: 0.2344058096 | FK18: 0.2358740319 | FM18: 7 | FN18: 0.006292177729 | FO18: 0.004999796068 | FP18: 0.003930293902 | FQ18: 0.003085551472 | FR18: 0.002443749639 | FS18: 0.001967255789 | FT18: 0.001615502924 | FU18: 0.001353829296 | FV18: 0.001156128462 | FW18: 0.001003928043 | FX18: 0.0008844702258 | FY18: 0.0007889664296 | FZ18: 0.0007113080947 | GA18: 0.0006471874048 | GB18: 0.0005935150387 | GC18: 0.0005480368901 | GD18: 0.0005090802949 | GE18: 0.0004753840342 | GF18: 0.0004459828078 | GG18: 0.0004201275032 | GH18: 0.0003972293059 | GI18: 0.0003768199237 | GJ18: 0.0003585228642 | GK18: 0.0003420324066 | GL18: 0.0003270980053 | GM18: 0.0003135125818 | GN18: 0.0003011036334 | GO18: 0.0002897264101 | GP18: 0.0002792586252 | GQ18: 0.000269596317 | GR18: 0.0002606505823 | GS18: 0.0002523449775 | GT18: 0.0002446134339 | GU18: 0.0002373985742 | GV18: 0.0002306503439 | GW18: 0.0002243248898 | GX18: 0.0002183836383 | GY18: 0.0002127925307 | GZ18: 0.0002075213873 | HA18: 0.0002025433749 | HB18: 0.0001978345592 | HC18: 0.0001933735265 | HD18: 0.000189141063 | HE18: 0.0001851198809 | HF18: 0.0001812943851 | HG18: 0.0001776504719 | HH18: 0.0001741753561 | HI18: 0.0001708574212 | HJ18: 0.0001676860899 | HK18: 0.0001646517107 | HM18: 7 | HN18: 0.007457857812 | HO18: 0.003125533043
E19: 8 | F19: =YEARFRAC(today,Overview!F19) -> 8.005555556 | G19: =Overview!I19 -> 0.498630137 | H19: =Overview!K19 -> 0.8228270888 | I19: =Overview!L19/Overview!K19 -> 0.9814429661 | J19: =Overview!M19 -> 0.03785005424 | K19: 0.03785005424 | M19: 8 | N19: 0.03785005424 | O19: =N19+Strike_Step_Cap_ATM -> 0.04035005424 | P19: 0.04285005424 | Q19: 0.04535005424 | R19: 0.04785005424 | S19: 0.05035005424 | T19: 0.05285005424 | U19: 0.05535005424 | V19: 0.05785005424 | W19: 0.06035005424 | X19: 0.06285005424 | Y19: 0.06535005424 | Z19: 0.06785005424 | AA19: 0.07035005424 | AB19: 0.07285005424 | AC19: 0.07535005424 | AD19: 0.07785005424 | AE19: 0.08035005424 | AF19: 0.08285005424 | AG19: 0.08535005424 | AH19: 0.08785005424 | AI19: 0.09035005424 | AJ19: 0.09285005424 | AK19: 0.09535005424 | AL19: 0.09785005424 | AM19: 0.1003500542 | AN19: 0.1028500542 | AO19: 0.1053500542 | AP19: 0.1078500542 | AQ19: 0.1103500542 | AR19: 0.1128500542 | AS19: 0.1153500542 | AT19: 0.1178500542 | AU19: =AT19+Strike_Step_Cap_ATM -> 0.1203500542 | AV19: 0.1228500542 | AW19: 0.1253500542 | AX19: 0.1278500542 | AY19: 0.1303500542 | AZ19: 0.1328500542 | BA19: 0.1353500542 | BB19: 0.1378500542 | BC19: 0.1403500542 | BD19: 0.1428500542 | BE19: 0.1453500542 | BF19: 0.1478500542 | BG19: 0.1503500542 | BH19: 0.1528500542 | BI19: 0.1553500542 | BJ19: 0.1578500542 | BK19: 0.1603500542 | BM19: 8 | BN19: =getCMSCapReplicationWeights(K19,$C$11,$C$12,$C$13,N19:BK19) -> 0.1235058872 | BO19: 0.003081027952 | BP19: 0.003109573371 | BQ19: 0.003137904521 | BR19: 0.003166018245 | BS19: 0.00319391152 | BT19: 0.003221581456 | BU19: 0.003249025298 | BV19: 0.003276240426 | BW19: 0.003303224348 | BX19: 0.003329974706 | BY19: 0.003356489269 | BZ19: 0.003382765935 | CA19: 0.00340880273 | CB19: 0.003434597804 | CC19: 0.003460149432 | CD19: 0.00348545601 | CE19: 0.003510516055 | CF19: 0.003535328205 | CG19: 0.003559891212 | CH19: 0.003584203946 | CI19: 0.003608265391 | CJ19: 0.003632074641 | CK19: 0.0036556309 | CL19: 0.003678933481 | CM19: 0.003701981803 | CN19: 0.003724775388 | CO19: 0.003747313861 | CP19: 0.003769596945 | CQ19: 0.003791624463 | CR19: 0.003813396331 | CS19: 0.00383491256 | CT19: 0.003856173253 | CU19: 0.003877178601 | CV19: 0.003897928881 | CW19: 0.003918424457 | CX19: 0.003938665774 | CY19: 0.003958653357 | CZ19: 0.003978387812 | DA19: 0.003997869817 | DB19: 0.004017100128 | DC19: 0.004036079568 | DD19: 0.004054809034 | DE19: 0.004073289487 | DF19: 0.004091521955 | DG19: 0.004109507529 | DH19: 0.00412724736 | DI19: 0.004144742659 | DJ19: 0.004161994692 | DK19: 0 | DM19: 8 | DN19: 0.1533437273 | DO19: 0.1455409681 | DP19: 0.1396342265 | DQ19: 0.1356912455 | DR19: 0.1335882061 | DS19: 0.1330320209 | DT19: 0.1336591095 | DU19: 0.1351290904 | DV19: 0.1371694191 | DW19: 0.1395799765 | DX19: 0.1422203259 | DY19: 0.1449940352 | DZ19: 0.1478355147 | EA19: 0.1507003387 | EB19: 0.1535585167 | EC19: 0.1563899183 | ED19: 0.159181181 | EE19: 0.1619236165 | EF19: 0.1646117831 | EG19: 0.1672425037 | EH19: 0.169814186 | EI19: 0.1723263454 | EJ19: 0.1747792693 | EK19: 0.1771737789 | EL19: 0.179511058 | EM19: 0.181792531 | EN19: 0.1840197744 | EO19: 0.1861944535 | EP19: 0.1883182768 | EQ19: 0.1903929625 | ER19: 0.1924202161 | ES19: 0.1944017132 | ET19: 0.1963390882 | EU19: 0.1982339274 | EV19: 0.2000877635 | EW19: 0.2019020731 | EX19: 0.2036782756 | EY19: 0.2054177326 | EZ19: 0.2071217488 | FA19: 0.2087915734 | FB19: 0.210428401 | FC19: 0.2120333739 | FD19: 0.2136075839 | FE19: 0.2151520745 | FF19: 0.2166678426 | FG19: 0.2181558413 | FH19: 0.2196169811 | FI19: 0.2210521327 | FJ19: 0.2224621285 | FK19: 0.2238477647 | FM19: 8 | FN19: 0.006500437533 | FO19: 0.005204024558 | FP19: 0.004123222136 | FQ19: 0.003261346287 | FR19: 0.002599611238 | FS19: 0.002103451815 | FT19: 0.001734182008 | FU19: 0.001457764163 | FV19: 0.001247971688 | FW19: 0.001085929196 | FX19: 0.0009584386298 | FY19: 0.000856327097 | FZ19: 0.0007731780435 | GA19: 0.0007044453763 | GB19: 0.0006468577054 | GC19: 0.00059802194 | GD19: 0.0005561587965 | GE19: 0.0005199246148 | GF19: 0.0004882897517 | GG19: 0.0004604543791 | GH19: 0.0004357893115 | GI19: 0.0004137938088 | GJ19: 0.0003940650571 | GK19: 0.0003762757955 | GL19: 0.0003601577051 | GM19: 0.0003454889271 | GN19: 0.0003320845782 | GO19: 0.000319789466 | GP19: 0.0003084724399 | GQ19: 0.0002980219688 | GR19: 0.0002883426493 | GS19: 0.0002793524254 | GT19: 0.0002709803592 | GU19: 0.0002631648291 | GV19: 0.0002558520639 | GW19: 0.0002489949435 | GX19: 0.00024255201 | GY19: 0.0002364866501 | GZ19: 0.0002307664127 | HA19: 0.0002253624387 | HB19: 0.0002202489809 | HC19: 0.0002154029988 | HD19: 0.0002108038143 | HE19: 0.0002064328184 | HF19: 0.0002022732201 | HG19: 0.0001983098315 | HH19: 0.0001945288817 | HI19: 0.0001909178559 | HJ19: 0.0001874653565 | HK19: 0.0001841609818 | HM19: 8 | HN19: 0.007751654496 | HO19: 0.003121379534
E20: 9 | F20: =YEARFRAC(today,Overview!F20) -> 9.005555556 | G20: =Overview!I20 -> 0.498630137 | H20: =Overview!K20 -> 0.7923378228 | I20: =Overview!L20/Overview!K20 -> 0.9811433938 | J20: =Overview!M20 -> 0.03767849115 | K20: 0.03767849115 | M20: 9 | N20: 0.03767849115 | O20: =N20+Strike_Step_Cap_ATM -> 0.04017849115 | P20: 0.04267849115 | Q20: 0.04517849115 | R20: 0.04767849115 | S20: 0.05017849115 | T20: 0.05267849115 | U20: 0.05517849115 | V20: 0.05767849115 | W20: 0.06017849115 | X20: 0.06267849115 | Y20: 0.06517849115 | Z20: 0.06767849115 | AA20: 0.07017849115 | AB20: 0.07267849115 | AC20: 0.07517849115 | AD20: 0.07767849115 | AE20: 0.08017849115 | AF20: 0.08267849115 | AG20: 0.08517849115 | AH20: 0.08767849115 | AI20: 0.09017849115 | AJ20: 0.09267849115 | AK20: 0.09517849115 | AL20: 0.09767849115 | AM20: 0.1001784911 | AN20: 0.1026784911 | AO20: 0.1051784911 | AP20: 0.1076784911 | AQ20: 0.1101784911 | AR20: 0.1126784911 | AS20: 0.1151784911 | AT20: 0.1176784911 | AU20: =AT20+Strike_Step_Cap_ATM -> 0.1201784911 | AV20: 0.1226784911 | AW20: 0.1251784911 | AX20: 0.1276784911 | AY20: 0.1301784911 | AZ20: 0.1326784911 | BA20: 0.1351784911 | BB20: 0.1376784911 | BC20: 0.1401784911 | BD20: 0.1426784911 | BE20: 0.1451784911 | BF20: 0.1476784911 | BG20: 0.1501784911 | BH20: 0.1526784911 | BI20: 0.1551784911 | BJ20: 0.1576784911 | BK20: 0.1601784911 | BM20: 9 | BN20: =getCMSCapReplicationWeights(K20,$C$11,$C$12,$C$13,N20:BK20) -> 0.1234005193 | BO20: 0.003079718099 | BP20: 0.003108274475 | BQ20: 0.003136616759 | BR20: 0.003164741786 | BS20: 0.003192646524 | BT20: 0.003220328077 | BU20: 0.003247783683 | BV20: 0.003275010713 | BW20: 0.003302006668 | BX20: 0.003328769182 | BY20: 0.003355296017 | BZ20: 0.003381585064 | CA20: 0.003407634342 | CB20: 0.003433441994 | CC20: 0.003459006286 | CD20: 0.003484325609 | CE20: 0.003509398474 | CF20: 0.00353422351 | CG20: 0.003558799464 | CH20: 0.0035831252 | CI20: 0.003607199693 | CJ20: 0.003631022032 | CK20: 0.003654591416 | CL20: 0.003677907152 | CM20: 0.003700968651 | CN20: 0.00372377543 | CO20: 0.003746327109 | CP20: 0.003768623405 | CQ20: 0.003790664135 | CR20: 0.003812449212 | CS20: 0.003833978639 | CT20: 0.003855252516 | CU20: 0.003876271027 | CV20: 0.003897034446 | CW20: 0.003917543131 | CX20: 0.003937797524 | CY20: 0.003957798145 | CZ20: 0.003977545594 | DA20: 0.003997040548 | DB20: 0.004016283756 | DC20: 0.004035276039 | DD20: 0.004054018289 | DE20: 0.004072511465 | DF20: 0.00409075659 | DG20: 0.004108754751 | DH20: 0.004126507098 | DI20: 0.004144014836 | DJ20: 0.004161279231 | DK20: 0 | DM20: 9 | DN20: 0.1480751458 | DO20: 0.140581559 | DP20: 0.1348371513 | DQ20: 0.130908256 | DR20: 0.1286955543 | DS20: 0.1279457073 | DT20: 0.1283329708 | DU20: 0.1295436813 | DV20: 0.1313209212 | DW20: 0.1334726266 | DX20: 0.1358620813 | DY20: 0.1383943077 | DZ20: 0.1410040458 | EA20: 0.143646666 | EB20: 0.1462917378 | EC20: 0.1489186015 | ED20: 0.1515133483 | EE20: 0.1540667604 | EF20: 0.1565728974 | EG20: 0.1590281211 | EH20: 0.161430415 | EI20: 0.1637789062 | EJ20: 0.1660735272 | EK20: 0.1683147744 | EL20: 0.1705035344 | EM20: 0.172640959 | EN20: 0.1747283746 | EO20: 0.1767672162 | EP20: 0.17875898 | EQ20: 0.1807051886 | ER20: 0.1826073657 | ES20: 0.1844670191 | ET20: 0.1862856273 | EU20: 0.1880646312 | EV20: 0.1898054284 | EW20: 0.1915093694 | EX20: 0.1931777555 | EY20: 0.1948118382 | EZ20: 0.1964128186 | FA20: 0.1979818488 | FB20: 0.1995200323 | FC20: 0.2010284255 | FD20: 0.2025080395 | FE20: 0.2039598413 | FF20: 0.205384756 | FG20: 0.2067836686 | FH20: 0.2081574253 | FI20: 0.2095068358 | FJ20: 0.2108326747 | FK20: 0.2121356833 | FM20: 9 | FN20: 0.006624904322 | FO20: 0.005327662703 | FP20: 0.004240354098 | FQ20: 0.003367115531 | FR20: 0.002691387912 | FS20: 0.002181065926 | FT20: 0.001799090078 | FU20: 0.001512037254 | FV20: 0.001293649054 | FW20: 0.001124752158 | FX20: 0.0009918016138 | FY20: 0.0008853162913 | FZ20: 0.0007986320466 | GA20: 0.0007270122757 | GB20: 0.0006670414491 | GC20: 0.000616217828 | GD20: 0.0005726799749 | GE20: 0.0005350216863 | GF20: 0.0005021652925 | GG20: 0.0004732737362 | GH20: 0.0004476886922 | GI20: 0.0004248863927 | GJ20: 0.0004044456566 | GK20: 0.0003860244417 | GL20: 0.000369342433 | GM20: 0.0003541679578 | GN20: 0.0003403080429 | GO20: 0.0003276007798 | GP20: 0.000315909405 | GQ20: 0.0003051176666 | GR20: 0.0002951261669 | GS20: 0.0002858494521 | GT20: 0.0002772136778 | GU20: 0.0002691547242 | GV20: 0.0002616166628 | GW20: 0.0002545505019 | GX20: 0.0002479131538 | GY20: 0.0002416665792 | GZ20: 0.0002357770756 | HA20: 0.0002302146814 | HB20: 0.0002249526746 | HC20: 0.0002199671504 | HD20: 0.0002152366615 | HE20: 0.0002107419127 | HF20: 0.0002064654994 | HG20: 0.0002023916827 | HH20: 0.0001985061963 | HI20: 0.000194796079 | HJ20: 0.0001912495295 | HK20: 0.0001878557803 | HM20: 9 | HN20: 0.007913994468 | HO20: 0.00306773003
E21: 10 | F21: =YEARFRAC(today,Overview!F21) -> 10.00555556 | G21: =Overview!I21 -> 0.498630137 | H21: =Overview!K21 -> 0.7625227929 | I21: =Overview!L21/Overview!K21 -> 0.9807595943 | J21: =Overview!M21 -> 0.03732456194 | K21: 0.03732456194 | M21: 10 | N21: 0.03732456194 | O21: =N21+Strike_Step_Cap_ATM -> 0.03982456194 | P21: 0.04232456194 | Q21: 0.04482456194 | R21: 0.04732456194 | S21: 0.04982456194 | T21: 0.05232456194 | U21: 0.05482456194 | V21: 0.05732456194 | W21: 0.05982456194 | X21: 0.06232456194 | Y21: 0.06482456194 | Z21: 0.06732456194 | AA21: 0.06982456194 | AB21: 0.07232456194 | AC21: 0.07482456194 | AD21: 0.07732456194 | AE21: 0.07982456194 | AF21: 0.08232456194 | AG21: 0.08482456194 | AH21: 0.08732456194 | AI21: 0.08982456194 | AJ21: 0.09232456194 | AK21: 0.09482456194 | AL21: 0.09732456194 | AM21: 0.09982456194 | AN21: 0.1023245619 | AO21: 0.1048245619 | AP21: 0.1073245619 | AQ21: 0.1098245619 | AR21: 0.1123245619 | AS21: 0.1148245619 | AT21: 0.1173245619 | AU21: =AT21+Strike_Step_Cap_ATM -> 0.1198245619 | AV21: 0.1223245619 | AW21: 0.1248245619 | AX21: 0.1273245619 | AY21: 0.1298245619 | AZ21: 0.1323245619 | BA21: 0.1348245619 | BB21: 0.1373245619 | BC21: 0.1398245619 | BD21: 0.1423245619 | BE21: 0.1448245619 | BF21: 0.1473245619 | BG21: 0.1498245619 | BH21: 0.1523245619 | BI21: 0.1548245619 | BJ21: 0.1573245619 | BK21: 0.1598245619 | BM21: 10 | BN21: =getCMSCapReplicationWeights(K21,$C$11,$C$12,$C$13,N21:BK21) -> 0.1231832912 | BO21: 0.003077014342 | BP21: 0.003105593292 | BQ21: 0.003133958516 | BR21: 0.003162106833 | BS21: 0.003190035196 | BT21: 0.003217740692 | BU21: 0.003245220543 | BV21: 0.003272472104 | BW21: 0.003299492862 | BX21: 0.003326280435 | BY21: 0.00335283257 | BZ21: 0.003379147143 | CA21: 0.003405222157 | CB21: 0.003431055742 | CC21: 0.003456646149 | CD21: 0.003481991755 | CE21: 0.003507091055 | CF21: 0.003531942666 | CG21: 0.003556545321 | CH21: 0.00358089787 | CI21: 0.003604999276 | CJ21: 0.003628848615 | CK21: 0.003652445071 | CL21: 0.00367578794 | CM21: 0.003698876621 | CN21: 0.00372171062 | CO21: 0.003744289542 | CP21: 0.003766613096 | CQ21: 0.003788681086 | CR21: 0.003810493413 | CS21: 0.003832050072 | CT21: 0.00385335115 | CU21: 0.003874396822 | CV21: 0.003895187353 | CW21: 0.00391572309 | CX21: 0.003936004465 | CY21: 0.00395603199 | CZ21: 0.003975806257 | DA21: 0.003995327932 | DB21: 0.004014597758 | DC21: 0.004033616546 | DD21: 0.004052385182 | DE21: 0.004070904616 | DF21: 0.004089175864 | DG21: 0.004107200007 | DH21: 0.004124978187 | DI21: 0.004142511604 | DJ21: 0.004159801515 | DK21: 0 | DM21: 10 | DN21: 0.1429129628 | DO21: 0.135708954 | DP21: 0.1301241021 | DQ21: 0.1262212717 | DR21: 0.1239201276 | DS21: 0.1230009795 | DT21: 0.123171891 | DU21: 0.1241442507 | DV21: 0.1256765032 | DW21: 0.127584924 | DX21: 0.1297369261 | DY21: 0.1320393644 | DZ21: 0.1344276201 | EA21: 0.1368571067 | EB21: 0.1392971479 | EC21: 0.1417267083 | ED21: 0.1441314557 | EE21: 0.1465017414 | EF21: 0.1488312081 | EG21: 0.151115823 | EH21: 0.1533532017 | EI21: 0.1555421301 | EJ21: 0.1576822261 | EK21: 0.1597736954 | EL21: 0.1618171573 | EM21: 0.1638135167 | EN21: 0.1657638722 | EO21: 0.1676694485 | EP21: 0.1695315467 | EQ21: 0.1713515089 | ER21: 0.1731306914 | ES21: 0.1748704458 | ET21: 0.1765721056 | EU21: 0.1782369766 | EV21: 0.1798663298 | EW21: 0.1814613975 | EX21: 0.1830233704 | EY21: 0.1845533961 | EZ21: 0.1860525784 | FA21: 0.1875219777 | FB21: 0.1889626112 | FC21: 0.1903754541 | FD21: 0.1917614408 | FE21: 0.1931214659 | FF21: 0.1944563862 | FG21: 0.1957670217 | FH21: 0.1970541575 | FI21: 0.1983185448 | FJ21: 0.1995609033 | FK21: 0.2007819219 | FM21: 10 | FN21: 0.006674391323 | FO21: 0.005379106204 | FP21: 0.004289398092 | FQ21: 0.003409753409 | FR21: 0.002725196068 | FS21: 0.002205564531 | FT21: 0.001815182605 | FU21: 0.001521206645 | FV21: 0.001297404897 | FW21: 0.001124387655 | FX21: 0.0009883398863 | FY21: 0.0008795370059 | FZ21: 0.000791119937 | GA21: 0.0007182039188 | GB21: 0.0006572633422 | GC21: 0.0006057153225 | GD21: 0.0005616386067 | GE21: 0.0005235827136 | GF21: 0.0004904369861 | GG21: 0.0004613396064 | GH21: 0.000435613516 | GI21: 0.0004127206622 | GJ21: 0.0003922288871 | GK21: 0.0003737876526 | GL21: 0.0003571100225 | GM21: 0.0003419591315 | GN21: 0.0003281379104 | GO21: 0.0003154812027 | GP21: 0.0003038496568 | GQ21: 0.0002931249501 | GR21: 0.0002832060219 | GS21: 0.0002740060785 | GT21: 0.0002654501934 | GU21: 0.0002574733707 | GV21: 0.0002500189722 | GW21: 0.0002430374301 | GX21: 0.0002364851896 | GY21: 0.0002303238327 | GZ21: 0.0002245193504 | HA21: 0.0002190415336 | HB21: 0.0002138634616 | HC21: 0.0002089610704 | HD21: 0.0002043127867 | HE21: 0.0001998992165 | HF21: 0.0001957028785 | HG21: 0.0001917079759 | HH21: 0.0001879001995 | HI21: 0.0001842665583 | HJ21: 0.0001807952312 | HK21: 0.00017747544 | HM21: 10 | HN21: 0.007961912706 | HO21: 0.002969007744

Sheet CMSFloorATM
I2: CMS Floor ATM
B5: Generic Information | E5: CMS Leg Schedule & Forwards | M5: Cash Settled Swaption STRIKES | BM5: Cash Settled Swaptions WEIGHTS | DM5: Cash Settled Swaptions LOGNORMAL VOLATILITIES | FM5: Cash Settled Swaptions PRICES
B7: Strike Discretization | HO7: =COUNT(HO11:HO170) -> 11
B8: Strike Step | C8: 0.001 | HM8: CMS Floor Prices | HO8: CMS Floor
C9: % | H9: Start | I9: Delay | J9: Forward Swaps | K9: CMS Floor | HM9: Under QTpay | HO9: PV
B10: Cash Settled Level Parameters | F10: Maturity | G10: Coverages | H10: Discount Factor | I10: Discount Factor | J10: Rates | K10: Strike | M10: Strikes | BM10: Strikes | DM10: Strikes | FM10: Strikes
B11: Frequency | C11: =CMSCapATM!C11 -> 1 | E11: 0 | F11: =(Overview!F11-Overview!$C$8)/365 -> 0.005479452055 | G11: =Overview!I11 -> 0.498630137 | H11: =Overview!K11 -> 0.9991628953 | I11: =Overview!L11/Overview!K11 -> 0.9936460744 | J11: =Overview!M11 -> 0.02666450601 | K11: =J11 -> 0.02666450601 | M11: 0 | N11: =IF($BK11="","",MAX(O11-$C$8,0)) -> 0 | O11: 0 | P11: 0 | Q11: 0 | R11: 0 | S11: 0 | T11: 0 | U11: 0 | V11: 0 | W11: 0 | X11: 0 | Y11: 0 | Z11: 0 | AA11: 0 | AB11: 0 | AC11: 0 | AD11: 0 | AE11: 0 | AF11: 0 | AG11: 0 | AH11: 0 | AI11: 0 | AJ11: 0 | AK11: 0.0006645060091 | AL11: 0.001664506009 | AM11: 0.002664506009 | AN11: 0.003664506009 | AO11: 0.004664506009 | AP11: 0.005664506009 | AQ11: 0.006664506009 | AR11: 0.007664506009 | AS11: 0.008664506009 | AT11: =IF($BK11="","",MAX(AU11-$C$8,0)) -> 0.009664506009 | AU11: 0.01066450601 | AV11: 0.01166450601 | AW11: 0.01266450601 | AX11: 0.01366450601 | AY11: 0.01466450601 | AZ11: 0.01566450601 | BA11: 0.01666450601 | BB11: 0.01766450601 | BC11: 0.01866450601 | BD11: 0.01966450601 | BE11: 0.02066450601 | BF11: 0.02166450601 | BG11: 0.02266450601 | BH11: 0.02366450601 | BI11: 0.02466450601 | BJ11: 0.02566450601 | BK11: =K11 -> 0.02666450601 | BM11: 0 | BN11: =IF(K11="","",getCMSFloorReplicationWeights(K11,$C$11,$C$12,$C$13,N11:BK11)) -> 0 | BO11: 0 | BP11: 0 | BQ11: 0 | BR11: 0 | BS11: 0 | BT11: 0 | BU11: 0 | BV11: 0 | BW11: 0 | BX11: 0 | BY11: 0 | BZ11: 0 | CA11: 0 | CB11: 0 | CC11: 0 | CD11: 0 | CE11: 0 | CF11: 0 | CG11: 0 | CH11: 0 | CI11: 0 | CJ11: 0 | CK11: 0 | CL11: -0.001064339099 | CM11: -0.001069334867 | CN11: -0.001074321079 | CO11: -0.001079297601 | CP11: -0.0010842643 | CQ11: -0.001089221042 | CR11: -0.001094167696 | CS11: -0.001099104133 | CT11: -0.001104030222 | CU11: -0.001108945839 | CV11: -0.001113850855 | CW11: -0.001118745147 | CX11: -0.001123628593 | CY11: -0.001128501069 | CZ11: -0.001133362457 | DA11: -0.001138212636 | DB11: -0.00114305149 | DC11: -0.001147878902 | DD11: -0.001152694757 | DE11: -0.001157498943 | DF11: -0.001162291348 | DG11: -0.00116707186 | DH11: -0.001171840371 | DI11: -0.001176596774 | DJ11: -0.001181340961 | DK11: 0.1146514434 | DM11: 0 | DN11: =IF(N11>0,SABR_Vol_Test([0]!alpha_EUR,[0]!beta_EUR,[0]!rho_EUR,[0]!nu_EUR,$F11,Overview!$C$12,$K11,N11),0) -> 0 | DO11: =IF(O11>0,SABR_Vol_Test([0]!alpha_EUR,[0]!beta_EUR,[0]!rho_EUR,[0]!nu_EUR,$F11,Overview!$C$12,$K11,O11),0) -> 0 | DP11: =IF(P11>0,SABR_Vol_Test([0]!alpha_EUR,[0]!beta_EUR,[0]!rho_EUR,[0]!nu_EUR,$F11,Overview!$C$12,$K11,P11),0) -> 0 | DQ11: =IF(Q11>0,SABR_Vol_Test([0]!alpha_EUR,[0]!beta_EUR,[0]!rho_EUR,[0]!nu_EUR,$F11,Overview!$C$12,$K11,Q11),0) -> 0 | DR11: =IF(R11>0,SABR_Vol_Test([0]!alpha_EUR,[0]!beta_EUR,[0]!rho_EUR,[0]!nu_EUR,$F11,Overview!$C$12,$K11,R11),0) -> 0 | DS11: =IF(S11>0,SABR_Vol_Test([0]!alpha_EUR,[0]!beta_EUR,[0]!rho_EUR,[0]!nu_EUR,$F11,Overview!$C$12,$K11,S11),0) -> 0 | DT11: =IF(T11>0,SABR_Vol_Test([0]!alpha_EUR,[0]!beta_EUR,[0]!rho_EUR,[0]!nu_EUR,$F11,Overview!$C$12,$K11,T11),0) -> 0 | DU11: =IF(U11>0,SABR_Vol_Test([0]!alpha_EUR,[0]!beta_EUR,[0]!rho_EUR,[0]!nu_EUR,$F11,Overview!$C$12,$K11,U11),0) -> 0 | DV11: =IF(V11>0,SABR_Vol_Test([0]!alpha_EUR,[0]!beta_EUR,[0]!rho_EUR,[0]!nu_EUR,$F11,Overview!$C$12,$K11,V11),0) -> 0 | DW11: =IF(W11>0,SABR_Vol_Test([0]!alpha_EUR,[0]!beta_EUR,[0]!rho_EUR,[0]!nu_EUR,$F11,Overview!$C$12,$K11,W11),0) -> 0 | DX11: =IF(X11>0,SABR_Vol_Test([0]!alpha_EUR,[0]!beta_EUR,[0]!rho_EUR,[0]!nu_EUR,$F11,Overview!$C$12,$K11,X11),0) -> 0 | DY11: =IF(Y11>0,SABR_Vol_Test([0]!alpha_EUR,[0]!beta_EUR,[0]!rho_EUR,[0]!nu_EUR,$F11,Overview!$C$12,$K11,Y11),0) -> 0 | DZ11: =IF(Z11>0,SABR_Vol_Test([0]!alpha_EUR,[0]!beta_EUR,[0]!rho_EUR,[0]!nu_EUR,$F11,Overview!$C$12,$K11,Z11),0) -> 0 | EA11: =IF(AA11>0,SABR_Vol_Test([0]!alpha_EUR,[0]!beta_EUR,[0]!rho_EUR,[0]!nu_EUR,$F11,Overview!$C$12,$K11,AA11),0) -> 0 | EB11: =IF(AB11>0,SABR_Vol_Test([0]!alpha_EUR,[0]!beta_EUR,[0]!rho_EUR,[0]!nu_EUR,$F11,Overview!$C$12,$K11,AB11),0) -> 0 | EC11: =IF(AC11>0,SABR_Vol_Test([0]!alpha_EUR,[0]!beta_EUR,[0]!rho_EUR,[0]!nu_EUR,$F11,Overview!$C$12,$K11,AC11),0) -> 0 | ED11: =IF(AD11>0,SABR_Vol_Test([0]!alpha_EUR,[0]!beta_EUR,[0]!rho_EUR,[0]!nu_EUR,$F11,Overview!$C$12,$K11,AD11),0) -> 0 | EE11: =IF(AE11>0,SABR_Vol_Test([0]!alpha_EUR,[0]!beta_EUR,[0]!rho_EUR,[0]!nu_EUR,$F11,Overview!$C$12,$K11,AE11),0) -> 0 | EF11: =IF(AF11>0,SABR_Vol_Test([0]!alpha_EUR,[0]!beta_EUR,[0]!rho_EUR,[0]!nu_EUR,$F11,Overview!$C$12,$K11,AF11),0) -> 0 | EG11: =IF(AG11>0,SABR_Vol_Test([0]!alpha_EUR,[0]!beta_EUR,[0]!rho_EUR,[0]!nu_EUR,$F11,Overview!$C$12,$K11,AG11),0) -> 0 | EH11: =IF(AH11>0,SABR_Vol_Test([0]!alpha_EUR,[0]!beta_EUR,[0]!rho_EUR,[0]!nu_EUR,$F11,Overview!$C$12,$K11,AH11),0) -> 0 | EI11: =IF(AI11>0,SABR_Vol_Test(alpha_EUR,beta_EUR,rho_EUR,nu_EUR,$F11,Overview!$C$12,$K11,AI11),0) -> 0 | EJ11: =IF(AJ11>0,SABR_Vol_Test([0]!alpha_EUR,[0]!beta_EUR,[0]!rho_EUR,[0]!nu_EUR,$F11,Overview!$C$12,$K11,AJ11),0) -> 0 | EK11: =IF(AK11>0,SABR_Vol_Test([0]!alpha_EUR,[0]!beta_EUR,[0]!rho_EUR,[0]!nu_EUR,$F11,Overview!$C$12,$K11,AK11),0) -> 1.473663593 | EL11: =IF(AL11>0,SABR_Vol_Test([0]!alpha_EUR,[0]!beta_EUR,[0]!rho_EUR,[0]!nu_EUR,$F11,Overview!$C$12,$K11,AL11),0) -> 1.202718066 | EM11: =IF(AM11>0,SABR_Vol_Test([0]!alpha_EUR,[0]!beta_EUR,[0]!rho_EUR,[0]!nu_EUR,$F11,Overview!$C$12,$K11,AM11),0) -> 1.059240848 | EN11: =IF(AN11>0,SABR_Vol_Test([0]!alpha_EUR,[0]!beta_EUR,[0]!rho_EUR,[0]!nu_EUR,$F11,Overview!$C$12,$K11,AN11),0) -> 0.9598697097 | EO11: =IF(AO11>0,SABR_Vol_Test([0]!alpha_EUR,[0]!beta_EUR,[0]!rho_EUR,[0]!nu_EUR,$F11,Overview!$C$12,$K11,AO11),0) -> 0.8832299873 | EP11: =IF(AP11>0,SABR_Vol_Test([0]!alpha_EUR,[0]!beta_EUR,[0]!rho_EUR,[0]!nu_EUR,$F11,Overview!$C$12,$K11,AP11),0) -> 0.82051094 | EQ11: =IF(AQ11>0,SABR_Vol_Test([0]!alpha_EUR,[0]!beta_EUR,[0]!rho_EUR,[0]!nu_EUR,$F11,Overview!$C$12,$K11,AQ11),0) -> 0.7672055896 | ER11: =IF(AR11>0,SABR_Vol_Test([0]!alpha_EUR,[0]!beta_EUR,[0]!rho_EUR,[0]!nu_EUR,$F11,Overview!$C$12,$K11,AR11),0) -> 0.7206927277 | ES11: =IF(AS11>0,SABR_Vol_Test([0]!alpha_EUR,[0]!beta_EUR,[0]!rho_EUR,[0]!nu_EUR,$F11,Overview!$C$12,$K11,AS11),0) -> 0.6793107457 | ET11: =IF(AT11>0,SABR_Vol_Test([0]!alpha_EUR,[0]!beta_EUR,[0]!rho_EUR,[0]!nu_EUR,$F11,Overview!$C$12,$K11,AT11),0) -> 0.6419387967 | EU11: =IF(AU11>0,SABR_Vol_Test([0]!alpha_EUR,[0]!beta_EUR,[0]!rho_EUR,[0]!nu_EUR,$F11,Overview!$C$12,$K11,AU11),0) -> 0.6077843726 | EV11: =IF(AV11>0,SABR_Vol_Test([0]!alpha_EUR,[0]!beta_EUR,[0]!rho_EUR,[0]!nu_EUR,$F11,Overview!$C$12,$K11,AV11),0) -> 0.5762660703 | EW11: =IF(AW11>0,SABR_Vol_Test([0]!alpha_EUR,[0]!beta_EUR,[0]!rho_EUR,[0]!nu_EUR,$F11,Overview!$C$12,$K11,AW11),0) -> 0.5469445503 | EX11: =IF(AX11>0,SABR_Vol_Test([0]!alpha_EUR,[0]!beta_EUR,[0]!rho_EUR,[0]!nu_EUR,$F11,Overview!$C$12,$K11,AX11),0) -> 0.5194797413 | EY11: =IF(AY11>0,SABR_Vol_Test([0]!alpha_EUR,[0]!beta_EUR,[0]!rho_EUR,[0]!nu_EUR,$F11,Overview!$C$12,$K11,AY11),0) -> 0.4936032101 | EZ11: =IF(AZ11>0,SABR_Vol_Test([0]!alpha_EUR,[0]!beta_EUR,[0]!rho_EUR,[0]!nu_EUR,$F11,Overview!$C$12,$K11,AZ11),0) -> 0.4690997486 | FA11: =IF(BA11>0,SABR_Vol_Test([0]!alpha_EUR,[0]!beta_EUR,[0]!rho_EUR,[0]!nu_EUR,$F11,Overview!$C$12,$K11,BA11),0) -> 0.4457948233 | FB11: =IF(BB11>0,SABR_Vol_Test([0]!alpha_EUR,[0]!beta_EUR,[0]!rho_EUR,[0]!nu_EUR,$F11,Overview!$C$12,$K11,BB11),0) -> 0.4235459326 | FC11: =IF(BC11>0,SABR_Vol_Test([0]!alpha_EUR,[0]!beta_EUR,[0]!rho_EUR,[0]!nu_EUR,$F11,Overview!$C$12,$K11,BC11),0) -> 0.4022367097 | FD11: =IF(BD11>0,SABR_Vol_Test([0]!alpha_EUR,[0]!beta_EUR,[0]!rho_EUR,[0]!nu_EUR,$F11,Overview!$C$12,$K11,BD11),0) -> 0.3817731038 | FE11: =IF(BE11>0,SABR_Vol_Test([0]!alpha_EUR,[0]!beta_EUR,[0]!rho_EUR,[0]!nu_EUR,$F11,Overview!$C$12,$K11,BE11),0) -> 0.3620812967 | FF11: =IF(BF11>0,SABR_Vol_Test([0]!alpha_EUR,[0]!beta_EUR,[0]!rho_EUR,[0]!nu_EUR,$F11,Overview!$C$12,$K11,BF11),0) -> 0.3431072708 | FG11: =IF(BG11>0,SABR_Vol_Test([0]!alpha_EUR,[0]!beta_EUR,[0]!rho_EUR,[0]!nu_EUR,$F11,Overview!$C$12,$K11,BG11),0) -> 0.3248181811 | FH11: =IF(BH11>0,SABR_Vol_Test([0]!alpha_EUR,[0]!beta_EUR,[0]!rho_EUR,[0]!nu_EUR,$F11,Overview!$C$12,$K11,BH11),0) -> 0.3072059185 | FI11: =IF(BI11>0,SABR_Vol_Test([0]!alpha_EUR,[0]!beta_EUR,[0]!rho_EUR,[0]!nu_EUR,$F11,Overview!$C$12,$K11,BI11),0) -> 0.2902934817 | FJ11: =IF(BJ11>0,SABR_Vol_Test([0]!alpha_EUR,[0]!beta_EUR,[0]!rho_EUR,[0]!nu_EUR,$F11,Overview!$C$12,$K11,BJ11),0) -> 0.2741448521 | FK11: =IF(BK11>0,SABR_Vol_Test(alpha_EUR,beta_EUR,rho_EUR,nu_EUR,$F11,Overview!$C$12,$K11,BK11),0) -> 0.2588785812 | FM11: 0 | FN11: =IF($K11="","",IF(BN11=0,0,BSFormula($J11,$F11,DN11,N11,1))) -> 0 | FO11: =IF($K11="","",IF(BO11=0,0,BSFormula($J11,$F11,DO11,O11,1))) -> 0 | FP11: 0 | FQ11: 0 | FR11: 0 | FS11: 0 | FT11: 0 | FU11: 0 | FV11: 0 | FW11: 0 | FX11: 0 | FY11: 0 | FZ11: 0 | GA11: 0 | GB11: 0 | GC11: 0 | GD11: 0 | GE11: 0 | GF11: 0 | GG11: 0 | GH11: 0 | GI11: 0 | GJ11: 0 | GK11: 0 | GL11: 3.975575131e-218 | GM11: 1.254487275e-194 | GN11: 1.369983575e-176 | GO11: 1.63146282e-161 | GP11: 2.510909231e-148 | GQ11: 1.844379095e-136 | GR11: 1.409467898e-125 | GS11: 1.853314015e-115 | GT11: 5.908430118e-106 | GU11: 5.820407338e-97 | GV11: 2.111363504e-88 | GW11: 3.204819096e-80 | GX11: 2.231781939e-72 | GY11: 7.597523062e-65 | GZ11: 1.314606417e-57 | HA11: 1.175261394e-50 | HB11: 5.395152955e-44 | HC11: 1.233714411e-37 | HD11: 1.326186212e-31 | HE11: 6.119609002e-26 | HF11: 1.063139597e-20 | HG11: 5.801974307e-16 | HH11: 7.818361561e-12 | HI11: 1.919596941e-08 | HJ11: 6.122632863e-06 | HK11: 0.000203845744 | HM11: 0 | HN11: =IF($K11="","",SUMPRODUCT(BN11:DK11,FN11:HK11)*levelCash(J11,$C$11,$C$12)/I11) -> 0.000204031604 | HO11: =HN11*G11*H11*I11 -> 0.0001010052589
B12: SwapTenor | C12: =Swap_Tenor -> 10 | E12: 1 | F12: =(Overview!F12-Overview!$C$8)/365 -> 1.005479452 | G12: =Overview!I12 -> 0.498630137 | H12: =Overview!K12 -> 0.9862130304 | I12: =Overview!L12/Overview!K12 -> 0.993366984 | J12: =Overview!M12 -> 0.02947443375 | K12: 0.02947443375 | M12: 1 | N12: =IF($BK12="","",MAX(O12-$C$8,0)) -> 0 | O12: 0 | P12: 0 | Q12: 0 | R12: 0 | S12: 0 | T12: 0 | U12: 0 | V12: 0 | W12: 0 | X12: 0 | Y12: 0 | Z12: 0 | AA12: 0 | AB12: 0 | AC12: 0 | AD12: 0 | AE12: 0 | AF12: 0 | AG12: 0 | AH12: 0.0004744337499 | AI12: 0.00147443375 | AJ12: 0.00247443375 | AK12: 0.00347443375 | AL12: 0.00447443375 | AM12: 0.00547443375 | AN12: 0.00647443375 | AO12: 0.00747443375 | AP12: 0.00847443375 | AQ12: 0.00947443375 | AR12: 0.01047443375 | AS12: 0.01147443375 | AT12: =IF($BK12="","",MAX(AU12-$C$8,0)) -> 0.01247443375 | AU12: 0.01347443375 | AV12: 0.01447443375 | AW12: 0.01547443375 | AX12: 0.01647443375 | AY12: 0.01747443375 | AZ12: 0.01847443375 | BA12: 0.01947443375 | BB12: 0.02047443375 | BC12: 0.02147443375 | BD12: 0.02247443375 | BE12: 0.02347443375 | BF12: 0.02447443375 | BG12: 0.02547443375 | BH12: 0.02647443375 | BI12: 0.02747443375 | BJ12: 0.02847443375 | BK12: 0.02947443375 | BM12: 1 | BN12: =IF(K12="","",getCMSFloorReplicationWeights(K12,$C$11,$C$12,$C$13,N12:BK12)) -> 0 | BO12: 0 | BP12: 0 | BQ12: 0 | BR12: 0 | BS12: 0 | BT12: 0 | BU12: 0 | BV12: 0 | BW12: 0 | BX12: 0 | BY12: 0 | BZ12: 0 | CA12: 0 | CB12: 0 | CC12: 0 | CD12: 0 | CE12: 0 | CF12: 0 | CG12: 0 | CH12: 0 | CI12: -0.001058762435 | CJ12: -0.001063767103 | CK12: -0.001068762317 | CL12: -0.00107374794 | CM12: -0.001078723837 | CN12: -0.001083689873 | CO12: -0.001088645918 | CP12: -0.001093591839 | CQ12: -0.001098527508 | CR12: -0.001103452796 | CS12: -0.001108367578 | CT12: -0.001113271726 | CU12: -0.001118165117 | CV12: -0.001123047629 | CW12: -0.001127919141 | CX12: -0.001132779532 | CY12: -0.001137628684 | CZ12: -0.001142466481 | DA12: -0.001147292805 | DB12: -0.001152107544 | DC12: -0.001156910585 | DD12: -0.001161701815 | DE12: -0.001166481126 | DF12: -0.001171248407 | DG12: -0.001176003553 | DH12: -0.001180746458 | DI12: -0.001185477016 | DJ12: -0.001190195125 | DK12: 0.1163196232 | DM12: 1 | DN12: =IF(N12>0,SABR_Vol_Test([0]!alpha_EUR,[0]!beta_EUR,[0]!rho_EUR,[0]!nu_EUR,$F12,Overview!$C$12,$K12,N12),0) -> 0 | DO12: =IF(O12>0,SABR_Vol_Test([0]!alpha_EUR,[0]!beta_EUR,[0]!rho_EUR,[0]!nu_EUR,$F12,Overview!$C$12,$K12,O12),0) -> 0 | DP12: =IF(P12>0,SABR_Vol_Test([0]!alpha_EUR,[0]!beta_EUR,[0]!rho_EUR,[0]!nu_EUR,$F12,Overview!$C$12,$K12,P12),0) -> 0 | DQ12: =IF(Q12>0,SABR_Vol_Test([0]!alpha_EUR,[0]!beta_EUR,[0]!rho_EUR,[0]!nu_EUR,$F12,Overview!$C$12,$K12,Q12),0) -> 0 | DR12: =IF(R12>0,SABR_Vol_Test([0]!alpha_EUR,[0]!beta_EUR,[0]!rho_EUR,[0]!nu_EUR,$F12,Overview!$C$12,$K12,R12),0) -> 0 | DS12: =IF(S12>0,SABR_Vol_Test([0]!alpha_EUR,[0]!beta_EUR,[0]!rho_EUR,[0]!nu_EUR,$F12,Overview!$C$12,$K12,S12),0) -> 0 | DT12: =IF(T12>0,SABR_Vol_Test([0]!alpha_EUR,[0]!beta_EUR,[0]!rho_EUR,[0]!nu_EUR,$F12,Overview!$C$12,$K12,T12),0) -> 0 | DU12: =IF(U12>0,SABR_Vol_Test([0]!alpha_EUR,[0]!beta_EUR,[0]!rho_EUR,[0]!nu_EUR,$F12,Overview!$C$12,$K12,U12),0) -> 0 | DV12: =IF(V12>0,SABR_Vol_Test([0]!alpha_EUR,[0]!beta_EUR,[0]!rho_EUR,[0]!nu_EUR,$F12,Overview!$C$12,$K12,V12),0) -> 0 | DW12: =IF(W12>0,SABR_Vol_Test([0]!alpha_EUR,[0]!beta_EUR,[0]!rho_EUR,[0]!nu_EUR,$F12,Overview!$C$12,$K12,W12),0) -> 0 | DX12: =IF(X12>0,SABR_Vol_Test([0]!alpha_EUR,[0]!beta_EUR,[0]!rho_EUR,[0]!nu_EUR,$F12,Overview!$C$12,$K12,X12),0) -> 0 | DY12: =IF(Y12>0,SABR_Vol_Test([0]!alpha_EUR,[0]!beta_EUR,[0]!rho_EUR,[0]!nu_EUR,$F12,Overview!$C$12,$K12,Y12),0) -> 0 | DZ12: =IF(Z12>0,SABR_Vol_Test([0]!alpha_EUR,[0]!beta_EUR,[0]!rho_EUR,[0]!nu_EUR,$F12,Overview!$C$12,$K12,Z12),0) -> 0 | EA12: =IF(AA12>0,SABR_Vol_Test([0]!alpha_EUR,[0]!beta_EUR,[0]!rho_EUR,[0]!nu_EUR,$F12,Overview!$C$12,$K12,AA12),0) -> 0 | EB12: =IF(AB12>0,SABR_Vol_Test([0]!alpha_EUR,[0]!beta_EUR,[0]!rho_EUR,[0]!nu_EUR,$F12,Overview!$C$12,$K12,AB12),0) -> 0 | EC12: =IF(AC12>0,SABR_Vol_Test([0]!alpha_EUR,[0]!beta_EUR,[0]!rho_EUR,[0]!nu_EUR,$F12,Overview!$C$12,$K12,AC12),0) -> 0 | ED12: =IF(AD12>0,SABR_Vol_Test([0]!alpha_EUR,[0]!beta_EUR,[0]!rho_EUR,[0]!nu_EUR,$F12,Overview!$C$12,$K12,AD12),0) -> 0 | EE12: =IF(AE12>0,SABR_Vol_Test([0]!alpha_EUR,[0]!beta_EUR,[0]!rho_EUR,[0]!nu_EUR,$F12,Overview!$C$12,$K12,AE12),0) -> 0 | EF12: =IF(AF12>0,SABR_Vol_Test([0]!alpha_EUR,[0]!beta_EUR,[0]!rho_EUR,[0]!nu_EUR,$F12,Overview!$C$12,$K12,AF12),0) -> 0 | EG12: =IF(AG12>0,SABR_Vol_Test([0]!alpha_EUR,[0]!beta_EUR,[0]!rho_EUR,[0]!nu_EUR,$F12,Overview!$C$12,$K12,AG12),0) -> 0 | EH12: =IF(AH12>0,SABR_Vol_Test([0]!alpha_EUR,[0]!beta_EUR,[0]!rho_EUR,[0]!nu_EUR,$F12,Overview!$C$12,$K12,AH12),0) -> 1.216952298 | EI12: =IF(AI12>0,SABR_Vol_Test([0]!alpha_EUR,[0]!beta_EUR,[0]!rho_EUR,[0]!nu_EUR,$F12,Overview!$C$12,$K12,AI12),0) -> 0.976393252 | EJ12: =IF(AJ12>0,SABR_Vol_Test([0]!alpha_EUR,[0]!beta_EUR,[0]!rho_EUR,[0]!nu_EUR,$F12,Overview!$C$12,$K12,AJ12),0) -> 0.8620858951 | EK12: =IF(AK12>0,SABR_Vol_Test([0]!alpha_EUR,[0]!beta_EUR,[0]!rho_EUR,[0]!nu_EUR,$F12,Overview!$C$12,$K12,AK12),0) -> 0.7853934467 | EL12: =IF(AL12>0,SABR_Vol_Test([0]!alpha_EUR,[0]!beta_EUR,[0]!rho_EUR,[0]!nu_EUR,$F12,Overview!$C$12,$K12,AL12),0) -> 0.7272140763 | EM12: =IF(AM12>0,SABR_Vol_Test([0]!alpha_EUR,[0]!beta_EUR,[0]!rho_EUR,[0]!nu_EUR,$F12,Overview!$C$12,$K12,AM12),0) -> 0.6801173282 | EN12: =IF(AN12>0,SABR_Vol_Test([0]!alpha_EUR,[0]!beta_EUR,[0]!rho_EUR,[0]!nu_EUR,$F12,Overview!$C$12,$K12,AN12),0) -> 0.6404185266 | EO12: =IF(AO12>0,SABR_Vol_Test([0]!alpha_EUR,[0]!beta_EUR,[0]!rho_EUR,[0]!nu_EUR,$F12,Overview!$C$12,$K12,AO12),0) -> 0.6060169961 | EP12: =IF(AP12>0,SABR_Vol_Test([0]!alpha_EUR,[0]!beta_EUR,[0]!rho_EUR,[0]!nu_EUR,$F12,Overview!$C$12,$K12,AP12),0) -> 0.5756000081 | EQ12: =IF(AQ12>0,SABR_Vol_Test([0]!alpha_EUR,[0]!beta_EUR,[0]!rho_EUR,[0]!nu_EUR,$F12,Overview!$C$12,$K12,AQ12),0) -> 0.5482919306 | ER12: =IF(AR12>0,SABR_Vol_Test([0]!alpha_EUR,[0]!beta_EUR,[0]!rho_EUR,[0]!nu_EUR,$F12,Overview!$C$12,$K12,AR12),0) -> 0.5234795182 | ES12: =IF(AS12>0,SABR_Vol_Test([0]!alpha_EUR,[0]!beta_EUR,[0]!rho_EUR,[0]!nu_EUR,$F12,Overview!$C$12,$K12,AS12),0) -> 0.5007168133 | ET12: =IF(AT12>0,SABR_Vol_Test([0]!alpha_EUR,[0]!beta_EUR,[0]!rho_EUR,[0]!nu_EUR,$F12,Overview!$C$12,$K12,AT12),0) -> 0.4796697396 | EU12: =IF(AU12>0,SABR_Vol_Test([0]!alpha_EUR,[0]!beta_EUR,[0]!rho_EUR,[0]!nu_EUR,$F12,Overview!$C$12,$K12,AU12),0) -> 0.4600820476 | EV12: =IF(AV12>0,SABR_Vol_Test([0]!alpha_EUR,[0]!beta_EUR,[0]!rho_EUR,[0]!nu_EUR,$F12,Overview!$C$12,$K12,AV12),0) -> 0.4417534664 | EW12: =IF(AW12>0,SABR_Vol_Test([0]!alpha_EUR,[0]!beta_EUR,[0]!rho_EUR,[0]!nu_EUR,$F12,Overview!$C$12,$K12,AW12),0) -> 0.4245251928 | EX12: =IF(AX12>0,SABR_Vol_Test([0]!alpha_EUR,[0]!beta_EUR,[0]!rho_EUR,[0]!nu_EUR,$F12,Overview!$C$12,$K12,AX12),0) -> 0.4082699861 | EY12: =IF(AY12>0,SABR_Vol_Test([0]!alpha_EUR,[0]!beta_EUR,[0]!rho_EUR,[0]!nu_EUR,$F12,Overview!$C$12,$K12,AY12),0) -> 0.3928852626 | EZ12: =IF(AZ12>0,SABR_Vol_Test([0]!alpha_EUR,[0]!beta_EUR,[0]!rho_EUR,[0]!nu_EUR,$F12,Overview!$C$12,$K12,AZ12),0) -> 0.3782882125 | FA12: =IF(BA12>0,SABR_Vol_Test([0]!alpha_EUR,[0]!beta_EUR,[0]!rho_EUR,[0]!nu_EUR,$F12,Overview!$C$12,$K12,BA12),0) -> 0.3644123266 | FB12: =IF(BB12>0,SABR_Vol_Test([0]!alpha_EUR,[0]!beta_EUR,[0]!rho_EUR,[0]!nu_EUR,$F12,Overview!$C$12,$K12,BB12),0) -> 0.3512049348 | FC12: =IF(BC12>0,SABR_Vol_Test([0]!alpha_EUR,[0]!beta_EUR,[0]!rho_EUR,[0]!nu_EUR,$F12,Overview!$C$12,$K12,BC12),0) -> 0.3386254931 | FD12: =IF(BD12>0,SABR_Vol_Test([0]!alpha_EUR,[0]!beta_EUR,[0]!rho_EUR,[0]!nu_EUR,$F12,Overview!$C$12,$K12,BD12),0) -> 0.3266444354 | FE12: =IF(BE12>0,SABR_Vol_Test([0]!alpha_EUR,[0]!beta_EUR,[0]!rho_EUR,[0]!nu_EUR,$F12,Overview!$C$12,$K12,BE12),0) -> 0.3152424539 | FF12: =IF(BF12>0,SABR_Vol_Test([0]!alpha_EUR,[0]!beta_EUR,[0]!rho_EUR,[0]!nu_EUR,$F12,Overview!$C$12,$K12,BF12),0) -> 0.3044100907 | FG12: =IF(BG12>0,SABR_Vol_Test([0]!alpha_EUR,[0]!beta_EUR,[0]!rho_EUR,[0]!nu_EUR,$F12,Overview!$C$12,$K12,BG12),0) -> 0.2941475188 | FH12: =IF(BH12>0,SABR_Vol_Test([0]!alpha_EUR,[0]!beta_EUR,[0]!rho_EUR,[0]!nu_EUR,$F12,Overview!$C$12,$K12,BH12),0) -> 0.2844643661 | FI12: =IF(BI12>0,SABR_Vol_Test([0]!alpha_EUR,[0]!beta_EUR,[0]!rho_EUR,[0]!nu_EUR,$F12,Overview!$C$12,$K12,BI12),0) -> 0.2753793836 | FJ12: =IF(BJ12>0,SABR_Vol_Test([0]!alpha_EUR,[0]!beta_EUR,[0]!rho_EUR,[0]!nu_EUR,$F12,Overview!$C$12,$K12,BJ12),0) -> 0.2669197005 | FK12: =IF(BK12>0,SABR_Vol_Test([0]!alpha_EUR,[0]!beta_EUR,[0]!rho_EUR,[0]!nu_EUR,$F12,Overview!$C$12,$K12,BK12),0) -> 0.259119347 | FM12: 1 | FN12: =IF($K12="","",IF(BN12=0,0,BSFormula($J12,$F12,DN12,N12,1))) -> 0 | FO12: 0 | FP12: 0 | FQ12: 0 | FR12: 0 | FS12: 0 | FT12: 0 | FU12: 0 | FV12: 0 | FW12: 0 | FX12: 0 | FY12: 0 | FZ12: 0 | GA12: 0 | GB12: 0 | GC12: 0 | GD12: 0 | GE12: 0 | GF12: 0 | GG12: 0 | GH12: 0 | GI12: 1.799946936e-06 | GJ12: 4.147525574e-06 | GK12: 7.534801408e-06 | GL12: 1.215266105e-05 | GM12: 1.823550248e-05 | GN12: 2.60630191e-05 | GO12: 3.596572504e-05 | GP12: 4.83325603e-05 | GQ12: 6.362025534e-05 | GR12: 8.236449096e-05 | GS12: 0.0001051930211 | GT12: 0.0001328409881 | GU12: 0.0001661686878 | GV12: 0.0002061820437 | GW12: 0.0002540560147 | GX12: 0.0003111610747 | GY12: 0.0003790927392 | GZ12: 0.0004597038224 | HA12: 0.0005551386471 | HB12: 0.0006678677021 | HC12: 0.0008007201669 | HD12: 0.0009569101735 | HE12: 0.001140050571 | HF12: 0.001354145269 | HG12: 0.001603548156 | HH12: 0.001892873664 | HI12: 0.002226842626 | HJ12: 0.00261004925 | HK12: 0.003046643951 | HM12: 1 | HN12: 0.002889180197 | HO12: 0.001411346371
E13: 2 | F13: =(Overview!F13-Overview!$C$8)/365 -> 2.005479452 | G13: =Overview!I13 -> 0.498630137 | H13: =Overview!K13 -> 0.9719241295 | I13: =Overview!L13/Overview!K13 -> 0.9924727079 | J13: =Overview!M13 -> 0.03204969618 | K13: 0.03204969618 | M13: 2 | N13: =IF($BK13="","",MAX(O13-$C$8,0)) -> 0 | O13: 0 | P13: 0 | Q13: 0 | R13: 0 | S13: 0 | T13: 0 | U13: 0 | V13: 0 | W13: 0 | X13: 0 | Y13: 0 | Z13: 0 | AA13: 0 | AB13: 0 | AC13: 0 | AD13: 0 | AE13: 4.969617813e-05 | AF13: 0.001049696178 | AG13: 0.002049696178 | AH13: 0.003049696178 | AI13: 0.004049696178 | AJ13: 0.005049696178 | AK13: 0.006049696178 | AL13: 0.007049696178 | AM13: 0.008049696178 | AN13: 0.009049696178 | AO13: 0.01004969618 | AP13: 0.01104969618 | AQ13: 0.01204969618 | AR13: 0.01304969618 | AS13: 0.01404969618 | AT13: =IF($BK13="","",MAX(AU13-$C$8,0)) -> 0.01504969618 | AU13: 0.01604969618 | AV13: 0.01704969618 | AW13: 0.01804969618 | AX13: 0.01904969618 | AY13: 0.02004969618 | AZ13: 0.02104969618 | BA13: 0.02204969618 | BB13: 0.02304969618 | BC13: 0.02404969618 | BD13: 0.02504969618 | BE13: 0.02604969618 | BF13: 0.02704969618 | BG13: 0.02804969618 | BH13: 0.02904969618 | BI13: 0.03004969618 | BJ13: 0.03104969618 | BK13: 0.03204969618 | BM13: 2 | BN13: =IF(K13="","",getCMSFloorReplicationWeights(K13,$C$11,$C$12,$C$13,N13:BK13)) -> 0 | BO13: 0 | BP13: 0 | BQ13: 0 | BR13: 0 | BS13: 0 | BT13: 0 | BU13: 0 | BV13: 0 | BW13: 0 | BX13: 0 | BY13: 0 | BZ13: 0 | CA13: 0 | CB13: 0 | CC13: 0 | CD13: 0 | CE13: 0 | CF13: -0.001052391492 | CG13: -0.00105740661 | CH13: -0.001062412404 | CI13: -0.001067408731 | CJ13: -0.001072395456 | CK13: -0.001077372444 | CL13: -0.00108233956 | CM13: -0.001087296674 | CN13: -0.001092243654 | CO13: -0.001097180372 | CP13: -0.001102106698 | CQ13: -0.001107022508 | CR13: -0.001111927674 | CS13: -0.001116822075 | CT13: -0.001121705586 | CU13: -0.001126578088 | CV13: -0.001131439461 | CW13: -0.001136289585 | CX13: -0.001141128346 | CY13: -0.001145955626 | CZ13: -0.001150771313 | DA13: -0.001155575293 | DB13: -0.001160367455 | DC13: -0.001165147689 | DD13: -0.001169915888 | DE13: -0.001174671944 | DF13: -0.001179415751 | DG13: -0.001184147205 | DH13: -0.001188866205 | DI13: -0.001193572647 | DJ13: -0.001198266432 | DK13: 0.1178593737 | DM13: 2 | DN13: =IF(N13>0,SABR_Vol_Test([0]!alpha_EUR,[0]!beta_EUR,[0]!rho_EUR,[0]!nu_EUR,$F13,Overview!$C$12,$K13,N13),0) -> 0 | DO13: =IF(O13>0,SABR_Vol_Test([0]!alpha_EUR,[0]!beta_EUR,[0]!rho_EUR,[0]!nu_EUR,$F13,Overview!$C$12,$K13,O13),0) -> 0 | DP13: =IF(P13>0,SABR_Vol_Test([0]!alpha_EUR,[0]!beta_EUR,[0]!rho_EUR,[0]!nu_EUR,$F13,Overview!$C$12,$K13,P13),0) -> 0 | DQ13: =IF(Q13>0,SABR_Vol_Test([0]!alpha_EUR,[0]!beta_EUR,[0]!rho_EUR,[0]!nu_EUR,$F13,Overview!$C$12,$K13,Q13),0) -> 0 | DR13: =IF(R13>0,SABR_Vol_Test([0]!alpha_EUR,[0]!beta_EUR,[0]!rho_EUR,[0]!nu_EUR,$F13,Overview!$C$12,$K13,R13),0) -> 0 | DS13: =IF(S13>0,SABR_Vol_Test([0]!alpha_EUR,[0]!beta_EUR,[0]!rho_EUR,[0]!nu_EUR,$F13,Overview!$C$12,$K13,S13),0) -> 0 | DT13: =IF(T13>0,SABR_Vol_Test([0]!alpha_EUR,[0]!beta_EUR,[0]!rho_EUR,[0]!nu_EUR,$F13,Overview!$C$12,$K13,T13),0) -> 0 | DU13: =IF(U13>0,SABR_Vol_Test([0]!alpha_EUR,[0]!beta_EUR,[0]!rho_EUR,[0]!nu_EUR,$F13,Overview!$C$12,$K13,U13),0) -> 0 | DV13: =IF(V13>0,SABR_Vol_Test([0]!alpha_EUR,[0]!beta_EUR,[0]!rho_EUR,[0]!nu_EUR,$F13,Overview!$C$12,$K13,V13),0) -> 0 | DW13: =IF(W13>0,SABR_Vol_Test([0]!alpha_EUR,[0]!beta_EUR,[0]!rho_EUR,[0]!nu_EUR,$F13,Overview!$C$12,$K13,W13),0) -> 0 | DX13: =IF(X13>0,SABR_Vol_Test([0]!alpha_EUR,[0]!beta_EUR,[0]!rho_EUR,[0]!nu_EUR,$F13,Overview!$C$12,$K13,X13),0) -> 0 | DY13: =IF(Y13>0,SABR_Vol_Test([0]!alpha_EUR,[0]!beta_EUR,[0]!rho_EUR,[0]!nu_EUR,$F13,Overview!$C$12,$K13,Y13),0) -> 0 | DZ13: =IF(Z13>0,SABR_Vol_Test([0]!alpha_EUR,[0]!beta_EUR,[0]!rho_EUR,[0]!nu_EUR,$F13,Overview!$C$12,$K13,Z13),0) -> 0 | EA13: =IF(AA13>0,SABR_Vol_Test([0]!alpha_EUR,[0]!beta_EUR,[0]!rho_EUR,[0]!nu_EUR,$F13,Overview!$C$12,$K13,AA13),0) -> 0 | EB13: =IF(AB13>0,SABR_Vol_Test([0]!alpha_EUR,[0]!beta_EUR,[0]!rho_EUR,[0]!nu_EUR,$F13,Overview!$C$12,$K13,AB13),0) -> 0 | EC13: =IF(AC13>0,SABR_Vol_Test([0]!alpha_EUR,[0]!beta_EUR,[0]!rho_EUR,[0]!nu_EUR,$F13,Overview!$C$12,$K13,AC13),0) -> 0 | ED13: =IF(AD13>0,SABR_Vol_Test([0]!alpha_EUR,[0]!beta_EUR,[0]!rho_EUR,[0]!nu_EUR,$F13,Overview!$C$12,$K13,AD13),0) -> 0 | EE13: =IF(AE13>0,SABR_Vol_Test([0]!alpha_EUR,[0]!beta_EUR,[0]!rho_EUR,[0]!nu_EUR,$F13,Overview!$C$12,$K13,AE13),0) -> 1.491162648 | EF13: =IF(AF13>0,SABR_Vol_Test([0]!alpha_EUR,[0]!beta_EUR,[0]!rho_EUR,[0]!nu_EUR,$F13,Overview!$C$12,$K13,AF13),0) -> 0.9523324468 | EG13: =IF(AG13>0,SABR_Vol_Test([0]!alpha_EUR,[0]!beta_EUR,[0]!rho_EUR,[0]!nu_EUR,$F13,Overview!$C$12,$K13,AG13),0) -> 0.8221120522 | EH13: =IF(AH13>0,SABR_Vol_Test([0]!alpha_EUR,[0]!beta_EUR,[0]!rho_EUR,[0]!nu_EUR,$F13,Overview!$C$12,$K13,AH13),0) -> 0.7424939489 | EI13: =IF(AI13>0,SABR_Vol_Test([0]!alpha_EUR,[0]!beta_EUR,[0]!rho_EUR,[0]!nu_EUR,$F13,Overview!$C$12,$K13,AI13),0) -> 0.6844916857 | EJ13: =IF(AJ13>0,SABR_Vol_Test([0]!alpha_EUR,[0]!beta_EUR,[0]!rho_EUR,[0]!nu_EUR,$F13,Overview!$C$12,$K13,AJ13),0) -> 0.638601508 | EK13: =IF(AK13>0,SABR_Vol_Test([0]!alpha_EUR,[0]!beta_EUR,[0]!rho_EUR,[0]!nu_EUR,$F13,Overview!$C$12,$K13,AK13),0) -> 0.6004872206 | EL13: =IF(AL13>0,SABR_Vol_Test([0]!alpha_EUR,[0]!beta_EUR,[0]!rho_EUR,[0]!nu_EUR,$F13,Overview!$C$12,$K13,AL13),0) -> 0.5677983337 | EM13: =IF(AM13>0,SABR_Vol_Test([0]!alpha_EUR,[0]!beta_EUR,[0]!rho_EUR,[0]!nu_EUR,$F13,Overview!$C$12,$K13,AM13),0) -> 0.5391151269 | EN13: =IF(AN13>0,SABR_Vol_Test([0]!alpha_EUR,[0]!beta_EUR,[0]!rho_EUR,[0]!nu_EUR,$F13,Overview!$C$12,$K13,AN13),0) -> 0.5135134451 | EO13: =IF(AO13>0,SABR_Vol_Test([0]!alpha_EUR,[0]!beta_EUR,[0]!rho_EUR,[0]!nu_EUR,$F13,Overview!$C$12,$K13,AO13),0) -> 0.4903577338 | EP13: =IF(AP13>0,SABR_Vol_Test([0]!alpha_EUR,[0]!beta_EUR,[0]!rho_EUR,[0]!nu_EUR,$F13,Overview!$C$12,$K13,AP13),0) -> 0.469192149 | EQ13: =IF(AQ13>0,SABR_Vol_Test([0]!alpha_EUR,[0]!beta_EUR,[0]!rho_EUR,[0]!nu_EUR,$F13,Overview!$C$12,$K13,AQ13),0) -> 0.4496787487 | ER13: =IF(AR13>0,SABR_Vol_Test([0]!alpha_EUR,[0]!beta_EUR,[0]!rho_EUR,[0]!nu_EUR,$F13,Overview!$C$12,$K13,AR13),0) -> 0.4315602691 | ES13: =IF(AS13>0,SABR_Vol_Test([0]!alpha_EUR,[0]!beta_EUR,[0]!rho_EUR,[0]!nu_EUR,$F13,Overview!$C$12,$K13,AS13),0) -> 0.4146366189 | ET13: =IF(AT13>0,SABR_Vol_Test([0]!alpha_EUR,[0]!beta_EUR,[0]!rho_EUR,[0]!nu_EUR,$F13,Overview!$C$12,$K13,AT13),0) -> 0.3987494554 | EU13: =IF(AU13>0,SABR_Vol_Test([0]!alpha_EUR,[0]!beta_EUR,[0]!rho_EUR,[0]!nu_EUR,$F13,Overview!$C$12,$K13,AU13),0) -> 0.3837717381 | EV13: =IF(AV13>0,SABR_Vol_Test([0]!alpha_EUR,[0]!beta_EUR,[0]!rho_EUR,[0]!nu_EUR,$F13,Overview!$C$12,$K13,AV13),0) -> 0.369600473 | EW13: =IF(AW13>0,SABR_Vol_Test([0]!alpha_EUR,[0]!beta_EUR,[0]!rho_EUR,[0]!nu_EUR,$F13,Overview!$C$12,$K13,AW13),0) -> 0.3561515703 | EX13: =IF(AX13>0,SABR_Vol_Test([0]!alpha_EUR,[0]!beta_EUR,[0]!rho_EUR,[0]!nu_EUR,$F13,Overview!$C$12,$K13,AX13),0) -> 0.3433561492 | EY13: =IF(AY13>0,SABR_Vol_Test([0]!alpha_EUR,[0]!beta_EUR,[0]!rho_EUR,[0]!nu_EUR,$F13,Overview!$C$12,$K13,AY13),0) -> 0.3311578622 | EZ13: =IF(AZ13>0,SABR_Vol_Test([0]!alpha_EUR,[0]!beta_EUR,[0]!rho_EUR,[0]!nu_EUR,$F13,Overview!$C$12,$K13,AZ13),0) -> 0.3195109589 | FA13: =IF(BA13>0,SABR_Vol_Test([0]!alpha_EUR,[0]!beta_EUR,[0]!rho_EUR,[0]!nu_EUR,$F13,Overview!$C$12,$K13,BA13),0) -> 0.3083789056 | FB13: =IF(BB13>0,SABR_Vol_Test([0]!alpha_EUR,[0]!beta_EUR,[0]!rho_EUR,[0]!nu_EUR,$F13,Overview!$C$12,$K13,BB13),0) -> 0.2977334299 | FC13: =IF(BC13>0,SABR_Vol_Test([0]!alpha_EUR,[0]!beta_EUR,[0]!rho_EUR,[0]!nu_EUR,$F13,Overview!$C$12,$K13,BC13),0) -> 0.2875539034 | FD13: =IF(BD13>0,SABR_Vol_Test([0]!alpha_EUR,[0]!beta_EUR,[0]!rho_EUR,[0]!nu_EUR,$F13,Overview!$C$12,$K13,BD13),0) -> 0.2778269917 | FE13: =IF(BE13>0,SABR_Vol_Test([0]!alpha_EUR,[0]!beta_EUR,[0]!rho_EUR,[0]!nu_EUR,$F13,Overview!$C$12,$K13,BE13),0) -> 0.2685465125 | FF13: =IF(BF13>0,SABR_Vol_Test([0]!alpha_EUR,[0]!beta_EUR,[0]!rho_EUR,[0]!nu_EUR,$F13,Overview!$C$12,$K13,BF13),0) -> 0.259713436 | FG13: =IF(BG13>0,SABR_Vol_Test([0]!alpha_EUR,[0]!beta_EUR,[0]!rho_EUR,[0]!nu_EUR,$F13,Overview!$C$12,$K13,BG13),0) -> 0.2513359442 | FH13: =IF(BH13>0,SABR_Vol_Test([0]!alpha_EUR,[0]!beta_EUR,[0]!rho_EUR,[0]!nu_EUR,$F13,Overview!$C$12,$K13,BH13),0) -> 0.2434294296 | FI13: =IF(BI13>0,SABR_Vol_Test([0]!alpha_EUR,[0]!beta_EUR,[0]!rho_EUR,[0]!nu_EUR,$F13,Overview!$C$12,$K13,BI13),0) -> 0.2360162658 | FJ13: =IF(BJ13>0,SABR_Vol_Test([0]!alpha_EUR,[0]!beta_EUR,[0]!rho_EUR,[0]!nu_EUR,$F13,Overview!$C$12,$K13,BJ13),0) -> 0.2291251248 | FK13: =IF(BK13>0,SABR_Vol_Test([0]!alpha_EUR,[0]!beta_EUR,[0]!rho_EUR,[0]!nu_EUR,$F13,Overview!$C$12,$K13,BK13),0) -> 0.2227895762 | FM13: 2 | FN13: =IF($K13="","",IF(BN13=0,0,BSFormula($J13,$F13,DN13,N13,1))) -> 0 | FO13: 0 | FP13: 0 | FQ13: 0 | FR13: 0 | FS13: 0 | FT13: 0 | FU13: 0 | FV13: 0 | FW13: 0 | FX13: 0 | FY13: 0 | FZ13: 0 | GA13: 0 | GB13: 0 | GC13: 0 | GD13: 0 | GE13: 0 | GF13: 1.163431468e-05 | GG13: 2.506013514e-05 | GH13: 4.086111338e-05 | GI13: 5.916649461e-05 | GJ13: 8.01548196e-05 | GK13: 0.000104044205 | GL13: 0.000131089513 | GM13: 0.0001615827919 | GN13: 0.0001958555696 | GO13: 0.0002342824386 | GP13: 0.0002772857255 | GQ13: 0.0003253411951 | GR13: 0.0003789848241 | GS13: 0.0004388207315 | GT13: 0.0005055303865 | GU13: 0.0005798832356 | GV13: 0.0006627489032 | GW13: 0.0007551111162 | GX13: 0.000858083474 | GY13: 0.0009729271249 | GZ13: 0.001101070284 | HA13: 0.001244129318 | HB13: 0.001403930772 | HC13: 0.001582533165 | HD13: 0.001782246557 | HE13: 0.002005646681 | HF13: 0.002255578794 | HG13: 0.002535144305 | HH13: 0.002847660887 | HI13: 0.003196584771 | HJ13: 0.003585383439 | HK13: 0.004017349957 | HM13: 2 | HN13: 0.003726110045 | HO13: 0.00179219449
E14: 3 | F14: =(Overview!F14-Overview!$C$8)/365 -> 3.005479452 | G14: =Overview!I14 -> 0.5 | H14: =Overview!K14 -> 0.95629154 | I14: =Overview!L14/Overview!K14 -> 0.9893839493 | J14: =Overview!M14 -> 0.03415401958 | K14: 0.03415401958 | M14: 3 | N14: =IF($BK14="","",MAX(O14-$C$8,0)) -> 0 | O14: 0 | P14: 0 | Q14: 0 | R14: 0 | S14: 0 | T14: 0 | U14: 0 | V14: 0 | W14: 0 | X14: 0 | Y14: 0 | Z14: 0 | AA14: 0 | AB14: 0 | AC14: 0.0001540195815 | AD14: 0.001154019581 | AE14: 0.002154019581 | AF14: 0.003154019581 | AG14: 0.004154019581 | AH14: 0.005154019581 | AI14: 0.006154019581 | AJ14: 0.007154019581 | AK14: 0.008154019581 | AL14: 0.009154019581 | AM14: 0.01015401958 | AN14: 0.01115401958 | AO14: 0.01215401958 | AP14: 0.01315401958 | AQ14: 0.01415401958 | AR14: 0.01515401958 | AS14: 0.01615401958 | AT14: =IF($BK14="","",MAX(AU14-$C$8,0)) -> 0.01715401958 | AU14: 0.01815401958 | AV14: 0.01915401958 | AW14: 0.02015401958 | AX14: 0.02115401958 | AY14: 0.02215401958 | AZ14: 0.02315401958 | BA14: 0.02415401958 | BB14: 0.02515401958 | BC14: 0.02615401958 | BD14: 0.02715401958 | BE14: 0.02815401958 | BF14: 0.02915401958 | BG14: 0.03015401958 | BH14: 0.03115401958 | BI14: 0.03215401958 | BJ14: 0.03315401958 | BK14: 0.03415401958 | BM14: 3 | BN14: =IF(K14="","",getCMSFloorReplicationWeights(K14,$C$11,$C$12,$C$13,N14:BK14)) -> 0 | BO14: 0 | BP14: 0 | BQ14: 0 | BR14: 0 | BS14: 0 | BT14: 0 | BU14: 0 | BV14: 0 | BW14: 0 | BX14: 0 | BY14: 0 | BZ14: 0 | CA14: 0 | CB14: 0 | CC14: 0 | CD14: -0.00104944903 | CE14: -0.001054468489 | CF14: -0.001059478658 | CG14: -0.0010644794 | CH14: -0.00106947058 | CI14: -0.001074452063 | CJ14: -0.001079423713 | CK14: -0.001084385401 | CL14: -0.001089336994 | CM14: -0.001094278362 | CN14: -0.001099209377 | CO14: -0.001104129913 | CP14: -0.001109039844 | CQ14: -0.001113939046 | CR14: -0.001118827395 | CS14: -0.001123704771 | CT14: -0.001128571054 | CU14: -0.001133426125 | CV14: -0.001138269866 | CW14: -0.001143102163 | CX14: -0.0011479229 | CY14: -0.001152731965 | CZ14: -0.001157529247 | DA14: -0.001162314634 | DB14: -0.001167088019 | DC14: -0.001171849294 | DD14: -0.001176598352 | DE14: -0.00118133509 | DF14: -0.001186059405 | DG14: -0.001190771194 | DH14: -0.001195470358 | DI14: -0.001200156797 | DJ14: -0.001204830415 | DK14: 0.1191252398 | DM14: 3 | DN14: =IF(N14>0,SABR_Vol_Test([0]!alpha_EUR,[0]!beta_EUR,[0]!rho_EUR,[0]!nu_EUR,$F14,Overview!$C$12,$K14,N14),0) -> 0 | DO14: =IF(O14>0,SABR_Vol_Test([0]!alpha_EUR,[0]!beta_EUR,[0]!rho_EUR,[0]!nu_EUR,$F14,Overview!$C$12,$K14,O14),0) -> 0 | DP14: =IF(P14>0,SABR_Vol_Test([0]!alpha_EUR,[0]!beta_EUR,[0]!rho_EUR,[0]!nu_EUR,$F14,Overview!$C$12,$K14,P14),0) -> 0 | DQ14: =IF(Q14>0,SABR_Vol_Test([0]!alpha_EUR,[0]!beta_EUR,[0]!rho_EUR,[0]!nu_EUR,$F14,Overview!$C$12,$K14,Q14),0) -> 0 | DR14: =IF(R14>0,SABR_Vol_Test([0]!alpha_EUR,[0]!beta_EUR,[0]!rho_EUR,[0]!nu_EUR,$F14,Overview!$C$12,$K14,R14),0) -> 0 | DS14: =IF(S14>0,SABR_Vol_Test([0]!alpha_EUR,[0]!beta_EUR,[0]!rho_EUR,[0]!nu_EUR,$F14,Overview!$C$12,$K14,S14),0) -> 0 | DT14: =IF(T14>0,SABR_Vol_Test([0]!alpha_EUR,[0]!beta_EUR,[0]!rho_EUR,[0]!nu_EUR,$F14,Overview!$C$12,$K14,T14),0) -> 0 | DU14: =IF(U14>0,SABR_Vol_Test([0]!alpha_EUR,[0]!beta_EUR,[0]!rho_EUR,[0]!nu_EUR,$F14,Overview!$C$12,$K14,U14),0) -> 0 | DV14: =IF(V14>0,SABR_Vol_Test([0]!alpha_EUR,[0]!beta_EUR,[0]!rho_EUR,[0]!nu_EUR,$F14,Overview!$C$12,$K14,V14),0) -> 0 | DW14: =IF(W14>0,SABR_Vol_Test([0]!alpha_EUR,[0]!beta_EUR,[0]!rho_EUR,[0]!nu_EUR,$F14,Overview!$C$12,$K14,W14),0) -> 0 | DX14: =IF(X14>0,SABR_Vol_Test([0]!alpha_EUR,[0]!beta_EUR,[0]!rho_EUR,[0]!nu_EUR,$F14,Overview!$C$12,$K14,X14),0) -> 0 | DY14: =IF(Y14>0,SABR_Vol_Test([0]!alpha_EUR,[0]!beta_EUR,[0]!rho_EUR,[0]!nu_EUR,$F14,Overview!$C$12,$K14,Y14),0) -> 0 | DZ14: =IF(Z14>0,SABR_Vol_Test([0]!alpha_EUR,[0]!beta_EUR,[0]!rho_EUR,[0]!nu_EUR,$F14,Overview!$C$12,$K14,Z14),0) -> 0 | EA14: =IF(AA14>0,SABR_Vol_Test([0]!alpha_EUR,[0]!beta_EUR,[0]!rho_EUR,[0]!nu_EUR,$F14,Overview!$C$12,$K14,AA14),0) -> 0 | EB14: =IF(AB14>0,SABR_Vol_Test([0]!alpha_EUR,[0]!beta_EUR,[0]!rho_EUR,[0]!nu_EUR,$F14,Overview!$C$12,$K14,AB14),0) -> 0 | EC14: =IF(AC14>0,SABR_Vol_Test([0]!alpha_EUR,[0]!beta_EUR,[0]!rho_EUR,[0]!nu_EUR,$F14,Overview!$C$12,$K14,AC14),0) -> 1.20803021 | ED14: =IF(AD14>0,SABR_Vol_Test([0]!alpha_EUR,[0]!beta_EUR,[0]!rho_EUR,[0]!nu_EUR,$F14,Overview!$C$12,$K14,AD14),0) -> 0.8725484369 | EE14: =IF(AE14>0,SABR_Vol_Test([0]!alpha_EUR,[0]!beta_EUR,[0]!rho_EUR,[0]!nu_EUR,$F14,Overview!$C$12,$K14,AE14),0) -> 0.7608150388 | EF14: =IF(AF14>0,SABR_Vol_Test([0]!alpha_EUR,[0]!beta_EUR,[0]!rho_EUR,[0]!nu_EUR,$F14,Overview!$C$12,$K14,AF14),0) -> 0.6905341037 | EG14: =IF(AG14>0,SABR_Vol_Test([0]!alpha_EUR,[0]!beta_EUR,[0]!rho_EUR,[0]!nu_EUR,$F14,Overview!$C$12,$K14,AG14),0) -> 0.6387271863 | EH14: =IF(AH14>0,SABR_Vol_Test([0]!alpha_EUR,[0]!beta_EUR,[0]!rho_EUR,[0]!nu_EUR,$F14,Overview!$C$12,$K14,AH14),0) -> 0.5974715002 | EI14: =IF(AI14>0,SABR_Vol_Test([0]!alpha_EUR,[0]!beta_EUR,[0]!rho_EUR,[0]!nu_EUR,$F14,Overview!$C$12,$K14,AI14),0) -> 0.5630656858 | EJ14: =IF(AJ14>0,SABR_Vol_Test([0]!alpha_EUR,[0]!beta_EUR,[0]!rho_EUR,[0]!nu_EUR,$F14,Overview!$C$12,$K14,AJ14),0) -> 0.5334746372 | EK14: =IF(AK14>0,SABR_Vol_Test([0]!alpha_EUR,[0]!beta_EUR,[0]!rho_EUR,[0]!nu_EUR,$F14,Overview!$C$12,$K14,AK14),0) -> 0.5074572158 | EL14: =IF(AL14>0,SABR_Vol_Test([0]!alpha_EUR,[0]!beta_EUR,[0]!rho_EUR,[0]!nu_EUR,$F14,Overview!$C$12,$K14,AL14),0) -> 0.484199789 | EM14: =IF(AM14>0,SABR_Vol_Test([0]!alpha_EUR,[0]!beta_EUR,[0]!rho_EUR,[0]!nu_EUR,$F14,Overview!$C$12,$K14,AM14),0) -> 0.4631397383 | EN14: =IF(AN14>0,SABR_Vol_Test([0]!alpha_EUR,[0]!beta_EUR,[0]!rho_EUR,[0]!nu_EUR,$F14,Overview!$C$12,$K14,AN14),0) -> 0.4438717249 | EO14: =IF(AO14>0,SABR_Vol_Test([0]!alpha_EUR,[0]!beta_EUR,[0]!rho_EUR,[0]!nu_EUR,$F14,Overview!$C$12,$K14,AO14),0) -> 0.426094089 | EP14: =IF(AP14>0,SABR_Vol_Test([0]!alpha_EUR,[0]!beta_EUR,[0]!rho_EUR,[0]!nu_EUR,$F14,Overview!$C$12,$K14,AP14),0) -> 0.4095763758 | EQ14: =IF(AQ14>0,SABR_Vol_Test([0]!alpha_EUR,[0]!beta_EUR,[0]!rho_EUR,[0]!nu_EUR,$F14,Overview!$C$12,$K14,AQ14),0) -> 0.3941387214 | ER14: =IF(AR14>0,SABR_Vol_Test([0]!alpha_EUR,[0]!beta_EUR,[0]!rho_EUR,[0]!nu_EUR,$F14,Overview!$C$12,$K14,AR14),0) -> 0.3796382627 | ES14: =IF(AS14>0,SABR_Vol_Test([0]!alpha_EUR,[0]!beta_EUR,[0]!rho_EUR,[0]!nu_EUR,$F14,Overview!$C$12,$K14,AS14),0) -> 0.3659598883 | ET14: =IF(AT14>0,SABR_Vol_Test([0]!alpha_EUR,[0]!beta_EUR,[0]!rho_EUR,[0]!nu_EUR,$F14,Overview!$C$12,$K14,AT14),0) -> 0.3530097811 | EU14: =IF(AU14>0,SABR_Vol_Test([0]!alpha_EUR,[0]!beta_EUR,[0]!rho_EUR,[0]!nu_EUR,$F14,Overview!$C$12,$K14,AU14),0) -> 0.3407108109 | EV14: =IF(AV14>0,SABR_Vol_Test([0]!alpha_EUR,[0]!beta_EUR,[0]!rho_EUR,[0]!nu_EUR,$F14,Overview!$C$12,$K14,AV14),0) -> 0.3289991942 | EW14: =IF(AW14>0,SABR_Vol_Test([0]!alpha_EUR,[0]!beta_EUR,[0]!rho_EUR,[0]!nu_EUR,$F14,Overview!$C$12,$K14,AW14),0) -> 0.3178220423 | EX14: =IF(AX14>0,SABR_Vol_Test([0]!alpha_EUR,[0]!beta_EUR,[0]!rho_EUR,[0]!nu_EUR,$F14,Overview!$C$12,$K14,AX14),0) -> 0.3071355527 | EY14: =IF(AY14>0,SABR_Vol_Test([0]!alpha_EUR,[0]!beta_EUR,[0]!rho_EUR,[0]!nu_EUR,$F14,Overview!$C$12,$K14,AY14),0) -> 0.2969036753 | EZ14: =IF(AZ14>0,SABR_Vol_Test([0]!alpha_EUR,[0]!beta_EUR,[0]!rho_EUR,[0]!nu_EUR,$F14,Overview!$C$12,$K14,AZ14),0) -> 0.2870971422 | FA14: =IF(BA14>0,SABR_Vol_Test([0]!alpha_EUR,[0]!beta_EUR,[0]!rho_EUR,[0]!nu_EUR,$F14,Overview!$C$12,$K14,BA14),0) -> 0.2776927799 | FB14: =IF(BB14>0,SABR_Vol_Test([0]!alpha_EUR,[0]!beta_EUR,[0]!rho_EUR,[0]!nu_EUR,$F14,Overview!$C$12,$K14,BB14),0) -> 0.2686730497 | FC14: =IF(BC14>0,SABR_Vol_Test([0]!alpha_EUR,[0]!beta_EUR,[0]!rho_EUR,[0]!nu_EUR,$F14,Overview!$C$12,$K14,BC14),0) -> 0.2600257719 | FD14: =IF(BD14>0,SABR_Vol_Test([0]!alpha_EUR,[0]!beta_EUR,[0]!rho_EUR,[0]!nu_EUR,$F14,Overview!$C$12,$K14,BD14),0) -> 0.2517439993 | FE14: =IF(BE14>0,SABR_Vol_Test([0]!alpha_EUR,[0]!beta_EUR,[0]!rho_EUR,[0]!nu_EUR,$F14,Overview!$C$12,$K14,BE14),0) -> 0.2438260032 | FF14: =IF(BF14>0,SABR_Vol_Test([0]!alpha_EUR,[0]!beta_EUR,[0]!rho_EUR,[0]!nu_EUR,$F14,Overview!$C$12,$K14,BF14),0) -> 0.2362753281 | FG14: =IF(BG14>0,SABR_Vol_Test([0]!alpha_EUR,[0]!beta_EUR,[0]!rho_EUR,[0]!nu_EUR,$F14,Overview!$C$12,$K14,BG14),0) -> 0.2291008553 | FH14: =IF(BH14>0,SABR_Vol_Test([0]!alpha_EUR,[0]!beta_EUR,[0]!rho_EUR,[0]!nu_EUR,$F14,Overview!$C$12,$K14,BH14),0) -> 0.2223167903 | FI14: =IF(BI14>0,SABR_Vol_Test([0]!alpha_EUR,[0]!beta_EUR,[0]!rho_EUR,[0]!nu_EUR,$F14,Overview!$C$12,$K14,BI14),0) -> 0.2159424536 | FJ14: =IF(BJ14>0,SABR_Vol_Test([0]!alpha_EUR,[0]!beta_EUR,[0]!rho_EUR,[0]!nu_EUR,$F14,Overview!$C$12,$K14,BJ14),0) -> 0.2100017245 | FK14: =IF(BK14>0,SABR_Vol_Test([0]!alpha_EUR,[0]!beta_EUR,[0]!rho_EUR,[0]!nu_EUR,$F14,Overview!$C$12,$K14,BK14),0) -> 0.2045219594 | FM14: 3 | FN14: 0 | FO14: 0 | FP14: 0 | FQ14: 0 | FR14: 0 | FS14: 0 | FT14: 0 | FU14: 0 | FV14: 0 | FW14: 0 | FX14: 0 | FY14: 0 | FZ14: 0 | GA14: 0 | GB14: 0 | GC14: 0 | GD14: 3.290735249e-05 | GE14: 6.239418548e-05 | GF14: 9.419538907e-05 | GG14: 0.0001286224051 | GH14: 0.0001659057156 | GI14: 0.0002062655 | GJ14: 0.0002499314117 | GK14: 0.0002971509233 | GL14: 0.000348194311 | GM14: 0.000403358616 | GN14: 0.0004629714287 | GO14: 0.0005273948736 | GP14: 0.0005970299999 | GQ14: 0.0006723217226 | GR14: 0.0007537644359 | GS14: 0.0008419084159 | GT14: 0.0009373671335 | GU14: 0.0010408256 | GV14: 0.001153049872 | GW14: 0.00127489783 | GX14: 0.001407331328 | GY14: 0.00155142976 | GZ14: 0.001708405002 | HA14: 0.001879617533 | HB14: 0.002066593292 | HC14: 0.00227104045 | HD14: 0.002494864679 | HE14: 0.00274018069 | HF14: 0.003009316646 | HG14: 0.003304806646 | HH14: 0.003629364804 | HI14: 0.003985833019 | HJ14: 0.004377093953 | HK14: 0.004805942318 | HM14: 3 | HN14: 0.004392679607 | HO14: 0.002078043845
B15: PV | E15: 4 | F15: =(Overview!F15-Overview!$C$8)/365 -> 4.008219178 | G15: =Overview!I15 -> 0.498630137 | H15: =Overview!K15 -> 0.934840745 | I15: =Overview!L15/Overview!K15 -> 0.9873067942 | J15: =Overview!M15 -> 0.03575997916 | K15: 0.03575997916 | M15: 4 | N15: =IF($BK15="","",MAX(O15-$C$8,0)) -> 0 | O15: 0 | P15: 0 | Q15: 0 | R15: 0 | S15: 0 | T15: 0 | U15: 0 | V15: 0 | W15: 0 | X15: 0 | Y15: 0 | Z15: 0 | AA15: 0 | AB15: 0.0007599791618 | AC15: 0.001759979162 | AD15: 0.002759979162 | AE15: 0.003759979162 | AF15: 0.004759979162 | AG15: 0.005759979162 | AH15: 0.006759979162 | AI15: 0.007759979162 | AJ15: 0.008759979162 | AK15: 0.009759979162 | AL15: 0.01075997916 | AM15: 0.01175997916 | AN15: 0.01275997916 | AO15: 0.01375997916 | AP15: 0.01475997916 | AQ15: 0.01575997916 | AR15: 0.01675997916 | AS15: 0.01775997916 | AT15: =IF($BK15="","",MAX(AU15-$C$8,0)) -> 0.01875997916 | AU15: 0.01975997916 | AV15: 0.02075997916 | AW15: 0.02175997916 | AX15: 0.02275997916 | AY15: 0.02375997916 | AZ15: 0.02475997916 | BA15: 0.02575997916 | BB15: 0.02675997916 | BC15: 0.02775997916 | BD15: 0.02875997916 | BE15: 0.02975997916 | BF15: 0.03075997916 | BG15: 0.03175997916 | BH15: 0.03275997916 | BI15: 0.03375997916 | BJ15: 0.03475997916 | BK15: 0.03575997916 | BM15: 4 | BN15: =IF(K15="","",getCMSFloorReplicationWeights(K15,$C$11,$C$12,$C$13,N15:BK15)) -> 0 | BO15: 0 | BP15: 0 | BQ15: 0 | BR15: 0 | BS15: 0 | BT15: 0 | BU15: 0 | BV15: 0 | BW15: 0 | BX15: 0 | BY15: 0 | BZ15: 0 | CA15: 0 | CB15: 0 | CC15: -0.001049848953 | CD15: -0.001054866869 | CE15: -0.001059875455 | CF15: -0.001064874574 | CG15: -0.001069864088 | CH15: -0.001074843866 | CI15: -0.001079813772 | CJ15: -0.001084773675 | CK15: -0.001089723443 | CL15: -0.00109466295 | CM15: -0.001099592065 | CN15: -0.001104510663 | CO15: -0.001109418618 | CP15: -0.001114315808 | CQ15: -0.00111920211 | CR15: -0.001124077402 | CS15: -0.001128941566 | CT15: -0.001133794483 | CU15: -0.001138636036 | CV15: -0.001143466111 | CW15: -0.001148284593 | CX15: -0.001153091369 | CY15: -0.00115788633 | CZ15: -0.001162669365 | DA15: -0.001167440365 | DB15: -0.001172199224 | DC15: -0.001176945837 | DD15: -0.001181680099 | DE15: -0.001186401909 | DF15: -0.001191111163 | DG15: -0.001195807764 | DH15: -0.001200491612 | DI15: -0.00120516261 | DJ15: -0.001209820664 | DK15: 0.1200959461 | DM15: 4 | DN15: =IF(N15>0,SABR_Vol_Test([0]!alpha_EUR,[0]!beta_EUR,[0]!rho_EUR,[0]!nu_EUR,$F15,Overview!$C$12,$K15,N15),0) -> 0 | DO15: =IF(O15>0,SABR_Vol_Test([0]!alpha_EUR,[0]!beta_EUR,[0]!rho_EUR,[0]!nu_EUR,$F15,Overview!$C$12,$K15,O15),0) -> 0 | DP15: =IF(P15>0,SABR_Vol_Test([0]!alpha_EUR,[0]!beta_EUR,[0]!rho_EUR,[0]!nu_EUR,$F15,Overview!$C$12,$K15,P15),0) -> 0 | DQ15: =IF(Q15>0,SABR_Vol_Test([0]!alpha_EUR,[0]!beta_EUR,[0]!rho_EUR,[0]!nu_EUR,$F15,Overview!$C$12,$K15,Q15),0) -> 0 | DR15: =IF(R15>0,SABR_Vol_Test([0]!alpha_EUR,[0]!beta_EUR,[0]!rho_EUR,[0]!nu_EUR,$F15,Overview!$C$12,$K15,R15),0) -> 0 | DS15: =IF(S15>0,SABR_Vol_Test([0]!alpha_EUR,[0]!beta_EUR,[0]!rho_EUR,[0]!nu_EUR,$F15,Overview!$C$12,$K15,S15),0) -> 0 | DT15: =IF(T15>0,SABR_Vol_Test([0]!alpha_EUR,[0]!beta_EUR,[0]!rho_EUR,[0]!nu_EUR,$F15,Overview!$C$12,$K15,T15),0) -> 0 | DU15: =IF(U15>0,SABR_Vol_Test([0]!alpha_EUR,[0]!beta_EUR,[0]!rho_EUR,[0]!nu_EUR,$F15,Overview!$C$12,$K15,U15),0) -> 0 | DV15: =IF(V15>0,SABR_Vol_Test([0]!alpha_EUR,[0]!beta_EUR,[0]!rho_EUR,[0]!nu_EUR,$F15,Overview!$C$12,$K15,V15),0) -> 0 | DW15: =IF(W15>0,SABR_Vol_Test([0]!alpha_EUR,[0]!beta_EUR,[0]!rho_EUR,[0]!nu_EUR,$F15,Overview!$C$12,$K15,W15),0) -> 0 | DX15: =IF(X15>0,SABR_Vol_Test([0]!alpha_EUR,[0]!beta_EUR,[0]!rho_EUR,[0]!nu_EUR,$F15,Overview!$C$12,$K15,X15),0) -> 0 | DY15: =IF(Y15>0,SABR_Vol_Test([0]!alpha_EUR,[0]!beta_EUR,[0]!rho_EUR,[0]!nu_EUR,$F15,Overview!$C$12,$K15,Y15),0) -> 0 | DZ15: =IF(Z15>0,SABR_Vol_Test([0]!alpha_EUR,[0]!beta_EUR,[0]!rho_EUR,[0]!nu_EUR,$F15,Overview!$C$12,$K15,Z15),0) -> 0 | EA15: =IF(AA15>0,SABR_Vol_Test([0]!alpha_EUR,[0]!beta_EUR,[0]!rho_EUR,[0]!nu_EUR,$F15,Overview!$C$12,$K15,AA15),0) -> 0 | EB15: =IF(AB15>0,SABR_Vol_Test([0]!alpha_EUR,[0]!beta_EUR,[0]!rho_EUR,[0]!nu_EUR,$F15,Overview!$C$12,$K15,AB15),0) -> 0.8736661194 | EC15: =IF(AC15>0,SABR_Vol_Test([0]!alpha_EUR,[0]!beta_EUR,[0]!rho_EUR,[0]!nu_EUR,$F15,Overview!$C$12,$K15,AC15),0) -> 0.7387034981 | ED15: =IF(AD15>0,SABR_Vol_Test([0]!alpha_EUR,[0]!beta_EUR,[0]!rho_EUR,[0]!nu_EUR,$F15,Overview!$C$12,$K15,AD15),0) -> 0.6636720575 | EE15: =IF(AE15>0,SABR_Vol_Test([0]!alpha_EUR,[0]!beta_EUR,[0]!rho_EUR,[0]!nu_EUR,$F15,Overview!$C$12,$K15,AE15),0) -> 0.6108942371 | EF15: =IF(AF15>0,SABR_Vol_Test([0]!alpha_EUR,[0]!beta_EUR,[0]!rho_EUR,[0]!nu_EUR,$F15,Overview!$C$12,$K15,AF15),0) -> 0.5699071053 | EG15: =IF(AG15>0,SABR_Vol_Test([0]!alpha_EUR,[0]!beta_EUR,[0]!rho_EUR,[0]!nu_EUR,$F15,Overview!$C$12,$K15,AG15),0) -> 0.536259066 | EH15: =IF(AH15>0,SABR_Vol_Test([0]!alpha_EUR,[0]!beta_EUR,[0]!rho_EUR,[0]!nu_EUR,$F15,Overview!$C$12,$K15,AH15),0) -> 0.507631535 | EI15: =IF(AI15>0,SABR_Vol_Test([0]!alpha_EUR,[0]!beta_EUR,[0]!rho_EUR,[0]!nu_EUR,$F15,Overview!$C$12,$K15,AI15),0) -> 0.4826600884 | EJ15: =IF(AJ15>0,SABR_Vol_Test([0]!alpha_EUR,[0]!beta_EUR,[0]!rho_EUR,[0]!nu_EUR,$F15,Overview!$C$12,$K15,AJ15),0) -> 0.4604727008 | EK15: =IF(AK15>0,SABR_Vol_Test([0]!alpha_EUR,[0]!beta_EUR,[0]!rho_EUR,[0]!nu_EUR,$F15,Overview!$C$12,$K15,AK15),0) -> 0.4404777065 | EL15: =IF(AL15>0,SABR_Vol_Test([0]!alpha_EUR,[0]!beta_EUR,[0]!rho_EUR,[0]!nu_EUR,$F15,Overview!$C$12,$K15,AL15),0) -> 0.4222550349 | EM15: =IF(AM15>0,SABR_Vol_Test([0]!alpha_EUR,[0]!beta_EUR,[0]!rho_EUR,[0]!nu_EUR,$F15,Overview!$C$12,$K15,AM15),0) -> 0.4054956489 | EN15: =IF(AN15>0,SABR_Vol_Test([0]!alpha_EUR,[0]!beta_EUR,[0]!rho_EUR,[0]!nu_EUR,$F15,Overview!$C$12,$K15,AN15),0) -> 0.3899656112 | EO15: =IF(AO15>0,SABR_Vol_Test([0]!alpha_EUR,[0]!beta_EUR,[0]!rho_EUR,[0]!nu_EUR,$F15,Overview!$C$12,$K15,AO15),0) -> 0.3754836577 | EP15: =IF(AP15>0,SABR_Vol_Test([0]!alpha_EUR,[0]!beta_EUR,[0]!rho_EUR,[0]!nu_EUR,$F15,Overview!$C$12,$K15,AP15),0) -> 0.3619066097 | EQ15: =IF(AQ15>0,SABR_Vol_Test([0]!alpha_EUR,[0]!beta_EUR,[0]!rho_EUR,[0]!nu_EUR,$F15,Overview!$C$12,$K15,AQ15),0) -> 0.3491195565 | ER15: =IF(AR15>0,SABR_Vol_Test([0]!alpha_EUR,[0]!beta_EUR,[0]!rho_EUR,[0]!nu_EUR,$F15,Overview!$C$12,$K15,AR15),0) -> 0.3370290572 | ES15: =IF(AS15>0,SABR_Vol_Test([0]!alpha_EUR,[0]!beta_EUR,[0]!rho_EUR,[0]!nu_EUR,$F15,Overview!$C$12,$K15,AS15),0) -> 0.3255583198 | ET15: =IF(AT15>0,SABR_Vol_Test([0]!alpha_EUR,[0]!beta_EUR,[0]!rho_EUR,[0]!nu_EUR,$F15,Overview!$C$12,$K15,AT15),0) -> 0.3146437165 | EU15: =IF(AU15>0,SABR_Vol_Test([0]!alpha_EUR,[0]!beta_EUR,[0]!rho_EUR,[0]!nu_EUR,$F15,Overview!$C$12,$K15,AU15),0) -> 0.3042322233 | EV15: =IF(AV15>0,SABR_Vol_Test([0]!alpha_EUR,[0]!beta_EUR,[0]!rho_EUR,[0]!nu_EUR,$F15,Overview!$C$12,$K15,AV15),0) -> 0.2942795201 | EW15: =IF(AW15>0,SABR_Vol_Test([0]!alpha_EUR,[0]!beta_EUR,[0]!rho_EUR,[0]!nu_EUR,$F15,Overview!$C$12,$K15,AW15),0) -> 0.2847485699 | EX15: =IF(AX15>0,SABR_Vol_Test([0]!alpha_EUR,[0]!beta_EUR,[0]!rho_EUR,[0]!nu_EUR,$F15,Overview!$C$12,$K15,AX15),0) -> 0.2756085581 | EY15: =IF(AY15>0,SABR_Vol_Test([0]!alpha_EUR,[0]!beta_EUR,[0]!rho_EUR,[0]!nu_EUR,$F15,Overview!$C$12,$K15,AY15),0) -> 0.2668341053 | EZ15: =IF(AZ15>0,SABR_Vol_Test([0]!alpha_EUR,[0]!beta_EUR,[0]!rho_EUR,[0]!nu_EUR,$F15,Overview!$C$12,$K15,AZ15),0) -> 0.2584046981 | FA15: =IF(BA15>0,SABR_Vol_Test([0]!alpha_EUR,[0]!beta_EUR,[0]!rho_EUR,[0]!nu_EUR,$F15,Overview!$C$12,$K15,BA15),0) -> 0.2503042921 | FB15: =IF(BB15>0,SABR_Vol_Test([0]!alpha_EUR,[0]!beta_EUR,[0]!rho_EUR,[0]!nu_EUR,$F15,Overview!$C$12,$K15,BB15),0) -> 0.2425210591 | FC15: =IF(BC15>0,SABR_Vol_Test([0]!alpha_EUR,[0]!beta_EUR,[0]!rho_EUR,[0]!nu_EUR,$F15,Overview!$C$12,$K15,BC15),0) -> 0.2350472508 | FD15: =IF(BD15>0,SABR_Vol_Test([0]!alpha_EUR,[0]!beta_EUR,[0]!rho_EUR,[0]!nu_EUR,$F15,Overview!$C$12,$K15,BD15),0) -> 0.2278791573 | FE15: =IF(BE15>0,SABR_Vol_Test([0]!alpha_EUR,[0]!beta_EUR,[0]!rho_EUR,[0]!nu_EUR,$F15,Overview!$C$12,$K15,BE15),0) -> 0.221017135 | FF15: =IF(BF15>0,SABR_Vol_Test([0]!alpha_EUR,[0]!beta_EUR,[0]!rho_EUR,[0]!nu_EUR,$F15,Overview!$C$12,$K15,BF15),0) -> 0.2144656685 | FG15: =IF(BG15>0,SABR_Vol_Test([0]!alpha_EUR,[0]!beta_EUR,[0]!rho_EUR,[0]!nu_EUR,$F15,Overview!$C$12,$K15,BG15),0) -> 0.2082334235 | FH15: =IF(BH15>0,SABR_Vol_Test([0]!alpha_EUR,[0]!beta_EUR,[0]!rho_EUR,[0]!nu_EUR,$F15,Overview!$C$12,$K15,BH15),0) -> 0.2023332213 | FI15: =IF(BI15>0,SABR_Vol_Test([0]!alpha_EUR,[0]!beta_EUR,[0]!rho_EUR,[0]!nu_EUR,$F15,Overview!$C$12,$K15,BI15),0) -> 0.1967818475 | FJ15: =IF(BJ15>0,SABR_Vol_Test([0]!alpha_EUR,[0]!beta_EUR,[0]!rho_EUR,[0]!nu_EUR,$F15,Overview!$C$12,$K15,BJ15),0) -> 0.1915995815 | FK15: =IF(BK15>0,SABR_Vol_Test([0]!alpha_EUR,[0]!beta_EUR,[0]!rho_EUR,[0]!nu_EUR,$F15,Overview!$C$12,$K15,BK15),0) -> 0.1868093203 | FM15: 4 | FN15: 0 | FO15: 0 | FP15: 0 | FQ15: 0 | FR15: 0 | FS15: 0 | FT15: 0 | FU15: 0 | FV15: 0 | FW15: 0 | FX15: 0 | FY15: 0 | FZ15: 0 | GA15: 0 | GB15: 0 | GC15: 7.285291848e-05 | GD15: 0.0001143352618 | GE15: 0.0001578722108 | GF15: 0.0002038491629 | GG15: 0.0002525425291 | GH15: 0.0003041948634 | GI15: 0.0003590420185 | GJ15: 0.0004173258196 | GK15: 0.0004793013703 | GL15: 0.0005452421576 | GM15: 0.0006154442599 | GN15: 0.000690230275 | GO15: 0.0007699533006 | GP15: 0.0008550011764 | GQ15: 0.0009458011377 | GR15: 0.001042825008 | GS15: 0.001146595042 | GT15: 0.001257690538 | GU15: 0.001376755331 | GV15: 0.001504506262 | GW15: 0.001641742755 | GX15: 0.001789357542 | GY15: 0.001948348591 | GZ15: 0.002119832197 | HA15: 0.002305057024 | HB15: 0.00250541874 | HC15: 0.0027224745 | HD15: 0.002957956081 | HE15: 0.003213779772 | HF15: 0.003492050198 | HG15: 0.003795054099 | HH15: 0.004125238789 | HI15: 0.004485168878 | HJ15: 0.00487745443 | HK15: 0.005304644895 | HM15: 4 | HN15: 0.004805538527 | HO15: 0.002211619169
E16: 5 | F16: =(Overview!F16-Overview!$C$8)/365 -> 5.008219178 | G16: =Overview!I16 -> 0.498630137 | H16: =Overview!K16 -> 0.9103234504 | I16: =Overview!L16/Overview!K16 -> 0.9853358445 | J16: =Overview!M16 -> 0.03688493757 | K16: 0.03688493757 | M16: 5 | N16: =IF($BK16="","",MAX(O16-$C$8,0)) -> 0 | O16: 0 | P16: 0 | Q16: 0 | R16: 0 | S16: 0 | T16: 0 | U16: 0 | V16: 0 | W16: 0 | X16: 0 | Y16: 0 | Z16: 0 | AA16: 0.0008849375655 | AB16: 0.001884937566 | AC16: 0.002884937566 | AD16: 0.003884937566 | AE16: 0.004884937566 | AF16: 0.005884937566 | AG16: 0.006884937566 | AH16: 0.007884937566 | AI16: 0.008884937566 | AJ16: 0.009884937566 | AK16: 0.01088493757 | AL16: 0.01188493757 | AM16: 0.01288493757 | AN16: 0.01388493757 | AO16: 0.01488493757 | AP16: 0.01588493757 | AQ16: 0.01688493757 | AR16: 0.01788493757 | AS16: 0.01888493757 | AT16: =IF($BK16="","",MAX(AU16-$C$8,0)) -> 0.01988493757 | AU16: 0.02088493757 | AV16: 0.02188493757 | AW16: 0.02288493757 | AX16: 0.02388493757 | AY16: 0.02488493757 | AZ16: 0.02588493757 | BA16: 0.02688493757 | BB16: 0.02788493757 | BC16: 0.02888493757 | BD16: 0.02988493757 | BE16: 0.03088493757 | BF16: 0.03188493757 | BG16: 0.03288493757 | BH16: 0.03388493757 | BI16: 0.03488493757 | BJ16: 0.03588493757 | BK16: 0.03688493757 | BM16: 5 | BN16: =IF(K16="","",getCMSFloorReplicationWeights(K16,$C$11,$C$12,$C$13,N16:BK16)) -> 0 | BO16: 0 | BP16: 0 | BQ16: 0 | BR16: 0 | BS16: 0 | BT16: 0 | BU16: 0 | BV16: 0 | BW16: 0 | BX16: 0 | BY16: 0 | BZ16: 0 | CA16: 0 | CB16: -0.001048625611 | CC16: -0.001053645225 | CD16: -0.001058655519 | CE16: -0.001063656359 | CF16: -0.001068647607 | CG16: -0.001073629129 | CH16: -0.001078600791 | CI16: -0.001083562463 | CJ16: -0.001088514011 | CK16: -0.001093455309 | CL16: -0.001098386226 | CM16: -0.001103306638 | CN16: -0.001108216419 | CO16: -0.001113115445 | CP16: -0.001118003594 | CQ16: -0.001122880745 | CR16: -0.001127746778 | CS16: -0.001132601574 | CT16: -0.001137445018 | CU16: -0.001142276994 | CV16: -0.001147097388 | CW16: -0.001151906087 | CX16: -0.00115670298 | CY16: -0.001161487957 | CZ16: -0.001166260911 | DA16: -0.001171021733 | DB16: -0.001175770319 | DC16: -0.001180506564 | DD16: -0.001185230365 | DE16: -0.001189941622 | DF16: -0.001194640235 | DG16: -0.001199326104 | DH16: -0.001203999134 | DI16: -0.001208659228 | DJ16: -0.001213306291 | DK16: 0.1207782968 | DM16: 5 | DN16: =IF(N16>0,SABR_Vol_Test([0]!alpha_EUR,[0]!beta_EUR,[0]!rho_EUR,[0]!nu_EUR,$F16,Overview!$C$12,$K16,N16),0) -> 0 | DO16: =IF(O16>0,SABR_Vol_Test([0]!alpha_EUR,[0]!beta_EUR,[0]!rho_EUR,[0]!nu_EUR,$F16,Overview!$C$12,$K16,O16),0) -> 0 | DP16: =IF(P16>0,SABR_Vol_Test([0]!alpha_EUR,[0]!beta_EUR,[0]!rho_EUR,[0]!nu_EUR,$F16,Overview!$C$12,$K16,P16),0) -> 0 | DQ16: =IF(Q16>0,SABR_Vol_Test([0]!alpha_EUR,[0]!beta_EUR,[0]!rho_EUR,[0]!nu_EUR,$F16,Overview!$C$12,$K16,Q16),0) -> 0 | DR16: =IF(R16>0,SABR_Vol_Test([0]!alpha_EUR,[0]!beta_EUR,[0]!rho_EUR,[0]!nu_EUR,$F16,Overview!$C$12,$K16,R16),0) -> 0 | DS16: =IF(S16>0,SABR_Vol_Test([0]!alpha_EUR,[0]!beta_EUR,[0]!rho_EUR,[0]!nu_EUR,$F16,Overview!$C$12,$K16,S16),0) -> 0 | DT16: =IF(T16>0,SABR_Vol_Test([0]!alpha_EUR,[0]!beta_EUR,[0]!rho_EUR,[0]!nu_EUR,$F16,Overview!$C$12,$K16,T16),0) -> 0 | DU16: =IF(U16>0,SABR_Vol_Test([0]!alpha_EUR,[0]!beta_EUR,[0]!rho_EUR,[0]!nu_EUR,$F16,Overview!$C$12,$K16,U16),0) -> 0 | DV16: =IF(V16>0,SABR_Vol_Test([0]!alpha_EUR,[0]!beta_EUR,[0]!rho_EUR,[0]!nu_EUR,$F16,Overview!$C$12,$K16,V16),0) -> 0 | DW16: =IF(W16>0,SABR_Vol_Test([0]!alpha_EUR,[0]!beta_EUR,[0]!rho_EUR,[0]!nu_EUR,$F16,Overview!$C$12,$K16,W16),0) -> 0 | DX16: =IF(X16>0,SABR_Vol_Test([0]!alpha_EUR,[0]!beta_EUR,[0]!rho_EUR,[0]!nu_EUR,$F16,Overview!$C$12,$K16,X16),0) -> 0 | DY16: =IF(Y16>0,SABR_Vol_Test([0]!alpha_EUR,[0]!beta_EUR,[0]!rho_EUR,[0]!nu_EUR,$F16,Overview!$C$12,$K16,Y16),0) -> 0 | DZ16: =IF(Z16>0,SABR_Vol_Test([0]!alpha_EUR,[0]!beta_EUR,[0]!rho_EUR,[0]!nu_EUR,$F16,Overview!$C$12,$K16,Z16),0) -> 0 | EA16: =IF(AA16>0,SABR_Vol_Test([0]!alpha_EUR,[0]!beta_EUR,[0]!rho_EUR,[0]!nu_EUR,$F16,Overview!$C$12,$K16,AA16),0) -> 0.7784106094 | EB16: =IF(AB16>0,SABR_Vol_Test([0]!alpha_EUR,[0]!beta_EUR,[0]!rho_EUR,[0]!nu_EUR,$F16,Overview!$C$12,$K16,AB16),0) -> 0.6672033131 | EC16: =IF(AC16>0,SABR_Vol_Test([0]!alpha_EUR,[0]!beta_EUR,[0]!rho_EUR,[0]!nu_EUR,$F16,Overview!$C$12,$K16,AC16),0) -> 0.6024235837 | ED16: =IF(AD16>0,SABR_Vol_Test([0]!alpha_EUR,[0]!beta_EUR,[0]!rho_EUR,[0]!nu_EUR,$F16,Overview!$C$12,$K16,AD16),0) -> 0.5560995414 | EE16: =IF(AE16>0,SABR_Vol_Test([0]!alpha_EUR,[0]!beta_EUR,[0]!rho_EUR,[0]!nu_EUR,$F16,Overview!$C$12,$K16,AE16),0) -> 0.5198157777 | EF16: =IF(AF16>0,SABR_Vol_Test([0]!alpha_EUR,[0]!beta_EUR,[0]!rho_EUR,[0]!nu_EUR,$F16,Overview!$C$12,$K16,AF16),0) -> 0.489872953 | EG16: =IF(AG16>0,SABR_Vol_Test([0]!alpha_EUR,[0]!beta_EUR,[0]!rho_EUR,[0]!nu_EUR,$F16,Overview!$C$12,$K16,AG16),0) -> 0.4643082213 | EH16: =IF(AH16>0,SABR_Vol_Test([0]!alpha_EUR,[0]!beta_EUR,[0]!rho_EUR,[0]!nu_EUR,$F16,Overview!$C$12,$K16,AH16),0) -> 0.4419524077 | EI16: =IF(AI16>0,SABR_Vol_Test([0]!alpha_EUR,[0]!beta_EUR,[0]!rho_EUR,[0]!nu_EUR,$F16,Overview!$C$12,$K16,AI16),0) -> 0.4220518133 | EJ16: =IF(AJ16>0,SABR_Vol_Test([0]!alpha_EUR,[0]!beta_EUR,[0]!rho_EUR,[0]!nu_EUR,$F16,Overview!$C$12,$K16,AJ16),0) -> 0.4040917423 | EK16: =IF(AK16>0,SABR_Vol_Test([0]!alpha_EUR,[0]!beta_EUR,[0]!rho_EUR,[0]!nu_EUR,$F16,Overview!$C$12,$K16,AK16),0) -> 0.3877049195 | EL16: =IF(AL16>0,SABR_Vol_Test([0]!alpha_EUR,[0]!beta_EUR,[0]!rho_EUR,[0]!nu_EUR,$F16,Overview!$C$12,$K16,AL16),0) -> 0.3726200399 | EM16: =IF(AM16>0,SABR_Vol_Test([0]!alpha_EUR,[0]!beta_EUR,[0]!rho_EUR,[0]!nu_EUR,$F16,Overview!$C$12,$K16,AM16),0) -> 0.3586310243 | EN16: =IF(AN16>0,SABR_Vol_Test([0]!alpha_EUR,[0]!beta_EUR,[0]!rho_EUR,[0]!nu_EUR,$F16,Overview!$C$12,$K16,AN16),0) -> 0.345577721 | EO16: =IF(AO16>0,SABR_Vol_Test([0]!alpha_EUR,[0]!beta_EUR,[0]!rho_EUR,[0]!nu_EUR,$F16,Overview!$C$12,$K16,AO16),0) -> 0.3333332907 | EP16: =IF(AP16>0,SABR_Vol_Test([0]!alpha_EUR,[0]!beta_EUR,[0]!rho_EUR,[0]!nu_EUR,$F16,Overview!$C$12,$K16,AP16),0) -> 0.3217956821 | EQ16: =IF(AQ16>0,SABR_Vol_Test([0]!alpha_EUR,[0]!beta_EUR,[0]!rho_EUR,[0]!nu_EUR,$F16,Overview!$C$12,$K16,AQ16),0) -> 0.3108817053 | ER16: =IF(AR16>0,SABR_Vol_Test([0]!alpha_EUR,[0]!beta_EUR,[0]!rho_EUR,[0]!nu_EUR,$F16,Overview!$C$12,$K16,AR16),0) -> 0.300522815 | ES16: =IF(AS16>0,SABR_Vol_Test([0]!alpha_EUR,[0]!beta_EUR,[0]!rho_EUR,[0]!nu_EUR,$F16,Overview!$C$12,$K16,AS16),0) -> 0.2906620498 | ET16: =IF(AT16>0,SABR_Vol_Test([0]!alpha_EUR,[0]!beta_EUR,[0]!rho_EUR,[0]!nu_EUR,$F16,Overview!$C$12,$K16,AT16),0) -> 0.2812517758 | EU16: =IF(AU16>0,SABR_Vol_Test([0]!alpha_EUR,[0]!beta_EUR,[0]!rho_EUR,[0]!nu_EUR,$F16,Overview!$C$12,$K16,AU16),0) -> 0.2722520022 | EV16: =IF(AV16>0,SABR_Vol_Test([0]!alpha_EUR,[0]!beta_EUR,[0]!rho_EUR,[0]!nu_EUR,$F16,Overview!$C$12,$K16,AV16),0) -> 0.2636291148 | EW16: =IF(AW16>0,SABR_Vol_Test([0]!alpha_EUR,[0]!beta_EUR,[0]!rho_EUR,[0]!nu_EUR,$F16,Overview!$C$12,$K16,AW16),0) -> 0.2553549206 | EX16: =IF(AX16>0,SABR_Vol_Test([0]!alpha_EUR,[0]!beta_EUR,[0]!rho_EUR,[0]!nu_EUR,$F16,Overview!$C$12,$K16,AX16),0) -> 0.2474059304 | EY16: =IF(AY16>0,SABR_Vol_Test([0]!alpha_EUR,[0]!beta_EUR,[0]!rho_EUR,[0]!nu_EUR,$F16,Overview!$C$12,$K16,AY16),0) -> 0.2397628277 | EZ16: =IF(AZ16>0,SABR_Vol_Test([0]!alpha_EUR,[0]!beta_EUR,[0]!rho_EUR,[0]!nu_EUR,$F16,Overview!$C$12,$K16,AZ16),0) -> 0.2324100861 | FA16: =IF(BA16>0,SABR_Vol_Test([0]!alpha_EUR,[0]!beta_EUR,[0]!rho_EUR,[0]!nu_EUR,$F16,Overview!$C$12,$K16,BA16),0) -> 0.2253357097 | FB16: =IF(BB16>0,SABR_Vol_Test([0]!alpha_EUR,[0]!beta_EUR,[0]!rho_EUR,[0]!nu_EUR,$F16,Overview!$C$12,$K16,BB16),0) -> 0.2185310743 | FC16: =IF(BC16>0,SABR_Vol_Test([0]!alpha_EUR,[0]!beta_EUR,[0]!rho_EUR,[0]!nu_EUR,$F16,Overview!$C$12,$K16,BC16),0) -> 0.2119908531 | FD16: =IF(BD16>0,SABR_Vol_Test([0]!alpha_EUR,[0]!beta_EUR,[0]!rho_EUR,[0]!nu_EUR,$F16,Overview!$C$12,$K16,BD16),0) -> 0.2057130085 | FE16: =IF(BE16>0,SABR_Vol_Test([0]!alpha_EUR,[0]!beta_EUR,[0]!rho_EUR,[0]!nu_EUR,$F16,Overview!$C$12,$K16,BE16),0) -> 0.1996988312 | FF16: =IF(BF16>0,SABR_Vol_Test([0]!alpha_EUR,[0]!beta_EUR,[0]!rho_EUR,[0]!nu_EUR,$F16,Overview!$C$12,$K16,BF16),0) -> 0.1939529983 | FG16: =IF(BG16>0,SABR_Vol_Test([0]!alpha_EUR,[0]!beta_EUR,[0]!rho_EUR,[0]!nu_EUR,$F16,Overview!$C$12,$K16,BG16),0) -> 0.1884836121 | FH16: =IF(BH16>0,SABR_Vol_Test([0]!alpha_EUR,[0]!beta_EUR,[0]!rho_EUR,[0]!nu_EUR,$F16,Overview!$C$12,$K16,BH16),0) -> 0.1833021685 | FI16: =IF(BI16>0,SABR_Vol_Test([0]!alpha_EUR,[0]!beta_EUR,[0]!rho_EUR,[0]!nu_EUR,$F16,Overview!$C$12,$K16,BI16),0) -> 0.1784233793 | FJ16: =IF(BJ16>0,SABR_Vol_Test([0]!alpha_EUR,[0]!beta_EUR,[0]!rho_EUR,[0]!nu_EUR,$F16,Overview!$C$12,$K16,BJ16),0) -> 0.1738647635 | FK16: =IF(BK16>0,SABR_Vol_Test([0]!alpha_EUR,[0]!beta_EUR,[0]!rho_EUR,[0]!nu_EUR,$F16,Overview!$C$12,$K16,BK16),0) -> 0.169645909 | FM16: 5 | FN16: 0 | FO16: 0 | FP16: 0 | FQ16: 0 | FR16: 0 | FS16: 0 | FT16: 0 | FU16: 0 | FV16: 0 | FW16: 0 | FX16: 0 | FY16: =IF($K16="","",IF(BY16=0,0,BSFormula($J16,$F16,DY16,Y16,1))) -> 0 | FZ16: =IF($K16="","",IF(BZ16=0,0,BSFormula($J16,$F16,DZ16,Z16,1))) -> 0 | GA16: =IF($K16="","",IF(CA16=0,0,BSFormula($J16,$F16,EA16,AA16,1))) -> 0 | GB16: =IF($K16="","",IF(CB16=0,0,BSFormula($J16,$F16,EB16,AB16,1))) -> 8.691733023e-05 | GC16: =IF($K16="","",IF(CC16=0,0,BSFormula($J16,$F16,EC16,AC16,1))) -> 0.000132352191 | GD16: =IF($K16="","",IF(CD16=0,0,BSFormula($J16,$F16,ED16,AD16,1))) -> 0.0001796117993 | GE16: =IF($K16="","",IF(CE16=0,0,BSFormula($J16,$F16,EE16,AE16,1))) -> 0.0002291169638 | GF16: =IF($K16="","",IF(CF16=0,0,BSFormula($J16,$F16,EF16,AF16,1))) -> 0.000281160175 | GG16: =IF($K16="","",IF(CG16=0,0,BSFormula($J16,$F16,EG16,AG16,1))) -> 0.0003359883666 | GH16: =IF($K16="","",IF(CH16=0,0,BSFormula($J16,$F16,EH16,AH16,1))) -> 0.0003938339557 | GI16: =IF($K16="","",IF(CI16=0,0,BSFormula($J16,$F16,EI16,AI16,1))) -> 0.0004549294627 | GJ16: =IF($K16="","",IF(CJ16=0,0,BSFormula($J16,$F16,EJ16,AJ16,1))) -> 0.0005195157798 | GK16: =IF($K16="","",IF(CK16=0,0,BSFormula($J16,$F16,EK16,AK16,1))) -> 0.0005878476971 | GL16: =IF($K16="","",IF(CL16=0,0,BSFormula($J16,$F16,EL16,AL16,1))) -> 0.0006601982025 | GM16: =IF($K16="","",IF(CM16=0,0,BSFormula($J16,$F16,EM16,AM16,1))) -> 0.0007368622762 | GN16: =IF($K16="","",IF(CN16=0,0,BSFormula($J16,$F16,EN16,AN16,1))) -> 0.0008181605672 | GO16: =IF($K16="","",IF(CO16=0,0,BSFormula($J16,$F16,EO16,AO16,1))) -> 0.0009044431831 | GP16: =IF($K16="","",IF(CP16=0,0,BSFormula($J16,$F16,EP16,AP16,1))) -> 0.0009960937557 | GQ16: =IF($K16="","",IF(CQ16=0,0,BSFormula($J16,$F16,EQ16,AQ16,1))) -> 0.001093533904 | GR16: =IF($K16="","",IF(CR16=0,0,BSFormula($J16,$F16,ER16,AR16,1))) -> 0.001197228209 | GS16: =IF($K16="","",IF(CS16=0,0,BSFormula($J16,$F16,ES16,AS16,1))) -> 0.001307689796 | GT16: =IF($K16="","",IF(CT16=0,0,BSFormula($J16,$F16,ET16,AT16,1))) -> 0.001425486633 | GU16: =IF($K16="","",IF(CU16=0,0,BSFormula($J16,$F16,EU16,AU16,1))) -> 0.001551248646 | GV16: =IF($K16="","",IF(CV16=0,0,BSFormula($J16,$F16,EV16,AV16,1))) -> 0.001685675734 | GW16: =IF($K16="","",IF(CW16=0,0,BSFormula($J16,$F16,EW16,AW16,1))) -> 0.001829546784 | GX16: =IF($K16="","",IF(CX16=0,0,BSFormula($J16,$F16,EX16,AX16,1))) -> 0.00198372975 | GY16: =IF($K16="","",IF(CY16=0,0,BSFormula($J16,$F16,EY16,AY16,1))) -> 0.002149192783 | GZ16: =IF($K16="","",IF(CZ16=0,0,BSFormula($J16,$F16,EZ16,AZ16,1))) -> 0.002327016391 | HA16: =IF($K16="","",IF(DA16=0,0,BSFormula($J16,$F16,FA16,BA16,1))) -> 0.0025184064 | HB16: =IF($K16="","",IF(DB16=0,0,BSFormula($J16,$F16,FB16,BB16,1))) -> 0.002724707345 | HC16: =IF($K16="","",IF(DC16=0,0,BSFormula($J16,$F16,FC16,BC16,1))) -> 0.002947415591 | HD16: =IF($K16="","",IF(DD16=0,0,BSFormula($J16,$F16,FD16,BD16,1))) -> 0.003188191025 | HE16: =IF($K16="","",IF(DE16=0,0,BSFormula($J16,$F16,FE16,BE16,1))) -> 0.00344886558 | HF16: =IF($K16="","",IF(DF16=0,0,BSFormula($J16,$F16,FF16,BF16,1))) -> 0.003731445981 | HG16: =IF($K16="","",IF(DG16=0,0,BSFormula($J16,$F16,FG16,BG16,1))) -> 0.004038107124 | HH16: =IF($K16="","",IF(DH16=0,0,BSFormula($J16,$F16,FH16,BH16,1))) -> 0.004371171384 | HI16: =IF($K16="","",IF(DI16=0,0,BSFormula($J16,$F16,FI16,BI16,1))) -> 0.004733068206 | HJ16: =IF($K16="","",IF(DJ16=0,0,BSFormula($J16,$F16,FJ16,BJ16,1))) -> 0.005126268062 | HK16: =IF($K16="","",IF(DK16=0,0,BSFormula($J16,$F16,FK16,BK16,1))) -> 0.005553185969 | HM16: 5 | HN16: 0.00501369363 | HO16: 0.002242416746
B17: Result | E17: 6 | F17: =(Overview!F17-Overview!$C$8)/365 -> 6.008219178 | G17: =Overview!I17 -> 0.498630137 | H17: =Overview!K17 -> 0.8829013253 | I17: =Overview!L17/Overview!K17 -> 0.9835668342 | J17: =Overview!M17 -> 0.03753941452 | K17: 0.03753941452 | M17: 6 | N17: =IF($BK17="","",MAX(O17-$C$8,0)) -> 0 | O17: 0 | P17: 0 | Q17: 0 | R17: 0 | S17: 0 | T17: 0 | U17: 0 | V17: 0 | W17: 0 | X17: 0 | Y17: 0 | Z17: 0.0005394145194 | AA17: 0.001539414519 | AB17: 0.002539414519 | AC17: 0.003539414519 | AD17: 0.004539414519 | AE17: 0.005539414519 | AF17: 0.006539414519 | AG17: 0.007539414519 | AH17: 0.008539414519 | AI17: 0.009539414519 | AJ17: 0.01053941452 | AK17: 0.01153941452 | AL17: 0.01253941452 | AM17: 0.01353941452 | AN17: 0.01453941452 | AO17: 0.01553941452 | AP17: 0.01653941452 | AQ17: 0.01753941452 | AR17: 0.01853941452 | AS17: 0.01953941452 | AT17: =IF($BK17="","",MAX(AU17-$C$8,0)) -> 0.02053941452 | AU17: 0.02153941452 | AV17: 0.02253941452 | AW17: 0.02353941452 | AX17: 0.02453941452 | AY17: 0.02553941452 | AZ17: 0.02653941452 | BA17: 0.02753941452 | BB17: 0.02853941452 | BC17: 0.02953941452 | BD17: 0.03053941452 | BE17: 0.03153941452 | BF17: 0.03253941452 | BG17: 0.03353941452 | BH17: 0.03453941452 | BI17: 0.03553941452 | BJ17: 0.03653941452 | BK17: 0.03753941452 | BM17: 6 | BN17: =IF(K17="","",getCMSFloorReplicationWeights(K17,$C$11,$C$12,$C$13,N17:BK17)) -> 0 | BO17: 0 | BP17: 0 | BQ17: 0 | BR17: 0 | BS17: 0 | BT17: 0 | BU17: 0 | BV17: 0 | BW17: 0 | BX17: 0 | BY17: 0 | BZ17: 0 | CA17: -0.001045811707 | CB17: -0.001050836163 | CC17: -0.001055851365 | CD17: -0.001060857177 | CE17: -0.00106585346 | CF17: -0.001070840081 | CG17: -0.001075816904 | CH17: -0.001080783798 | CI17: -0.001085740631 | CJ17: -0.001090687273 | CK17: -0.001095623595 | CL17: -0.001100549471 | CM17: -0.001105464774 | CN17: -0.001110369381 | CO17: -0.001115263168 | CP17: -0.001120146014 | CQ17: -0.001125017797 | CR17: -0.001129878401 | CS17: -0.001134727706 | CT17: -0.001139565598 | CU17: -0.001144391961 | CV17: -0.001149206682 | CW17: -0.00115400965 | CX17: -0.001158800754 | CY17: -0.001163579884 | CZ17: -0.001168346934 | DA17: -0.001173101798 | DB17: -0.00117784437 | DC17: -0.001182574546 | DD17: -0.001187292227 | DE17: -0.001191997309 | DF17: -0.001196689696 | DG17: -0.001201369288 | DH17: -0.00120603599 | DI17: -0.001210689706 | DJ17: -0.001215330343 | DK17: 0.1211761744 | DM17: 6 | DN17: =IF(N17>0,SABR_Vol_Test([0]!alpha_EUR,[0]!beta_EUR,[0]!rho_EUR,[0]!nu_EUR,$F17,Overview!$C$12,$K17,N17),0) -> 0 | DO17: =IF(O17>0,SABR_Vol_Test([0]!alpha_EUR,[0]!beta_EUR,[0]!rho_EUR,[0]!nu_EUR,$F17,Overview!$C$12,$K17,O17),0) -> 0 | DP17: =IF(P17>0,SABR_Vol_Test([0]!alpha_EUR,[0]!beta_EUR,[0]!rho_EUR,[0]!nu_EUR,$F17,Overview!$C$12,$K17,P17),0) -> 0 | DQ17: =IF(Q17>0,SABR_Vol_Test([0]!alpha_EUR,[0]!beta_EUR,[0]!rho_EUR,[0]!nu_EUR,$F17,Overview!$C$12,$K17,Q17),0) -> 0 | DR17: =IF(R17>0,SABR_Vol_Test([0]!alpha_EUR,[0]!beta_EUR,[0]!rho_EUR,[0]!nu_EUR,$F17,Overview!$C$12,$K17,R17),0) -> 0 | DS17: =IF(S17>0,SABR_Vol_Test([0]!alpha_EUR,[0]!beta_EUR,[0]!rho_EUR,[0]!nu_EUR,$F17,Overview!$C$12,$K17,S17),0) -> 0 | DT17: =IF(T17>0,SABR_Vol_Test([0]!alpha_EUR,[0]!beta_EUR,[0]!rho_EUR,[0]!nu_EUR,$F17,Overview!$C$12,$K17,T17),0) -> 0 | DU17: =IF(U17>0,SABR_Vol_Test([0]!alpha_EUR,[0]!beta_EUR,[0]!rho_EUR,[0]!nu_EUR,$F17,Overview!$C$12,$K17,U17),0) -> 0 | DV17: =IF(V17>0,SABR_Vol_Test([0]!alpha_EUR,[0]!beta_EUR,[0]!rho_EUR,[0]!nu_EUR,$F17,Overview!$C$12,$K17,V17),0) -> 0 | DW17: =IF(W17>0,SABR_Vol_Test([0]!alpha_EUR,[0]!beta_EUR,[0]!rho_EUR,[0]!nu_EUR,$F17,Overview!$C$12,$K17,W17),0) -> 0 | DX17: =IF(X17>0,SABR_Vol_Test([0]!alpha_EUR,[0]!beta_EUR,[0]!rho_EUR,[0]!nu_EUR,$F17,Overview!$C$12,$K17,X17),0) -> 0 | DY17: =IF(Y17>0,SABR_Vol_Test([0]!alpha_EUR,[0]!beta_EUR,[0]!rho_EUR,[0]!nu_EUR,$F17,Overview!$C$12,$K17,Y17),0) -> 0 | DZ17: =IF(Z17>0,SABR_Vol_Test([0]!alpha_EUR,[0]!beta_EUR,[0]!rho_EUR,[0]!nu_EUR,$F17,Overview!$C$12,$K17,Z17),0) -> 0.8137369958 | EA17: =IF(AA17>0,SABR_Vol_Test([0]!alpha_EUR,[0]!beta_EUR,[0]!rho_EUR,[0]!nu_EUR,$F17,Overview!$C$12,$K17,AA17),0) -> 0.6700895957 | EB17: =IF(AB17>0,SABR_Vol_Test([0]!alpha_EUR,[0]!beta_EUR,[0]!rho_EUR,[0]!nu_EUR,$F17,Overview!$C$12,$K17,AB17),0) -> 0.5983299927 | EC17: =IF(AC17>0,SABR_Vol_Test([0]!alpha_EUR,[0]!beta_EUR,[0]!rho_EUR,[0]!nu_EUR,$F17,Overview!$C$12,$K17,AC17),0) -> 0.5494840676 | ED17: =IF(AD17>0,SABR_Vol_Test([0]!alpha_EUR,[0]!beta_EUR,[0]!rho_EUR,[0]!nu_EUR,$F17,Overview!$C$12,$K17,AD17),0) -> 0.5121663778 | EE17: =IF(AE17>0,SABR_Vol_Test([0]!alpha_EUR,[0]!beta_EUR,[0]!rho_EUR,[0]!nu_EUR,$F17,Overview!$C$12,$K17,AE17),0) -> 0.4818324153 | EF17: =IF(AF17>0,SABR_Vol_Test([0]!alpha_EUR,[0]!beta_EUR,[0]!rho_EUR,[0]!nu_EUR,$F17,Overview!$C$12,$K17,AF17),0) -> 0.4561960356 | EG17: =IF(AG17>0,SABR_Vol_Test([0]!alpha_EUR,[0]!beta_EUR,[0]!rho_EUR,[0]!nu_EUR,$F17,Overview!$C$12,$K17,AG17),0) -> 0.4339413915 | EH17: =IF(AH17>0,SABR_Vol_Test([0]!alpha_EUR,[0]!beta_EUR,[0]!rho_EUR,[0]!nu_EUR,$F17,Overview!$C$12,$K17,AH17),0) -> 0.4142403791 | EI17: =IF(AI17>0,SABR_Vol_Test([0]!alpha_EUR,[0]!beta_EUR,[0]!rho_EUR,[0]!nu_EUR,$F17,Overview!$C$12,$K17,AI17),0) -> 0.3965374744 | EJ17: =IF(AJ17>0,SABR_Vol_Test([0]!alpha_EUR,[0]!beta_EUR,[0]!rho_EUR,[0]!nu_EUR,$F17,Overview!$C$12,$K17,AJ17),0) -> 0.3804416686 | EK17: =IF(AK17>0,SABR_Vol_Test([0]!alpha_EUR,[0]!beta_EUR,[0]!rho_EUR,[0]!nu_EUR,$F17,Overview!$C$12,$K17,AK17),0) -> 0.3656672425 | EL17: =IF(AL17>0,SABR_Vol_Test([0]!alpha_EUR,[0]!beta_EUR,[0]!rho_EUR,[0]!nu_EUR,$F17,Overview!$C$12,$K17,AL17),0) -> 0.35199906 | EM17: =IF(AM17>0,SABR_Vol_Test([0]!alpha_EUR,[0]!beta_EUR,[0]!rho_EUR,[0]!nu_EUR,$F17,Overview!$C$12,$K17,AM17),0) -> 0.339271119 | EN17: =IF(AN17>0,SABR_Vol_Test([0]!alpha_EUR,[0]!beta_EUR,[0]!rho_EUR,[0]!nu_EUR,$F17,Overview!$C$12,$K17,AN17),0) -> 0.327352711 | EO17: =IF(AO17>0,SABR_Vol_Test([0]!alpha_EUR,[0]!beta_EUR,[0]!rho_EUR,[0]!nu_EUR,$F17,Overview!$C$12,$K17,AO17),0) -> 0.3161391654 | EP17: =IF(AP17>0,SABR_Vol_Test([0]!alpha_EUR,[0]!beta_EUR,[0]!rho_EUR,[0]!nu_EUR,$F17,Overview!$C$12,$K17,AP17),0) -> 0.3055454725 | EQ17: =IF(AQ17>0,SABR_Vol_Test([0]!alpha_EUR,[0]!beta_EUR,[0]!rho_EUR,[0]!nu_EUR,$F17,Overview!$C$12,$K17,AQ17),0) -> 0.2955017763 | ER17: =IF(AR17>0,SABR_Vol_Test([0]!alpha_EUR,[0]!beta_EUR,[0]!rho_EUR,[0]!nu_EUR,$F17,Overview!$C$12,$K17,AR17),0) -> 0.2859501224 | ES17: =IF(AS17>0,SABR_Vol_Test([0]!alpha_EUR,[0]!beta_EUR,[0]!rho_EUR,[0]!nu_EUR,$F17,Overview!$C$12,$K17,AS17),0) -> 0.2768420686 | ET17: =IF(AT17>0,SABR_Vol_Test([0]!alpha_EUR,[0]!beta_EUR,[0]!rho_EUR,[0]!nu_EUR,$F17,Overview!$C$12,$K17,AT17),0) -> 0.2681369043 | EU17: =IF(AU17>0,SABR_Vol_Test([0]!alpha_EUR,[0]!beta_EUR,[0]!rho_EUR,[0]!nu_EUR,$F17,Overview!$C$12,$K17,AU17),0) -> 0.2598003109 | EV17: =IF(AV17>0,SABR_Vol_Test([0]!alpha_EUR,[0]!beta_EUR,[0]!rho_EUR,[0]!nu_EUR,$F17,Overview!$C$12,$K17,AV17),0) -> 0.2518033453 | EW17: =IF(AW17>0,SABR_Vol_Test([0]!alpha_EUR,[0]!beta_EUR,[0]!rho_EUR,[0]!nu_EUR,$F17,Overview!$C$12,$K17,AW17),0) -> 0.2441216695 | EX17: =IF(AX17>0,SABR_Vol_Test([0]!alpha_EUR,[0]!beta_EUR,[0]!rho_EUR,[0]!nu_EUR,$F17,Overview!$C$12,$K17,AX17),0) -> 0.2367349685 | EY17: =IF(AY17>0,SABR_Vol_Test([0]!alpha_EUR,[0]!beta_EUR,[0]!rho_EUR,[0]!nu_EUR,$F17,Overview!$C$12,$K17,AY17),0) -> 0.2296265174 | EZ17: =IF(AZ17>0,SABR_Vol_Test([0]!alpha_EUR,[0]!beta_EUR,[0]!rho_EUR,[0]!nu_EUR,$F17,Overview!$C$12,$K17,AZ17),0) -> 0.2227828685 | FA17: =IF(BA17>0,SABR_Vol_Test([0]!alpha_EUR,[0]!beta_EUR,[0]!rho_EUR,[0]!nu_EUR,$F17,Overview!$C$12,$K17,BA17),0) -> 0.216193638 | FB17: =IF(BB17>0,SABR_Vol_Test([0]!alpha_EUR,[0]!beta_EUR,[0]!rho_EUR,[0]!nu_EUR,$F17,Overview!$C$12,$K17,BB17),0) -> 0.2098513738 | FC17: =IF(BC17>0,SABR_Vol_Test([0]!alpha_EUR,[0]!beta_EUR,[0]!rho_EUR,[0]!nu_EUR,$F17,Overview!$C$12,$K17,BC17),0) -> 0.2037514909 | FD17: =IF(BD17>0,SABR_Vol_Test([0]!alpha_EUR,[0]!beta_EUR,[0]!rho_EUR,[0]!nu_EUR,$F17,Overview!$C$12,$K17,BD17),0) -> 0.1978922606 | FE17: =IF(BE17>0,SABR_Vol_Test([0]!alpha_EUR,[0]!beta_EUR,[0]!rho_EUR,[0]!nu_EUR,$F17,Overview!$C$12,$K17,BE17),0) -> 0.1922748341 | FF17: =IF(BF17>0,SABR_Vol_Test([0]!alpha_EUR,[0]!beta_EUR,[0]!rho_EUR,[0]!nu_EUR,$F17,Overview!$C$12,$K17,BF17),0) -> 0.18690328 | FG17: =IF(BG17>0,SABR_Vol_Test([0]!alpha_EUR,[0]!beta_EUR,[0]!rho_EUR,[0]!nu_EUR,$F17,Overview!$C$12,$K17,BG17),0) -> 0.1817846039 | FH17: =IF(BH17>0,SABR_Vol_Test([0]!alpha_EUR,[0]!beta_EUR,[0]!rho_EUR,[0]!nu_EUR,$F17,Overview!$C$12,$K17,BH17),0) -> 0.1769287056 | FI17: =IF(BI17>0,SABR_Vol_Test([0]!alpha_EUR,[0]!beta_EUR,[0]!rho_EUR,[0]!nu_EUR,$F17,Overview!$C$12,$K17,BI17),0) -> 0.1723482208 | FJ17: =IF(BJ17>0,SABR_Vol_Test([0]!alpha_EUR,[0]!beta_EUR,[0]!rho_EUR,[0]!nu_EUR,$F17,Overview!$C$12,$K17,BJ17),0) -> 0.1680581744 | FK17: =IF(BK17>0,SABR_Vol_Test([0]!alpha_EUR,[0]!beta_EUR,[0]!rho_EUR,[0]!nu_EUR,$F17,Overview!$C$12,$K17,BK17),0) -> 0.1640753756 | FM17: 6 | FN17: 0 | FO17: =IF($K17="","",IF(BO17=0,0,BSFormula($J17,$F17,DO17,O17,1))) -> 0 | FP17: =IF($K17="","",IF(BP17=0,0,BSFormula($J17,$F17,DP17,P17,1))) -> 0 | FQ17: =IF($K17="","",IF(BQ17=0,0,BSFormula($J17,$F17,DQ17,Q17,1))) -> 0 | FR17: =IF($K17="","",IF(BR17=0,0,BSFormula($J17,$F17,DR17,R17,1))) -> 0 | FS17: =IF($K17="","",IF(BS17=0,0,BSFormula($J17,$F17,DS17,S17,1))) -> 0 | FT17: =IF($K17="","",IF(BT17=0,0,BSFormula($J17,$F17,DT17,T17,1))) -> 0 | FU17: =IF($K17="","",IF(BU17=0,0,BSFormula($J17,$F17,DU17,U17,1))) -> 0 | FV17: =IF($K17="","",IF(BV17=0,0,BSFormula($J17,$F17,DV17,V17,1))) -> 0 | FW17: =IF($K17="","",IF(BW17=0,0,BSFormula($J17,$F17,DW17,W17,1))) -> 0 | FX17: =IF($K17="","",IF(BX17=0,0,BSFormula($J17,$F17,DX17,X17,1))) -> 0 | FY17: 0 | FZ17: 0 | GA17: 9.455207148e-05 | GB17: 0.0001517534988 | GC17: 0.0002099180718 | GD17: 0.0002698065857 | GE17: 0.0003318615167 | GF17: 0.0003964064458 | GG17: 0.0004637143231 | GH17: 0.0005340372952 | GI17: 0.0006076221399 | GJ17: 0.0006847194585 | GK17: 0.0007655899094 | GL17: 0.0008505089834 | GM17: 0.0009397710835 | GN17: 0.001033693332 | GO17: 0.001132619365 | GP17: 0.001236923296 | GQ17: 0.001347013978 | GR17: 0.001463339673 | GS17: 0.001586393241 | GT17: 0.001716717931 | GU17: 0.001854913873 | GV17: 0.002001645343 | GW17: 0.002157648889 | GX17: 0.002323742348 | GY17: 0.002500834767 | GZ17: 0.002689937162 | HA17: 0.002892173926 | HB17: 0.003108794543 | HC17: 0.003341184987 | HD17: 0.003590877815 | HE17: 0.003859559467 | HF17: 0.00414907259 | HG17: 0.004461410398 | HH17: 0.004798699223 | HI17: 0.005163164622 | HJ17: 0.005557076217 | HK17: 0.005982667223 | HM17: 6 | HN17: 0.005365898197 | HO17: 0.002323469613
B18: PVFloor | C18: =SUM(OFFSET(HO11,0,0,HO7,1)) -> 0.02135936315 | E18: 7 | F18: =(Overview!F18-Overview!$C$8)/365 -> 7.008219178 | G18: =Overview!I18 -> 0.5 | H18: =Overview!K18 -> 0.8534175698 | I18: =Overview!L18/Overview!K18 -> 0.9821513357 | J18: =Overview!M18 -> 0.0378322117 | K18: 0.0378322117 | M18: 7 | N18: =IF($BK18="","",MAX(O18-$C$8,0)) -> 0 | O18: 0 | P18: 0 | Q18: 0 | R18: 0 | S18: 0 | T18: 0 | U18: 0 | V18: 0 | W18: 0 | X18: 0 | Y18: 0 | Z18: 0.000832211695 | AA18: 0.001832211695 | AB18: 0.002832211695 | AC18: 0.003832211695 | AD18: 0.004832211695 | AE18: 0.005832211695 | AF18: 0.006832211695 | AG18: 0.007832211695 | AH18: 0.008832211695 | AI18: 0.009832211695 | AJ18: 0.0108322117 | AK18: 0.0118322117 | AL18: 0.0128322117 | AM18: 0.0138322117 | AN18: 0.0148322117 | AO18: 0.0158322117 | AP18: 0.0168322117 | AQ18: 0.0178322117 | AR18: 0.0188322117 | AS18: 0.0198322117 | AT18: =IF($BK18="","",MAX(AU18-$C$8,0)) -> 0.0208322117 | AU18: 0.0218322117 | AV18: 0.0228322117 | AW18: 0.0238322117 | AX18: 0.0248322117 | AY18: 0.0258322117 | AZ18: 0.0268322117 | BA18: 0.0278322117 | BB18: 0.0288322117 | BC18: 0.0298322117 | BD18: 0.0308322117 | BE18: 0.0318322117 | BF18: 0.0328322117 | BG18: 0.0338322117 | BH18: 0.0348322117 | BI18: 0.0358322117 | BJ18: 0.0368322117 | BK18: 0.0378322117 | BM18: 7 | BN18: =IF(K18="","",getCMSFloorReplicationWeights(K18,$C$11,$C$12,$C$13,N18:BK18)) -> 0 | BO18: 0 | BP18: 0 | BQ18: 0 | BR18: 0 | BS18: 0 | BT18: 0 | BU18: 0 | BV18: 0 | BW18: 0 | BX18: 0 | BY18: 0 | BZ18: 0 | CA18: -0.001046802031 | CB18: -0.001051824533 | CC18: -0.001056837751 | CD18: -0.001061841544 | CE18: -0.001066835778 | CF18: -0.001071820316 | CG18: -0.001076795026 | CH18: -0.001081759775 | CI18: -0.001086714433 | CJ18: -0.001091658868 | CK18: -0.001096592954 | CL18: -0.001101516563 | CM18: -0.001106429571 | CN18: -0.001111331852 | CO18: -0.001116223285 | CP18: -0.001121103747 | CQ18: -0.00112597312 | CR18: -0.001130831284 | CS18: -0.001135678123 | CT18: -0.001140513521 | CU18: -0.001145337364 | CV18: -0.001150149538 | CW18: -0.001154949932 | CX18: -0.001159738436 | CY18: -0.001164514942 | CZ18: -0.001169279342 | DA18: -0.001174031531 | DB18: -0.001178771404 | DC18: -0.001183498857 | DD18: -0.00118821379 | DE18: -0.001192916102 | DF18: -0.001197605695 | DG18: -0.001202282471 | DH18: -0.001206946334 | DI18: -0.001211597189 | DJ18: -0.001216234944 | DK18: 0.1213543894 | DM18: 7 | DN18: =IF(N18>0,SABR_Vol_Test([0]!alpha_EUR,[0]!beta_EUR,[0]!rho_EUR,[0]!nu_EUR,$F18,Overview!$C$12,$K18,N18),0) -> 0 | DO18: =IF(O18>0,SABR_Vol_Test([0]!alpha_EUR,[0]!beta_EUR,[0]!rho_EUR,[0]!nu_EUR,$F18,Overview!$C$12,$K18,O18),0) -> 0 | DP18: =IF(P18>0,SABR_Vol_Test([0]!alpha_EUR,[0]!beta_EUR,[0]!rho_EUR,[0]!nu_EUR,$F18,Overview!$C$12,$K18,P18),0) -> 0 | DQ18: =IF(Q18>0,SABR_Vol_Test([0]!alpha_EUR,[0]!beta_EUR,[0]!rho_EUR,[0]!nu_EUR,$F18,Overview!$C$12,$K18,Q18),0) -> 0 | DR18: =IF(R18>0,SABR_Vol_Test([0]!alpha_EUR,[0]!beta_EUR,[0]!rho_EUR,[0]!nu_EUR,$F18,Overview!$C$12,$K18,R18),0) -> 0 | DS18: =IF(S18>0,SABR_Vol_Test([0]!alpha_EUR,[0]!beta_EUR,[0]!rho_EUR,[0]!nu_EUR,$F18,Overview!$C$12,$K18,S18),0) -> 0 | DT18: =IF(T18>0,SABR_Vol_Test([0]!alpha_EUR,[0]!beta_EUR,[0]!rho_EUR,[0]!nu_EUR,$F18,Overview!$C$12,$K18,T18),0) -> 0 | DU18: =IF(U18>0,SABR_Vol_Test([0]!alpha_EUR,[0]!beta_EUR,[0]!rho_EUR,[0]!nu_EUR,$F18,Overview!$C$12,$K18,U18),0) -> 0 | DV18: =IF(V18>0,SABR_Vol_Test([0]!alpha_EUR,[0]!beta_EUR,[0]!rho_EUR,[0]!nu_EUR,$F18,Overview!$C$12,$K18,V18),0) -> 0 | DW18: =IF(W18>0,SABR_Vol_Test([0]!alpha_EUR,[0]!beta_EUR,[0]!rho_EUR,[0]!nu_EUR,$F18,Overview!$C$12,$K18,W18),0) -> 0 | DX18: =IF(X18>0,SABR_Vol_Test([0]!alpha_EUR,[0]!beta_EUR,[0]!rho_EUR,[0]!nu_EUR,$F18,Overview!$C$12,$K18,X18),0) -> 0 | DY18: =IF(Y18>0,SABR_Vol_Test([0]!alpha_EUR,[0]!beta_EUR,[0]!rho_EUR,[0]!nu_EUR,$F18,Overview!$C$12,$K18,Y18),0) -> 0 | DZ18: =IF(Z18>0,SABR_Vol_Test([0]!alpha_EUR,[0]!beta_EUR,[0]!rho_EUR,[0]!nu_EUR,$F18,Overview!$C$12,$K18,Z18),0) -> 0.7221138266 | EA18: =IF(AA18>0,SABR_Vol_Test([0]!alpha_EUR,[0]!beta_EUR,[0]!rho_EUR,[0]!nu_EUR,$F18,Overview!$C$12,$K18,AA18),0) -> 0.6176709854 | EB18: =IF(AB18>0,SABR_Vol_Test([0]!alpha_EUR,[0]!beta_EUR,[0]!rho_EUR,[0]!nu_EUR,$F18,Overview!$C$12,$K18,AB18),0) -> 0.5578427966 | EC18: =IF(AC18>0,SABR_Vol_Test([0]!alpha_EUR,[0]!beta_EUR,[0]!rho_EUR,[0]!nu_EUR,$F18,Overview!$C$12,$K18,AC18),0) -> 0.5153081964 | ED18: =IF(AD18>0,SABR_Vol_Test([0]!alpha_EUR,[0]!beta_EUR,[0]!rho_EUR,[0]!nu_EUR,$F18,Overview!$C$12,$K18,AD18),0) -> 0.4820917711 | EE18: =IF(AE18>0,SABR_Vol_Test([0]!alpha_EUR,[0]!beta_EUR,[0]!rho_EUR,[0]!nu_EUR,$F18,Overview!$C$12,$K18,AE18),0) -> 0.4547302011 | EF18: =IF(AF18>0,SABR_Vol_Test([0]!alpha_EUR,[0]!beta_EUR,[0]!rho_EUR,[0]!nu_EUR,$F18,Overview!$C$12,$K18,AF18),0) -> 0.431398368 | EG18: =IF(AG18>0,SABR_Vol_Test([0]!alpha_EUR,[0]!beta_EUR,[0]!rho_EUR,[0]!nu_EUR,$F18,Overview!$C$12,$K18,AG18),0) -> 0.4110138784 | EH18: =IF(AH18>0,SABR_Vol_Test([0]!alpha_EUR,[0]!beta_EUR,[0]!rho_EUR,[0]!nu_EUR,$F18,Overview!$C$12,$K18,AH18),0) -> 0.392881088 | EI18: =IF(AI18>0,SABR_Vol_Test([0]!alpha_EUR,[0]!beta_EUR,[0]!rho_EUR,[0]!nu_EUR,$F18,Overview!$C$12,$K18,AI18),0) -> 0.3765259929 | EJ18: =IF(AJ18>0,SABR_Vol_Test([0]!alpha_EUR,[0]!beta_EUR,[0]!rho_EUR,[0]!nu_EUR,$F18,Overview!$C$12,$K18,AJ18),0) -> 0.3616109143 | EK18: =IF(AK18>0,SABR_Vol_Test([0]!alpha_EUR,[0]!beta_EUR,[0]!rho_EUR,[0]!nu_EUR,$F18,Overview!$C$12,$K18,AK18),0) -> 0.3478867218 | EL18: =IF(AL18>0,SABR_Vol_Test([0]!alpha_EUR,[0]!beta_EUR,[0]!rho_EUR,[0]!nu_EUR,$F18,Overview!$C$12,$K18,AL18),0) -> 0.3351643571 | EM18: =IF(AM18>0,SABR_Vol_Test([0]!alpha_EUR,[0]!beta_EUR,[0]!rho_EUR,[0]!nu_EUR,$F18,Overview!$C$12,$K18,AM18),0) -> 0.3232969927 | EN18: =IF(AN18>0,SABR_Vol_Test([0]!alpha_EUR,[0]!beta_EUR,[0]!rho_EUR,[0]!nu_EUR,$F18,Overview!$C$12,$K18,AN18),0) -> 0.3121683877 | EO18: =IF(AO18>0,SABR_Vol_Test([0]!alpha_EUR,[0]!beta_EUR,[0]!rho_EUR,[0]!nu_EUR,$F18,Overview!$C$12,$K18,AO18),0) -> 0.3016850275 | EP18: =IF(AP18>0,SABR_Vol_Test([0]!alpha_EUR,[0]!beta_EUR,[0]!rho_EUR,[0]!nu_EUR,$F18,Overview!$C$12,$K18,AP18),0) -> 0.2917706629 | EQ18: =IF(AQ18>0,SABR_Vol_Test([0]!alpha_EUR,[0]!beta_EUR,[0]!rho_EUR,[0]!nu_EUR,$F18,Overview!$C$12,$K18,AQ18),0) -> 0.2823624246 | ER18: =IF(AR18>0,SABR_Vol_Test([0]!alpha_EUR,[0]!beta_EUR,[0]!rho_EUR,[0]!nu_EUR,$F18,Overview!$C$12,$K18,AR18),0) -> 0.2734080022 | ES18: =IF(AS18>0,SABR_Vol_Test([0]!alpha_EUR,[0]!beta_EUR,[0]!rho_EUR,[0]!nu_EUR,$F18,Overview!$C$12,$K18,AS18),0) -> 0.2648635605 | ET18: =IF(AT18>0,SABR_Vol_Test([0]!alpha_EUR,[0]!beta_EUR,[0]!rho_EUR,[0]!nu_EUR,$F18,Overview!$C$12,$K18,AT18),0) -> 0.2566921803 | EU18: =IF(AU18>0,SABR_Vol_Test([0]!alpha_EUR,[0]!beta_EUR,[0]!rho_EUR,[0]!nu_EUR,$F18,Overview!$C$12,$K18,AU18),0) -> 0.2488626786 | EV18: =IF(AV18>0,SABR_Vol_Test([0]!alpha_EUR,[0]!beta_EUR,[0]!rho_EUR,[0]!nu_EUR,$F18,Overview!$C$12,$K18,AV18),0) -> 0.2413487121 | EW18: =IF(AW18>0,SABR_Vol_Test([0]!alpha_EUR,[0]!beta_EUR,[0]!rho_EUR,[0]!nu_EUR,$F18,Overview!$C$12,$K18,AW18),0) -> 0.2341280929 | EX18: =IF(AX18>0,SABR_Vol_Test([0]!alpha_EUR,[0]!beta_EUR,[0]!rho_EUR,[0]!nu_EUR,$F18,Overview!$C$12,$K18,AX18),0) -> 0.2271822708 | EY18: =IF(AY18>0,SABR_Vol_Test([0]!alpha_EUR,[0]!beta_EUR,[0]!rho_EUR,[0]!nu_EUR,$F18,Overview!$C$12,$K18,AY18),0) -> 0.2204959448 | EZ18: =IF(AZ18>0,SABR_Vol_Test([0]!alpha_EUR,[0]!beta_EUR,[0]!rho_EUR,[0]!nu_EUR,$F18,Overview!$C$12,$K18,AZ18),0) -> 0.2140567815 | FA18: =IF(BA18>0,SABR_Vol_Test([0]!alpha_EUR,[0]!beta_EUR,[0]!rho_EUR,[0]!nu_EUR,$F18,Overview!$C$12,$K18,BA18),0) -> 0.2078552184 | FB18: =IF(BB18>0,SABR_Vol_Test([0]!alpha_EUR,[0]!beta_EUR,[0]!rho_EUR,[0]!nu_EUR,$F18,Overview!$C$12,$K18,BB18),0) -> 0.201884339 | FC18: =IF(BC18>0,SABR_Vol_Test([0]!alpha_EUR,[0]!beta_EUR,[0]!rho_EUR,[0]!nu_EUR,$F18,Overview!$C$12,$K18,BC18),0) -> 0.1961398069 | FD18: =IF(BD18>0,SABR_Vol_Test([0]!alpha_EUR,[0]!beta_EUR,[0]!rho_EUR,[0]!nu_EUR,$F18,Overview!$C$12,$K18,BD18),0) -> 0.1906198433 | FE18: =IF(BE18>0,SABR_Vol_Test([0]!alpha_EUR,[0]!beta_EUR,[0]!rho_EUR,[0]!nu_EUR,$F18,Overview!$C$12,$K18,BE18),0) -> 0.1853252364 | FF18: =IF(BF18>0,SABR_Vol_Test([0]!alpha_EUR,[0]!beta_EUR,[0]!rho_EUR,[0]!nu_EUR,$F18,Overview!$C$12,$K18,BF18),0) -> 0.1802593595 | FG18: =IF(BG18>0,SABR_Vol_Test([0]!alpha_EUR,[0]!beta_EUR,[0]!rho_EUR,[0]!nu_EUR,$F18,Overview!$C$12,$K18,BG18),0) -> 0.175428174 | FH18: =IF(BH18>0,SABR_Vol_Test([0]!alpha_EUR,[0]!beta_EUR,[0]!rho_EUR,[0]!nu_EUR,$F18,Overview!$C$12,$K18,BH18),0) -> 0.1708401809 | FI18: =IF(BI18>0,SABR_Vol_Test([0]!alpha_EUR,[0]!beta_EUR,[0]!rho_EUR,[0]!nu_EUR,$F18,Overview!$C$12,$K18,BI18),0) -> 0.1665062743 | FJ18: =IF(BJ18>0,SABR_Vol_Test([0]!alpha_EUR,[0]!beta_EUR,[0]!rho_EUR,[0]!nu_EUR,$F18,Overview!$C$12,$K18,BJ18),0) -> 0.1624394425 | FK18: =IF(BK18>0,SABR_Vol_Test([0]!alpha_EUR,[0]!beta_EUR,[0]!rho_EUR,[0]!nu_EUR,$F18,Overview!$C$12,$K18,BK18),0) -> 0.158654258 | FM18: 7 | FN18: 0 | FO18: 0 | FP18: 0 | FQ18: 0 | FR18: 0 | FS18: 0 | FT18: 0 | FU18: 0 | FV18: 0 | FW18: 0 | FX18: 0 | FY18: 0 | FZ18: 0 | GA18: 0.0001320334936 | GB18: 0.000198711403 | GC18: 0.0002661919392 | GD18: 0.0003352651277 | GE18: 0.0004064114683 | GF18: 0.0004799847992 | GG18: 0.0005562807234 | GH18: 0.0006355681308 | GI18: 0.0007181060369 | GJ18: 0.0008041537587 | GK18: 0.0008939778053 | GL18: 0.0009878570776 | GM18: 0.001086087204 | GN18: 0.001188984478 | GO18: 0.001296889693 | GP18: 0.001410172054 | GQ18: 0.001529233317 | GR18: 0.001654512276 | GS18: 0.001786489679 | GT18: 0.001925693684 | GU18: 0.00207270592 | GV18: 0.002228168236 | GW18: 0.002392790197 | GX18: 0.002567357356 | GY18: 0.002752740304 | GZ18: 0.002949904422 | HA18: 0.003159920154 | HB18: 0.003383973475 | HC18: 0.003623375995 | HD18: 0.003879573804 | HE18: 0.004154153738 | HF18: 0.004448845177 | HG18: 0.004765514795 | HH18: 0.005106150964 | HI18: 0.005472833919 | HJ18: 0.005867687559 | HK18: 0.006292809469 | HM18: 7 | HN18: 0.005622239283 | HO18: 0.002356238896
E19: 8 | F19: =(Overview!F19-Overview!$C$8)/365 -> 8.010958904 | G19: =Overview!I19 -> 0.498630137 | H19: =Overview!K19 -> 0.8228270888 | I19: =Overview!L19/Overview!K19 -> 0.9814429661 | J19: =Overview!M19 -> 0.03785005424 | K19: 0.03785005424 | M19: 8 | N19: =IF($BK19="","",MAX(O19-$C$8,0)) -> 0 | O19: 0 | P19: 0 | Q19: 0 | R19: 0 | S19: 0 | T19: 0 | U19: 0 | V19: 0 | W19: 0 | X19: 0 | Y19: 0 | Z19: 0.0008500542363 | AA19: 0.001850054236 | AB19: 0.002850054236 | AC19: 0.003850054236 | AD19: 0.004850054236 | AE19: 0.005850054236 | AF19: 0.006850054236 | AG19: 0.007850054236 | AH19: 0.008850054236 | AI19: 0.009850054236 | AJ19: 0.01085005424 | AK19: 0.01185005424 | AL19: 0.01285005424 | AM19: 0.01385005424 | AN19: 0.01485005424 | AO19: 0.01585005424 | AP19: 0.01685005424 | AQ19: 0.01785005424 | AR19: 0.01885005424 | AS19: 0.01985005424 | AT19: =IF($BK19="","",MAX(AU19-$C$8,0)) -> 0.02085005424 | AU19: 0.02185005424 | AV19: 0.02285005424 | AW19: 0.02385005424 | AX19: 0.02485005424 | AY19: 0.02585005424 | AZ19: 0.02685005424 | BA19: 0.02785005424 | BB19: 0.02885005424 | BC19: 0.02985005424 | BD19: 0.03085005424 | BE19: 0.03185005424 | BF19: 0.03285005424 | BG19: 0.03385005424 | BH19: 0.03485005424 | BI19: 0.03585005424 | BJ19: 0.03685005424 | BK19: 0.03785005424 | BM19: 8 | BN19: =IF(K19="","",getCMSFloorReplicationWeights(K19,$C$11,$C$12,$C$13,N19:BK19)) -> 0 | BO19: 0 | BP19: 0 | BQ19: 0 | BR19: 0 | BS19: 0 | BT19: 0 | BU19: 0 | BV19: 0 | BW19: 0 | BX19: 0 | BY19: 0 | BZ19: 0 | CA19: -0.001046862368 | CB19: -0.001051884751 | CC19: -0.001056897847 | CD19: -0.001061901517 | CE19: -0.001066895626 | CF19: -0.001071880038 | CG19: -0.001076854619 | CH19: -0.001081819237 | CI19: -0.001086773761 | CJ19: -0.001091718062 | CK19: -0.001096652011 | CL19: -0.001101575482 | CM19: -0.00110648835 | CN19: -0.001111390489 | CO19: -0.001116281778 | CP19: -0.001121162095 | CQ19: -0.001126031321 | CR19: -0.001130889336 | CS19: -0.001135736025 | CT19: -0.00114057127 | CU19: -0.001145394959 | CV19: -0.001150206978 | CW19: -0.001155007215 | CX19: -0.001159795561 | CY19: -0.001164571907 | CZ19: -0.001169336145 | DA19: -0.001174088171 | DB19: -0.001178827878 | DC19: -0.001183555166 | DD19: -0.001188269931 | DE19: -0.001192972075 | DF19: -0.001197661497 | DG19: -0.001202338101 | DH19: -0.001207001791 | DI19: -0.001211652471 | DJ19: -0.001216290051 | DK19: 0.1213652537 | DM19: 8 | DN19: =IF(N19>0,SABR_Vol_Test([0]!alpha_EUR,[0]!beta_EUR,[0]!rho_EUR,[0]!nu_EUR,$F19,Overview!$C$12,$K19,N19),0) -> 0 | DO19: =IF(O19>0,SABR_Vol_Test([0]!alpha_EUR,[0]!beta_EUR,[0]!rho_EUR,[0]!nu_EUR,$F19,Overview!$C$12,$K19,O19),0) -> 0 | DP19: =IF(P19>0,SABR_Vol_Test([0]!alpha_EUR,[0]!beta_EUR,[0]!rho_EUR,[0]!nu_EUR,$F19,Overview!$C$12,$K19,P19),0) -> 0 | DQ19: =IF(Q19>0,SABR_Vol_Test([0]!alpha_EUR,[0]!beta_EUR,[0]!rho_EUR,[0]!nu_EUR,$F19,Overview!$C$12,$K19,Q19),0) -> 0 | DR19: =IF(R19>0,SABR_Vol_Test([0]!alpha_EUR,[0]!beta_EUR,[0]!rho_EUR,[0]!nu_EUR,$F19,Overview!$C$12,$K19,R19),0) -> 0 | DS19: =IF(S19>0,SABR_Vol_Test([0]!alpha_EUR,[0]!beta_EUR,[0]!rho_EUR,[0]!nu_EUR,$F19,Overview!$C$12,$K19,S19),0) -> 0 | DT19: =IF(T19>0,SABR_Vol_Test([0]!alpha_EUR,[0]!beta_EUR,[0]!rho_EUR,[0]!nu_EUR,$F19,Overview!$C$12,$K19,T19),0) -> 0 | DU19: =IF(U19>0,SABR_Vol_Test([0]!alpha_EUR,[0]!beta_EUR,[0]!rho_EUR,[0]!nu_EUR,$F19,Overview!$C$12,$K19,U19),0) -> 0 | DV19: =IF(V19>0,SABR_Vol_Test([0]!alpha_EUR,[0]!beta_EUR,[0]!rho_EUR,[0]!nu_EUR,$F19,Overview!$C$12,$K19,V19),0) -> 0 | DW19: =IF(W19>0,SABR_Vol_Test([0]!alpha_EUR,[0]!beta_EUR,[0]!rho_EUR,[0]!nu_EUR,$F19,Overview!$C$12,$K19,W19),0) -> 0 | DX19: =IF(X19>0,SABR_Vol_Test([0]!alpha_EUR,[0]!beta_EUR,[0]!rho_EUR,[0]!nu_EUR,$F19,Overview!$C$12,$K19,X19),0) -> 0 | DY19: =IF(Y19>0,SABR_Vol_Test([0]!alpha_EUR,[0]!beta_EUR,[0]!rho_EUR,[0]!nu_EUR,$F19,Overview!$C$12,$K19,Y19),0) -> 0 | DZ19: =IF(Z19>0,SABR_Vol_Test([0]!alpha_EUR,[0]!beta_EUR,[0]!rho_EUR,[0]!nu_EUR,$F19,Overview!$C$12,$K19,Z19),0) -> 0.6852125688 | EA19: =IF(AA19>0,SABR_Vol_Test([0]!alpha_EUR,[0]!beta_EUR,[0]!rho_EUR,[0]!nu_EUR,$F19,Overview!$C$12,$K19,AA19),0) -> 0.5876040347 | EB19: =IF(AB19>0,SABR_Vol_Test([0]!alpha_EUR,[0]!beta_EUR,[0]!rho_EUR,[0]!nu_EUR,$F19,Overview!$C$12,$K19,AB19),0) -> 0.5312963978 | EC19: =IF(AC19>0,SABR_Vol_Test([0]!alpha_EUR,[0]!beta_EUR,[0]!rho_EUR,[0]!nu_EUR,$F19,Overview!$C$12,$K19,AC19),0) -> 0.4911597799 | ED19: =IF(AD19>0,SABR_Vol_Test([0]!alpha_EUR,[0]!beta_EUR,[0]!rho_EUR,[0]!nu_EUR,$F19,Overview!$C$12,$K19,AD19),0) -> 0.4597719937 | EE19: =IF(AE19>0,SABR_Vol_Test([0]!alpha_EUR,[0]!beta_EUR,[0]!rho_EUR,[0]!nu_EUR,$F19,Overview!$C$12,$K19,AE19),0) -> 0.4338940204 | EF19: =IF(AF19>0,SABR_Vol_Test([0]!alpha_EUR,[0]!beta_EUR,[0]!rho_EUR,[0]!nu_EUR,$F19,Overview!$C$12,$K19,AF19),0) -> 0.4118140628 | EG19: =IF(AG19>0,SABR_Vol_Test([0]!alpha_EUR,[0]!beta_EUR,[0]!rho_EUR,[0]!nu_EUR,$F19,Overview!$C$12,$K19,AG19),0) -> 0.3925150071 | EH19: =IF(AH19>0,SABR_Vol_Test([0]!alpha_EUR,[0]!beta_EUR,[0]!rho_EUR,[0]!nu_EUR,$F19,Overview!$C$12,$K19,AH19),0) -> 0.3753422744 | EI19: =IF(AI19>0,SABR_Vol_Test([0]!alpha_EUR,[0]!beta_EUR,[0]!rho_EUR,[0]!nu_EUR,$F19,Overview!$C$12,$K19,AI19),0) -> 0.3598493846 | EJ19: =IF(AJ19>0,SABR_Vol_Test([0]!alpha_EUR,[0]!beta_EUR,[0]!rho_EUR,[0]!nu_EUR,$F19,Overview!$C$12,$K19,AJ19),0) -> 0.3457180111 | EK19: =IF(AK19>0,SABR_Vol_Test([0]!alpha_EUR,[0]!beta_EUR,[0]!rho_EUR,[0]!nu_EUR,$F19,Overview!$C$12,$K19,AK19),0) -> 0.3327131503 | EL19: =IF(AL19>0,SABR_Vol_Test([0]!alpha_EUR,[0]!beta_EUR,[0]!rho_EUR,[0]!nu_EUR,$F19,Overview!$C$12,$K19,AL19),0) -> 0.3206563704 | EM19: =IF(AM19>0,SABR_Vol_Test([0]!alpha_EUR,[0]!beta_EUR,[0]!rho_EUR,[0]!nu_EUR,$F19,Overview!$C$12,$K19,AM19),0) -> 0.3094090364 | EN19: =IF(AN19>0,SABR_Vol_Test([0]!alpha_EUR,[0]!beta_EUR,[0]!rho_EUR,[0]!nu_EUR,$F19,Overview!$C$12,$K19,AN19),0) -> 0.2988613528 | EO19: =IF(AO19>0,SABR_Vol_Test([0]!alpha_EUR,[0]!beta_EUR,[0]!rho_EUR,[0]!nu_EUR,$F19,Overview!$C$12,$K19,AO19),0) -> 0.2889249624 | EP19: =IF(AP19>0,SABR_Vol_Test([0]!alpha_EUR,[0]!beta_EUR,[0]!rho_EUR,[0]!nu_EUR,$F19,Overview!$C$12,$K19,AP19),0) -> 0.2795278011 | EQ19: =IF(AQ19>0,SABR_Vol_Test([0]!alpha_EUR,[0]!beta_EUR,[0]!rho_EUR,[0]!nu_EUR,$F19,Overview!$C$12,$K19,AQ19),0) -> 0.2706104351 | ER19: =IF(AR19>0,SABR_Vol_Test([0]!alpha_EUR,[0]!beta_EUR,[0]!rho_EUR,[0]!nu_EUR,$F19,Overview!$C$12,$K19,AR19),0) -> 0.2621233998 | ES19: =IF(AS19>0,SABR_Vol_Test([0]!alpha_EUR,[0]!beta_EUR,[0]!rho_EUR,[0]!nu_EUR,$F19,Overview!$C$12,$K19,AS19),0) -> 0.2540252331 | ET19: =IF(AT19>0,SABR_Vol_Test([0]!alpha_EUR,[0]!beta_EUR,[0]!rho_EUR,[0]!nu_EUR,$F19,Overview!$C$12,$K19,AT19),0) -> 0.2462810024 | EU19: =IF(AU19>0,SABR_Vol_Test([0]!alpha_EUR,[0]!beta_EUR,[0]!rho_EUR,[0]!nu_EUR,$F19,Overview!$C$12,$K19,AU19),0) -> 0.2388611896 | EV19: =IF(AV19>0,SABR_Vol_Test([0]!alpha_EUR,[0]!beta_EUR,[0]!rho_EUR,[0]!nu_EUR,$F19,Overview!$C$12,$K19,AV19),0) -> 0.2317408409 | EW19: =IF(AW19>0,SABR_Vol_Test([0]!alpha_EUR,[0]!beta_EUR,[0]!rho_EUR,[0]!nu_EUR,$F19,Overview!$C$12,$K19,AW19),0) -> 0.2248989182 | EX19: =IF(AX19>0,SABR_Vol_Test([0]!alpha_EUR,[0]!beta_EUR,[0]!rho_EUR,[0]!nu_EUR,$F19,Overview!$C$12,$K19,AX19),0) -> 0.2183178051 | EY19: =IF(AY19>0,SABR_Vol_Test([0]!alpha_EUR,[0]!beta_EUR,[0]!rho_EUR,[0]!nu_EUR,$F19,Overview!$C$12,$K19,AY19),0) -> 0.2119829346 | EZ19: =IF(AZ19>0,SABR_Vol_Test([0]!alpha_EUR,[0]!beta_EUR,[0]!rho_EUR,[0]!nu_EUR,$F19,Overview!$C$12,$K19,AZ19),0) -> 0.2058825156 | FA19: =IF(BA19>0,SABR_Vol_Test([0]!alpha_EUR,[0]!beta_EUR,[0]!rho_EUR,[0]!nu_EUR,$F19,Overview!$C$12,$K19,BA19),0) -> 0.2000073388 | FB19: =IF(BB19>0,SABR_Vol_Test([0]!alpha_EUR,[0]!beta_EUR,[0]!rho_EUR,[0]!nu_EUR,$F19,Overview!$C$12,$K19,BB19),0) -> 0.1943506478 | FC19: =IF(BC19>0,SABR_Vol_Test([0]!alpha_EUR,[0]!beta_EUR,[0]!rho_EUR,[0]!nu_EUR,$F19,Overview!$C$12,$K19,BC19),0) -> 0.1889080638 | FD19: =IF(BD19>0,SABR_Vol_Test([0]!alpha_EUR,[0]!beta_EUR,[0]!rho_EUR,[0]!nu_EUR,$F19,Overview!$C$12,$K19,BD19),0) -> 0.1836775504 | FE19: =IF(BE19>0,SABR_Vol_Test([0]!alpha_EUR,[0]!beta_EUR,[0]!rho_EUR,[0]!nu_EUR,$F19,Overview!$C$12,$K19,BE19),0) -> 0.1786594059 | FF19: =IF(BF19>0,SABR_Vol_Test([0]!alpha_EUR,[0]!beta_EUR,[0]!rho_EUR,[0]!nu_EUR,$F19,Overview!$C$12,$K19,BF19),0) -> 0.1738562642 | FG19: =IF(BG19>0,SABR_Vol_Test([0]!alpha_EUR,[0]!beta_EUR,[0]!rho_EUR,[0]!nu_EUR,$F19,Overview!$C$12,$K19,BG19),0) -> 0.1692730837 | FH19: =IF(BH19>0,SABR_Vol_Test([0]!alpha_EUR,[0]!beta_EUR,[0]!rho_EUR,[0]!nu_EUR,$F19,Overview!$C$12,$K19,BH19),0) -> 0.1649170917 | FI19: =IF(BI19>0,SABR_Vol_Test([0]!alpha_EUR,[0]!beta_EUR,[0]!rho_EUR,[0]!nu_EUR,$F19,Overview!$C$12,$K19,BI19),0) -> 0.1607976486 | FJ19: =IF(BJ19>0,SABR_Vol_Test([0]!alpha_EUR,[0]!beta_EUR,[0]!rho_EUR,[0]!nu_EUR,$F19,Overview!$C$12,$K19,BJ19),0) -> 0.1569259847 | FK19: =IF(BK19>0,SABR_Vol_Test([0]!alpha_EUR,[0]!beta_EUR,[0]!rho_EUR,[0]!nu_EUR,$F19,Overview!$C$12,$K19,BK19),0) -> 0.153314762 | FM19: 8 | FN19: 0 | FO19: 0 | FP19: 0 | FQ19: 0 | FR19: 0 | FS19: 0 | FT19: 0 | FU19: 0 | FV19: 0 | FW19: 0 | FX19: 0 | FY19: 0 | FZ19: 0 | GA19: 0.0001471124185 | GB19: 0.0002201522191 | GC19: 0.0002937878632 | GD19: 0.0003688994249 | GE19: 0.0004460175517 | GF19: 0.0005255275206 | GG19: 0.0006077461444 | GH19: 0.0006929573056 | GI19: 0.0007814309113 | GJ19: 0.0008734342703 | GK19: 0.0009692396938 | GL19: 0.001069130123 | GM19: 0.001173403718 | GN19: 0.001282377927 | GO19: 0.001396393366 | GP19: 0.001515817711 | GQ19: 0.001641049754 | GR19: 0.001772523753 | GS19: 0.001910714149 | GT19: 0.002056140765 | GU19: 0.002209374538 | GV19: 0.002371043869 | GW19: 0.002541841623 | GX19: 0.002722532814 | GY19: 0.002913962955 | GZ19: 0.00311706699 | HA19: 0.00333287864 | HB19: 0.003562539829 | HC19: 0.003807309679 | HD19: 0.004068572243 | HE19: 0.004347841789 | HF19: 0.004646763941 | HG19: 0.004967110397 | HH19: 0.005310764365 | HI19: 0.005679693314 | HJ19: 0.006075905542 | HK19: 0.006501387558 | HM19: 8 | HN19: 0.005796181288 | HO19: 0.002333963886
E20: 9 | F20: =(Overview!F20-Overview!$C$8)/365 -> 9.010958904 | G20: =Overview!I20 -> 0.498630137 | H20: =Overview!K20 -> 0.7923378228 | I20: =Overview!L20/Overview!K20 -> 0.9811433938 | J20: =Overview!M20 -> 0.03767849115 | K20: 0.03767849115 | M20: 9 | N20: =IF($BK20="","",MAX(O20-$C$8,0)) -> 0 | O20: 0 | P20: 0 | Q20: 0 | R20: 0 | S20: 0 | T20: 0 | U20: 0 | V20: 0 | W20: 0 | X20: 0 | Y20: 0 | Z20: 0.0006784911494 | AA20: 0.001678491149 | AB20: 0.002678491149 | AC20: 0.003678491149 | AD20: 0.004678491149 | AE20: 0.005678491149 | AF20: 0.006678491149 | AG20: 0.007678491149 | AH20: 0.008678491149 | AI20: 0.009678491149 | AJ20: 0.01067849115 | AK20: 0.01167849115 | AL20: 0.01267849115 | AM20: 0.01367849115 | AN20: 0.01467849115 | AO20: 0.01567849115 | AP20: 0.01667849115 | AQ20: 0.01767849115 | AR20: 0.01867849115 | AS20: 0.01967849115 | AT20: =IF($BK20="","",MAX(AU20-$C$8,0)) -> 0.02067849115 | AU20: 0.02167849115 | AV20: 0.02267849115 | AW20: 0.02367849115 | AX20: 0.02467849115 | AY20: 0.02567849115 | AZ20: 0.02667849115 | BA20: 0.02767849115 | BB20: 0.02867849115 | BC20: 0.02967849115 | BD20: 0.03067849115 | BE20: 0.03167849115 | BF20: 0.03267849115 | BG20: 0.03367849115 | BH20: 0.03467849115 | BI20: 0.03567849115 | BJ20: 0.03667849115 | BK20: 0.03767849115 | BM20: 9 | BN20: =IF(K20="","",getCMSFloorReplicationWeights(K20,$C$11,$C$12,$C$13,N20:BK20)) -> 0 | BO20: 0 | BP20: 0 | BQ20: 0 | BR20: 0 | BS20: 0 | BT20: 0 | BU20: 0 | BV20: 0 | BW20: 0 | BX20: 0 | BY20: 0 | BZ20: 0 | CA20: -0.001046282147 | CB20: -0.001051305677 | CC20: -0.001056319937 | CD20: -0.001061324791 | CE20: -0.001066320101 | CF20: -0.001071305734 | CG20: -0.001076281555 | CH20: -0.001081247431 | CI20: -0.001086203231 | CJ20: -0.001091148826 | CK20: -0.001096084086 | CL20: -0.001101008887 | CM20: -0.0011059231 | CN20: -0.001110826603 | CO20: -0.001115719273 | CP20: -0.001120600987 | CQ20: -0.001125471626 | CR20: -0.001130331072 | CS20: -0.001135179207 | CT20: -0.001140015915 | CU20: -0.001144841081 | CV20: -0.001149654593 | CW20: -0.001154456339 | CX20: -0.001159246209 | CY20: -0.001164024094 | CZ20: -0.001168789886 | DA20: -0.001173543479 | DB20: -0.00117828477 | DC20: -0.001183013654 | DD20: -0.00118773003 | DE20: -0.001192433797 | DF20: -0.001197124857 | DG20: -0.001201803112 | DH20: -0.001206468466 | DI20: -0.001211120824 | DJ20: -0.001215760093 | DK20: 0.1212608088 | DM20: 9 | DN20: =IF(N20>0,SABR_Vol_Test([0]!alpha_EUR,[0]!beta_EUR,[0]!rho_EUR,[0]!nu_EUR,$F20,Overview!$C$12,$K20,N20),0) -> 0 | DO20: =IF(O20>0,SABR_Vol_Test([0]!alpha_EUR,[0]!beta_EUR,[0]!rho_EUR,[0]!nu_EUR,$F20,Overview!$C$12,$K20,O20),0) -> 0 | DP20: =IF(P20>0,SABR_Vol_Test([0]!alpha_EUR,[0]!beta_EUR,[0]!rho_EUR,[0]!nu_EUR,$F20,Overview!$C$12,$K20,P20),0) -> 0 | DQ20: =IF(Q20>0,SABR_Vol_Test([0]!alpha_EUR,[0]!beta_EUR,[0]!rho_EUR,[0]!nu_EUR,$F20,Overview!$C$12,$K20,Q20),0) -> 0 | DR20: =IF(R20>0,SABR_Vol_Test([0]!alpha_EUR,[0]!beta_EUR,[0]!rho_EUR,[0]!nu_EUR,$F20,Overview!$C$12,$K20,R20),0) -> 0 | DS20: =IF(S20>0,SABR_Vol_Test([0]!alpha_EUR,[0]!beta_EUR,[0]!rho_EUR,[0]!nu_EUR,$F20,Overview!$C$12,$K20,S20),0) -> 0 | DT20: =IF(T20>0,SABR_Vol_Test([0]!alpha_EUR,[0]!beta_EUR,[0]!rho_EUR,[0]!nu_EUR,$F20,Overview!$C$12,$K20,T20),0) -> 0 | DU20: =IF(U20>0,SABR_Vol_Test([0]!alpha_EUR,[0]!beta_EUR,[0]!rho_EUR,[0]!nu_EUR,$F20,Overview!$C$12,$K20,U20),0) -> 0 | DV20: =IF(V20>0,SABR_Vol_Test([0]!alpha_EUR,[0]!beta_EUR,[0]!rho_EUR,[0]!nu_EUR,$F20,Overview!$C$12,$K20,V20),0) -> 0 | DW20: =IF(W20>0,SABR_Vol_Test([0]!alpha_EUR,[0]!beta_EUR,[0]!rho_EUR,[0]!nu_EUR,$F20,Overview!$C$12,$K20,W20),0) -> 0 | DX20: =IF(X20>0,SABR_Vol_Test([0]!alpha_EUR,[0]!beta_EUR,[0]!rho_EUR,[0]!nu_EUR,$F20,Overview!$C$12,$K20,X20),0) -> 0 | DY20: =IF(Y20>0,SABR_Vol_Test([0]!alpha_EUR,[0]!beta_EUR,[0]!rho_EUR,[0]!nu_EUR,$F20,Overview!$C$12,$K20,Y20),0) -> 0 | DZ20: =IF(Z20>0,SABR_Vol_Test([0]!alpha_EUR,[0]!beta_EUR,[0]!rho_EUR,[0]!nu_EUR,$F20,Overview!$C$12,$K20,Z20),0) -> 0.6766280215 | EA20: =IF(AA20>0,SABR_Vol_Test([0]!alpha_EUR,[0]!beta_EUR,[0]!rho_EUR,[0]!nu_EUR,$F20,Overview!$C$12,$K20,AA20),0) -> 0.570154485 | EB20: =IF(AB20>0,SABR_Vol_Test([0]!alpha_EUR,[0]!beta_EUR,[0]!rho_EUR,[0]!nu_EUR,$F20,Overview!$C$12,$K20,AB20),0) -> 0.5128186977 | EC20: =IF(AC20>0,SABR_Vol_Test([0]!alpha_EUR,[0]!beta_EUR,[0]!rho_EUR,[0]!nu_EUR,$F20,Overview!$C$12,$K20,AC20),0) -> 0.4728911894 | ED20: =IF(AD20>0,SABR_Vol_Test([0]!alpha_EUR,[0]!beta_EUR,[0]!rho_EUR,[0]!nu_EUR,$F20,Overview!$C$12,$K20,AD20),0) -> 0.4420382452 | EE20: =IF(AE20>0,SABR_Vol_Test([0]!alpha_EUR,[0]!beta_EUR,[0]!rho_EUR,[0]!nu_EUR,$F20,Overview!$C$12,$K20,AE20),0) -> 0.4167866586 | EF20: =IF(AF20>0,SABR_Vol_Test([0]!alpha_EUR,[0]!beta_EUR,[0]!rho_EUR,[0]!nu_EUR,$F20,Overview!$C$12,$K20,AF20),0) -> 0.3953475458 | EG20: =IF(AG20>0,SABR_Vol_Test([0]!alpha_EUR,[0]!beta_EUR,[0]!rho_EUR,[0]!nu_EUR,$F20,Overview!$C$12,$K20,AG20),0) -> 0.3766755847 | EH20: =IF(AH20>0,SABR_Vol_Test([0]!alpha_EUR,[0]!beta_EUR,[0]!rho_EUR,[0]!nu_EUR,$F20,Overview!$C$12,$K20,AH20),0) -> 0.3601059078 | EI20: =IF(AI20>0,SABR_Vol_Test([0]!alpha_EUR,[0]!beta_EUR,[0]!rho_EUR,[0]!nu_EUR,$F20,Overview!$C$12,$K20,AI20),0) -> 0.3451889711 | EJ20: =IF(AJ20>0,SABR_Vol_Test([0]!alpha_EUR,[0]!beta_EUR,[0]!rho_EUR,[0]!nu_EUR,$F20,Overview!$C$12,$K20,AJ20),0) -> 0.3316064288 | EK20: =IF(AK20>0,SABR_Vol_Test([0]!alpha_EUR,[0]!beta_EUR,[0]!rho_EUR,[0]!nu_EUR,$F20,Overview!$C$12,$K20,AK20),0) -> 0.3191245302 | EL20: =IF(AL20>0,SABR_Vol_Test([0]!alpha_EUR,[0]!beta_EUR,[0]!rho_EUR,[0]!nu_EUR,$F20,Overview!$C$12,$K20,AL20),0) -> 0.3075665751 | EM20: =IF(AM20>0,SABR_Vol_Test([0]!alpha_EUR,[0]!beta_EUR,[0]!rho_EUR,[0]!nu_EUR,$F20,Overview!$C$12,$K20,AM20),0) -> 0.2967957751 | EN20: =IF(AN20>0,SABR_Vol_Test([0]!alpha_EUR,[0]!beta_EUR,[0]!rho_EUR,[0]!nu_EUR,$F20,Overview!$C$12,$K20,AN20),0) -> 0.2867041297 | EO20: =IF(AO20>0,SABR_Vol_Test([0]!alpha_EUR,[0]!beta_EUR,[0]!rho_EUR,[0]!nu_EUR,$F20,Overview!$C$12,$K20,AO20),0) -> 0.2772049518 | EP20: =IF(AP20>0,SABR_Vol_Test([0]!alpha_EUR,[0]!beta_EUR,[0]!rho_EUR,[0]!nu_EUR,$F20,Overview!$C$12,$K20,AP20),0) -> 0.268227696 | EQ20: =IF(AQ20>0,SABR_Vol_Test([0]!alpha_EUR,[0]!beta_EUR,[0]!rho_EUR,[0]!nu_EUR,$F20,Overview!$C$12,$K20,AQ20),0) -> 0.2597142898 | ER20: =IF(AR20>0,SABR_Vol_Test([0]!alpha_EUR,[0]!beta_EUR,[0]!rho_EUR,[0]!nu_EUR,$F20,Overview!$C$12,$K20,AR20),0) -> 0.2516164769 | ES20: =IF(AS20>0,SABR_Vol_Test([0]!alpha_EUR,[0]!beta_EUR,[0]!rho_EUR,[0]!nu_EUR,$F20,Overview!$C$12,$K20,AS20),0) -> 0.2438938591 | ET20: =IF(AT20>0,SABR_Vol_Test([0]!alpha_EUR,[0]!beta_EUR,[0]!rho_EUR,[0]!nu_EUR,$F20,Overview!$C$12,$K20,AT20),0) -> 0.2365124319 | EU20: =IF(AU20>0,SABR_Vol_Test([0]!alpha_EUR,[0]!beta_EUR,[0]!rho_EUR,[0]!nu_EUR,$F20,Overview!$C$12,$K20,AU20),0) -> 0.2294434772 | EV20: =IF(AV20>0,SABR_Vol_Test([0]!alpha_EUR,[0]!beta_EUR,[0]!rho_EUR,[0]!nu_EUR,$F20,Overview!$C$12,$K20,AV20),0) -> 0.2226627206 | EW20: =IF(AW20>0,SABR_Vol_Test([0]!alpha_EUR,[0]!beta_EUR,[0]!rho_EUR,[0]!nu_EUR,$F20,Overview!$C$12,$K20,AW20),0) -> 0.2161496855 | EX20: =IF(AX20>0,SABR_Vol_Test([0]!alpha_EUR,[0]!beta_EUR,[0]!rho_EUR,[0]!nu_EUR,$F20,Overview!$C$12,$K20,AX20),0) -> 0.2098872016 | EY20: =IF(AY20>0,SABR_Vol_Test([0]!alpha_EUR,[0]!beta_EUR,[0]!rho_EUR,[0]!nu_EUR,$F20,Overview!$C$12,$K20,AY20),0) -> 0.2038610313 | EZ20: =IF(AZ20>0,SABR_Vol_Test([0]!alpha_EUR,[0]!beta_EUR,[0]!rho_EUR,[0]!nu_EUR,$F20,Overview!$C$12,$K20,AZ20),0) -> 0.198059592 | FA20: =IF(BA20>0,SABR_Vol_Test([0]!alpha_EUR,[0]!beta_EUR,[0]!rho_EUR,[0]!nu_EUR,$F20,Overview!$C$12,$K20,BA20),0) -> 0.1924737552 | FB20: =IF(BB20>0,SABR_Vol_Test([0]!alpha_EUR,[0]!beta_EUR,[0]!rho_EUR,[0]!nu_EUR,$F20,Overview!$C$12,$K20,BB20),0) -> 0.1870967079 | FC20: =IF(BC20>0,SABR_Vol_Test([0]!alpha_EUR,[0]!beta_EUR,[0]!rho_EUR,[0]!nu_EUR,$F20,Overview!$C$12,$K20,BC20),0) -> 0.1819238639 | FD20: =IF(BD20>0,SABR_Vol_Test([0]!alpha_EUR,[0]!beta_EUR,[0]!rho_EUR,[0]!nu_EUR,$F20,Overview!$C$12,$K20,BD20),0) -> 0.1769528136 | FE20: =IF(BE20>0,SABR_Vol_Test([0]!alpha_EUR,[0]!beta_EUR,[0]!rho_EUR,[0]!nu_EUR,$F20,Overview!$C$12,$K20,BE20),0) -> 0.1721832994 | FF20: =IF(BF20>0,SABR_Vol_Test([0]!alpha_EUR,[0]!beta_EUR,[0]!rho_EUR,[0]!nu_EUR,$F20,Overview!$C$12,$K20,BF20),0) -> 0.1676171998 | FG20: =IF(BG20>0,SABR_Vol_Test([0]!alpha_EUR,[0]!beta_EUR,[0]!rho_EUR,[0]!nu_EUR,$F20,Overview!$C$12,$K20,BG20),0) -> 0.1632585046 | FH20: =IF(BH20>0,SABR_Vol_Test([0]!alpha_EUR,[0]!beta_EUR,[0]!rho_EUR,[0]!nu_EUR,$F20,Overview!$C$12,$K20,BH20),0) -> 0.1591132532 | FI20: =IF(BI20>0,SABR_Vol_Test([0]!alpha_EUR,[0]!beta_EUR,[0]!rho_EUR,[0]!nu_EUR,$F20,Overview!$C$12,$K20,BI20),0) -> 0.1551894055 | FJ20: =IF(BJ20>0,SABR_Vol_Test([0]!alpha_EUR,[0]!beta_EUR,[0]!rho_EUR,[0]!nu_EUR,$F20,Overview!$C$12,$K20,BJ20),0) -> 0.1514966077 | FK20: =IF(BK20>0,SABR_Vol_Test([0]!alpha_EUR,[0]!beta_EUR,[0]!rho_EUR,[0]!nu_EUR,$F20,Overview!$C$12,$K20,BK20),0) -> 0.1480458116 | FM20: 9 | FN20: 0 | FO20: 0 | FP20: 0 | FQ20: 0 | FR20: 0 | FS20: 0 | FT20: 0 | FU20: 0 | FV20: 0 | FW20: 0 | FX20: 0 | FY20: 0 | FZ20: 0 | GA20: 0.0001406146151 | GB20: 0.0002171049086 | GC20: 0.0002939803384 | GD20: 0.0003722605829 | GE20: 0.0004525351828 | GF20: 0.000535220417 | GG20: 0.0006206518403 | GH20: 0.000709125813 | GI20: 0.0008009211542 | GJ20: 0.0008963118684 | GK20: 0.0009955754698 | GL20: 0.001098999011 | GM20: 0.001206883887 | GN20: 0.001319550019 | GO20: 0.00143733976 | GP20: 0.001560621763 | GQ20: 0.001689794963 | GR20: 0.0018252928 | GS20: 0.001967587773 | GT20: 0.002117196416 | GU20: 0.002274684745 | GV20: 0.002440674264 | GW20: 0.002615848529 | GX20: 0.002800960323 | GY20: 0.002996839377 | GZ20: 0.003204400576 | HA20: 0.003424652444 | HB20: 0.003658705615 | HC20: 0.003907780771 | HD20: 0.004173215286 | HE20: 0.004456467481 | HF20: 0.004759116941 | HG20: 0.005082858887 | HH20: 0.005429490044 | HI20: 0.005800883071 | HJ20: 0.006198946505 | HK20: 0.006625567665 | HM20: 9 | HN20: 0.00590340507 | HO20: 0.002288358058
E21: 10 | F21: =(Overview!F21-Overview!$C$8)/365 -> 10.0109589 | G21: =Overview!I21 -> 0.498630137 | H21: =Overview!K21 -> 0.7625227929 | I21: =Overview!L21/Overview!K21 -> 0.9807595943 | J21: =Overview!M21 -> 0.03732456194 | K21: 0.03732456194 | M21: 10 | N21: =IF($BK21="","",MAX(O21-$C$8,0)) -> 0 | O21: 0 | P21: 0 | Q21: 0 | R21: 0 | S21: 0 | T21: 0 | U21: 0 | V21: 0 | W21: 0 | X21: 0 | Y21: 0 | Z21: 0.0003245619366 | AA21: 0.001324561937 | AB21: 0.002324561937 | AC21: 0.003324561937 | AD21: 0.004324561937 | AE21: 0.005324561937 | AF21: 0.006324561937 | AG21: 0.007324561937 | AH21: 0.008324561937 | AI21: 0.009324561937 | AJ21: 0.01032456194 | AK21: 0.01132456194 | AL21: 0.01232456194 | AM21: 0.01332456194 | AN21: 0.01432456194 | AO21: 0.01532456194 | AP21: 0.01632456194 | AQ21: 0.01732456194 | AR21: 0.01832456194 | AS21: 0.01932456194 | AT21: =IF($BK21="","",MAX(AU21-$C$8,0)) -> 0.02032456194 | AU21: 0.02132456194 | AV21: 0.02232456194 | AW21: 0.02332456194 | AX21: 0.02432456194 | AY21: 0.02532456194 | AZ21: 0.02632456194 | BA21: 0.02732456194 | BB21: 0.02832456194 | BC21: 0.02932456194 | BD21: 0.03032456194 | BE21: 0.03132456194 | BF21: 0.03232456194 | BG21: 0.03332456194 | BH21: 0.03432456194 | BI21: 0.03532456194 | BJ21: 0.03632456194 | BK21: 0.03732456194 | BM21: 10 | BN21: =IF(K21="","",getCMSFloorReplicationWeights(K21,$C$11,$C$12,$C$13,N21:BK21)) -> 0 | BO21: 0 | BP21: 0 | BQ21: 0 | BR21: 0 | BS21: 0 | BT21: 0 | BU21: 0 | BV21: 0 | BW21: 0 | BX21: 0 | BY21: 0 | BZ21: 0 | CA21: -0.001045084794 | CB21: -0.001050110676 | CC21: -0.001055127331 | CD21: -0.001060134617 | CE21: -0.001065132401 | CF21: -0.001070120544 | CG21: -0.001075098914 | CH21: -0.001080067377 | CI21: -0.001085025802 | CJ21: -0.001089974059 | CK21: -0.001094912018 | CL21: -0.001099839553 | CM21: -0.001104756537 | CN21: -0.001109662846 | CO21: -0.001114558356 | CP21: -0.001119442946 | CQ21: -0.001124316495 | CR21: -0.001129178885 | CS21: -0.001134029996 | CT21: -0.001138869714 | CU21: -0.001143697923 | CV21: -0.00114851451 | CW21: -0.001153319362 | CX21: -0.001158112369 | CY21: -0.001162893422 | CZ21: -0.001167662413 | DA21: -0.001172419236 | DB21: -0.001177163785 | DC21: -0.001181895957 | DD21: -0.00118661565 | DE21: -0.001191322762 | DF21: -0.001196017195 | DG21: -0.001200698851 | DH21: -0.001205367633 | DI21: -0.001210023445 | DJ21: -0.001214666195 | DK21: 0.1210454857 | DM21: 10 | DN21: =IF(N21>0,SABR_Vol_Test([0]!alpha_EUR,[0]!beta_EUR,[0]!rho_EUR,[0]!nu_EUR,$F21,Overview!$C$12,$K21,N21),0) -> 0 | DO21: =IF(O21>0,SABR_Vol_Test([0]!alpha_EUR,[0]!beta_EUR,[0]!rho_EUR,[0]!nu_EUR,$F21,Overview!$C$12,$K21,O21),0) -> 0 | DP21: =IF(P21>0,SABR_Vol_Test([0]!alpha_EUR,[0]!beta_EUR,[0]!rho_EUR,[0]!nu_EUR,$F21,Overview!$C$12,$K21,P21),0) -> 0 | DQ21: =IF(Q21>0,SABR_Vol_Test([0]!alpha_EUR,[0]!beta_EUR,[0]!rho_EUR,[0]!nu_EUR,$F21,Overview!$C$12,$K21,Q21),0) -> 0 | DR21: =IF(R21>0,SABR_Vol_Test([0]!alpha_EUR,[0]!beta_EUR,[0]!rho_EUR,[0]!nu_EUR,$F21,Overview!$C$12,$K21,R21),0) -> 0 | DS21: =IF(S21>0,SABR_Vol_Test([0]!alpha_EUR,[0]!beta_EUR,[0]!rho_EUR,[0]!nu_EUR,$F21,Overview!$C$12,$K21,S21),0) -> 0 | DT21: =IF(T21>0,SABR_Vol_Test([0]!alpha_EUR,[0]!beta_EUR,[0]!rho_EUR,[0]!nu_EUR,$F21,Overview!$C$12,$K21,T21),0) -> 0 | DU21: =IF(U21>0,SABR_Vol_Test([0]!alpha_EUR,[0]!beta_EUR,[0]!rho_EUR,[0]!nu_EUR,$F21,Overview!$C$12,$K21,U21),0) -> 0 | DV21: =IF(V21>0,SABR_Vol_Test([0]!alpha_EUR,[0]!beta_EUR,[0]!rho_EUR,[0]!nu_EUR,$F21,Overview!$C$12,$K21,V21),0) -> 0 | DW21: =IF(W21>0,SABR_Vol_Test([0]!alpha_EUR,[0]!beta_EUR,[0]!rho_EUR,[0]!nu_EUR,$F21,Overview!$C$12,$K21,W21),0) -> 0 | DX21: =IF(X21>0,SABR_Vol_Test([0]!alpha_EUR,[0]!beta_EUR,[0]!rho_EUR,[0]!nu_EUR,$F21,Overview!$C$12,$K21,X21),0) -> 0 | DY21: =IF(Y21>0,SABR_Vol_Test([0]!alpha_EUR,[0]!beta_EUR,[0]!rho_EUR,[0]!nu_EUR,$F21,Overview!$C$12,$K21,Y21),0) -> 0 | DZ21: =IF(Z21>0,SABR_Vol_Test([0]!alpha_EUR,[0]!beta_EUR,[0]!rho_EUR,[0]!nu_EUR,$F21,Overview!$C$12,$K21,Z21),0) -> 0.7184705584 | EA21: =IF(AA21>0,SABR_Vol_Test([0]!alpha_EUR,[0]!beta_EUR,[0]!rho_EUR,[0]!nu_EUR,$F21,Overview!$C$12,$K21,AA21),0) -> 0.5670231996 | EB21: =IF(AB21>0,SABR_Vol_Test([0]!alpha_EUR,[0]!beta_EUR,[0]!rho_EUR,[0]!nu_EUR,$F21,Overview!$C$12,$K21,AB21),0) -> 0.502613737 | EC21: =IF(AC21>0,SABR_Vol_Test([0]!alpha_EUR,[0]!beta_EUR,[0]!rho_EUR,[0]!nu_EUR,$F21,Overview!$C$12,$K21,AC21),0) -> 0.4604103629 | ED21: =IF(AD21>0,SABR_Vol_Test([0]!alpha_EUR,[0]!beta_EUR,[0]!rho_EUR,[0]!nu_EUR,$F21,Overview!$C$12,$K21,AD21),0) -> 0.4287326428 | EE21: =IF(AE21>0,SABR_Vol_Test([0]!alpha_EUR,[0]!beta_EUR,[0]!rho_EUR,[0]!nu_EUR,$F21,Overview!$C$12,$K21,AE21),0) -> 0.4032465786 | EF21: =IF(AF21>0,SABR_Vol_Test([0]!alpha_EUR,[0]!beta_EUR,[0]!rho_EUR,[0]!nu_EUR,$F21,Overview!$C$12,$K21,AF21),0) -> 0.381852362 | EG21: =IF(AG21>0,SABR_Vol_Test([0]!alpha_EUR,[0]!beta_EUR,[0]!rho_EUR,[0]!nu_EUR,$F21,Overview!$C$12,$K21,AG21),0) -> 0.3633692826 | EH21: =IF(AH21>0,SABR_Vol_Test([0]!alpha_EUR,[0]!beta_EUR,[0]!rho_EUR,[0]!nu_EUR,$F21,Overview!$C$12,$K21,AH21),0) -> 0.3470660849 | EI21: =IF(AI21>0,SABR_Vol_Test([0]!alpha_EUR,[0]!beta_EUR,[0]!rho_EUR,[0]!nu_EUR,$F21,Overview!$C$12,$K21,AI21),0) -> 0.3324579208 | EJ21: =IF(AJ21>0,SABR_Vol_Test([0]!alpha_EUR,[0]!beta_EUR,[0]!rho_EUR,[0]!nu_EUR,$F21,Overview!$C$12,$K21,AJ21),0) -> 0.319206563 | EK21: =IF(AK21>0,SABR_Vol_Test([0]!alpha_EUR,[0]!beta_EUR,[0]!rho_EUR,[0]!nu_EUR,$F21,Overview!$C$12,$K21,AK21),0) -> 0.3070665989 | EL21: =IF(AL21>0,SABR_Vol_Test([0]!alpha_EUR,[0]!beta_EUR,[0]!rho_EUR,[0]!nu_EUR,$F21,Overview!$C$12,$K21,AL21),0) -> 0.2958542938 | EM21: =IF(AM21>0,SABR_Vol_Test([0]!alpha_EUR,[0]!beta_EUR,[0]!rho_EUR,[0]!nu_EUR,$F21,Overview!$C$12,$K21,AM21),0) -> 0.2854285418 | EN21: =IF(AN21>0,SABR_Vol_Test([0]!alpha_EUR,[0]!beta_EUR,[0]!rho_EUR,[0]!nu_EUR,$F21,Overview!$C$12,$K21,AN21),0) -> 0.275678675 | EO21: =IF(AO21>0,SABR_Vol_Test([0]!alpha_EUR,[0]!beta_EUR,[0]!rho_EUR,[0]!nu_EUR,$F21,Overview!$C$12,$K21,AO21),0) -> 0.266516365 | EP21: =IF(AP21>0,SABR_Vol_Test([0]!alpha_EUR,[0]!beta_EUR,[0]!rho_EUR,[0]!nu_EUR,$F21,Overview!$C$12,$K21,AP21),0) -> 0.2578700746 | EQ21: =IF(AQ21>0,SABR_Vol_Test([0]!alpha_EUR,[0]!beta_EUR,[0]!rho_EUR,[0]!nu_EUR,$F21,Overview!$C$12,$K21,AQ21),0) -> 0.249681155 | ER21: =IF(AR21>0,SABR_Vol_Test([0]!alpha_EUR,[0]!beta_EUR,[0]!rho_EUR,[0]!nu_EUR,$F21,Overview!$C$12,$K21,AR21),0) -> 0.2419010389 | ES21: =IF(AS21>0,SABR_Vol_Test([0]!alpha_EUR,[0]!beta_EUR,[0]!rho_EUR,[0]!nu_EUR,$F21,Overview!$C$12,$K21,AS21),0) -> 0.2344891836 | ET21: =IF(AT21>0,SABR_Vol_Test([0]!alpha_EUR,[0]!beta_EUR,[0]!rho_EUR,[0]!nu_EUR,$F21,Overview!$C$12,$K21,AT21),0) -> 0.2274115406 | EU21: =IF(AU21>0,SABR_Vol_Test([0]!alpha_EUR,[0]!beta_EUR,[0]!rho_EUR,[0]!nu_EUR,$F21,Overview!$C$12,$K21,AU21),0) -> 0.2206394026 | EV21: =IF(AV21>0,SABR_Vol_Test([0]!alpha_EUR,[0]!beta_EUR,[0]!rho_EUR,[0]!nu_EUR,$F21,Overview!$C$12,$K21,AV21),0) -> 0.2141485271 | EW21: =IF(AW21>0,SABR_Vol_Test([0]!alpha_EUR,[0]!beta_EUR,[0]!rho_EUR,[0]!nu_EUR,$F21,Overview!$C$12,$K21,AW21),0) -> 0.2079184663 | EX21: =IF(AX21>0,SABR_Vol_Test([0]!alpha_EUR,[0]!beta_EUR,[0]!rho_EUR,[0]!nu_EUR,$F21,Overview!$C$12,$K21,AX21),0) -> 0.2019320548 | EY21: =IF(AY21>0,SABR_Vol_Test([0]!alpha_EUR,[0]!beta_EUR,[0]!rho_EUR,[0]!nu_EUR,$F21,Overview!$C$12,$K21,AY21),0) -> 0.1961750197 | EZ21: =IF(AZ21>0,SABR_Vol_Test([0]!alpha_EUR,[0]!beta_EUR,[0]!rho_EUR,[0]!nu_EUR,$F21,Overview!$C$12,$K21,AZ21),0) -> 0.1906356866 | FA21: =IF(BA21>0,SABR_Vol_Test([0]!alpha_EUR,[0]!beta_EUR,[0]!rho_EUR,[0]!nu_EUR,$F21,Overview!$C$12,$K21,BA21),0) -> 0.1853047631 | FB21: =IF(BB21>0,SABR_Vol_Test([0]!alpha_EUR,[0]!beta_EUR,[0]!rho_EUR,[0]!nu_EUR,$F21,Overview!$C$12,$K21,BB21),0) -> 0.1801751844 | FC21: =IF(BC21>0,SABR_Vol_Test([0]!alpha_EUR,[0]!beta_EUR,[0]!rho_EUR,[0]!nu_EUR,$F21,Overview!$C$12,$K21,BC21),0) -> 0.175242008 | FD21: =IF(BD21>0,SABR_Vol_Test([0]!alpha_EUR,[0]!beta_EUR,[0]!rho_EUR,[0]!nu_EUR,$F21,Overview!$C$12,$K21,BD21),0) -> 0.1705023459 | FE21: =IF(BE21>0,SABR_Vol_Test([0]!alpha_EUR,[0]!beta_EUR,[0]!rho_EUR,[0]!nu_EUR,$F21,Overview!$C$12,$K21,BE21),0) -> 0.1659553215 | FF21: =IF(BF21>0,SABR_Vol_Test([0]!alpha_EUR,[0]!beta_EUR,[0]!rho_EUR,[0]!nu_EUR,$F21,Overview!$C$12,$K21,BF21),0) -> 0.1616020384 | FG21: =IF(BG21>0,SABR_Vol_Test([0]!alpha_EUR,[0]!beta_EUR,[0]!rho_EUR,[0]!nu_EUR,$F21,Overview!$C$12,$K21,BG21),0) -> 0.1574455405 | FH21: =IF(BH21>0,SABR_Vol_Test([0]!alpha_EUR,[0]!beta_EUR,[0]!rho_EUR,[0]!nu_EUR,$F21,Overview!$C$12,$K21,BH21),0) -> 0.1534907451 | FI21: =IF(BI21>0,SABR_Vol_Test([0]!alpha_EUR,[0]!beta_EUR,[0]!rho_EUR,[0]!nu_EUR,$F21,Overview!$C$12,$K21,BI21),0) -> 0.1497443173 | FJ21: =IF(BJ21>0,SABR_Vol_Test([0]!alpha_EUR,[0]!beta_EUR,[0]!rho_EUR,[0]!nu_EUR,$F21,Overview!$C$12,$K21,BJ21),0) -> 0.1462144587 | FK21: =IF(BK21>0,SABR_Vol_Test([0]!alpha_EUR,[0]!beta_EUR,[0]!rho_EUR,[0]!nu_EUR,$F21,Overview!$C$12,$K21,BK21),0) -> 0.1429105733 | FM21: 10 | FN21: 0 | FO21: 0 | FP21: 0 | FQ21: 0 | FR21: 0 | FS21: 0 | FT21: 0 | FU21: 0 | FV21: 0 | FW21: 0 | FX21: 0 | FY21: 0 | FZ21: 0 | GA21: 0.0001133840718 | GB21: 0.0001909172336 | GC21: 0.0002685132058 | GD21: 0.0003474555696 | GE21: 0.0004284211981 | GF21: 0.0005118643175 | GG21: 0.0005981401338 | GH21: 0.0006875567095 | GI21: 0.0007804007444 | GJ21: 0.0008769521557 | GK21: 0.0009774933016 | GL21: 0.001082315465 | GM21: 0.001191723889 | GN21: 0.00130604206 | GO21: 0.001425615641 | GP21: 0.00155081631 | GQ21: 0.001682045674 | GR21: 0.001819739374 | GS21: 0.001964371489 | GT21: 0.002116459307 | GU21: 0.00227656853 | GV21: 0.002445318946 | GW21: 0.002623390623 | GX21: 0.002811530598 | GY21: 0.00301056003 | GZ21: 0.00322138172 | HA21: 0.003444987805 | HB21: 0.00368246731 | HC21: 0.003935013065 | HD21: 0.004203927278 | HE21: 0.004490624716 | HF21: 0.004796632102 | HG21: 0.005123581905 | HH21: 0.005473198241 | HI21: 0.005847272328 | HJ21: 0.00624762485 | HK21: 0.006676053058 | HM21: 10 | HN21: 0.005955213104 | HO21: 0.002220706817

Sheet CMSCap
I2: ="CMS Cap Pricing @ "&C8 -> CMS Cap Pricing @ 0,06
B5: Generic Information | E5: CMS Leg Schedule & Forwards | M5: Cash Settled Swaption STRIKES | BM5: Cash Settled Swaptions WEIGHTS | DM5: Cash Settled Swaptions LOGNORMAL VOLATILITIES | FM5: Cash Settled Swaptions PRICES
B7: Overall Strike Info | HO7: =COUNT(HO11:HO170) -> 11
B8: Cap Strike | C8: 0.06 | HM8: CMS Cap Prices | HO8: CMS Cap
H9: Start | I9: Delay | J9: Forward Swaps | K9: CMS Cap | HM9: Under QTpay | HO9: PV
B10: Strike Discretization | F10: Maturity | G10: Coverages | H10: Discount Factor | I10: Discount Factor | J10: Rates | K10: Strike | M10: Strikes | BM10: Strikes | DM10: Strikes | FM10: Strikes
B11: Strike Step | C11: 0.0025 | E11: 0 | F11: =(Overview!F11-Overview!$C$8)/365 -> 0.005479452055 | G11: =Overview!I11 -> 0.498630137 | H11: =Overview!K11 -> 0.9991628953 | I11: =Overview!L11/Overview!K11 -> 0.9936460744 | J11: =Overview!M11 -> 0.013118751 | K11: =$C$8 -> 0.06 | M11: 0 | N11: =K11 -> 0.06 | O11: =IF($N11="","",N11+$C$11) -> 0.0625 | P11: 0.065 | Q11: 0.0675 | R11: 0.07 | S11: 0.0725 | T11: 0.075 | U11: 0.0775 | V11: 0.08 | W11: 0.0825 | X11: 0.085 | Y11: 0.0875 | Z11: 0.09 | AA11: 0.0925 | AB11: 0.095 | AC11: 0.0975 | AD11: 0.1 | AE11: 0.1025 | AF11: 0.105 | AG11: 0.1075 | AH11: 0.11 | AI11: 0.1125 | AJ11: 0.115 | AK11: 0.1175 | AL11: 0.12 | AM11: 0.1225 | AN11: 0.125 | AO11: 0.1275 | AP11: 0.13 | AQ11: 0.1325 | AR11: 0.135 | AS11: 0.1375 | AT11: 0.14 | AU11: =IF($N11="","",AT11+$C$11) -> 0.1425 | AV11: 0.145 | AW11: 0.1475 | AX11: 0.15 | AY11: 0.1525 | AZ11: 0.155 | BA11: 0.1575 | BB11: 0.16 | BC11: 0.1625 | BD11: 0.165 | BE11: 0.1675 | BF11: 0.17 | BG11: 0.1725 | BH11: 0.175 | BI11: 0.1775 | BJ11: 0.18 | BK11: 0.1825 | BM11: 0 | BN11: =IF(K11="","",getCMSCapReplicationWeights(K11,$C$14,$C$15,$C$16,N11:BK11)) -> 0.5473484848 | BO11: 0.003826032724 | BP11: 0.003830291372 | BQ11: 0.003834529447 | BR11: 0.003838747073 | BS11: 0.003842944372 | BT11: 0.003847121468 | BU11: 0.003851278482 | BV11: 0.003855415535 | BW11: 0.003859532745 | BX11: 0.003863630232 | BY11: 0.003867708114 | BZ11: 0.003871766508 | CA11: 0.00387580553 | CB11: 0.003879825296 | CC11: 0.00388382592 | CD11: 0.003887807516 | CE11: 0.003891770197 | CF11: 0.003895714075 | CG11: 0.003899639262 | CH11: 0.003903545868 | CI11: 0.003907434003 | CJ11: 0.003911303777 | CK11: 0.003915155296 | CL11: 0.00391898867 | CM11: 0.003922804004 | CN11: 0.003926601405 | CO11: 0.003930380977 | CP11: 0.003934142826 | CQ11: 0.003937887055 | CR11: 0.003941613767 | CS11: 0.003945323065 | CT11: 0.003949015049 | CU11: 0.003952689822 | CV11: 0.003956347482 | CW11: 0.003959988131 | CX11: 0.003963611865 | CY11: 0.003967218785 | CZ11: 0.003970808986 | DA11: 0.003974382566 | DB11: 0.003977939621 | DC11: 0.003981480245 | DD11: 0.003985004535 | DE11: 0.003988512584 | DF11: 0.003992004485 | DG11: 0.003995480332 | DH11: 0.003998940216 | DI11: 0.004002384229 | DJ11: 0.004005812462 | DK11: 0 | DM11: 0 | DN11: =SABR_Vol_Test([0]!alpha_EUR,[0]!beta_EUR,[0]!rho_EUR,[0]!nu_EUR,$F11,Overview!$C$12,$K11,N11) -> 0.2201233343 | DO11: =SABR_Vol_Test([0]!alpha_EUR,[0]!beta_EUR,[0]!rho_EUR,[0]!nu_EUR,$F11,Overview!$C$12,$K11,O11) -> 0.2046716204 | DP11: =SABR_Vol_Test([0]!alpha_EUR,[0]!beta_EUR,[0]!rho_EUR,[0]!nu_EUR,$F11,Overview!$C$12,$K11,P11) -> 0.1912313833 | DQ11: =SABR_Vol_Test([0]!alpha_EUR,[0]!beta_EUR,[0]!rho_EUR,[0]!nu_EUR,$F11,Overview!$C$12,$K11,Q11) -> 0.1805241097 | DR11: =SABR_Vol_Test([0]!alpha_EUR,[0]!beta_EUR,[0]!rho_EUR,[0]!nu_EUR,$F11,Overview!$C$12,$K11,R11) -> 0.173143194 | DS11: =SABR_Vol_Test([0]!alpha_EUR,[0]!beta_EUR,[0]!rho_EUR,[0]!nu_EUR,$F11,Overview!$C$12,$K11,S11) -> 0.1691828828 | DT11: =SABR_Vol_Test([0]!alpha_EUR,[0]!beta_EUR,[0]!rho_EUR,[0]!nu_EUR,$F11,Overview!$C$12,$K11,T11) -> 0.1681622332 | DU11: =SABR_Vol_Test([0]!alpha_EUR,[0]!beta_EUR,[0]!rho_EUR,[0]!nu_EUR,$F11,Overview!$C$12,$K11,U11) -> 0.1693286923 | DV11: =SABR_Vol_Test([0]!alpha_EUR,[0]!beta_EUR,[0]!rho_EUR,[0]!nu_EUR,$F11,Overview!$C$12,$K11,V11) -> 0.1719781385 | DW11: =SABR_Vol_Test([0]!alpha_EUR,[0]!beta_EUR,[0]!rho_EUR,[0]!nu_EUR,$F11,Overview!$C$12,$K11,W11) -> 0.1755809643 | DX11: =SABR_Vol_Test([0]!alpha_EUR,[0]!beta_EUR,[0]!rho_EUR,[0]!nu_EUR,$F11,Overview!$C$12,$K11,X11) -> 0.179775678 | DY11: =SABR_Vol_Test([0]!alpha_EUR,[0]!beta_EUR,[0]!rho_EUR,[0]!nu_EUR,$F11,Overview!$C$12,$K11,Y11) -> 0.184324571 | DZ11: =SABR_Vol_Test([0]!alpha_EUR,[0]!beta_EUR,[0]!rho_EUR,[0]!nu_EUR,$F11,Overview!$C$12,$K11,Z11) -> 0.1890727259 | EA11: =SABR_Vol_Test([0]!alpha_EUR,[0]!beta_EUR,[0]!rho_EUR,[0]!nu_EUR,$F11,Overview!$C$12,$K11,AA11) -> 0.1939188796 | EB11: =SABR_Vol_Test([0]!alpha_EUR,[0]!beta_EUR,[0]!rho_EUR,[0]!nu_EUR,$F11,Overview!$C$12,$K11,AB11) -> 0.1987964119 | EC11: =SABR_Vol_Test([0]!alpha_EUR,[0]!beta_EUR,[0]!rho_EUR,[0]!nu_EUR,$F11,Overview!$C$12,$K11,AC11) -> 0.2036612551 | ED11: =SABR_Vol_Test([0]!alpha_EUR,[0]!beta_EUR,[0]!rho_EUR,[0]!nu_EUR,$F11,Overview!$C$12,$K11,AD11) -> 0.2084842149 | EE11: =SABR_Vol_Test([0]!alpha_EUR,[0]!beta_EUR,[0]!rho_EUR,[0]!nu_EUR,$F11,Overview!$C$12,$K11,AE11) -> 0.2132460443 | EF11: =SABR_Vol_Test([0]!alpha_EUR,[0]!beta_EUR,[0]!rho_EUR,[0]!nu_EUR,$F11,Overview!$C$12,$K11,AF11) -> 0.2179342381 | EG11: =SABR_Vol_Test([0]!alpha_EUR,[0]!beta_EUR,[0]!rho_EUR,[0]!nu_EUR,$F11,Overview!$C$12,$K11,AG11) -> 0.2225409131 | EH11: =SABR_Vol_Test([0]!alpha_EUR,[0]!beta_EUR,[0]!rho_EUR,[0]!nu_EUR,$F11,Overview!$C$12,$K11,AH11) -> 0.227061386 | EI11: =SABR_Vol_Test([0]!alpha_EUR,[0]!beta_EUR,[0]!rho_EUR,[0]!nu_EUR,$F11,Overview!$C$12,$K11,AI11) -> 0.2314932029 | EJ11: =SABR_Vol_Test([0]!alpha_EUR,[0]!beta_EUR,[0]!rho_EUR,[0]!nu_EUR,$F11,Overview!$C$12,$K11,AJ11) -> 0.2358354702 | EK11: =SABR_Vol_Test([0]!alpha_EUR,[0]!beta_EUR,[0]!rho_EUR,[0]!nu_EUR,$F11,Overview!$C$12,$K11,AK11) -> 0.2400883861 | EL11: =SABR_Vol_Test([0]!alpha_EUR,[0]!beta_EUR,[0]!rho_EUR,[0]!nu_EUR,$F11,Overview!$C$12,$K11,AL11) -> 0.2442529095 | EM11: =SABR_Vol_Test([0]!alpha_EUR,[0]!beta_EUR,[0]!rho_EUR,[0]!nu_EUR,$F11,Overview!$C$12,$K11,AM11) -> 0.2483305246 | EN11: =SABR_Vol_Test([0]!alpha_EUR,[0]!beta_EUR,[0]!rho_EUR,[0]!nu_EUR,$F11,Overview!$C$12,$K11,AN11) -> 0.2523230715 | EO11: =SABR_Vol_Test([0]!alpha_EUR,[0]!beta_EUR,[0]!rho_EUR,[0]!nu_EUR,$F11,Overview!$C$12,$K11,AO11) -> 0.2562326238 | EP11: =SABR_Vol_Test([0]!alpha_EUR,[0]!beta_EUR,[0]!rho_EUR,[0]!nu_EUR,$F11,Overview!$C$12,$K11,AP11) -> 0.2600613998 | EQ11: =SABR_Vol_Test([0]!alpha_EUR,[0]!beta_EUR,[0]!rho_EUR,[0]!nu_EUR,$F11,Overview!$C$12,$K11,AQ11) -> 0.09455914243 | ER11: =SABR_Vol_Test([0]!alpha_EUR,[0]!beta_EUR,[0]!rho_EUR,[0]!nu_EUR,$F11,Overview!$C$12,$K11,AR11) -> 0.09525499898 | ES11: =SABR_Vol_Test([0]!alpha_EUR,[0]!beta_EUR,[0]!rho_EUR,[0]!nu_EUR,$F11,Overview!$C$12,$K11,AS11) -> 0.09599073954 | ET11: =SABR_Vol_Test([0]!alpha_EUR,[0]!beta_EUR,[0]!rho_EUR,[0]!nu_EUR,$F11,Overview!$C$12,$K11,AT11) -> 0.09675642427 | EU11: =SABR_Vol_Test([0]!alpha_EUR,[0]!beta_EUR,[0]!rho_EUR,[0]!nu_EUR,$F11,Overview!$C$12,$K11,AU11) -> 0.09754429365 | EV11: =SABR_Vol_Test([0]!alpha_EUR,[0]!beta_EUR,[0]!rho_EUR,[0]!nu_EUR,$F11,Overview!$C$12,$K11,AV11) -> 0.09834823774 | EW11: =SABR_Vol_Test([0]!alpha_EUR,[0]!beta_EUR,[0]!rho_EUR,[0]!nu_EUR,$F11,Overview!$C$12,$K11,AW11) -> 0.09916340965 | EX11: =SABR_Vol_Test([0]!alpha_EUR,[0]!beta_EUR,[0]!rho_EUR,[0]!nu_EUR,$F11,Overview!$C$12,$K11,AX11) -> 0.09998594018 | EY11: =SABR_Vol_Test([0]!alpha_EUR,[0]!beta_EUR,[0]!rho_EUR,[0]!nu_EUR,$F11,Overview!$C$12,$K11,AY11) -> 0.1008127245 | EZ11: =SABR_Vol_Test([0]!alpha_EUR,[0]!beta_EUR,[0]!rho_EUR,[0]!nu_EUR,$F11,Overview!$C$12,$K11,AZ11) -> 0.1016412606 | FA11: =SABR_Vol_Test([0]!alpha_EUR,[0]!beta_EUR,[0]!rho_EUR,[0]!nu_EUR,$F11,Overview!$C$12,$K11,BA11) -> 0.1024695263 | FB11: =SABR_Vol_Test([0]!alpha_EUR,[0]!beta_EUR,[0]!rho_EUR,[0]!nu_EUR,$F11,Overview!$C$12,$K11,BB11) -> 0.1032958833 | FC11: =SABR_Vol_Test([0]!alpha_EUR,[0]!beta_EUR,[0]!rho_EUR,[0]!nu_EUR,$F11,Overview!$C$12,$K11,BC11) -> 0.1041190034 | FD11: =SABR_Vol_Test([0]!alpha_EUR,[0]!beta_EUR,[0]!rho_EUR,[0]!nu_EUR,$F11,Overview!$C$12,$K11,BD11) -> 0.1049378097 | FE11: =SABR_Vol_Test([0]!alpha_EUR,[0]!beta_EUR,[0]!rho_EUR,[0]!nu_EUR,$F11,Overview!$C$12,$K11,BE11) -> 0.1057514305 | FF11: =SABR_Vol_Test([0]!alpha_EUR,[0]!beta_EUR,[0]!rho_EUR,[0]!nu_EUR,$F11,Overview!$C$12,$K11,BF11) -> 0.1065591623 | FG11: =SABR_Vol_Test([0]!alpha_EUR,[0]!beta_EUR,[0]!rho_EUR,[0]!nu_EUR,$F11,Overview!$C$12,$K11,BG11) -> 0.10736044 | FH11: =SABR_Vol_Test([0]!alpha_EUR,[0]!beta_EUR,[0]!rho_EUR,[0]!nu_EUR,$F11,Overview!$C$12,$K11,BH11) -> 0.1081548129 | FI11: =SABR_Vol_Test([0]!alpha_EUR,[0]!beta_EUR,[0]!rho_EUR,[0]!nu_EUR,$F11,Overview!$C$12,$K11,BI11) -> 0.1089419255 | FJ11: =SABR_Vol_Test([0]!alpha_EUR,[0]!beta_EUR,[0]!rho_EUR,[0]!nu_EUR,$F11,Overview!$C$12,$K11,BJ11) -> 0.1097215009 | FK11: =SABR_Vol_Test([0]!alpha_EUR,[0]!beta_EUR,[0]!rho_EUR,[0]!nu_EUR,$F11,Overview!$C$12,$K11,BK11) -> 0.1104933281 | FM11: 0 | FN11: =BSFormula($J11,$F11,DN11,N11,0) -> 0 | FO11: 0 | FP11: 0 | FQ11: 0 | FR11: 0 | FS11: 0 | FT11: 0 | FU11: 0 | FV11: 0 | FW11: 0 | FX11: 0 | FY11: 0 | FZ11: 0 | GA11: 0 | GB11: 0 | GC11: 0 | GD11: =BSFormula($J11,$F11,ED11,AD11,0) -> 0 | GE11: 0 | GF11: 0 | GG11: 0 | GH11: 0 | GI11: 0 | GJ11: 0 | GK11: 0 | GL11: 0 | GM11: 0 | GN11: 0 | GO11: 0 | GP11: 0 | GQ11: 0 | GR11: 0 | GS11: 0 | GT11: =BSFormula($J11,$F11,ET11,AT11,0) -> 0 | GU11: 0 | GV11: 0 | GW11: 0 | GX11: 0 | GY11: 0 | GZ11: 0 | HA11: 0 | HB11: 0 | HC11: 0 | HD11: 0 | HE11: 0 | HF11: 0 | HG11: 0 | HH11: 0 | HI11: 0 | HJ11: =BSFormula($J11,$F11,FJ11,BJ11,0) -> 0 | HK11: 0 | HM11: 0 | HN11: =IF($K11="","",SUMPRODUCT(BN11:DK11,FN11:HK11)*levelCash(J11,$C$14,$C$15)/I11) -> 0 | HO11: =HN11*G11*H11*I11 -> 0
E12: 1 | F12: =(Overview!F12-Overview!$C$8)/365 -> 1.005479452 | G12: =Overview!I12 -> 0.498630137 | H12: =Overview!K12 -> 0.9862130304 | I12: =Overview!L12/Overview!K12 -> 0.993366984 | J12: =Overview!M12 -> 0.01690576791 | K12: =$C$8 -> 0.06 | M12: 1 | N12: 0.06 | O12: =IF($N12="","",N12+$C$11) -> 0.0625 | P12: 0.065 | Q12: 0.0675 | R12: 0.07 | S12: 0.0725 | T12: 0.075 | U12: 0.0775 | V12: 0.08 | W12: 0.0825 | X12: 0.085 | Y12: 0.0875 | Z12: 0.09 | AA12: 0.0925 | AB12: 0.095 | AC12: 0.0975 | AD12: 0.1 | AE12: 0.1025 | AF12: 0.105 | AG12: 0.1075 | AH12: 0.11 | AI12: 0.1125 | AJ12: 0.115 | AK12: 0.1175 | AL12: 0.12 | AM12: 0.1225 | AN12: 0.125 | AO12: 0.1275 | AP12: 0.13 | AQ12: 0.1325 | AR12: 0.135 | AS12: 0.1375 | AT12: 0.14 | AU12: =IF($N12="","",AT12+$C$11) -> 0.1425 | AV12: 0.145 | AW12: 0.1475 | AX12: 0.15 | AY12: 0.1525 | AZ12: 0.155 | BA12: 0.1575 | BB12: 0.16 | BC12: 0.1625 | BD12: 0.165 | BE12: 0.1675 | BF12: 0.17 | BG12: 0.1725 | BH12: 0.175 | BI12: 0.1775 | BJ12: 0.18 | BK12: 0.1825 | BM12: 1 | BN12: =IF(K12="","",getCMSCapReplicationWeights(K12,$C$14,$C$15,$C$16,N12:BK12)) -> 0.137481785 | BO12: 0.003245810089 | BP12: 0.00327287106 | BQ12: 0.003299698478 | BR12: 0.00332629016 | BS12: 0.003352644052 | BT12: 0.003378758224 | BU12: 0.003404630872 | BV12: 0.003430260315 | BW12: 0.003455644991 | BX12: 0.003480783459 | BY12: 0.003505674397 | BZ12: 0.003530316598 | CA12: 0.00355470897 | CB12: 0.003578850531 | CC12: 0.003602740413 | CD12: 0.003626377855 | CE12: 0.003649762202 | CF12: 0.003672892904 | CG12: 0.003695769515 | CH12: 0.003718391688 | CI12: 0.003740759175 | CJ12: 0.003762871824 | CK12: 0.003784729577 | CL12: 0.003806332469 | CM12: 0.003827680624 | CN12: 0.003848774255 | CO12: 0.003869613659 | CP12: 0.003890199217 | CQ12: 0.003910531392 | CR12: 0.003930610725 | CS12: 0.003950437834 | CT12: 0.003970013412 | CU12: 0.003989338225 | CV12: 0.004008413108 | CW12: 0.004027238967 | CX12: 0.00404581677 | CY12: 0.004064147552 | CZ12: 0.004082232409 | DA12: 0.004100072496 | DB12: 0.004117669028 | DC12: 0.004135023272 | DD12: 0.004152136552 | DE12: 0.00416901024 | DF12: 0.004185645762 | DG12: 0.004202044587 | DH12: 0.004218208233 | DI12: 0.00423413826 | DJ12: 0.00424983627 | DK12: 0 | DM12: 1 | DN12: =SABR_Vol_Test([0]!alpha_EUR,[0]!beta_EUR,[0]!rho_EUR,[0]!nu_EUR,$F12,Overview!$C$12,$K12,N12) -> 0.2253691205 | DO12: =SABR_Vol_Test([0]!alpha_EUR,[0]!beta_EUR,[0]!rho_EUR,[0]!nu_EUR,$F12,Overview!$C$12,$K12,O12) -> 0.2169201871 | DP12: =SABR_Vol_Test([0]!alpha_EUR,[0]!beta_EUR,[0]!rho_EUR,[0]!nu_EUR,$F12,Overview!$C$12,$K12,P12) -> 0.2097414868 | DQ12: =SABR_Vol_Test([0]!alpha_EUR,[0]!beta_EUR,[0]!rho_EUR,[0]!nu_EUR,$F12,Overview!$C$12,$K12,Q12) -> 0.2039279041 | DR12: =SABR_Vol_Test([0]!alpha_EUR,[0]!beta_EUR,[0]!rho_EUR,[0]!nu_EUR,$F12,Overview!$C$12,$K12,R12) -> 0.1995215059 | DS12: =SABR_Vol_Test([0]!alpha_EUR,[0]!beta_EUR,[0]!rho_EUR,[0]!nu_EUR,$F12,Overview!$C$12,$K12,S12) -> 0.1964910114 | DT12: =SABR_Vol_Test([0]!alpha_EUR,[0]!beta_EUR,[0]!rho_EUR,[0]!nu_EUR,$F12,Overview!$C$12,$K12,T12) -> 0.1947310964 | DU12: =SABR_Vol_Test([0]!alpha_EUR,[0]!beta_EUR,[0]!rho_EUR,[0]!nu_EUR,$F12,Overview!$C$12,$K12,U12) -> 0.1940820182 | DV12: =SABR_Vol_Test([0]!alpha_EUR,[0]!beta_EUR,[0]!rho_EUR,[0]!nu_EUR,$F12,Overview!$C$12,$K12,V12) -> 0.1943590414 | DW12: =SABR_Vol_Test([0]!alpha_EUR,[0]!beta_EUR,[0]!rho_EUR,[0]!nu_EUR,$F12,Overview!$C$12,$K12,W12) -> 0.1953790486 | DX12: =SABR_Vol_Test([0]!alpha_EUR,[0]!beta_EUR,[0]!rho_EUR,[0]!nu_EUR,$F12,Overview!$C$12,$K12,X12) -> 0.1969775681 | DY12: =SABR_Vol_Test([0]!alpha_EUR,[0]!beta_EUR,[0]!rho_EUR,[0]!nu_EUR,$F12,Overview!$C$12,$K12,Y12) -> 0.1990160766 | DZ12: =SABR_Vol_Test([0]!alpha_EUR,[0]!beta_EUR,[0]!rho_EUR,[0]!nu_EUR,$F12,Overview!$C$12,$K12,Z12) -> 0.2013826303 | EA12: =SABR_Vol_Test([0]!alpha_EUR,[0]!beta_EUR,[0]!rho_EUR,[0]!nu_EUR,$F12,Overview!$C$12,$K12,AA12) -> 0.2039890705 | EB12: =SABR_Vol_Test([0]!alpha_EUR,[0]!beta_EUR,[0]!rho_EUR,[0]!nu_EUR,$F12,Overview!$C$12,$K12,AB12) -> 0.2067670364 | EC12: =SABR_Vol_Test([0]!alpha_EUR,[0]!beta_EUR,[0]!rho_EUR,[0]!nu_EUR,$F12,Overview!$C$12,$K12,AC12) -> 0.2096639835 | ED12: =SABR_Vol_Test([0]!alpha_EUR,[0]!beta_EUR,[0]!rho_EUR,[0]!nu_EUR,$F12,Overview!$C$12,$K12,AD12) -> 0.212639712 | EE12: =SABR_Vol_Test([0]!alpha_EUR,[0]!beta_EUR,[0]!rho_EUR,[0]!nu_EUR,$F12,Overview!$C$12,$K12,AE12) -> 0.2156635377 | EF12: =SABR_Vol_Test([0]!alpha_EUR,[0]!beta_EUR,[0]!rho_EUR,[0]!nu_EUR,$F12,Overview!$C$12,$K12,AF12) -> 0.2187120676 | EG12: =SABR_Vol_Test([0]!alpha_EUR,[0]!beta_EUR,[0]!rho_EUR,[0]!nu_EUR,$F12,Overview!$C$12,$K12,AG12) -> 0.2217674864 | EH12: =SABR_Vol_Test([0]!alpha_EUR,[0]!beta_EUR,[0]!rho_EUR,[0]!nu_EUR,$F12,Overview!$C$12,$K12,AH12) -> 0.2248162482 | EI12: =SABR_Vol_Test([0]!alpha_EUR,[0]!beta_EUR,[0]!rho_EUR,[0]!nu_EUR,$F12,Overview!$C$12,$K12,AI12) -> 0.2278480822 | EJ12: =SABR_Vol_Test([0]!alpha_EUR,[0]!beta_EUR,[0]!rho_EUR,[0]!nu_EUR,$F12,Overview!$C$12,$K12,AJ12) -> 0.2308552379 | EK12: =SABR_Vol_Test([0]!alpha_EUR,[0]!beta_EUR,[0]!rho_EUR,[0]!nu_EUR,$F12,Overview!$C$12,$K12,AK12) -> 0.2338319106 | EL12: =SABR_Vol_Test([0]!alpha_EUR,[0]!beta_EUR,[0]!rho_EUR,[0]!nu_EUR,$F12,Overview!$C$12,$K12,AL12) -> 0.2367738021 | EM12: =SABR_Vol_Test([0]!alpha_EUR,[0]!beta_EUR,[0]!rho_EUR,[0]!nu_EUR,$F12,Overview!$C$12,$K12,AM12) -> 0.2396777849 | EN12: =SABR_Vol_Test([0]!alpha_EUR,[0]!beta_EUR,[0]!rho_EUR,[0]!nu_EUR,$F12,Overview!$C$12,$K12,AN12) -> 0.2425416429 | EO12: =SABR_Vol_Test([0]!alpha_EUR,[0]!beta_EUR,[0]!rho_EUR,[0]!nu_EUR,$F12,Overview!$C$12,$K12,AO12) -> 0.2453638713 | EP12: =SABR_Vol_Test([0]!alpha_EUR,[0]!beta_EUR,[0]!rho_EUR,[0]!nu_EUR,$F12,Overview!$C$12,$K12,AP12) -> 0.2481435209 | EQ12: =SABR_Vol_Test([0]!alpha_EUR,[0]!beta_EUR,[0]!rho_EUR,[0]!nu_EUR,$F12,Overview!$C$12,$K12,AQ12) -> 0.2508800768 | ER12: =SABR_Vol_Test([0]!alpha_EUR,[0]!beta_EUR,[0]!rho_EUR,[0]!nu_EUR,$F12,Overview!$C$12,$K12,AR12) -> 0.2535733627 | ES12: =SABR_Vol_Test([0]!alpha_EUR,[0]!beta_EUR,[0]!rho_EUR,[0]!nu_EUR,$F12,Overview!$C$12,$K12,AS12) -> 0.2562234668 | ET12: =SABR_Vol_Test([0]!alpha_EUR,[0]!beta_EUR,[0]!rho_EUR,[0]!nu_EUR,$F12,Overview!$C$12,$K12,AT12) -> 0.2588306817 | EU12: =SABR_Vol_Test([0]!alpha_EUR,[0]!beta_EUR,[0]!rho_EUR,[0]!nu_EUR,$F12,Overview!$C$12,$K12,AU12) -> 0.2613954585 | EV12: =SABR_Vol_Test([0]!alpha_EUR,[0]!beta_EUR,[0]!rho_EUR,[0]!nu_EUR,$F12,Overview!$C$12,$K12,AV12) -> 0.263918369 | EW12: =SABR_Vol_Test([0]!alpha_EUR,[0]!beta_EUR,[0]!rho_EUR,[0]!nu_EUR,$F12,Overview!$C$12,$K12,AW12) -> 0.2664000764 | EX12: =SABR_Vol_Test([0]!alpha_EUR,[0]!beta_EUR,[0]!rho_EUR,[0]!nu_EUR,$F12,Overview!$C$12,$K12,AX12) -> 0.2688413117 | EY12: =SABR_Vol_Test([0]!alpha_EUR,[0]!beta_EUR,[0]!rho_EUR,[0]!nu_EUR,$F12,Overview!$C$12,$K12,AY12) -> 0.2712428546 | EZ12: =SABR_Vol_Test([0]!alpha_EUR,[0]!beta_EUR,[0]!rho_EUR,[0]!nu_EUR,$F12,Overview!$C$12,$K12,AZ12) -> 0.273605519 | FA12: =SABR_Vol_Test([0]!alpha_EUR,[0]!beta_EUR,[0]!rho_EUR,[0]!nu_EUR,$F12,Overview!$C$12,$K12,BA12) -> 0.2759301405 | FB12: =SABR_Vol_Test([0]!alpha_EUR,[0]!beta_EUR,[0]!rho_EUR,[0]!nu_EUR,$F12,Overview!$C$12,$K12,BB12) -> 0.2782175673 | FC12: =SABR_Vol_Test([0]!alpha_EUR,[0]!beta_EUR,[0]!rho_EUR,[0]!nu_EUR,$F12,Overview!$C$12,$K12,BC12) -> 0.2804686522 | FD12: =SABR_Vol_Test([0]!alpha_EUR,[0]!beta_EUR,[0]!rho_EUR,[0]!nu_EUR,$F12,Overview!$C$12,$K12,BD12) -> 0.2826842469 | FE12: =SABR_Vol_Test([0]!alpha_EUR,[0]!beta_EUR,[0]!rho_EUR,[0]!nu_EUR,$F12,Overview!$C$12,$K12,BE12) -> 0.284865197 | FF12: =SABR_Vol_Test([0]!alpha_EUR,[0]!beta_EUR,[0]!rho_EUR,[0]!nu_EUR,$F12,Overview!$C$12,$K12,BF12) -> 0.2870123387 | FG12: =SABR_Vol_Test([0]!alpha_EUR,[0]!beta_EUR,[0]!rho_EUR,[0]!nu_EUR,$F12,Overview!$C$12,$K12,BG12) -> 0.2891264954 | FH12: =SABR_Vol_Test([0]!alpha_EUR,[0]!beta_EUR,[0]!rho_EUR,[0]!nu_EUR,$F12,Overview!$C$12,$K12,BH12) -> 0.2912084758 | FI12: =SABR_Vol_Test([0]!alpha_EUR,[0]!beta_EUR,[0]!rho_EUR,[0]!nu_EUR,$F12,Overview!$C$12,$K12,BI12) -> 0.2932590722 | FJ12: =SABR_Vol_Test([0]!alpha_EUR,[0]!beta_EUR,[0]!rho_EUR,[0]!nu_EUR,$F12,Overview!$C$12,$K12,BJ12) -> 0.2952790592 | FK12: =SABR_Vol_Test([0]!alpha_EUR,[0]!beta_EUR,[0]!rho_EUR,[0]!nu_EUR,$F12,Overview!$C$12,$K12,BK12) -> 0.2972691931 | FM12: 1 | FN12: 3.445980973e-10 | FO12: 7.679443853e-11 | FP12: 1.64974632e-11 | FQ12: 3.449329784e-12 | FR12: 7.091367783e-13 | FS12: 1.448742908e-13 | FT12: 2.972256761e-14 | FU12: 6.185872782e-15 | FV12: 1.318236152e-15 | FW12: 2.900504297e-16 | FX12: 6.636219529e-17 | FY12: 1.58794823e-17 | FZ12: 3.991491227e-18 | GA12: 1.057226085e-18 | GB12: 2.956424852e-19 | GC12: 8.735908037e-20 | GD12: 2.727599369e-20 | GE12: 8.992031576e-21 | GF12: 3.125831179e-21 | GG12: 1.143782796e-21 | GH12: 4.396427369e-22 | GI12: 1.771152677e-22 | GJ12: 7.460774819e-23 | GK12: 3.278203415e-23 | GL12: 1.498880365e-23 | GM12: 7.114626729e-24 | GN12: 3.497828379e-24 | GO12: 1.777271925e-24 | GP12: 9.313482228e-25 | GQ12: 5.023611601e-25 | GR12: 2.783935023e-25 | GS12: 1.582285632e-25 | GT12: 9.2084484e-26 | GU12: 5.479041056e-26 | GV12: 3.328323319e-26 | GW12: 2.061478823e-26 | GX12: 1.300274148e-26 | GY12: 8.342612126e-27 | GZ12: 5.43906465e-27 | HA12: 3.599800958e-27 | HB12: 2.416420983e-27 | HC12: 1.643776275e-27 | HD12: 1.132273227e-27 | HE12: 7.891959783e-28 | HF12: 5.562277233e-28 | HG12: 3.961724048e-28 | HH12: 2.849891556e-28 | HI12: 2.069432179e-28 | HJ12: 1.516125654e-28 | HK12: 1.120153671e-28 | HM12: 1 | HN12: 3.710656673e-10 | HO12: 1.812632467e-10
B13: Cash Settled Level Parameters | E13: 2 | F13: =(Overview!F13-Overview!$C$8)/365 -> 2.005479452 | G13: =Overview!I13 -> 0.498630137 | H13: =Overview!K13 -> 0.9719241295 | I13: =Overview!L13/Overview!K13 -> 0.9924727079 | J13: =Overview!M13 -> 0.0212994182 | K13: =$C$8 -> 0.06 | M13: 2 | N13: 0.06 | O13: =IF($N13="","",N13+$C$11) -> 0.0625 | P13: 0.065 | Q13: 0.0675 | R13: 0.07 | S13: 0.0725 | T13: 0.075 | U13: 0.0775 | V13: 0.08 | W13: 0.0825 | X13: 0.085 | Y13: 0.0875 | Z13: 0.09 | AA13: 0.0925 | AB13: 0.095 | AC13: 0.0975 | AD13: 0.1 | AE13: 0.1025 | AF13: 0.105 | AG13: 0.1075 | AH13: 0.11 | AI13: 0.1125 | AJ13: 0.115 | AK13: 0.1175 | AL13: 0.12 | AM13: 0.1225 | AN13: 0.125 | AO13: 0.1275 | AP13: 0.13 | AQ13: 0.1325 | AR13: 0.135 | AS13: 0.1375 | AT13: 0.14 | AU13: =IF($N13="","",AT13+$C$11) -> 0.1425 | AV13: 0.145 | AW13: 0.1475 | AX13: 0.15 | AY13: 0.1525 | AZ13: 0.155 | BA13: 0.1575 | BB13: 0.16 | BC13: 0.1625 | BD13: 0.165 | BE13: 0.1675 | BF13: 0.17 | BG13: 0.1725 | BH13: 0.175 | BI13: 0.1775 | BJ13: 0.18 | BK13: 0.1825 | BM13: 2 | BN13: =IF(K13="","",getCMSCapReplicationWeights(K13,$C$14,$C$15,$C$16,N13:BK13)) -> 0.5473484848 | BO13: 0.003826032724 | BP13: 0.003830291372 | BQ13: 0.003834529447 | BR13: 0.003838747073 | BS13: 0.003842944372 | BT13: 0.003847121468 | BU13: 0.003851278482 | BV13: 0.003855415535 | BW13: 0.003859532745 | BX13: 0.003863630232 | BY13: 0.003867708114 | BZ13: 0.003871766508 | CA13: 0.00387580553 | CB13: 0.003879825296 | CC13: 0.00388382592 | CD13: 0.003887807516 | CE13: 0.003891770197 | CF13: 0.003895714075 | CG13: 0.003899639262 | CH13: 0.003903545868 | CI13: 0.003907434003 | CJ13: 0.003911303777 | CK13: 0.003915155296 | CL13: 0.00391898867 | CM13: 0.003922804004 | CN13: 0.003926601405 | CO13: 0.003930380977 | CP13: 0.003934142826 | CQ13: 0.003937887055 | CR13: 0.003941613767 | CS13: 0.003945323065 | CT13: 0.003949015049 | CU13: 0.003952689822 | CV13: 0.003956347482 | CW13: 0.003959988131 | CX13: 0.003963611865 | CY13: 0.003967218785 | CZ13: 0.003970808986 | DA13: 0.003974382566 | DB13: 0.003977939621 | DC13: 0.003981480245 | DD13: 0.003985004535 | DE13: 0.003988512584 | DF13: 0.003992004485 | DG13: 0.003995480332 | DH13: 0.003998940216 | DI13: 0.004002384229 | DJ13: 0.004005812462 | DK13: 0 | DM13: 2 | DN13: =SABR_Vol_Test([0]!alpha_EUR,[0]!beta_EUR,[0]!rho_EUR,[0]!nu_EUR,$F13,Overview!$C$12,$K13,N13) -> 0.1972045053 | DO13: =SABR_Vol_Test([0]!alpha_EUR,[0]!beta_EUR,[0]!rho_EUR,[0]!nu_EUR,$F13,Overview!$C$12,$K13,O13) -> 0.1898042758 | DP13: =SABR_Vol_Test([0]!alpha_EUR,[0]!beta_EUR,[0]!rho_EUR,[0]!nu_EUR,$F13,Overview!$C$12,$K13,P13) -> 0.1836788961 | DQ13: =SABR_Vol_Test([0]!alpha_EUR,[0]!beta_EUR,[0]!rho_EUR,[0]!nu_EUR,$F13,Overview!$C$12,$K13,Q13) -> 0.1789165187 | DR13: =SABR_Vol_Test([0]!alpha_EUR,[0]!beta_EUR,[0]!rho_EUR,[0]!nu_EUR,$F13,Overview!$C$12,$K13,R13) -> 0.175536791 | DS13: =SABR_Vol_Test([0]!alpha_EUR,[0]!beta_EUR,[0]!rho_EUR,[0]!nu_EUR,$F13,Overview!$C$12,$K13,S13) -> 0.1734746036 | DT13: =SABR_Vol_Test([0]!alpha_EUR,[0]!beta_EUR,[0]!rho_EUR,[0]!nu_EUR,$F13,Overview!$C$12,$K13,T13) -> 0.1725901446 | DU13: =SABR_Vol_Test([0]!alpha_EUR,[0]!beta_EUR,[0]!rho_EUR,[0]!nu_EUR,$F13,Overview!$C$12,$K13,U13) -> 0.1726991536 | DV13: =SABR_Vol_Test([0]!alpha_EUR,[0]!beta_EUR,[0]!rho_EUR,[0]!nu_EUR,$F13,Overview!$C$12,$K13,V13) -> 0.1736069974 | DW13: =SABR_Vol_Test([0]!alpha_EUR,[0]!beta_EUR,[0]!rho_EUR,[0]!nu_EUR,$F13,Overview!$C$12,$K13,W13) -> 0.1751336113 | DX13: =SABR_Vol_Test([0]!alpha_EUR,[0]!beta_EUR,[0]!rho_EUR,[0]!nu_EUR,$F13,Overview!$C$12,$K13,X13) -> 0.1771258575 | DY13: =SABR_Vol_Test([0]!alpha_EUR,[0]!beta_EUR,[0]!rho_EUR,[0]!nu_EUR,$F13,Overview!$C$12,$K13,Y13) -> 0.1794602473 | DZ13: =SABR_Vol_Test([0]!alpha_EUR,[0]!beta_EUR,[0]!rho_EUR,[0]!nu_EUR,$F13,Overview!$C$12,$K13,Z13) -> 0.1820404066 | EA13: =SABR_Vol_Test([0]!alpha_EUR,[0]!beta_EUR,[0]!rho_EUR,[0]!nu_EUR,$F13,Overview!$C$12,$K13,AA13) -> 0.184792561 | EB13: =SABR_Vol_Test([0]!alpha_EUR,[0]!beta_EUR,[0]!rho_EUR,[0]!nu_EUR,$F13,Overview!$C$12,$K13,AB13) -> 0.1876608431 | EC13: =SABR_Vol_Test([0]!alpha_EUR,[0]!beta_EUR,[0]!rho_EUR,[0]!nu_EUR,$F13,Overview!$C$12,$K13,AC13) -> 0.1906031851 | ED13: =SABR_Vol_Test([0]!alpha_EUR,[0]!beta_EUR,[0]!rho_EUR,[0]!nu_EUR,$F13,Overview!$C$12,$K13,AD13) -> 0.1935879984 | EE13: =SABR_Vol_Test([0]!alpha_EUR,[0]!beta_EUR,[0]!rho_EUR,[0]!nu_EUR,$F13,Overview!$C$12,$K13,AE13) -> 0.1965916007 | EF13: =SABR_Vol_Test([0]!alpha_EUR,[0]!beta_EUR,[0]!rho_EUR,[0]!nu_EUR,$F13,Overview!$C$12,$K13,AF13) -> 0.1995962631 | EG13: =SABR_Vol_Test([0]!alpha_EUR,[0]!beta_EUR,[0]!rho_EUR,[0]!nu_EUR,$F13,Overview!$C$12,$K13,AG13) -> 0.2025887444 | EH13: =SABR_Vol_Test([0]!alpha_EUR,[0]!beta_EUR,[0]!rho_EUR,[0]!nu_EUR,$F13,Overview!$C$12,$K13,AH13) -> 0.2055591952 | EI13: =SABR_Vol_Test([0]!alpha_EUR,[0]!beta_EUR,[0]!rho_EUR,[0]!nu_EUR,$F13,Overview!$C$12,$K13,AI13) -> 0.2085003382 | EJ13: =SABR_Vol_Test([0]!alpha_EUR,[0]!beta_EUR,[0]!rho_EUR,[0]!nu_EUR,$F13,Overview!$C$12,$K13,AJ13) -> 0.2114068535 | EK13: =SABR_Vol_Test([0]!alpha_EUR,[0]!beta_EUR,[0]!rho_EUR,[0]!nu_EUR,$F13,Overview!$C$12,$K13,AK13) -> 0.2142749162 | EL13: =SABR_Vol_Test([0]!alpha_EUR,[0]!beta_EUR,[0]!rho_EUR,[0]!nu_EUR,$F13,Overview!$C$12,$K13,AL13) -> 0.2171018467 | EM13: =SABR_Vol_Test([0]!alpha_EUR,[0]!beta_EUR,[0]!rho_EUR,[0]!nu_EUR,$F13,Overview!$C$12,$K13,AM13) -> 0.2198858447 | EN13: =SABR_Vol_Test([0]!alpha_EUR,[0]!beta_EUR,[0]!rho_EUR,[0]!nu_EUR,$F13,Overview!$C$12,$K13,AN13) -> 0.1826911352 | EO13: =SABR_Vol_Test([0]!alpha_EUR,[0]!beta_EUR,[0]!rho_EUR,[0]!nu_EUR,$F13,Overview!$C$12,$K13,AO13) -> 0.1837572044 | EP13: =SABR_Vol_Test([0]!alpha_EUR,[0]!beta_EUR,[0]!rho_EUR,[0]!nu_EUR,$F13,Overview!$C$12,$K13,AP13) -> 0.1848307508 | EQ13: =SABR_Vol_Test([0]!alpha_EUR,[0]!beta_EUR,[0]!rho_EUR,[0]!nu_EUR,$F13,Overview!$C$12,$K13,AQ13) -> 0.185908539 | ER13: =SABR_Vol_Test([0]!alpha_EUR,[0]!beta_EUR,[0]!rho_EUR,[0]!nu_EUR,$F13,Overview!$C$12,$K13,AR13) -> 0.1869878433 | ES13: =SABR_Vol_Test([0]!alpha_EUR,[0]!beta_EUR,[0]!rho_EUR,[0]!nu_EUR,$F13,Overview!$C$12,$K13,AS13) -> 0.1880663697 | ET13: =SABR_Vol_Test([0]!alpha_EUR,[0]!beta_EUR,[0]!rho_EUR,[0]!nu_EUR,$F13,Overview!$C$12,$K13,AT13) -> 0.1891421907 | EU13: =SABR_Vol_Test([0]!alpha_EUR,[0]!beta_EUR,[0]!rho_EUR,[0]!nu_EUR,$F13,Overview!$C$12,$K13,AU13) -> 0.1902136899 | EV13: =SABR_Vol_Test([0]!alpha_EUR,[0]!beta_EUR,[0]!rho_EUR,[0]!nu_EUR,$F13,Overview!$C$12,$K13,AV13) -> 0.1912795154 | EW13: =SABR_Vol_Test([0]!alpha_EUR,[0]!beta_EUR,[0]!rho_EUR,[0]!nu_EUR,$F13,Overview!$C$12,$K13,AW13) -> 0.1923385401 | EX13: =SABR_Vol_Test([0]!alpha_EUR,[0]!beta_EUR,[0]!rho_EUR,[0]!nu_EUR,$F13,Overview!$C$12,$K13,AX13) -> 0.1933898288 | EY13: =SABR_Vol_Test([0]!alpha_EUR,[0]!beta_EUR,[0]!rho_EUR,[0]!nu_EUR,$F13,Overview!$C$12,$K13,AY13) -> 0.1944326098 | EZ13: =SABR_Vol_Test([0]!alpha_EUR,[0]!beta_EUR,[0]!rho_EUR,[0]!nu_EUR,$F13,Overview!$C$12,$K13,AZ13) -> 0.1954662505 | FA13: =SABR_Vol_Test([0]!alpha_EUR,[0]!beta_EUR,[0]!rho_EUR,[0]!nu_EUR,$F13,Overview!$C$12,$K13,BA13) -> 0.1964902377 | FB13: =SABR_Vol_Test([0]!alpha_EUR,[0]!beta_EUR,[0]!rho_EUR,[0]!nu_EUR,$F13,Overview!$C$12,$K13,BB13) -> 0.1975041599 | FC13: =SABR_Vol_Test([0]!alpha_EUR,[0]!beta_EUR,[0]!rho_EUR,[0]!nu_EUR,$F13,Overview!$C$12,$K13,BC13) -> 0.1985076924 | FD13: =SABR_Vol_Test([0]!alpha_EUR,[0]!beta_EUR,[0]!rho_EUR,[0]!nu_EUR,$F13,Overview!$C$12,$K13,BD13) -> 0.199500585 | FE13: =SABR_Vol_Test([0]!alpha_EUR,[0]!beta_EUR,[0]!rho_EUR,[0]!nu_EUR,$F13,Overview!$C$12,$K13,BE13) -> 0.2004826512 | FF13: =SABR_Vol_Test([0]!alpha_EUR,[0]!beta_EUR,[0]!rho_EUR,[0]!nu_EUR,$F13,Overview!$C$12,$K13,BF13) -> 0.2014537586 | FG13: =SABR_Vol_Test([0]!alpha_EUR,[0]!beta_EUR,[0]!rho_EUR,[0]!nu_EUR,$F13,Overview!$C$12,$K13,BG13) -> 0.2024138214 | FH13: =SABR_Vol_Test([0]!alpha_EUR,[0]!beta_EUR,[0]!rho_EUR,[0]!nu_EUR,$F13,Overview!$C$12,$K13,BH13) -> 0.2033627934 | FI13: =SABR_Vol_Test([0]!alpha_EUR,[0]!beta_EUR,[0]!rho_EUR,[0]!nu_EUR,$F13,Overview!$C$12,$K13,BI13) -> 0.2043006622 | FJ13: =SABR_Vol_Test([0]!alpha_EUR,[0]!beta_EUR,[0]!rho_EUR,[0]!nu_EUR,$F13,Overview!$C$12,$K13,BJ13) -> 0.2052274443 | FK13: =SABR_Vol_Test([0]!alpha_EUR,[0]!beta_EUR,[0]!rho_EUR,[0]!nu_EUR,$F13,Overview!$C$12,$K13,BK13) -> 0.2061431804 | FM13: 2 | FN13: 3.613290828e-07 | FO13: 1.304435607e-07 | FP13: 4.571353031e-08 | FQ13: 1.57369781e-08 | FR13: 5.392098947e-09 | FS13: 1.863977411e-09 | FT13: 6.58598588e-10 | FU13: 2.406169001e-10 | FV13: 9.176285446e-11 | FW13: 3.678531749e-11 | FX13: 1.556959677e-11 | FY13: 6.972517599e-12 | FZ13: 3.304242828e-12 | GA13: 1.654716408e-12 | GB13: 8.735195723e-13 | GC13: 4.845568297e-13 | GD13: 2.81448963e-13 | GE13: 1.705435829e-13 | GF13: 1.074142334e-13 | GG13: 7.007289786e-14 | GH13: 4.719134878e-14 | GI13: 3.270907544e-14 | GJ13: 2.326754986e-14 | GK13: 1.694359618e-14 | GL13: 1.260195085e-14 | GM13: 9.55330632e-15 | GN13: 7.368066771e-15 | GO13: 5.771952433e-15 | GP13: 4.585888538e-15 | GQ13: 3.690513621e-15 | GR13: 3.00472704e-15 | GS13: 2.472435438e-15 | GT13: 2.054195505e-15 | GU13: 1.721842556e-15 | GV13: 1.454975927e-15 | GW13: 1.238620556e-15 | GX13: 1.061646541e-15 | GY13: 9.156851829e-16 | GZ13: 7.943752239e-16 | HA13: 6.928318404e-16 | HB13: 6.07267984e-16 | HC13: 5.347212331e-16 | HD13: 4.728546118e-16 | HE13: 4.1980985e-16 | HF13: 3.740982307e-16 | HG13: 3.345186482e-16 | HH13: 3.000955602e-16 | HI13: 2.700316159e-16 | HJ13: 2.436712063e-16 | HK13: 2.204722099e-16 | HM13: 2 | HN13: 3.876614102e-07 | HO13: 1.864584338e-07
B14: Frequency | C14: 1 | E14: 3 | F14: =(Overview!F14-Overview!$C$8)/365 -> 3.005479452 | G14: =Overview!I14 -> 0.5 | H14: =Overview!K14 -> 0.95629154 | I14: =Overview!L14/Overview!K14 -> 0.9893839493 | J14: =Overview!M14 -> 0.02565647727 | K14: 0.06 | M14: 3 | N14: 0.06 | O14: =IF($N14="","",N14+$C$11) -> 0.0625 | P14: 0.065 | Q14: 0.0675 | R14: 0.07 | S14: 0.0725 | T14: 0.075 | U14: 0.0775 | V14: 0.08 | W14: 0.0825 | X14: 0.085 | Y14: 0.0875 | Z14: 0.09 | AA14: 0.0925 | AB14: 0.095 | AC14: 0.0975 | AD14: 0.1 | AE14: 0.1025 | AF14: 0.105 | AG14: 0.1075 | AH14: 0.11 | AI14: 0.1125 | AJ14: 0.115 | AK14: 0.1175 | AL14: 0.12 | AM14: 0.1225 | AN14: 0.125 | AO14: 0.1275 | AP14: 0.13 | AQ14: 0.1325 | AR14: 0.135 | AS14: 0.1375 | AT14: 0.14 | AU14: =IF($N14="","",AT14+$C$11) -> 0.1425 | AV14: 0.145 | AW14: 0.1475 | AX14: 0.15 | AY14: 0.1525 | AZ14: 0.155 | BA14: 0.1575 | BB14: 0.16 | BC14: 0.1625 | BD14: 0.165 | BE14: 0.1675 | BF14: 0.17 | BG14: 0.1725 | BH14: 0.175 | BI14: 0.1775 | BJ14: 0.18 | BK14: 0.1825 | BM14: 3 | BN14: =IF(K14="","",getCMSCapReplicationWeights(K14,$C$14,$C$15,$C$16,N14:BK14)) -> 0.5473484848 | BO14: 0.003826032724 | BP14: 0.003830291372 | BQ14: 0.003834529447 | BR14: 0.003838747073 | BS14: 0.003842944372 | BT14: 0.003847121468 | BU14: 0.003851278482 | BV14: 0.003855415535 | BW14: 0.003859532745 | BX14: 0.003863630232 | BY14: 0.003867708114 | BZ14: 0.003871766508 | CA14: 0.00387580553 | CB14: 0.003879825296 | CC14: 0.00388382592 | CD14: 0.003887807516 | CE14: 0.003891770197 | CF14: 0.003895714075 | CG14: 0.003899639262 | CH14: 0.003903545868 | CI14: 0.003907434003 | CJ14: 0.003911303777 | CK14: 0.003915155296 | CL14: 0.00391898867 | CM14: 0.003922804004 | CN14: 0.003926601405 | CO14: 0.003930380977 | CP14: 0.003934142826 | CQ14: 0.003937887055 | CR14: 0.003941613767 | CS14: 0.003945323065 | CT14: 0.003949015049 | CU14: 0.003952689822 | CV14: 0.003956347482 | CW14: 0.003959988131 | CX14: 0.003963611865 | CY14: 0.003967218785 | CZ14: 0.003970808986 | DA14: 0.003974382566 | DB14: 0.003977939621 | DC14: 0.003981480245 | DD14: 0.003985004535 | DE14: 0.003988512584 | DF14: 0.003992004485 | DG14: 0.003995480332 | DH14: 0.003998940216 | DI14: 0.004002384229 | DJ14: 0.004005812462 | DK14: 0 | DM14: 3 | DN14: =SABR_Vol_Test([0]!alpha_EUR,[0]!beta_EUR,[0]!rho_EUR,[0]!nu_EUR,$F14,Overview!$C$12,$K14,N14) -> 0.183435113 | DO14: =SABR_Vol_Test([0]!alpha_EUR,[0]!beta_EUR,[0]!rho_EUR,[0]!nu_EUR,$F14,Overview!$C$12,$K14,O14) -> 0.17659206 | DP14: =SABR_Vol_Test([0]!alpha_EUR,[0]!beta_EUR,[0]!rho_EUR,[0]!nu_EUR,$F14,Overview!$C$12,$K14,P14) -> 0.1709381571 | DQ14: =SABR_Vol_Test([0]!alpha_EUR,[0]!beta_EUR,[0]!rho_EUR,[0]!nu_EUR,$F14,Overview!$C$12,$K14,Q14) -> 0.1665538605 | DR14: =SABR_Vol_Test([0]!alpha_EUR,[0]!beta_EUR,[0]!rho_EUR,[0]!nu_EUR,$F14,Overview!$C$12,$K14,R14) -> 0.1634552844 | DS14: =SABR_Vol_Test([0]!alpha_EUR,[0]!beta_EUR,[0]!rho_EUR,[0]!nu_EUR,$F14,Overview!$C$12,$K14,S14) -> 0.1615797144 | DT14: =SABR_Vol_Test([0]!alpha_EUR,[0]!beta_EUR,[0]!rho_EUR,[0]!nu_EUR,$F14,Overview!$C$12,$K14,T14) -> 0.1607955871 | DU14: =SABR_Vol_Test([0]!alpha_EUR,[0]!beta_EUR,[0]!rho_EUR,[0]!nu_EUR,$F14,Overview!$C$12,$K14,U14) -> 0.1609308847 | DV14: =SABR_Vol_Test([0]!alpha_EUR,[0]!beta_EUR,[0]!rho_EUR,[0]!nu_EUR,$F14,Overview!$C$12,$K14,V14) -> 0.1618046832 | DW14: =SABR_Vol_Test([0]!alpha_EUR,[0]!beta_EUR,[0]!rho_EUR,[0]!nu_EUR,$F14,Overview!$C$12,$K14,W14) -> 0.1632500318 | DX14: =SABR_Vol_Test([0]!alpha_EUR,[0]!beta_EUR,[0]!rho_EUR,[0]!nu_EUR,$F14,Overview!$C$12,$K14,X14) -> 0.1651251682 | DY14: =SABR_Vol_Test([0]!alpha_EUR,[0]!beta_EUR,[0]!rho_EUR,[0]!nu_EUR,$F14,Overview!$C$12,$K14,Y14) -> 0.1673158834 | DZ14: =SABR_Vol_Test([0]!alpha_EUR,[0]!beta_EUR,[0]!rho_EUR,[0]!nu_EUR,$F14,Overview!$C$12,$K14,Z14) -> 0.1697330933 | EA14: =SABR_Vol_Test([0]!alpha_EUR,[0]!beta_EUR,[0]!rho_EUR,[0]!nu_EUR,$F14,Overview!$C$12,$K14,AA14) -> 0.1723086241 | EB14: =SABR_Vol_Test([0]!alpha_EUR,[0]!beta_EUR,[0]!rho_EUR,[0]!nu_EUR,$F14,Overview!$C$12,$K14,AB14) -> 0.1749908581 | EC14: =SABR_Vol_Test([0]!alpha_EUR,[0]!beta_EUR,[0]!rho_EUR,[0]!nu_EUR,$F14,Overview!$C$12,$K14,AC14) -> 0.1777409312 | ED14: =SABR_Vol_Test([0]!alpha_EUR,[0]!beta_EUR,[0]!rho_EUR,[0]!nu_EUR,$F14,Overview!$C$12,$K14,AD14) -> 0.1805296629 | EE14: =SABR_Vol_Test([0]!alpha_EUR,[0]!beta_EUR,[0]!rho_EUR,[0]!nu_EUR,$F14,Overview!$C$12,$K14,AE14) -> 0.1833351787 | EF14: =SABR_Vol_Test([0]!alpha_EUR,[0]!beta_EUR,[0]!rho_EUR,[0]!nu_EUR,$F14,Overview!$C$12,$K14,AF14) -> 0.1861411055 | EG14: =SABR_Vol_Test([0]!alpha_EUR,[0]!beta_EUR,[0]!rho_EUR,[0]!nu_EUR,$F14,Overview!$C$12,$K14,AG14) -> 0.1889352176 | EH14: =SABR_Vol_Test([0]!alpha_EUR,[0]!beta_EUR,[0]!rho_EUR,[0]!nu_EUR,$F14,Overview!$C$12,$K14,AH14) -> 0.1917084242 | EI14: =SABR_Vol_Test([0]!alpha_EUR,[0]!beta_EUR,[0]!rho_EUR,[0]!nu_EUR,$F14,Overview!$C$12,$K14,AI14) -> 0.1944540117 | EJ14: =SABR_Vol_Test([0]!alpha_EUR,[0]!beta_EUR,[0]!rho_EUR,[0]!nu_EUR,$F14,Overview!$C$12,$K14,AJ14) -> 0.1971670759 | EK14: =SABR_Vol_Test([0]!alpha_EUR,[0]!beta_EUR,[0]!rho_EUR,[0]!nu_EUR,$F14,Overview!$C$12,$K14,AK14) -> 0.1998440947 | EL14: =SABR_Vol_Test([0]!alpha_EUR,[0]!beta_EUR,[0]!rho_EUR,[0]!nu_EUR,$F14,Overview!$C$12,$K14,AL14) -> 0.2024826043 | EM14: =SABR_Vol_Test([0]!alpha_EUR,[0]!beta_EUR,[0]!rho_EUR,[0]!nu_EUR,$F14,Overview!$C$12,$K14,AM14) -> 0.205080954 | EN14: =SABR_Vol_Test([0]!alpha_EUR,[0]!beta_EUR,[0]!rho_EUR,[0]!nu_EUR,$F14,Overview!$C$12,$K14,AN14) -> 0.207638118 | EO14: =SABR_Vol_Test([0]!alpha_EUR,[0]!beta_EUR,[0]!rho_EUR,[0]!nu_EUR,$F14,Overview!$C$12,$K14,AO14) -> 0.2101535514 | EP14: =SABR_Vol_Test([0]!alpha_EUR,[0]!beta_EUR,[0]!rho_EUR,[0]!nu_EUR,$F14,Overview!$C$12,$K14,AP14) -> 0.2126270791 | EQ14: =SABR_Vol_Test([0]!alpha_EUR,[0]!beta_EUR,[0]!rho_EUR,[0]!nu_EUR,$F14,Overview!$C$12,$K14,AQ14) -> 0.2150588094 | ER14: =SABR_Vol_Test([0]!alpha_EUR,[0]!beta_EUR,[0]!rho_EUR,[0]!nu_EUR,$F14,Overview!$C$12,$K14,AR14) -> 0.2174490672 | ES14: =SABR_Vol_Test([0]!alpha_EUR,[0]!beta_EUR,[0]!rho_EUR,[0]!nu_EUR,$F14,Overview!$C$12,$K14,AS14) -> 0.2197983414 | ET14: =SABR_Vol_Test([0]!alpha_EUR,[0]!beta_EUR,[0]!rho_EUR,[0]!nu_EUR,$F14,Overview!$C$12,$K14,AT14) -> 0.2221072444 | EU14: =SABR_Vol_Test([0]!alpha_EUR,[0]!beta_EUR,[0]!rho_EUR,[0]!nu_EUR,$F14,Overview!$C$12,$K14,AU14) -> 0.1760762009 | EV14: =SABR_Vol_Test([0]!alpha_EUR,[0]!beta_EUR,[0]!rho_EUR,[0]!nu_EUR,$F14,Overview!$C$12,$K14,AV14) -> 0.1771415902 | EW14: =SABR_Vol_Test([0]!alpha_EUR,[0]!beta_EUR,[0]!rho_EUR,[0]!nu_EUR,$F14,Overview!$C$12,$K14,AW14) -> 0.1781979759 | EX14: =SABR_Vol_Test([0]!alpha_EUR,[0]!beta_EUR,[0]!rho_EUR,[0]!nu_EUR,$F14,Overview!$C$12,$K14,AX14) -> 0.1792446502 | EY14: =SABR_Vol_Test([0]!alpha_EUR,[0]!beta_EUR,[0]!rho_EUR,[0]!nu_EUR,$F14,Overview!$C$12,$K14,AY14) -> 0.1802810456 | EZ14: =SABR_Vol_Test([0]!alpha_EUR,[0]!beta_EUR,[0]!rho_EUR,[0]!nu_EUR,$F14,Overview!$C$12,$K14,AZ14) -> 0.181306713 | FA14: =SABR_Vol_Test([0]!alpha_EUR,[0]!beta_EUR,[0]!rho_EUR,[0]!nu_EUR,$F14,Overview!$C$12,$K14,BA14) -> 0.1823213035 | FB14: =SABR_Vol_Test([0]!alpha_EUR,[0]!beta_EUR,[0]!rho_EUR,[0]!nu_EUR,$F14,Overview!$C$12,$K14,BB14) -> 0.1833245535 | FC14: =SABR_Vol_Test([0]!alpha_EUR,[0]!beta_EUR,[0]!rho_EUR,[0]!nu_EUR,$F14,Overview!$C$12,$K14,BC14) -> 0.1843162715 | FD14: =SABR_Vol_Test([0]!alpha_EUR,[0]!beta_EUR,[0]!rho_EUR,[0]!nu_EUR,$F14,Overview!$C$12,$K14,BD14) -> 0.185296327 | FE14: =SABR_Vol_Test([0]!alpha_EUR,[0]!beta_EUR,[0]!rho_EUR,[0]!nu_EUR,$F14,Overview!$C$12,$K14,BE14) -> 0.1862646412 | FF14: =SABR_Vol_Test([0]!alpha_EUR,[0]!beta_EUR,[0]!rho_EUR,[0]!nu_EUR,$F14,Overview!$C$12,$K14,BF14) -> 0.1872211793 | FG14: =SABR_Vol_Test([0]!alpha_EUR,[0]!beta_EUR,[0]!rho_EUR,[0]!nu_EUR,$F14,Overview!$C$12,$K14,BG14) -> 0.1881659433 | FH14: =SABR_Vol_Test([0]!alpha_EUR,[0]!beta_EUR,[0]!rho_EUR,[0]!nu_EUR,$F14,Overview!$C$12,$K14,BH14) -> 0.1890989664 | FI14: =SABR_Vol_Test([0]!alpha_EUR,[0]!beta_EUR,[0]!rho_EUR,[0]!nu_EUR,$F14,Overview!$C$12,$K14,BI14) -> 0.1900203078 | FJ14: =SABR_Vol_Test([0]!alpha_EUR,[0]!beta_EUR,[0]!rho_EUR,[0]!nu_EUR,$F14,Overview!$C$12,$K14,BJ14) -> 0.190930049 | FK14: =SABR_Vol_Test([0]!alpha_EUR,[0]!beta_EUR,[0]!rho_EUR,[0]!nu_EUR,$F14,Overview!$C$12,$K14,BK14) -> 0.1918282895 | FM14: 3 | FN14: 1.462559111e-05 | FO14: 7.345779179e-06 | FP14: 3.60705005e-06 | FQ14: 1.7461725e-06 | FR14: 8.41306919e-07 | FS14: 4.074287571e-07 | FT14: 2.002272409e-07 | FU14: 1.007028937e-07 | FV14: 5.218821529e-08 | FW14: 2.800581245e-08 | FX14: 1.560865975e-08 | FY14: 9.046249968e-09 | FZ14: 5.451122539e-09 | GA14: 3.411041705e-09 | GB14: 2.212223658e-09 | GC14: 1.483480678e-09 | GD14: 1.025948489e-09 | GE14: 7.29827961e-10 | GF14: 5.326666154e-10 | GG14: 3.979031706e-10 | GH14: 3.035344418e-10 | GI14: 2.359669495e-10 | GJ14: 1.865926406e-10 | GK14: 1.498326439e-10 | GL14: 1.219920595e-10 | GM14: 1.005737349e-10 | GN14: 8.385787905e-11 | GO14: 7.063908922e-11 | GP14: 6.005857008e-11 | GQ14: 5.149508016e-11 | GR14: 4.449279949e-11 | GS14: 3.871282779e-11 | GT14: 3.390006396e-11 | GU14: 2.986025782e-11 | GV14: 2.644389124e-11 | GW14: 2.353470952e-11 | GX14: 2.104146202e-11 | GY14: 1.889188565e-11 | GZ14: 1.702827481e-11 | HA14: 1.540418597e-11 | HB14: 1.398196275e-11 | HC14: 1.273086022e-11 | HD14: 1.162561096e-11 | HE14: 1.064532007e-11 | HF14: 9.772606817e-12 | HG14: 8.992933159e-12 | HH14: 8.294074684e-12 | HI14: 7.665701006e-12 | HJ14: 7.099040879e-12 | HK14: 6.586613294e-12 | HM14: 3 | HN14: 1.568737327e-05 | HO14: 7.421221755e-06
B15: SwapTenor | C15: =Swap_Tenor -> 10 | E15: 4 | F15: =(Overview!F15-Overview!$C$8)/365 -> 4.008219178 | G15: =Overview!I15 -> 0.498630137 | H15: =Overview!K15 -> 0.934840745 | I15: =Overview!L15/Overview!K15 -> 0.9873067942 | J15: =Overview!M15 -> 0.02960122652 | K15: 0.06 | M15: 4 | N15: 0.06 | O15: =IF($N15="","",N15+$C$11) -> 0.0625 | P15: 0.065 | Q15: 0.0675 | R15: 0.07 | S15: 0.0725 | T15: 0.075 | U15: 0.0775 | V15: 0.08 | W15: 0.0825 | X15: 0.085 | Y15: 0.0875 | Z15: 0.09 | AA15: 0.0925 | AB15: 0.095 | AC15: 0.0975 | AD15: 0.1 | AE15: 0.1025 | AF15: 0.105 | AG15: 0.1075 | AH15: 0.11 | AI15: 0.1125 | AJ15: 0.115 | AK15: 0.1175 | AL15: 0.12 | AM15: 0.1225 | AN15: 0.125 | AO15: 0.1275 | AP15: 0.13 | AQ15: 0.1325 | AR15: 0.135 | AS15: 0.1375 | AT15: 0.14 | AU15: =IF($N15="","",AT15+$C$11) -> 0.1425 | AV15: 0.145 | AW15: 0.1475 | AX15: 0.15 | AY15: 0.1525 | AZ15: 0.155 | BA15: 0.1575 | BB15: 0.16 | BC15: 0.1625 | BD15: 0.165 | BE15: 0.1675 | BF15: 0.17 | BG15: 0.1725 | BH15: 0.175 | BI15: 0.1775 | BJ15: 0.18 | BK15: 0.1825 | BM15: 4 | BN15: =IF(K15="","",getCMSCapReplicationWeights(K15,$C$14,$C$15,$C$16,N15:BK15)) -> 0.5473484848 | BO15: 0.003826032724 | BP15: 0.003830291372 | BQ15: 0.003834529447 | BR15: 0.003838747073 | BS15: 0.003842944372 | BT15: 0.003847121468 | BU15: 0.003851278482 | BV15: 0.003855415535 | BW15: 0.003859532745 | BX15: 0.003863630232 | BY15: 0.003867708114 | BZ15: 0.003871766508 | CA15: 0.00387580553 | CB15: 0.003879825296 | CC15: 0.00388382592 | CD15: 0.003887807516 | CE15: 0.003891770197 | CF15: 0.003895714075 | CG15: 0.003899639262 | CH15: 0.003903545868 | CI15: 0.003907434003 | CJ15: 0.003911303777 | CK15: 0.003915155296 | CL15: 0.00391898867 | CM15: 0.003922804004 | CN15: 0.003926601405 | CO15: 0.003930380977 | CP15: 0.003934142826 | CQ15: 0.003937887055 | CR15: 0.003941613767 | CS15: 0.003945323065 | CT15: 0.003949015049 | CU15: 0.003952689822 | CV15: 0.003956347482 | CW15: 0.003959988131 | CX15: 0.003963611865 | CY15: 0.003967218785 | CZ15: 0.003970808986 | DA15: 0.003974382566 | DB15: 0.003977939621 | DC15: 0.003981480245 | DD15: 0.003985004535 | DE15: 0.003988512584 | DF15: 0.003992004485 | DG15: 0.003995480332 | DH15: 0.003998940216 | DI15: 0.004002384229 | DJ15: 0.004005812462 | DK15: 0 | DM15: 4 | DN15: =SABR_Vol_Test([0]!alpha_EUR,[0]!beta_EUR,[0]!rho_EUR,[0]!nu_EUR,$F15,Overview!$C$12,$K15,N15) -> 0.1691084993 | DO15: =SABR_Vol_Test([0]!alpha_EUR,[0]!beta_EUR,[0]!rho_EUR,[0]!nu_EUR,$F15,Overview!$C$12,$K15,O15) -> 0.1628348029 | DP15: =SABR_Vol_Test([0]!alpha_EUR,[0]!beta_EUR,[0]!rho_EUR,[0]!nu_EUR,$F15,Overview!$C$12,$K15,P15) -> 0.1576608188 | DQ15: =SABR_Vol_Test([0]!alpha_EUR,[0]!beta_EUR,[0]!rho_EUR,[0]!nu_EUR,$F15,Overview!$C$12,$K15,Q15) -> 0.1536592496 | DR15: =SABR_Vol_Test([0]!alpha_EUR,[0]!beta_EUR,[0]!rho_EUR,[0]!nu_EUR,$F15,Overview!$C$12,$K15,R15) -> 0.1508428989 | DS15: =SABR_Vol_Test([0]!alpha_EUR,[0]!beta_EUR,[0]!rho_EUR,[0]!nu_EUR,$F15,Overview!$C$12,$K15,S15) -> 0.1491519013 | DT15: =SABR_Vol_Test([0]!alpha_EUR,[0]!beta_EUR,[0]!rho_EUR,[0]!nu_EUR,$F15,Overview!$C$12,$K15,T15) -> 0.1484635073 | DU15: =SABR_Vol_Test([0]!alpha_EUR,[0]!beta_EUR,[0]!rho_EUR,[0]!nu_EUR,$F15,Overview!$C$12,$K15,U15) -> 0.1486184998 | DV15: =SABR_Vol_Test([0]!alpha_EUR,[0]!beta_EUR,[0]!rho_EUR,[0]!nu_EUR,$F15,Overview!$C$12,$K15,V15) -> 0.1494501472 | DW15: =SABR_Vol_Test([0]!alpha_EUR,[0]!beta_EUR,[0]!rho_EUR,[0]!nu_EUR,$F15,Overview!$C$12,$K15,W15) -> 0.1508050023 | DX15: =SABR_Vol_Test([0]!alpha_EUR,[0]!beta_EUR,[0]!rho_EUR,[0]!nu_EUR,$F15,Overview!$C$12,$K15,X15) -> 0.1525529821 | DY15: =SABR_Vol_Test([0]!alpha_EUR,[0]!beta_EUR,[0]!rho_EUR,[0]!nu_EUR,$F15,Overview!$C$12,$K15,Y15) -> 0.1545893921 | DZ15: =SABR_Vol_Test([0]!alpha_EUR,[0]!beta_EUR,[0]!rho_EUR,[0]!nu_EUR,$F15,Overview!$C$12,$K15,Z15) -> 0.1568326175 | EA15: =SABR_Vol_Test([0]!alpha_EUR,[0]!beta_EUR,[0]!rho_EUR,[0]!nu_EUR,$F15,Overview!$C$12,$K15,AA15) -> 0.1592202229 | EB15: =SABR_Vol_Test([0]!alpha_EUR,[0]!beta_EUR,[0]!rho_EUR,[0]!nu_EUR,$F15,Overview!$C$12,$K15,AB15) -> 0.1617049456 | EC15: =SABR_Vol_Test([0]!alpha_EUR,[0]!beta_EUR,[0]!rho_EUR,[0]!nu_EUR,$F15,Overview!$C$12,$K15,AC15) -> 0.1642512056 | ED15: =SABR_Vol_Test([0]!alpha_EUR,[0]!beta_EUR,[0]!rho_EUR,[0]!nu_EUR,$F15,Overview!$C$12,$K15,AD15) -> 0.1668322921 | EE15: =SABR_Vol_Test([0]!alpha_EUR,[0]!beta_EUR,[0]!rho_EUR,[0]!nu_EUR,$F15,Overview!$C$12,$K15,AE15) -> 0.1694281849 | EF15: =SABR_Vol_Test([0]!alpha_EUR,[0]!beta_EUR,[0]!rho_EUR,[0]!nu_EUR,$F15,Overview!$C$12,$K15,AF15) -> 0.1720239021 | EG15: =SABR_Vol_Test([0]!alpha_EUR,[0]!beta_EUR,[0]!rho_EUR,[0]!nu_EUR,$F15,Overview!$C$12,$K15,AG15) -> 0.1746082603 | EH15: =SABR_Vol_Test([0]!alpha_EUR,[0]!beta_EUR,[0]!rho_EUR,[0]!nu_EUR,$F15,Overview!$C$12,$K15,AH15) -> 0.177172947 | EI15: =SABR_Vol_Test([0]!alpha_EUR,[0]!beta_EUR,[0]!rho_EUR,[0]!nu_EUR,$F15,Overview!$C$12,$K15,AI15) -> 0.1797118272 | EJ15: =SABR_Vol_Test([0]!alpha_EUR,[0]!beta_EUR,[0]!rho_EUR,[0]!nu_EUR,$F15,Overview!$C$12,$K15,AJ15) -> 0.1822204231 | EK15: =SABR_Vol_Test([0]!alpha_EUR,[0]!beta_EUR,[0]!rho_EUR,[0]!nu_EUR,$F15,Overview!$C$12,$K15,AK15) -> 0.1846955226 | EL15: =SABR_Vol_Test([0]!alpha_EUR,[0]!beta_EUR,[0]!rho_EUR,[0]!nu_EUR,$F15,Overview!$C$12,$K15,AL15) -> 0.1871348831 | EM15: =SABR_Vol_Test([0]!alpha_EUR,[0]!beta_EUR,[0]!rho_EUR,[0]!nu_EUR,$F15,Overview!$C$12,$K15,AM15) -> 0.1895370064 | EN15: =SABR_Vol_Test([0]!alpha_EUR,[0]!beta_EUR,[0]!rho_EUR,[0]!nu_EUR,$F15,Overview!$C$12,$K15,AN15) -> 0.1919009666 | EO15: =SABR_Vol_Test([0]!alpha_EUR,[0]!beta_EUR,[0]!rho_EUR,[0]!nu_EUR,$F15,Overview!$C$12,$K15,AO15) -> 0.194226278 | EP15: =SABR_Vol_Test([0]!alpha_EUR,[0]!beta_EUR,[0]!rho_EUR,[0]!nu_EUR,$F15,Overview!$C$12,$K15,AP15) -> 0.1965127935 | EQ15: =SABR_Vol_Test([0]!alpha_EUR,[0]!beta_EUR,[0]!rho_EUR,[0]!nu_EUR,$F15,Overview!$C$12,$K15,AQ15) -> 0.1987606249 | ER15: =SABR_Vol_Test([0]!alpha_EUR,[0]!beta_EUR,[0]!rho_EUR,[0]!nu_EUR,$F15,Overview!$C$12,$K15,AR15) -> 0.1586337596 | ES15: =SABR_Vol_Test([0]!alpha_EUR,[0]!beta_EUR,[0]!rho_EUR,[0]!nu_EUR,$F15,Overview!$C$12,$K15,AS15) -> 0.1597233023 | ET15: =SABR_Vol_Test([0]!alpha_EUR,[0]!beta_EUR,[0]!rho_EUR,[0]!nu_EUR,$F15,Overview!$C$12,$K15,AT15) -> 0.1608040585 | EU15: =SABR_Vol_Test([0]!alpha_EUR,[0]!beta_EUR,[0]!rho_EUR,[0]!nu_EUR,$F15,Overview!$C$12,$K15,AU15) -> 0.1618750581 | EV15: =SABR_Vol_Test([0]!alpha_EUR,[0]!beta_EUR,[0]!rho_EUR,[0]!nu_EUR,$F15,Overview!$C$12,$K15,AV15) -> 0.1629355262 | EW15: =SABR_Vol_Test([0]!alpha_EUR,[0]!beta_EUR,[0]!rho_EUR,[0]!nu_EUR,$F15,Overview!$C$12,$K15,AW15) -> 0.1639848515 | EX15: =SABR_Vol_Test([0]!alpha_EUR,[0]!beta_EUR,[0]!rho_EUR,[0]!nu_EUR,$F15,Overview!$C$12,$K15,AX15) -> 0.1650225595 | EY15: =SABR_Vol_Test([0]!alpha_EUR,[0]!beta_EUR,[0]!rho_EUR,[0]!nu_EUR,$F15,Overview!$C$12,$K15,AY15) -> 0.1660482904 | EZ15: =SABR_Vol_Test([0]!alpha_EUR,[0]!beta_EUR,[0]!rho_EUR,[0]!nu_EUR,$F15,Overview!$C$12,$K15,AZ15) -> 0.1670617809 | FA15: =SABR_Vol_Test([0]!alpha_EUR,[0]!beta_EUR,[0]!rho_EUR,[0]!nu_EUR,$F15,Overview!$C$12,$K15,BA15) -> 0.1680628482 | FB15: =SABR_Vol_Test([0]!alpha_EUR,[0]!beta_EUR,[0]!rho_EUR,[0]!nu_EUR,$F15,Overview!$C$12,$K15,BB15) -> 0.1690513771 | FC15: =SABR_Vol_Test([0]!alpha_EUR,[0]!beta_EUR,[0]!rho_EUR,[0]!nu_EUR,$F15,Overview!$C$12,$K15,BC15) -> 0.1700273091 | FD15: =SABR_Vol_Test([0]!alpha_EUR,[0]!beta_EUR,[0]!rho_EUR,[0]!nu_EUR,$F15,Overview!$C$12,$K15,BD15) -> 0.170990633 | FE15: =SABR_Vol_Test([0]!alpha_EUR,[0]!beta_EUR,[0]!rho_EUR,[0]!nu_EUR,$F15,Overview!$C$12,$K15,BE15) -> 0.1719413773 | FF15: =SABR_Vol_Test([0]!alpha_EUR,[0]!beta_EUR,[0]!rho_EUR,[0]!nu_EUR,$F15,Overview!$C$12,$K15,BF15) -> 0.1728796031 | FG15: =SABR_Vol_Test([0]!alpha_EUR,[0]!beta_EUR,[0]!rho_EUR,[0]!nu_EUR,$F15,Overview!$C$12,$K15,BG15) -> 0.1738053989 | FH15: =SABR_Vol_Test([0]!alpha_EUR,[0]!beta_EUR,[0]!rho_EUR,[0]!nu_EUR,$F15,Overview!$C$12,$K15,BH15) -> 0.1747188757 | FI15: =SABR_Vol_Test([0]!alpha_EUR,[0]!beta_EUR,[0]!rho_EUR,[0]!nu_EUR,$F15,Overview!$C$12,$K15,BI15) -> 0.1756201631 | FJ15: =SABR_Vol_Test([0]!alpha_EUR,[0]!beta_EUR,[0]!rho_EUR,[0]!nu_EUR,$F15,Overview!$C$12,$K15,BJ15) -> 0.1765094055 | FK15: =SABR_Vol_Test([0]!alpha_EUR,[0]!beta_EUR,[0]!rho_EUR,[0]!nu_EUR,$F15,Overview!$C$12,$K15,BK15) -> 0.1773867596 | FM15: 4 | FN15: 8.141413821e-05 | FO15: 4.701702308e-05 | FP15: 2.661398134e-05 | FQ15: 1.487214454e-05 | FR15: 8.272633886e-06 | FS15: 4.6207877e-06 | FT15: 2.613626018e-06 | FU15: 1.508065023e-06 | FV15: 8.928002672e-07 | FW15: 5.444622404e-07 | FX15: 3.427783739e-07 | FY15: 2.22935655e-07 | FZ15: 1.497050112e-07 | GA15: 1.036546788e-07 | GB15: 7.386064476e-08 | GC15: 5.40460443e-08 | GD15: 4.051865443e-08 | GE15: 3.105364885e-08 | GF15: 2.42778032e-08 | GG15: 1.932338362e-08 | GH15: 1.562952955e-08 | GI15: 1.282582791e-08 | GJ15: 1.066260304e-08 | GK15: 8.968299717e-09 | GL15: 7.622898702e-09 | GM15: 6.541008615e-09 | GN15: 5.660911424e-09 | GO15: 4.937339177e-09 | GP15: 4.336631056e-09 | GQ15: 3.833434779e-09 | GR15: 3.408426215e-09 | GS15: 3.046710614e-09 | GT15: 2.7366868e-09 | GU15: 2.469230119e-09 | GV15: 2.237097742e-09 | GW15: 2.034490962e-09 | GX15: 1.856729662e-09 | GY15: 1.700007786e-09 | GZ15: 1.561207939e-09 | HA15: 1.437759568e-09 | HB15: 1.327529555e-09 | HC15: 1.228737163e-09 | HD15: 1.139887389e-09 | HE15: 1.059718389e-09 | HF15: 9.871597065e-10 | HG15: 9.212988734e-10 | HH15: 8.613545432e-10 | HI15: 8.066547487e-10 | HJ15: 7.566192105e-10 | HK15: 7.107448627e-10 | HM15: 4 | HN15: 8.721749324e-05 | HO15: 4.013949297e-05
E16: 5 | F16: =(Overview!F16-Overview!$C$8)/365 -> 5.008219178 | G16: =Overview!I16 -> 0.498630137 | H16: =Overview!K16 -> 0.9103234504 | I16: =Overview!L16/Overview!K16 -> 0.9853358445 | J16: =Overview!M16 -> 0.03290258464 | K16: 0.06 | M16: 5 | N16: 0.06 | O16: =IF($N16="","",N16+$C$11) -> 0.0625 | P16: 0.065 | Q16: 0.0675 | R16: 0.07 | S16: 0.0725 | T16: 0.075 | U16: 0.0775 | V16: 0.08 | W16: 0.0825 | X16: 0.085 | Y16: 0.0875 | Z16: 0.09 | AA16: 0.0925 | AB16: 0.095 | AC16: 0.0975 | AD16: 0.1 | AE16: 0.1025 | AF16: 0.105 | AG16: 0.1075 | AH16: 0.11 | AI16: 0.1125 | AJ16: 0.115 | AK16: 0.1175 | AL16: 0.12 | AM16: 0.1225 | AN16: 0.125 | AO16: 0.1275 | AP16: 0.13 | AQ16: 0.1325 | AR16: 0.135 | AS16: 0.1375 | AT16: 0.14 | AU16: =IF($N16="","",AT16+$C$11) -> 0.1425 | AV16: 0.145 | AW16: 0.1475 | AX16: 0.15 | AY16: 0.1525 | AZ16: 0.155 | BA16: 0.1575 | BB16: 0.16 | BC16: 0.1625 | BD16: 0.165 | BE16: 0.1675 | BF16: 0.17 | BG16: 0.1725 | BH16: 0.175 | BI16: 0.1775 | BJ16: 0.18 | BK16: 0.1825 | BM16: 5 | BN16: =IF(K16="","",getCMSCapReplicationWeights(K16,$C$14,$C$15,$C$16,N16:BK16)) -> 0.5473484848 | BO16: 0.003826032724 | BP16: 0.003830291372 | BQ16: 0.003834529447 | BR16: 0.003838747073 | BS16: 0.003842944372 | BT16: 0.003847121468 | BU16: 0.003851278482 | BV16: 0.003855415535 | BW16: 0.003859532745 | BX16: 0.003863630232 | BY16: 0.003867708114 | BZ16: 0.003871766508 | CA16: 0.00387580553 | CB16: 0.003879825296 | CC16: 0.00388382592 | CD16: 0.003887807516 | CE16: 0.003891770197 | CF16: 0.003895714075 | CG16: 0.003899639262 | CH16: 0.003903545868 | CI16: 0.003907434003 | CJ16: 0.003911303777 | CK16: 0.003915155296 | CL16: 0.00391898867 | CM16: 0.003922804004 | CN16: 0.003926601405 | CO16: 0.003930380977 | CP16: 0.003934142826 | CQ16: 0.003937887055 | CR16: 0.003941613767 | CS16: 0.003945323065 | CT16: 0.003949015049 | CU16: 0.003952689822 | CV16: 0.003956347482 | CW16: 0.003959988131 | CX16: 0.003963611865 | CY16: 0.003967218785 | CZ16: 0.003970808986 | DA16: 0.003974382566 | DB16: 0.003977939621 | DC16: 0.003981480245 | DD16: 0.003985004535 | DE16: 0.003988512584 | DF16: 0.003992004485 | DG16: 0.003995480332 | DH16: 0.003998940216 | DI16: 0.004002384229 | DJ16: 0.004005812462 | DK16: 0 | DM16: 5 | DN16: =SABR_Vol_Test([0]!alpha_EUR,[0]!beta_EUR,[0]!rho_EUR,[0]!nu_EUR,$F16,Overview!$C$12,$K16,N16) -> 0.154505818 | DO16: =SABR_Vol_Test([0]!alpha_EUR,[0]!beta_EUR,[0]!rho_EUR,[0]!nu_EUR,$F16,Overview!$C$12,$K16,O16) -> 0.1488035421 | DP16: =SABR_Vol_Test([0]!alpha_EUR,[0]!beta_EUR,[0]!rho_EUR,[0]!nu_EUR,$F16,Overview!$C$12,$K16,P16) -> 0.1441091264 | DQ16: =SABR_Vol_Test([0]!alpha_EUR,[0]!beta_EUR,[0]!rho_EUR,[0]!nu_EUR,$F16,Overview!$C$12,$K16,Q16) -> 0.1404876294 | DR16: =SABR_Vol_Test([0]!alpha_EUR,[0]!beta_EUR,[0]!rho_EUR,[0]!nu_EUR,$F16,Overview!$C$12,$K16,R16) -> 0.1379488903 | DS16: =SABR_Vol_Test([0]!alpha_EUR,[0]!beta_EUR,[0]!rho_EUR,[0]!nu_EUR,$F16,Overview!$C$12,$K16,S16) -> 0.1364363864 | DT16: =SABR_Vol_Test([0]!alpha_EUR,[0]!beta_EUR,[0]!rho_EUR,[0]!nu_EUR,$F16,Overview!$C$12,$K16,T16) -> 0.1358366832 | DU16: =SABR_Vol_Test([0]!alpha_EUR,[0]!beta_EUR,[0]!rho_EUR,[0]!nu_EUR,$F16,Overview!$C$12,$K16,U16) -> 0.1360037682 | DV16: =SABR_Vol_Test([0]!alpha_EUR,[0]!beta_EUR,[0]!rho_EUR,[0]!nu_EUR,$F16,Overview!$C$12,$K16,V16) -> 0.1367853766 | DW16: =SABR_Vol_Test([0]!alpha_EUR,[0]!beta_EUR,[0]!rho_EUR,[0]!nu_EUR,$F16,Overview!$C$12,$K16,W16) -> 0.1380417317 | DX16: =SABR_Vol_Test([0]!alpha_EUR,[0]!beta_EUR,[0]!rho_EUR,[0]!nu_EUR,$F16,Overview!$C$12,$K16,X16) -> 0.1396545256 | DY16: =SABR_Vol_Test([0]!alpha_EUR,[0]!beta_EUR,[0]!rho_EUR,[0]!nu_EUR,$F16,Overview!$C$12,$K16,Y16) -> 0.1415286316 | DZ16: =SABR_Vol_Test([0]!alpha_EUR,[0]!beta_EUR,[0]!rho_EUR,[0]!nu_EUR,$F16,Overview!$C$12,$K16,Z16) -> 0.1435899362 | EA16: =SABR_Vol_Test([0]!alpha_EUR,[0]!beta_EUR,[0]!rho_EUR,[0]!nu_EUR,$F16,Overview!$C$12,$K16,AA16) -> 0.1457817616 | EB16: =SABR_Vol_Test([0]!alpha_EUR,[0]!beta_EUR,[0]!rho_EUR,[0]!nu_EUR,$F16,Overview!$C$12,$K16,AB16) -> 0.1480612125 | EC16: =SABR_Vol_Test([0]!alpha_EUR,[0]!beta_EUR,[0]!rho_EUR,[0]!nu_EUR,$F16,Overview!$C$12,$K16,AC16) -> 0.1503960018 | ED16: =SABR_Vol_Test([0]!alpha_EUR,[0]!beta_EUR,[0]!rho_EUR,[0]!nu_EUR,$F16,Overview!$C$12,$K16,AD16) -> 0.152761894 | EE16: =SABR_Vol_Test([0]!alpha_EUR,[0]!beta_EUR,[0]!rho_EUR,[0]!nu_EUR,$F16,Overview!$C$12,$K16,AE16) -> 0.1551407272 | EF16: =SABR_Vol_Test([0]!alpha_EUR,[0]!beta_EUR,[0]!rho_EUR,[0]!nu_EUR,$F16,Overview!$C$12,$K16,AF16) -> 0.1575189132 | EG16: =SABR_Vol_Test([0]!alpha_EUR,[0]!beta_EUR,[0]!rho_EUR,[0]!nu_EUR,$F16,Overview!$C$12,$K16,AG16) -> 0.159886312 | EH16: =SABR_Vol_Test([0]!alpha_EUR,[0]!beta_EUR,[0]!rho_EUR,[0]!nu_EUR,$F16,Overview!$C$12,$K16,AH16) -> 0.1622353898 | EI16: =SABR_Vol_Test([0]!alpha_EUR,[0]!beta_EUR,[0]!rho_EUR,[0]!nu_EUR,$F16,Overview!$C$12,$K16,AI16) -> 0.1645605899 | EJ16: =SABR_Vol_Test([0]!alpha_EUR,[0]!beta_EUR,[0]!rho_EUR,[0]!nu_EUR,$F16,Overview!$C$12,$K16,AJ16) -> 0.1668578598 | EK16: =SABR_Vol_Test([0]!alpha_EUR,[0]!beta_EUR,[0]!rho_EUR,[0]!nu_EUR,$F16,Overview!$C$12,$K16,AK16) -> 0.1691242961 | EL16: =SABR_Vol_Test([0]!alpha_EUR,[0]!beta_EUR,[0]!rho_EUR,[0]!nu_EUR,$F16,Overview!$C$12,$K16,AL16) -> 0.1713578757 | EM16: =SABR_Vol_Test([0]!alpha_EUR,[0]!beta_EUR,[0]!rho_EUR,[0]!nu_EUR,$F16,Overview!$C$12,$K16,AM16) -> 0.1735572509 | EN16: =SABR_Vol_Test([0]!alpha_EUR,[0]!beta_EUR,[0]!rho_EUR,[0]!nu_EUR,$F16,Overview!$C$12,$K16,AN16) -> 0.1757215936 | EO16: =SABR_Vol_Test([0]!alpha_EUR,[0]!beta_EUR,[0]!rho_EUR,[0]!nu_EUR,$F16,Overview!$C$12,$K16,AO16) -> 0.1778504749 | EP16: =SABR_Vol_Test([0]!alpha_EUR,[0]!beta_EUR,[0]!rho_EUR,[0]!nu_EUR,$F16,Overview!$C$12,$K16,AP16) -> 0.1423767305 | EQ16: =SABR_Vol_Test([0]!alpha_EUR,[0]!beta_EUR,[0]!rho_EUR,[0]!nu_EUR,$F16,Overview!$C$12,$K16,AQ16) -> 0.1434842097 | ER16: =SABR_Vol_Test([0]!alpha_EUR,[0]!beta_EUR,[0]!rho_EUR,[0]!nu_EUR,$F16,Overview!$C$12,$K16,AR16) -> 0.1445819134 | ES16: =SABR_Vol_Test([0]!alpha_EUR,[0]!beta_EUR,[0]!rho_EUR,[0]!nu_EUR,$F16,Overview!$C$12,$K16,AS16) -> 0.1456687849 | ET16: =SABR_Vol_Test([0]!alpha_EUR,[0]!beta_EUR,[0]!rho_EUR,[0]!nu_EUR,$F16,Overview!$C$12,$K16,AT16) -> 0.146743997 | EU16: =SABR_Vol_Test([0]!alpha_EUR,[0]!beta_EUR,[0]!rho_EUR,[0]!nu_EUR,$F16,Overview!$C$12,$K16,AU16) -> 0.1478069121 | EV16: =SABR_Vol_Test([0]!alpha_EUR,[0]!beta_EUR,[0]!rho_EUR,[0]!nu_EUR,$F16,Overview!$C$12,$K16,AV16) -> 0.1488570491 | EW16: =SABR_Vol_Test([0]!alpha_EUR,[0]!beta_EUR,[0]!rho_EUR,[0]!nu_EUR,$F16,Overview!$C$12,$K16,AW16) -> 0.1498940567 | EX16: =SABR_Vol_Test([0]!alpha_EUR,[0]!beta_EUR,[0]!rho_EUR,[0]!nu_EUR,$F16,Overview!$C$12,$K16,AX16) -> 0.1509176911 | EY16: =SABR_Vol_Test([0]!alpha_EUR,[0]!beta_EUR,[0]!rho_EUR,[0]!nu_EUR,$F16,Overview!$C$12,$K16,AY16) -> 0.151927797 | EZ16: =SABR_Vol_Test([0]!alpha_EUR,[0]!beta_EUR,[0]!rho_EUR,[0]!nu_EUR,$F16,Overview!$C$12,$K16,AZ16) -> 0.1529242926 | FA16: =SABR_Vol_Test([0]!alpha_EUR,[0]!beta_EUR,[0]!rho_EUR,[0]!nu_EUR,$F16,Overview!$C$12,$K16,BA16) -> 0.1539071568 | FB16: =SABR_Vol_Test([0]!alpha_EUR,[0]!beta_EUR,[0]!rho_EUR,[0]!nu_EUR,$F16,Overview!$C$12,$K16,BB16) -> 0.1548764184 | FC16: =SABR_Vol_Test([0]!alpha_EUR,[0]!beta_EUR,[0]!rho_EUR,[0]!nu_EUR,$F16,Overview!$C$12,$K16,BC16) -> 0.155832147 | FD16: =SABR_Vol_Test([0]!alpha_EUR,[0]!beta_EUR,[0]!rho_EUR,[0]!nu_EUR,$F16,Overview!$C$12,$K16,BD16) -> 0.156774446 | FE16: =SABR_Vol_Test([0]!alpha_EUR,[0]!beta_EUR,[0]!rho_EUR,[0]!nu_EUR,$F16,Overview!$C$12,$K16,BE16) -> 0.157703446 | FF16: =SABR_Vol_Test([0]!alpha_EUR,[0]!beta_EUR,[0]!rho_EUR,[0]!nu_EUR,$F16,Overview!$C$12,$K16,BF16) -> 0.1586192998 | FG16: =SABR_Vol_Test([0]!alpha_EUR,[0]!beta_EUR,[0]!rho_EUR,[0]!nu_EUR,$F16,Overview!$C$12,$K16,BG16) -> 0.1595221776 | FH16: =SABR_Vol_Test([0]!alpha_EUR,[0]!beta_EUR,[0]!rho_EUR,[0]!nu_EUR,$F16,Overview!$C$12,$K16,BH16) -> 0.160412264 | FI16: =SABR_Vol_Test([0]!alpha_EUR,[0]!beta_EUR,[0]!rho_EUR,[0]!nu_EUR,$F16,Overview!$C$12,$K16,BI16) -> 0.1612897542 | FJ16: =SABR_Vol_Test([0]!alpha_EUR,[0]!beta_EUR,[0]!rho_EUR,[0]!nu_EUR,$F16,Overview!$C$12,$K16,BJ16) -> 0.1621548517 | FK16: =SABR_Vol_Test([0]!alpha_EUR,[0]!beta_EUR,[0]!rho_EUR,[0]!nu_EUR,$F16,Overview!$C$12,$K16,BK16) -> 0.1630077664 | FM16: 5 | FN16: 0.0001937463328 | FO16: 0.0001185913959 | FP16: 7.116145515e-05 | FQ16: 4.216127002e-05 | FR16: 2.487274278e-05 | FS16: 1.474198722e-05 | FT16: 8.853280762e-06 | FU16: 5.426352547e-06 | FV16: 3.412823527e-06 | FW16: 2.210027529e-06 | FX16: 1.47580401e-06 | FY16: 1.016295295e-06 | FZ16: 7.209573348e-07 | GA16: 5.259343361e-07 | GB16: 3.936900193e-07 | GC16: 3.017057425e-07 | GD16: 2.361727129e-07 | GE16: 1.884303484e-07 | GF16: 1.529238438e-07 | GG16: 1.260117835e-07 | GH16: 1.052565128e-07 | GI16: 8.899338486e-08 | GJ16: 7.606407179e-08 | GK16: 6.564821694e-08 | GL16: 5.715515048e-08 | GM16: 5.015297059e-08 | GN16: 4.432129056e-08 | GO16: 3.941923548e-08 | GP16: 3.526342917e-08 | GQ16: 3.171262975e-08 | GR16: 2.865685677e-08 | GS16: 2.600959603e-08 | GT16: 2.370214203e-08 | GU16: 2.167944404e-08 | GV16: 1.989702274e-08 | GW16: 1.831865783e-08 | GX16: 1.691463696e-08 | GY16: 1.566041745e-08 | GZ16: 1.45355946e-08 | HA16: 1.352309976e-08 | HB16: 1.260857221e-08 | HC16: 1.177986347e-08 | HD16: 1.102664335e-08 | HE16: 1.034008488e-08 | HF16: 9.712610647e-09 | HG16: 9.137687311e-09 | HH16: 8.609658329e-09 | HI16: 8.123606892e-09 | HJ16: 7.675243128e-09 | HK16: 7.260810772e-09 | HM16: 5 | HN16: 0.0002072789463 | HO16: 9.270725628e-05
E17: 6 | F17: =(Overview!F17-Overview!$C$8)/365 -> 6.008219178 | G17: =Overview!I17 -> 0.498630137 | H17: =Overview!K17 -> 0.8829013253 | I17: =Overview!L17/Overview!K17 -> 0.9835668342 | J17: =Overview!M17 -> 0.03520106303 | K17: 0.06 | M17: 6 | N17: 0.06 | O17: =IF($N17="","",N17+$C$11) -> 0.0625 | P17: 0.065 | Q17: 0.0675 | R17: 0.07 | S17: 0.0725 | T17: 0.075 | U17: 0.0775 | V17: 0.08 | W17: 0.0825 | X17: 0.085 | Y17: 0.0875 | Z17: 0.09 | AA17: 0.0925 | AB17: 0.095 | AC17: 0.0975 | AD17: 0.1 | AE17: 0.1025 | AF17: 0.105 | AG17: 0.1075 | AH17: 0.11 | AI17: 0.1125 | AJ17: 0.115 | AK17: 0.1175 | AL17: 0.12 | AM17: 0.1225 | AN17: 0.125 | AO17: 0.1275 | AP17: 0.13 | AQ17: 0.1325 | AR17: 0.135 | AS17: 0.1375 | AT17: 0.14 | AU17: =IF($N17="","",AT17+$C$11) -> 0.1425 | AV17: 0.145 | AW17: 0.1475 | AX17: 0.15 | AY17: 0.1525 | AZ17: 0.155 | BA17: 0.1575 | BB17: 0.16 | BC17: 0.1625 | BD17: 0.165 | BE17: 0.1675 | BF17: 0.17 | BG17: 0.1725 | BH17: 0.175 | BI17: 0.1775 | BJ17: 0.18 | BK17: 0.1825 | BM17: 6 | BN17: =IF(K17="","",getCMSCapReplicationWeights(K17,$C$14,$C$15,$C$16,N17:BK17)) -> 0.5473484848 | BO17: 0.003826032724 | BP17: 0.003830291372 | BQ17: 0.003834529447 | BR17: 0.003838747073 | BS17: 0.003842944372 | BT17: 0.003847121468 | BU17: 0.003851278482 | BV17: 0.003855415535 | BW17: 0.003859532745 | BX17: 0.003863630232 | BY17: 0.003867708114 | BZ17: 0.003871766508 | CA17: 0.00387580553 | CB17: 0.003879825296 | CC17: 0.00388382592 | CD17: 0.003887807516 | CE17: 0.003891770197 | CF17: 0.003895714075 | CG17: 0.003899639262 | CH17: 0.003903545868 | CI17: 0.003907434003 | CJ17: 0.003911303777 | CK17: 0.003915155296 | CL17: 0.00391898867 | CM17: 0.003922804004 | CN17: 0.003926601405 | CO17: 0.003930380977 | CP17: 0.003934142826 | CQ17: 0.003937887055 | CR17: 0.003941613767 | CS17: 0.003945323065 | CT17: 0.003949015049 | CU17: 0.003952689822 | CV17: 0.003956347482 | CW17: 0.003959988131 | CX17: 0.003963611865 | CY17: 0.003967218785 | CZ17: 0.003970808986 | DA17: 0.003974382566 | DB17: 0.003977939621 | DC17: 0.003981480245 | DD17: 0.003985004535 | DE17: 0.003988512584 | DF17: 0.003992004485 | DG17: 0.003995480332 | DH17: 0.003998940216 | DI17: 0.004002384229 | DJ17: 0.004005812462 | DK17: 0 | DM17: 6 | DN17: =SABR_Vol_Test([0]!alpha_EUR,[0]!beta_EUR,[0]!rho_EUR,[0]!nu_EUR,$F17,Overview!$C$12,$K17,N17) -> 0.1500042135 | DO17: =SABR_Vol_Test([0]!alpha_EUR,[0]!beta_EUR,[0]!rho_EUR,[0]!nu_EUR,$F17,Overview!$C$12,$K17,O17) -> 0.1444955834 | DP17: =SABR_Vol_Test([0]!alpha_EUR,[0]!beta_EUR,[0]!rho_EUR,[0]!nu_EUR,$F17,Overview!$C$12,$K17,P17) -> 0.1399238474 | DQ17: =SABR_Vol_Test([0]!alpha_EUR,[0]!beta_EUR,[0]!rho_EUR,[0]!nu_EUR,$F17,Overview!$C$12,$K17,Q17) -> 0.1363505437 | DR17: =SABR_Vol_Test([0]!alpha_EUR,[0]!beta_EUR,[0]!rho_EUR,[0]!nu_EUR,$F17,Overview!$C$12,$K17,R17) -> 0.1337893705 | DS17: =SABR_Vol_Test([0]!alpha_EUR,[0]!beta_EUR,[0]!rho_EUR,[0]!nu_EUR,$F17,Overview!$C$12,$K17,S17) -> 0.1321948346 | DT17: =SABR_Vol_Test([0]!alpha_EUR,[0]!beta_EUR,[0]!rho_EUR,[0]!nu_EUR,$F17,Overview!$C$12,$K17,T17) -> 0.131468604 | DU17: =SABR_Vol_Test([0]!alpha_EUR,[0]!beta_EUR,[0]!rho_EUR,[0]!nu_EUR,$F17,Overview!$C$12,$K17,U17) -> 0.1314798468 | DV17: =SABR_Vol_Test([0]!alpha_EUR,[0]!beta_EUR,[0]!rho_EUR,[0]!nu_EUR,$F17,Overview!$C$12,$K17,V17) -> 0.1320888153 | DW17: =SABR_Vol_Test([0]!alpha_EUR,[0]!beta_EUR,[0]!rho_EUR,[0]!nu_EUR,$F17,Overview!$C$12,$K17,W17) -> 0.1331647215 | DX17: =SABR_Vol_Test([0]!alpha_EUR,[0]!beta_EUR,[0]!rho_EUR,[0]!nu_EUR,$F17,Overview!$C$12,$K17,X17) -> 0.1345951041 | DY17: =SABR_Vol_Test([0]!alpha_EUR,[0]!beta_EUR,[0]!rho_EUR,[0]!nu_EUR,$F17,Overview!$C$12,$K17,Y17) -> 0.1362883624 | DZ17: =SABR_Vol_Test([0]!alpha_EUR,[0]!beta_EUR,[0]!rho_EUR,[0]!nu_EUR,$F17,Overview!$C$12,$K17,Z17) -> 0.1381723706 | EA17: =SABR_Vol_Test([0]!alpha_EUR,[0]!beta_EUR,[0]!rho_EUR,[0]!nu_EUR,$F17,Overview!$C$12,$K17,AA17) -> 0.1401914819 | EB17: =SABR_Vol_Test([0]!alpha_EUR,[0]!beta_EUR,[0]!rho_EUR,[0]!nu_EUR,$F17,Overview!$C$12,$K17,AB17) -> 0.1423032621 | EC17: =SABR_Vol_Test([0]!alpha_EUR,[0]!beta_EUR,[0]!rho_EUR,[0]!nu_EUR,$F17,Overview!$C$12,$K17,AC17) -> 0.1444755554 | ED17: =SABR_Vol_Test([0]!alpha_EUR,[0]!beta_EUR,[0]!rho_EUR,[0]!nu_EUR,$F17,Overview!$C$12,$K17,AD17) -> 0.1466840735 | EE17: =SABR_Vol_Test([0]!alpha_EUR,[0]!beta_EUR,[0]!rho_EUR,[0]!nu_EUR,$F17,Overview!$C$12,$K17,AE17) -> 0.1489105024 | EF17: =SABR_Vol_Test([0]!alpha_EUR,[0]!beta_EUR,[0]!rho_EUR,[0]!nu_EUR,$F17,Overview!$C$12,$K17,AF17) -> 0.1511410523 | EG17: =SABR_Vol_Test([0]!alpha_EUR,[0]!beta_EUR,[0]!rho_EUR,[0]!nu_EUR,$F17,Overview!$C$12,$K17,AG17) -> 0.153365361 | EH17: =SABR_Vol_Test([0]!alpha_EUR,[0]!beta_EUR,[0]!rho_EUR,[0]!nu_EUR,$F17,Overview!$C$12,$K17,AH17) -> 0.1555756681 | EI17: =SABR_Vol_Test([0]!alpha_EUR,[0]!beta_EUR,[0]!rho_EUR,[0]!nu_EUR,$F17,Overview!$C$12,$K17,AI17) -> 0.1577661945 | EJ17: =SABR_Vol_Test([0]!alpha_EUR,[0]!beta_EUR,[0]!rho_EUR,[0]!nu_EUR,$F17,Overview!$C$12,$K17,AJ17) -> 0.1599326745 | EK17: =SABR_Vol_Test([0]!alpha_EUR,[0]!beta_EUR,[0]!rho_EUR,[0]!nu_EUR,$F17,Overview!$C$12,$K17,AK17) -> 0.1620720033 | EL17: =SABR_Vol_Test([0]!alpha_EUR,[0]!beta_EUR,[0]!rho_EUR,[0]!nu_EUR,$F17,Overview!$C$12,$K17,AL17) -> 0.164181968 | EM17: =SABR_Vol_Test([0]!alpha_EUR,[0]!beta_EUR,[0]!rho_EUR,[0]!nu_EUR,$F17,Overview!$C$12,$K17,AM17) -> 0.1662610439 | EN17: =SABR_Vol_Test([0]!alpha_EUR,[0]!beta_EUR,[0]!rho_EUR,[0]!nu_EUR,$F17,Overview!$C$12,$K17,AN17) -> 0.1683082375 | EO17: =SABR_Vol_Test([0]!alpha_EUR,[0]!beta_EUR,[0]!rho_EUR,[0]!nu_EUR,$F17,Overview!$C$12,$K17,AO17) -> 0.1354245664 | EP17: =SABR_Vol_Test([0]!alpha_EUR,[0]!beta_EUR,[0]!rho_EUR,[0]!nu_EUR,$F17,Overview!$C$12,$K17,AP17) -> 0.1364890109 | EQ17: =SABR_Vol_Test([0]!alpha_EUR,[0]!beta_EUR,[0]!rho_EUR,[0]!nu_EUR,$F17,Overview!$C$12,$K17,AQ17) -> 0.137545914 | ER17: =SABR_Vol_Test([0]!alpha_EUR,[0]!beta_EUR,[0]!rho_EUR,[0]!nu_EUR,$F17,Overview!$C$12,$K17,AR17) -> 0.1385939344 | ES17: =SABR_Vol_Test([0]!alpha_EUR,[0]!beta_EUR,[0]!rho_EUR,[0]!nu_EUR,$F17,Overview!$C$12,$K17,AS17) -> 0.1396320053 | ET17: =SABR_Vol_Test([0]!alpha_EUR,[0]!beta_EUR,[0]!rho_EUR,[0]!nu_EUR,$F17,Overview!$C$12,$K17,AT17) -> 0.1406592868 | EU17: =SABR_Vol_Test([0]!alpha_EUR,[0]!beta_EUR,[0]!rho_EUR,[0]!nu_EUR,$F17,Overview!$C$12,$K17,AU17) -> 0.141675127 | EV17: =SABR_Vol_Test([0]!alpha_EUR,[0]!beta_EUR,[0]!rho_EUR,[0]!nu_EUR,$F17,Overview!$C$12,$K17,AV17) -> 0.142679029 | EW17: =SABR_Vol_Test([0]!alpha_EUR,[0]!beta_EUR,[0]!rho_EUR,[0]!nu_EUR,$F17,Overview!$C$12,$K17,AW17) -> 0.1436706248 | EX17: =SABR_Vol_Test([0]!alpha_EUR,[0]!beta_EUR,[0]!rho_EUR,[0]!nu_EUR,$F17,Overview!$C$12,$K17,AX17) -> 0.144649653 | EY17: =SABR_Vol_Test([0]!alpha_EUR,[0]!beta_EUR,[0]!rho_EUR,[0]!nu_EUR,$F17,Overview!$C$12,$K17,AY17) -> 0.1456159406 | EZ17: =SABR_Vol_Test([0]!alpha_EUR,[0]!beta_EUR,[0]!rho_EUR,[0]!nu_EUR,$F17,Overview!$C$12,$K17,AZ17) -> 0.1465693877 | FA17: =SABR_Vol_Test([0]!alpha_EUR,[0]!beta_EUR,[0]!rho_EUR,[0]!nu_EUR,$F17,Overview!$C$12,$K17,BA17) -> 0.1475099549 | FB17: =SABR_Vol_Test([0]!alpha_EUR,[0]!beta_EUR,[0]!rho_EUR,[0]!nu_EUR,$F17,Overview!$C$12,$K17,BB17) -> 0.1484376529 | FC17: =SABR_Vol_Test([0]!alpha_EUR,[0]!beta_EUR,[0]!rho_EUR,[0]!nu_EUR,$F17,Overview!$C$12,$K17,BC17) -> 0.1493525333 | FD17: =SABR_Vol_Test([0]!alpha_EUR,[0]!beta_EUR,[0]!rho_EUR,[0]!nu_EUR,$F17,Overview!$C$12,$K17,BD17) -> 0.1502546818 | FE17: =SABR_Vol_Test([0]!alpha_EUR,[0]!beta_EUR,[0]!rho_EUR,[0]!nu_EUR,$F17,Overview!$C$12,$K17,BE17) -> 0.1511442113 | FF17: =SABR_Vol_Test([0]!alpha_EUR,[0]!beta_EUR,[0]!rho_EUR,[0]!nu_EUR,$F17,Overview!$C$12,$K17,BF17) -> 0.1520212574 | FG17: =SABR_Vol_Test([0]!alpha_EUR,[0]!beta_EUR,[0]!rho_EUR,[0]!nu_EUR,$F17,Overview!$C$12,$K17,BG17) -> 0.1528859736 | FH17: =SABR_Vol_Test([0]!alpha_EUR,[0]!beta_EUR,[0]!rho_EUR,[0]!nu_EUR,$F17,Overview!$C$12,$K17,BH17) -> 0.1537385278 | FI17: =SABR_Vol_Test([0]!alpha_EUR,[0]!beta_EUR,[0]!rho_EUR,[0]!nu_EUR,$F17,Overview!$C$12,$K17,BI17) -> 0.1545790993 | FJ17: =SABR_Vol_Test([0]!alpha_EUR,[0]!beta_EUR,[0]!rho_EUR,[0]!nu_EUR,$F17,Overview!$C$12,$K17,BJ17) -> 0.1554078759 | FK17: =SABR_Vol_Test([0]!alpha_EUR,[0]!beta_EUR,[0]!rho_EUR,[0]!nu_EUR,$F17,Overview!$C$12,$K17,BK17) -> 0.1562250521 | FM17: 6 | FN17: 0.0004304068416 | FO17: 0.0002856696705 | FP17: 0.0001863743194 | FQ17: 0.0001201827678 | FR17: 7.711063032e-05 | FS17: 4.95807324e-05 | FT17: 3.217069889e-05 | FU17: 2.119288964e-05 | FV17: 1.424083878e-05 | FW17: 9.791410743e-06 | FX17: 6.899429738e-06 | FY17: 4.984087067e-06 | FZ17: 3.688926787e-06 | GA17: 2.793967795e-06 | GB17: 2.16200437e-06 | GC17: 1.706242186e-06 | GD17: 1.37087167e-06 | GE17: 1.119370753e-06 | GF17: 9.274039353e-07 | GG17: 7.784613259e-07 | GH17: 6.611432279e-07 | GI17: 5.674436583e-07 | GJ17: 4.916481457e-07 | GK17: 4.29614647e-07 | GL17: 3.782969769e-07 | GM17: 3.354240746e-07 | GN17: 2.992809165e-07 | GO17: 2.685567112e-07 | GP17: 2.422382683e-07 | GQ17: 2.195341189e-07 | GR17: 1.998198479e-07 | GS17: 1.825982436e-07 | GT17: 1.674699254e-07 | GU17: 1.541114637e-07 | GV17: 1.422589194e-07 | GW17: 1.316953421e-07 | GX17: 1.222411899e-07 | GY17: 1.137469257e-07 | GZ17: 1.060872499e-07 | HA17: 9.915657219e-08 | HB17: 9.28654316e-08 | HC17: 8.713764617e-08 | HD17: 8.190802876e-08 | HE17: 7.712054514e-08 | HF17: 7.272681998e-08 | HG17: 6.868491803e-08 | HH17: 6.495834465e-08 | HI17: 6.15152218e-08 | HJ17: 5.83276055e-08 | HK17: 5.537091772e-08 | HM17: 6 | HN17: 0.0004610170464 | HO17: 0.0001996234478
B18: PV | E18: 7 | F18: =(Overview!F18-Overview!$C$8)/365 -> 7.008219178 | G18: =Overview!I18 -> 0.5 | H18: =Overview!K18 -> 0.8534175698 | I18: =Overview!L18/Overview!K18 -> 0.9821513357 | J18: =Overview!M18 -> 0.03662856374 | K18: 0.06 | M18: 7 | N18: 0.06 | O18: =IF($N18="","",N18+$C$11) -> 0.0625 | P18: 0.065 | Q18: 0.0675 | R18: 0.07 | S18: 0.0725 | T18: 0.075 | U18: 0.0775 | V18: 0.08 | W18: 0.0825 | X18: 0.085 | Y18: 0.0875 | Z18: 0.09 | AA18: 0.0925 | AB18: 0.095 | AC18: 0.0975 | AD18: 0.1 | AE18: 0.1025 | AF18: 0.105 | AG18: 0.1075 | AH18: 0.11 | AI18: 0.1125 | AJ18: 0.115 | AK18: 0.1175 | AL18: 0.12 | AM18: 0.1225 | AN18: 0.125 | AO18: 0.1275 | AP18: 0.13 | AQ18: 0.1325 | AR18: 0.135 | AS18: 0.1375 | AT18: 0.14 | AU18: =IF($N18="","",AT18+$C$11) -> 0.1425 | AV18: 0.145 | AW18: 0.1475 | AX18: 0.15 | AY18: 0.1525 | AZ18: 0.155 | BA18: 0.1575 | BB18: 0.16 | BC18: 0.1625 | BD18: 0.165 | BE18: 0.1675 | BF18: 0.17 | BG18: 0.1725 | BH18: 0.175 | BI18: 0.1775 | BJ18: 0.18 | BK18: 0.1825 | BM18: 7 | BN18: =IF(K18="","",getCMSCapReplicationWeights(K18,$C$14,$C$15,$C$16,N18:BK18)) -> 0.5473484848 | BO18: 0.003826032724 | BP18: 0.003830291372 | BQ18: 0.003834529447 | BR18: 0.003838747073 | BS18: 0.003842944372 | BT18: 0.003847121468 | BU18: 0.003851278482 | BV18: 0.003855415535 | BW18: 0.003859532745 | BX18: 0.003863630232 | BY18: 0.003867708114 | BZ18: 0.003871766508 | CA18: 0.00387580553 | CB18: 0.003879825296 | CC18: 0.00388382592 | CD18: 0.003887807516 | CE18: 0.003891770197 | CF18: 0.003895714075 | CG18: 0.003899639262 | CH18: 0.003903545868 | CI18: 0.003907434003 | CJ18: 0.003911303777 | CK18: 0.003915155296 | CL18: 0.00391898867 | CM18: 0.003922804004 | CN18: 0.003926601405 | CO18: 0.003930380977 | CP18: 0.003934142826 | CQ18: 0.003937887055 | CR18: 0.003941613767 | CS18: 0.003945323065 | CT18: 0.003949015049 | CU18: 0.003952689822 | CV18: 0.003956347482 | CW18: 0.003959988131 | CX18: 0.003963611865 | CY18: 0.003967218785 | CZ18: 0.003970808986 | DA18: 0.003974382566 | DB18: 0.003977939621 | DC18: 0.003981480245 | DD18: 0.003985004535 | DE18: 0.003988512584 | DF18: 0.003992004485 | DG18: 0.003995480332 | DH18: 0.003998940216 | DI18: 0.004002384229 | DJ18: 0.004005812462 | DK18: 0 | DM18: 7 | DN18: =SABR_Vol_Test([0]!alpha_EUR,[0]!beta_EUR,[0]!rho_EUR,[0]!nu_EUR,$F18,Overview!$C$12,$K18,N18) -> 0.1453147791 | DO18: =SABR_Vol_Test([0]!alpha_EUR,[0]!beta_EUR,[0]!rho_EUR,[0]!nu_EUR,$F18,Overview!$C$12,$K18,O18) -> 0.1400131787 | DP18: =SABR_Vol_Test([0]!alpha_EUR,[0]!beta_EUR,[0]!rho_EUR,[0]!nu_EUR,$F18,Overview!$C$12,$K18,P18) -> 0.1355778598 | DQ18: =SABR_Vol_Test([0]!alpha_EUR,[0]!beta_EUR,[0]!rho_EUR,[0]!nu_EUR,$F18,Overview!$C$12,$K18,Q18) -> 0.1320662575 | DR18: =SABR_Vol_Test([0]!alpha_EUR,[0]!beta_EUR,[0]!rho_EUR,[0]!nu_EUR,$F18,Overview!$C$12,$K18,R18) -> 0.1294949354 | DS18: =SABR_Vol_Test([0]!alpha_EUR,[0]!beta_EUR,[0]!rho_EUR,[0]!nu_EUR,$F18,Overview!$C$12,$K18,S18) -> 0.1278283869 | DT18: =SABR_Vol_Test([0]!alpha_EUR,[0]!beta_EUR,[0]!rho_EUR,[0]!nu_EUR,$F18,Overview!$C$12,$K18,T18) -> 0.1269827428 | DU18: =SABR_Vol_Test([0]!alpha_EUR,[0]!beta_EUR,[0]!rho_EUR,[0]!nu_EUR,$F18,Overview!$C$12,$K18,U18) -> 0.1268423025 | DV18: =SABR_Vol_Test([0]!alpha_EUR,[0]!beta_EUR,[0]!rho_EUR,[0]!nu_EUR,$F18,Overview!$C$12,$K18,V18) -> 0.1272802401 | DW18: =SABR_Vol_Test([0]!alpha_EUR,[0]!beta_EUR,[0]!rho_EUR,[0]!nu_EUR,$F18,Overview!$C$12,$K18,W18) -> 0.1281753481 | DX18: =SABR_Vol_Test([0]!alpha_EUR,[0]!beta_EUR,[0]!rho_EUR,[0]!nu_EUR,$F18,Overview!$C$12,$K18,X18) -> 0.1294215857 | DY18: =SABR_Vol_Test([0]!alpha_EUR,[0]!beta_EUR,[0]!rho_EUR,[0]!nu_EUR,$F18,Overview!$C$12,$K18,Y18) -> 0.1309313432 | DZ18: =SABR_Vol_Test([0]!alpha_EUR,[0]!beta_EUR,[0]!rho_EUR,[0]!nu_EUR,$F18,Overview!$C$12,$K18,Z18) -> 0.132634822 | EA18: =SABR_Vol_Test([0]!alpha_EUR,[0]!beta_EUR,[0]!rho_EUR,[0]!nu_EUR,$F18,Overview!$C$12,$K18,AA18) -> 0.1344776407 | EB18: =SABR_Vol_Test([0]!alpha_EUR,[0]!beta_EUR,[0]!rho_EUR,[0]!nu_EUR,$F18,Overview!$C$12,$K18,AB18) -> 0.1364179817 | EC18: =SABR_Vol_Test([0]!alpha_EUR,[0]!beta_EUR,[0]!rho_EUR,[0]!nu_EUR,$F18,Overview!$C$12,$K18,AC18) -> 0.1384239225 | ED18: =SABR_Vol_Test([0]!alpha_EUR,[0]!beta_EUR,[0]!rho_EUR,[0]!nu_EUR,$F18,Overview!$C$12,$K18,AD18) -> 0.1404711865 | EE18: =SABR_Vol_Test([0]!alpha_EUR,[0]!beta_EUR,[0]!rho_EUR,[0]!nu_EUR,$F18,Overview!$C$12,$K18,AE18) -> 0.1425413488 | EF18: =SABR_Vol_Test([0]!alpha_EUR,[0]!beta_EUR,[0]!rho_EUR,[0]!nu_EUR,$F18,Overview!$C$12,$K18,AF18) -> 0.1446204437 | EG18: =SABR_Vol_Test([0]!alpha_EUR,[0]!beta_EUR,[0]!rho_EUR,[0]!nu_EUR,$F18,Overview!$C$12,$K18,AG18) -> 0.1466979022 | EH18: =SABR_Vol_Test([0]!alpha_EUR,[0]!beta_EUR,[0]!rho_EUR,[0]!nu_EUR,$F18,Overview!$C$12,$K18,AH18) -> 0.148765746 | EI18: =SABR_Vol_Test([0]!alpha_EUR,[0]!beta_EUR,[0]!rho_EUR,[0]!nu_EUR,$F18,Overview!$C$12,$K18,AI18) -> 0.1508179782 | EJ18: =SABR_Vol_Test([0]!alpha_EUR,[0]!beta_EUR,[0]!rho_EUR,[0]!nu_EUR,$F18,Overview!$C$12,$K18,AJ18) -> 0.1528501222 | EK18: =SABR_Vol_Test([0]!alpha_EUR,[0]!beta_EUR,[0]!rho_EUR,[0]!nu_EUR,$F18,Overview!$C$12,$K18,AK18) -> 0.1548588715 | EL18: =SABR_Vol_Test([0]!alpha_EUR,[0]!beta_EUR,[0]!rho_EUR,[0]!nu_EUR,$F18,Overview!$C$12,$K18,AL18) -> 0.1568418229 | EM18: =SABR_Vol_Test([0]!alpha_EUR,[0]!beta_EUR,[0]!rho_EUR,[0]!nu_EUR,$F18,Overview!$C$12,$K18,AM18) -> 0.158797273 | EN18: =SABR_Vol_Test([0]!alpha_EUR,[0]!beta_EUR,[0]!rho_EUR,[0]!nu_EUR,$F18,Overview!$C$12,$K18,AN18) -> 0.1607240609 | EO18: =SABR_Vol_Test([0]!alpha_EUR,[0]!beta_EUR,[0]!rho_EUR,[0]!nu_EUR,$F18,Overview!$C$12,$K18,AO18) -> 0.1626214475 | EP18: =SABR_Vol_Test([0]!alpha_EUR,[0]!beta_EUR,[0]!rho_EUR,[0]!nu_EUR,$F18,Overview!$C$12,$K18,AP18) -> 0.1305511881 | EQ18: =SABR_Vol_Test([0]!alpha_EUR,[0]!beta_EUR,[0]!rho_EUR,[0]!nu_EUR,$F18,Overview!$C$12,$K18,AQ18) -> 0.131556743 | ER18: =SABR_Vol_Test([0]!alpha_EUR,[0]!beta_EUR,[0]!rho_EUR,[0]!nu_EUR,$F18,Overview!$C$12,$K18,AR18) -> 0.1325543051 | ES18: =SABR_Vol_Test([0]!alpha_EUR,[0]!beta_EUR,[0]!rho_EUR,[0]!nu_EUR,$F18,Overview!$C$12,$K18,AS18) -> 0.1335427995 | ET18: =SABR_Vol_Test([0]!alpha_EUR,[0]!beta_EUR,[0]!rho_EUR,[0]!nu_EUR,$F18,Overview!$C$12,$K18,AT18) -> 0.1345213751 | EU18: =SABR_Vol_Test([0]!alpha_EUR,[0]!beta_EUR,[0]!rho_EUR,[0]!nu_EUR,$F18,Overview!$C$12,$K18,AU18) -> 0.1354893668 | EV18: =SABR_Vol_Test([0]!alpha_EUR,[0]!beta_EUR,[0]!rho_EUR,[0]!nu_EUR,$F18,Overview!$C$12,$K18,AV18) -> 0.1364462631 | EW18: =SABR_Vol_Test([0]!alpha_EUR,[0]!beta_EUR,[0]!rho_EUR,[0]!nu_EUR,$F18,Overview!$C$12,$K18,AW18) -> 0.1373916799 | EX18: =SABR_Vol_Test([0]!alpha_EUR,[0]!beta_EUR,[0]!rho_EUR,[0]!nu_EUR,$F18,Overview!$C$12,$K18,AX18) -> 0.1383253393 | EY18: =SABR_Vol_Test([0]!alpha_EUR,[0]!beta_EUR,[0]!rho_EUR,[0]!nu_EUR,$F18,Overview!$C$12,$K18,AY18) -> 0.1392470508 | EZ18: =SABR_Vol_Test([0]!alpha_EUR,[0]!beta_EUR,[0]!rho_EUR,[0]!nu_EUR,$F18,Overview!$C$12,$K18,AZ18) -> 0.1401566969 | FA18: =SABR_Vol_Test([0]!alpha_EUR,[0]!beta_EUR,[0]!rho_EUR,[0]!nu_EUR,$F18,Overview!$C$12,$K18,BA18) -> 0.1410542205 | FB18: =SABR_Vol_Test([0]!alpha_EUR,[0]!beta_EUR,[0]!rho_EUR,[0]!nu_EUR,$F18,Overview!$C$12,$K18,BB18) -> 0.1419396143 | FC18: =SABR_Vol_Test([0]!alpha_EUR,[0]!beta_EUR,[0]!rho_EUR,[0]!nu_EUR,$F18,Overview!$C$12,$K18,BC18) -> 0.1428129123 | FD18: =SABR_Vol_Test([0]!alpha_EUR,[0]!beta_EUR,[0]!rho_EUR,[0]!nu_EUR,$F18,Overview!$C$12,$K18,BD18) -> 0.1436741824 | FE18: =SABR_Vol_Test([0]!alpha_EUR,[0]!beta_EUR,[0]!rho_EUR,[0]!nu_EUR,$F18,Overview!$C$12,$K18,BE18) -> 0.1445235203 | FF18: =SABR_Vol_Test([0]!alpha_EUR,[0]!beta_EUR,[0]!rho_EUR,[0]!nu_EUR,$F18,Overview!$C$12,$K18,BF18) -> 0.1453610444 | FG18: =SABR_Vol_Test([0]!alpha_EUR,[0]!beta_EUR,[0]!rho_EUR,[0]!nu_EUR,$F18,Overview!$C$12,$K18,BG18) -> 0.1461868914 | FH18: =SABR_Vol_Test([0]!alpha_EUR,[0]!beta_EUR,[0]!rho_EUR,[0]!nu_EUR,$F18,Overview!$C$12,$K18,BH18) -> 0.1470012128 | FI18: =SABR_Vol_Test([0]!alpha_EUR,[0]!beta_EUR,[0]!rho_EUR,[0]!nu_EUR,$F18,Overview!$C$12,$K18,BI18) -> 0.1478041719 | FJ18: =SABR_Vol_Test([0]!alpha_EUR,[0]!beta_EUR,[0]!rho_EUR,[0]!nu_EUR,$F18,Overview!$C$12,$K18,BJ18) -> 0.1485959407 | FK18: =SABR_Vol_Test([0]!alpha_EUR,[0]!beta_EUR,[0]!rho_EUR,[0]!nu_EUR,$F18,Overview!$C$12,$K18,BK18) -> 0.1493766986 | FM18: 7 | FN18: 0.0006674327636 | FO18: 0.0004629859503 | FP18: 0.0003161691106 | FQ18: 0.0002135361781 | FR18: 0.0001434417773 | FS18: 9.643157792e-05 | FT18: 6.527651629e-05 | FU18: 4.47349431e-05 | FV18: 3.117133668e-05 | FW18: 2.214962418e-05 | FX18: 1.607650392e-05 | FY18: 1.192486048e-05 | FZ18: 9.036476416e-06 | GA18: 6.989076396e-06 | GB18: 5.509986154e-06 | GC18: 4.421291601e-06 | GD18: 3.605384655e-06 | GE18: 2.983374592e-06 | GF18: 2.501515873e-06 | GG18: 2.122611501e-06 | GH18: 1.820511465e-06 | GI18: 1.576549018e-06 | GJ18: 1.377201608e-06 | GK18: 1.212534453e-06 | GL18: 1.075150439e-06 | GM18: 9.594718488e-07 | GN18: 8.612424076e-07 | GO18: 7.771775459e-07 | GP18: 7.047156583e-07 | GQ18: 6.418390535e-07 | GR18: 5.869435776e-07 | GS18: 5.387426364e-07 | GT18: 4.961957983e-07 | GU18: 4.58455155e-07 | GV18: 4.248246417e-07 | GW18: 3.947289092e-07 | GX18: 3.67689302e-07 | GY18: 3.433051695e-07 | GZ18: 3.212392161e-07 | HA18: 3.01205932e-07 | HB18: 2.829623941e-07 | HC18: 2.663009035e-07 | HD18: 2.510430551e-07 | HE18: 2.370349332e-07 | HF18: 2.241431955e-07 | HG18: 2.122518661e-07 | HH18: 2.012596936e-07 | HI18: 1.910779643e-07 | HJ18: 1.81628685e-07 | HK18: 1.728430637e-07 | HM18: 7 | HN18: 0.0007158956548 | HO18: 0.0003000265735
E19: 8 | F19: =(Overview!F19-Overview!$C$8)/365 -> 8.010958904 | G19: =Overview!I19 -> 0.498630137 | H19: =Overview!K19 -> 0.8228270888 | I19: =Overview!L19/Overview!K19 -> 0.9814429661 | J19: =Overview!M19 -> 0.03765904709 | K19: 0.06 | M19: 8 | N19: 0.06 | O19: =IF($N19="","",N19+$C$11) -> 0.0625 | P19: 0.065 | Q19: 0.0675 | R19: 0.07 | S19: 0.0725 | T19: 0.075 | U19: 0.0775 | V19: 0.08 | W19: 0.0825 | X19: 0.085 | Y19: 0.0875 | Z19: 0.09 | AA19: 0.0925 | AB19: 0.095 | AC19: 0.0975 | AD19: 0.1 | AE19: 0.1025 | AF19: 0.105 | AG19: 0.1075 | AH19: 0.11 | AI19: 0.1125 | AJ19: 0.115 | AK19: 0.1175 | AL19: 0.12 | AM19: 0.1225 | AN19: 0.125 | AO19: 0.1275 | AP19: 0.13 | AQ19: 0.1325 | AR19: 0.135 | AS19: 0.1375 | AT19: 0.14 | AU19: =IF($N19="","",AT19+$C$11) -> 0.1425 | AV19: 0.145 | AW19: 0.1475 | AX19: 0.15 | AY19: 0.1525 | AZ19: 0.155 | BA19: 0.1575 | BB19: 0.16 | BC19: 0.1625 | BD19: 0.165 | BE19: 0.1675 | BF19: 0.17 | BG19: 0.1725 | BH19: 0.175 | BI19: 0.1775 | BJ19: 0.18 | BK19: 0.1825 | BM19: 8 | BN19: =IF(K19="","",getCMSCapReplicationWeights(K19,$C$14,$C$15,$C$16,N19:BK19)) -> 0.5473484848 | BO19: 0.003826032724 | BP19: 0.003830291372 | BQ19: 0.003834529447 | BR19: 0.003838747073 | BS19: 0.003842944372 | BT19: 0.003847121468 | BU19: 0.003851278482 | BV19: 0.003855415535 | BW19: 0.003859532745 | BX19: 0.003863630232 | BY19: 0.003867708114 | BZ19: 0.003871766508 | CA19: 0.00387580553 | CB19: 0.003879825296 | CC19: 0.00388382592 | CD19: 0.003887807516 | CE19: 0.003891770197 | CF19: 0.003895714075 | CG19: 0.003899639262 | CH19: 0.003903545868 | CI19: 0.003907434003 | CJ19: 0.003911303777 | CK19: 0.003915155296 | CL19: 0.00391898867 | CM19: 0.003922804004 | CN19: 0.003926601405 | CO19: 0.003930380977 | CP19: 0.003934142826 | CQ19: 0.003937887055 | CR19: 0.003941613767 | CS19: 0.003945323065 | CT19: 0.003949015049 | CU19: 0.003952689822 | CV19: 0.003956347482 | CW19: 0.003959988131 | CX19: 0.003963611865 | CY19: 0.003967218785 | CZ19: 0.003970808986 | DA19: 0.003974382566 | DB19: 0.003977939621 | DC19: 0.003981480245 | DD19: 0.003985004535 | DE19: 0.003988512584 | DF19: 0.003992004485 | DG19: 0.003995480332 | DH19: 0.003998940216 | DI19: 0.004002384229 | DJ19: 0.004005812462 | DK19: 0 | DM19: 8 | DN19: =SABR_Vol_Test([0]!alpha_EUR,[0]!beta_EUR,[0]!rho_EUR,[0]!nu_EUR,$F19,Overview!$C$12,$K19,N19) -> 0.140475417 | DO19: =SABR_Vol_Test([0]!alpha_EUR,[0]!beta_EUR,[0]!rho_EUR,[0]!nu_EUR,$F19,Overview!$C$12,$K19,O19) -> 0.1353929174 | DP19: =SABR_Vol_Test([0]!alpha_EUR,[0]!beta_EUR,[0]!rho_EUR,[0]!nu_EUR,$F19,Overview!$C$12,$K19,P19) -> 0.1311068071 | DQ19: =SABR_Vol_Test([0]!alpha_EUR,[0]!beta_EUR,[0]!rho_EUR,[0]!nu_EUR,$F19,Overview!$C$12,$K19,Q19) -> 0.1276699189 | DR19: =SABR_Vol_Test([0]!alpha_EUR,[0]!beta_EUR,[0]!rho_EUR,[0]!nu_EUR,$F19,Overview!$C$12,$K19,R19) -> 0.1251007171 | DS19: =SABR_Vol_Test([0]!alpha_EUR,[0]!beta_EUR,[0]!rho_EUR,[0]!nu_EUR,$F19,Overview!$C$12,$K19,S19) -> 0.1233725734 | DT19: =SABR_Vol_Test([0]!alpha_EUR,[0]!beta_EUR,[0]!rho_EUR,[0]!nu_EUR,$F19,Overview!$C$12,$K19,T19) -> 0.1224152925 | DU19: =SABR_Vol_Test([0]!alpha_EUR,[0]!beta_EUR,[0]!rho_EUR,[0]!nu_EUR,$F19,Overview!$C$12,$K19,U19) -> 0.1221280954 | DV19: =SABR_Vol_Test([0]!alpha_EUR,[0]!beta_EUR,[0]!rho_EUR,[0]!nu_EUR,$F19,Overview!$C$12,$K19,V19) -> 0.1223973681 | DW19: =SABR_Vol_Test([0]!alpha_EUR,[0]!beta_EUR,[0]!rho_EUR,[0]!nu_EUR,$F19,Overview!$C$12,$K19,W19) -> 0.123112023 | DX19: =SABR_Vol_Test([0]!alpha_EUR,[0]!beta_EUR,[0]!rho_EUR,[0]!nu_EUR,$F19,Overview!$C$12,$K19,X19) -> 0.1241730074 | DY19: =SABR_Vol_Test([0]!alpha_EUR,[0]!beta_EUR,[0]!rho_EUR,[0]!nu_EUR,$F19,Overview!$C$12,$K19,Y19) -> 0.1254971816 | DZ19: =SABR_Vol_Test([0]!alpha_EUR,[0]!beta_EUR,[0]!rho_EUR,[0]!nu_EUR,$F19,Overview!$C$12,$K19,Z19) -> 0.1270174329 | EA19: =SABR_Vol_Test([0]!alpha_EUR,[0]!beta_EUR,[0]!rho_EUR,[0]!nu_EUR,$F19,Overview!$C$12,$K19,AA19) -> 0.1286808957 | EB19: =SABR_Vol_Test([0]!alpha_EUR,[0]!beta_EUR,[0]!rho_EUR,[0]!nu_EUR,$F19,Overview!$C$12,$K19,AB19) -> 0.1304465368 | EC19: =SABR_Vol_Test([0]!alpha_EUR,[0]!beta_EUR,[0]!rho_EUR,[0]!nu_EUR,$F19,Overview!$C$12,$K19,AC19) -> 0.132282775 | ED19: =SABR_Vol_Test([0]!alpha_EUR,[0]!beta_EUR,[0]!rho_EUR,[0]!nu_EUR,$F19,Overview!$C$12,$K19,AD19) -> 0.1341654148 | EE19: =SABR_Vol_Test([0]!alpha_EUR,[0]!beta_EUR,[0]!rho_EUR,[0]!nu_EUR,$F19,Overview!$C$12,$K19,AE19) -> 0.1360759628 | EF19: =SABR_Vol_Test([0]!alpha_EUR,[0]!beta_EUR,[0]!rho_EUR,[0]!nu_EUR,$F19,Overview!$C$12,$K19,AF19) -> 0.1380003033 | EG19: =SABR_Vol_Test([0]!alpha_EUR,[0]!beta_EUR,[0]!rho_EUR,[0]!nu_EUR,$F19,Overview!$C$12,$K19,AG19) -> 0.139927675 | EH19: =SABR_Vol_Test([0]!alpha_EUR,[0]!beta_EUR,[0]!rho_EUR,[0]!nu_EUR,$F19,Overview!$C$12,$K19,AH19) -> 0.1418498899 | EI19: =SABR_Vol_Test([0]!alpha_EUR,[0]!beta_EUR,[0]!rho_EUR,[0]!nu_EUR,$F19,Overview!$C$12,$K19,AI19) -> 0.1437607369 | EJ19: =SABR_Vol_Test([0]!alpha_EUR,[0]!beta_EUR,[0]!rho_EUR,[0]!nu_EUR,$F19,Overview!$C$12,$K19,AJ19) -> 0.145655529 | EK19: =SABR_Vol_Test([0]!alpha_EUR,[0]!beta_EUR,[0]!rho_EUR,[0]!nu_EUR,$F19,Overview!$C$12,$K19,AK19) -> 0.1475307572 | EL19: =SABR_Vol_Test([0]!alpha_EUR,[0]!beta_EUR,[0]!rho_EUR,[0]!nu_EUR,$F19,Overview!$C$12,$K19,AL19) -> 0.1493838263 | EM19: =SABR_Vol_Test([0]!alpha_EUR,[0]!beta_EUR,[0]!rho_EUR,[0]!nu_EUR,$F19,Overview!$C$12,$K19,AM19) -> 0.1512128514 | EN19: =SABR_Vol_Test([0]!alpha_EUR,[0]!beta_EUR,[0]!rho_EUR,[0]!nu_EUR,$F19,Overview!$C$12,$K19,AN19) -> 0.1530165018 | EO19: =SABR_Vol_Test([0]!alpha_EUR,[0]!beta_EUR,[0]!rho_EUR,[0]!nu_EUR,$F19,Overview!$C$12,$K19,AO19) -> 0.1547938792 | EP19: =SABR_Vol_Test([0]!alpha_EUR,[0]!beta_EUR,[0]!rho_EUR,[0]!nu_EUR,$F19,Overview!$C$12,$K19,AP19) -> 0.1565444233 | EQ19: =SABR_Vol_Test([0]!alpha_EUR,[0]!beta_EUR,[0]!rho_EUR,[0]!nu_EUR,$F19,Overview!$C$12,$K19,AQ19) -> 0.1582678385 | ER19: =SABR_Vol_Test([0]!alpha_EUR,[0]!beta_EUR,[0]!rho_EUR,[0]!nu_EUR,$F19,Overview!$C$12,$K19,AR19) -> 0.1264713169 | ES19: =SABR_Vol_Test([0]!alpha_EUR,[0]!beta_EUR,[0]!rho_EUR,[0]!nu_EUR,$F19,Overview!$C$12,$K19,AS19) -> 0.1274095318 | ET19: =SABR_Vol_Test([0]!alpha_EUR,[0]!beta_EUR,[0]!rho_EUR,[0]!nu_EUR,$F19,Overview!$C$12,$K19,AT19) -> 0.1283386991 | EU19: =SABR_Vol_Test([0]!alpha_EUR,[0]!beta_EUR,[0]!rho_EUR,[0]!nu_EUR,$F19,Overview!$C$12,$K19,AU19) -> 0.1292581415 | EV19: =SABR_Vol_Test([0]!alpha_EUR,[0]!beta_EUR,[0]!rho_EUR,[0]!nu_EUR,$F19,Overview!$C$12,$K19,AV19) -> 0.1301673338 | EW19: =SABR_Vol_Test([0]!alpha_EUR,[0]!beta_EUR,[0]!rho_EUR,[0]!nu_EUR,$F19,Overview!$C$12,$K19,AW19) -> 0.1310658768 | EX19: =SABR_Vol_Test([0]!alpha_EUR,[0]!beta_EUR,[0]!rho_EUR,[0]!nu_EUR,$F19,Overview!$C$12,$K19,AX19) -> 0.1319534763 | EY19: =SABR_Vol_Test([0]!alpha_EUR,[0]!beta_EUR,[0]!rho_EUR,[0]!nu_EUR,$F19,Overview!$C$12,$K19,AY19) -> 0.1328299253 | EZ19: =SABR_Vol_Test([0]!alpha_EUR,[0]!beta_EUR,[0]!rho_EUR,[0]!nu_EUR,$F19,Overview!$C$12,$K19,AZ19) -> 0.133695089 | FA19: =SABR_Vol_Test([0]!alpha_EUR,[0]!beta_EUR,[0]!rho_EUR,[0]!nu_EUR,$F19,Overview!$C$12,$K19,BA19) -> 0.1345488928 | FB19: =SABR_Vol_Test([0]!alpha_EUR,[0]!beta_EUR,[0]!rho_EUR,[0]!nu_EUR,$F19,Overview!$C$12,$K19,BB19) -> 0.1353913119 | FC19: =SABR_Vol_Test([0]!alpha_EUR,[0]!beta_EUR,[0]!rho_EUR,[0]!nu_EUR,$F19,Overview!$C$12,$K19,BC19) -> 0.1362223626 | FD19: =SABR_Vol_Test([0]!alpha_EUR,[0]!beta_EUR,[0]!rho_EUR,[0]!nu_EUR,$F19,Overview!$C$12,$K19,BD19) -> 0.1370420955 | FE19: =SABR_Vol_Test([0]!alpha_EUR,[0]!beta_EUR,[0]!rho_EUR,[0]!nu_EUR,$F19,Overview!$C$12,$K19,BE19) -> 0.1378505889 | FF19: =SABR_Vol_Test([0]!alpha_EUR,[0]!beta_EUR,[0]!rho_EUR,[0]!nu_EUR,$F19,Overview!$C$12,$K19,BF19) -> 0.1386479444 | FG19: =SABR_Vol_Test([0]!alpha_EUR,[0]!beta_EUR,[0]!rho_EUR,[0]!nu_EUR,$F19,Overview!$C$12,$K19,BG19) -> 0.1394342819 | FH19: =SABR_Vol_Test([0]!alpha_EUR,[0]!beta_EUR,[0]!rho_EUR,[0]!nu_EUR,$F19,Overview!$C$12,$K19,BH19) -> 0.1402097365 | FI19: =SABR_Vol_Test([0]!alpha_EUR,[0]!beta_EUR,[0]!rho_EUR,[0]!nu_EUR,$F19,Overview!$C$12,$K19,BI19) -> 0.1409744554 | FJ19: =SABR_Vol_Test([0]!alpha_EUR,[0]!beta_EUR,[0]!rho_EUR,[0]!nu_EUR,$F19,Overview!$C$12,$K19,BJ19) -> 0.1417285951 | FK19: =SABR_Vol_Test([0]!alpha_EUR,[0]!beta_EUR,[0]!rho_EUR,[0]!nu_EUR,$F19,Overview!$C$12,$K19,BK19) -> 0.1424723195 | FM19: 8 | FN19: 0.0008822154752 | FO19: 0.0006289241677 | FP19: 0.0004417484369 | FQ19: 0.0003069452769 | FR19: 0.0002120461251 | FS19: 0.0001464539184 | FT19: 0.0001016948515 | FU19: 7.135396061e-05 | FV19: 5.079644061e-05 | FW19: 3.679628614e-05 | FX19: 2.716877196e-05 | FY19: 2.046048457e-05 | FZ19: 1.571340864e-05 | GA19: 1.229735632e-05 | GB19: 9.796281715e-06 | GC19: 7.933355215e-06 | GD19: 6.522385264e-06 | GE19: 5.436545024e-06 | GF19: 4.588246091e-06 | GG19: 3.916127988e-06 | GH19: 3.376581837e-06 | GI19: 2.938172563e-06 | GJ19: 2.577926412e-06 | GK19: 2.278829698e-06 | GL19: 2.028122323e-06 | GM19: 1.816118735e-06 | GN19: 1.635383071e-06 | GO19: 1.48014501e-06 | GP19: 1.34588116e-06 | GQ19: 1.229011646e-06 | GR19: 1.126677753e-06 | GS19: 1.036577289e-06 | GT19: 9.568414304e-07 | GU19: 8.859417372e-07 | GV19: 8.226192999e-07 | GW19: 7.658302833e-07 | GX19: 7.1470373e-07 | GY19: 6.685086055e-07 | GZ19: 6.266278703e-07 | HA19: 5.885379353e-07 | HB19: 5.537922738e-07 | HC19: 5.220082639e-07 | HD19: 4.928565619e-07 | HE19: 4.660524671e-07 | HF19: 4.413488686e-07 | HG19: 4.185304513e-07 | HH19: 3.974089138e-07 | HI19: 3.778190015e-07 | HJ19: 3.596152011e-07 | HK19: 3.426689738e-07 | HM19: 8 | HN19: 0.0009469615198 | HO19: 0.0003813155384
